Workbook

Sheet Acceuil
C1: Colonnes Machine Cible | D1: D | E1: E | F1: F | G1: G | H1: H | I1: I | J1: R | K1: S | L1: N | M1: Q | N1: P | O1: O | P1: J | Q1: K | R1: L | S1: M
C2: Rang Machine Source | D2: 1 | E2: 2 | F2: 3 | G2: 4 | H2: 5 | I2: 6 | J2: 7 | K2: 8 | L2: 9 | M2: 10 | N2: 11 | O2: 12 | P2: 13 | Q2: 14 | R2: 15 | S2: 16
C3: Machines Source | D3: SST16 | E3: SB16 | F3: BIGLIA 301 SM | G3: BIGLIA 42 S2M bitourelle | H3: L32 | I3: TSUGAMI | J3: Tour STAR SV-32-J | K3: Tour CNC STAR SB avec embarreur LNS Express 220 | L3: MULTIBROCHE | M3: Tour CNC WEILER UD 24 - 100 | N3: TOUR WEILER | O3: NAKAMURA | P3: MORI SEIKI 3 axes | Q3: MORI SEIKI 5 axes | R3: HARDING | S3: KITAMURA

Sheet Modèle
E2: Rapport journalier | R2: Code:DAS-SMQ-24
R3: Date: 27/12/2019
R4: Version:01
R5: Page:1
D12: A | E12: B | F12: C | G12: D | H12: E | I12: F | J12: M | K12: N | L12: O | M12: P | N12: I | O12: L | P12: K | Q12: J | R12: G | S12: H
B13: Machine | D13: SST16 | E13: SB16 | F13: BIGLIA 301 SM | G13: BIGLIA 42 S2M bitourelle | H13: L32 | I13: TSUGAMI | J13: MORI SEIKI 3 axes | K13: MORI SEIKI 5 axes | L13: HARDING | M13: KITAMURA | N13: MULTIBROCHE | O13: NAKAMURA | P13: TOUR WEILER
B14: Référence
B15: Désignation
B16: Compteur 8h
B17: Compteur 17h
B18: Enregistrement | C18: 9h
C19: 16h
B20: Identification
B21: Propreté des tables de contrôle
B22: Rangement des outils de contrôle
B23: Existance de l'OF
B24: Affutage | T24: =+COUNTA(D24:S24) -> 0
B25: Maintenance
B26: Nombre des NC poubelle
B27: Nombre des NC à retoucher
B28: Machine pour retouche
B29: Panne
B30: Cout pièces de rechange | T30: =SUM(D30:S30) -> 0
B31: prix de revient pièce | D31: =IFERROR(VLOOKUP(D14,'Prix de revient'!$A:$D,4,0),0) -> 0 | E31: =IFERROR(VLOOKUP(E14,'Prix de revient'!$A:$D,4,0),0) -> 0 | F31: =IFERROR(VLOOKUP(F14,'Prix de revient'!$A:$D,4,0),0) -> 0 | G31: =IFERROR(VLOOKUP(G14,'Prix de revient'!$A:$D,4,0),0) -> 0 | H31: =IFERROR(VLOOKUP(H14,'Prix de revient'!$A:$D,4,0),0) -> 0 | I31: =IFERROR(VLOOKUP(I14,'Prix de revient'!$A:$D,4,0),0) -> 0 | J31: =IFERROR(VLOOKUP(J14,'Prix de revient'!$A:$D,4,0),0) -> 0 | K31: =IFERROR(VLOOKUP(K14,'Prix de revient'!$A:$D,4,0),0) -> 0 | L31: =IFERROR(VLOOKUP(L14,'Prix de revient'!$A:$D,4,0),0) -> 0 | M31: =IFERROR(VLOOKUP(M14,'Prix de revient'!$A:$D,4,0),0) -> 0 | N31: =IFERROR(VLOOKUP(N14,'Prix de revient'!$A:$D,4,0),0) -> 0 | O31: =IFERROR(VLOOKUP(O14,'Prix de revient'!$A:$D,4,0),0) -> 0 | P31: =IFERROR(VLOOKUP(P14,'Prix de revient'!$A:$D,4,0),0) -> 0 | Q31: =IFERROR(VLOOKUP(Q14,'Prix de revient'!$A:$D,4,0),0) -> 0 | R31: =IFERROR(VLOOKUP(R14,'Prix de revient'!$A:$D,4,0),0) -> 0 | S31: =IFERROR(VLOOKUP(S14,'Prix de revient'!$A:$D,4,0),0) -> 0
B32: coût de rebuts | D32: =D26*D31 -> 0 | E32: =E26*E31 -> 0 | F32: 0 | G32: 0 | H32: 0 | I32: 0 | J32: 0 | K32: 0 | L32: 0 | M32: 0 | N32: 0 | O32: 0 | P32: 0 | Q32: 0 | R32: 0 | S32: 0 | T32: =SUM(D32:S32) -> 0
B33: gestion de modification
C41: Clients | D41: Audit | E41: Réclamation | F41: Avoir | H41: Fournisseurs/ sous-traitants | I41: Réception de matiere | J41: Probleme qualité | L41: Les formations professionnelles | M41: Cout | N41: Chiffrage décliné | O41: Actions à suivre | Q41: Article qui a subit un tri | R41: durée du tri | S41: Nombre des pieces non-conformes | T41: ouvrier faisant le tri | U41: cout par tri | W41: Article qui a subit la reprise | X41: durée de la reprise | Y41: opérateur faisant la reprise | Z41: coût de reprise | AD41: Machine | AE41: article | AF41: gamme | AG41: objet de la modification
U42: =IF(R42="","",R42*VLOOKUP(T42,'cout opérateur machines'!A1:B8,2,0)) ->  | Z42: =X42*8 -> 0
U43: =IF(R43="","",R43*VLOOKUP(T43,'cout opérateur machines'!A2:B9,2,0)) ->  | Z43: =X43*8 -> 0
U44: =IF(R44="","",R44*VLOOKUP(T44,'cout opérateur machines'!A3:B10,2,0)) ->  | Z44: 0
U45: =IF(R45="","",R45*VLOOKUP(T45,'cout opérateur machines'!A4:B11,2,0)) ->  | Z45: 0
U46: =IF(R46="","",R46*VLOOKUP(T46,'cout opérateur machines'!A5:B12,2,0)) ->  | Z46: 0
U47: =IF(R47="","",R47*VLOOKUP(T47,'cout opérateur machines'!A6:B13,2,0)) ->  | Z47: 0
E48: =COUNTA(E42:E47) -> 0 | F48: =SUM(F42:F47) -> 0 | M48: =SUM(M42:M47) -> 0 | N48: causes de refus | S48: cout total du jour | U48: =SUM(U42:U47) -> 0 | Z48: 0
H49: envoi des réclamations F/ S-T | I49: réponse F/ S-T | J49: alerte | Z49: =SUM(Z42:Z48) -> 0
C50: dans le cas d'une réclamation | J50: =IF(J42="","",IF(H50=0," réclamation non traitée",IF(I50=0, "veuillez contacter le F/ S-T par téléphone",""))) ->  | S50: N° mois | U50: 0
C51: nombre de pièces NC | J51: =IF(J43="","",IF(H51=0," réclamation non traitée",IF(I51=0, "veuillez contacter le F/ S-T par téléphone",""))) -> 
C52: nombre de pièces par carton
C53: coût de transport par carton
C54: nombre de cartons renvoyés
C55: temps de tri
C56: coût horaire de tri
C57: temps de retouche
C58: coût horaire de retouche
C59: temps de traitement de la réclamation
C60: coût horaire de traitement
C61: coût total | D61: =IFERROR(((D51/D52)*D53)+D54*D53+D55*D56+D57*D58+D59*D60,"") -> 

Sheet TOTAL
C1: Coûts de Qualité | M1: Code | N1: : DAS-PRO-26
M2: Date | N2: :20/10/2018
M3: Version | N3: : 02
M4: Page | N4: : 1/1
A6: Critéres Sources | B6: Coûts NQ Janvier | C6: Coûts NQ Février | D6: Coûts NQ Mars | E6: Coûts NQ Avril | F6: Coûts NQ Mai | G6: Coûts NQ Juin | H6: Coûts NQ Juillet | I6: Coûts NQ Août | J6: Coûts NQ Septembre | K6: Coûts NQ Octobre | L6: Coûts NQ Novembre | M6: Coûts NQ Décembre
A7: Coûts des défaillances internes (DT) | B7: ='Coûts des défaillances internes'!C15 -> 0 | C7: ='Coûts des défaillances internes'!E15 -> 40184 | D7: ='Coûts des défaillances internes'!G15 -> 0 | E7: ='Coûts des défaillances internes'!I15 -> 2 | F7: =+'Coûts des défaillances internes'!K15 -> 0 | G7: ='Coûts des défaillances internes'!M15 -> 0 | H7: ='Coûts des défaillances internes'!O15 -> 0 | I7: ='Coûts des défaillances internes'!Q15 -> 0 | J7: ='Coûts des défaillances internes'!S15 -> 0 | K7: ='Coûts des défaillances internes'!U15 -> 0 | L7: ='Coûts des défaillances internes'!W15 -> 0 | M7: ='Coûts des défaillances internes'!Y15 -> 0
A8: Coûts des défaillances externes (DT) | B8: =+'Coûts des défaillances externes'!B11 -> 0 | C8: =+'Coûts des défaillances externes'!C11 -> 0 | D8: =+'Coûts des défaillances externes'!D11 -> 0 | E8: =+'Coûts des défaillances externes'!E11 -> 0 | F8: =+'Coûts des défaillances externes'!F11 -> 0 | G8: ='Coûts des défaillances externes'!G11 -> 0 | H8: ='Coûts des défaillances externes'!H11 -> 0 | I8: ='Coûts des défaillances externes'!I11 -> 0 | J8: ='Coûts des défaillances externes'!J11 -> 0 | K8: ='Coûts des défaillances externes'!K11 -> 0 | L8: ='Coûts des défaillances externes'!L11 -> 0 | M8: ='Coûts des défaillances externes'!M11 -> 0
A9: Coûts de détection (DT) | B9: =+'Coûts de détection'!B8 -> 0 | C9: ='Coûts de détection'!C8 -> 0 | D9: ='Coûts de détection'!D8 -> 0 | E9: ='Coûts de détection'!E8 -> 100 | F9: ='Coûts de détection'!F8 -> 0 | G9: ='Coûts de détection'!G8 -> 0 | H9: ='Coûts de détection'!H8 -> 0 | I9: ='Coûts de détection'!I8 -> 0 | J9: ='Coûts de détection'!J8 -> 0 | K9: ='Coûts de détection'!K8 -> 0 | L9: ='Coûts de détection'!L8 -> 0 | M9: ='Coûts de détection'!M8 -> 0
A10: Total | B10: =SUM(B7:B9) -> 0 | C10: 40184 | D10: 0 | E10: 102 | F10: 0 | G10: 0 | H10: 0 | I10: 0 | J10: 0 | K10: 0 | L10: 0 | M10: 0
A12: CA (DT) | B12: 251293.594 | C12: 75536.673 | D12: 194444.755 | E12: 204942.096 | F12: 68836.851 | G12: 124897.856 | H12: 46938.731 | I12: 71989.311
A13: % CNQ = | B13: =IFERROR((B10/B12),"") -> 0 | C13: =IFERROR((C10/C12),"") -> 0.5319800092 | D13: =IFERROR((D10/D12),"") -> 0 | E13: 0.0004977015557 | F13: 0 | G13: 0 | H13: 0 | I13: 0
B14: =SUM(B12:G12) -> 919951.825 | H14: =SUM(H12:M12) -> 118928.042 | N14: =H14/B14 -> 0.1292763803
A16: Rédacteur : | I16: Approbateur :
A17: Date : 0 | I17: Date :
A18: Visa : | I18: Visa :
G25: 4
A254: 119

Sheet BdD
A1: date | B1: machine | C1: panne | E1: choix date : | F1: 2021-01-04 | G1: machine | H1: nombre de 0 | I1: nombre de 1 | J1: % | K1: alerte maintenance curative) | L1: S1 | M1: S2
A2: 2021-04-20 | B2: SST16 | E2: Semestre | F2: S1 | G2: SST16 | H2: =SUMPRODUCT((Tableau1[date]>=$F$1)*(Tableau1[machine]=$G2)*(Tableau1[panne]=0)) -> 88 | I2: =SUMPRODUCT((Tableau1[date]>=$F$1)*(Tableau1[machine]=$G2)*(Tableau1[panne]=1)) -> 1 | J2: =I2/(H2+I2) -> 0.01123595506 | K2: =IF(J2>15%,"non performante","") ->  | L2: =SUBSTITUTE(IF(ROW()>2,L1&IF(AND(ROW()>2,LEN(L1)>1),CHAR(10),"")&IF(SUMPRODUCT((Tableau1[date]<=DATE(YEAR($A$2),6,30))*(Tableau1[machine]=$G2)*(Tableau1[panne]=1))/SUMPRODUCT((Tableau1[date]<=DATE(YEAR(Tableau1[[#This Row],[date]]),6,30))*(Tableau1[machine]=$G2))>15%,G2,""),""),CHAR(10)&CHAR(10),CHAR(10)) ->  | M2: =SUBSTITUTE(IF(ROW()>2,M1&IF(AND(ROW()>2,LEN(M1)>1),CHAR(10),"")&IF(SUMPRODUCT((Tableau1[date]>DATE(YEAR($A$2),6,30))*(Tableau1[machine]=$G2)*(Tableau1[panne]=1))/MAX(1,SUMPRODUCT((Tableau1[date]>DATE(YEAR($A$2),6,30))*(Tableau1[machine]=$G2)))>15%,$G2,""),""),CHAR(10)&CHAR(10),CHAR(10)) -> 
A3: 2021-04-20 | B3: SB16 | G3: SB16 | H3: =SUMPRODUCT((Tableau1[date]>=$F$1)*(Tableau1[machine]=$G3)*(Tableau1[panne]=0)) -> 87 | I3: =SUMPRODUCT((Tableau1[date]>=$F$1)*(Tableau1[machine]=$G3)*(Tableau1[panne]=1)) -> 2 | J3: =I3/(H3+I3) -> 0.02247191011 | K3: =IF(J3>15%,"non performante","") ->  | L3: =SUBSTITUTE(IF(ROW()>2,L2&IF(AND(ROW()>2,LEN(L2)>1),CHAR(10),"")&IF(SUMPRODUCT((Tableau1[date]<=DATE(YEAR($A$2),6,30))*(Tableau1[machine]=$G3)*(Tableau1[panne]=1))/SUMPRODUCT((Tableau1[date]<=DATE(YEAR(Tableau1[[#This Row],[date]]),6,30))*(Tableau1[machine]=$G3))>15%,G3,""),""),CHAR(10)&CHAR(10),CHAR(10)) ->  | M3: =SUBSTITUTE(IF(ROW()>2,M2&IF(AND(ROW()>2,LEN(M2)>1),CHAR(10),"")&IF(SUMPRODUCT((Tableau1[date]>DATE(YEAR($A$2),6,30))*(Tableau1[machine]=$G3)*(Tableau1[panne]=1))/MAX(1,SUMPRODUCT((Tableau1[date]>DATE(YEAR($A$2),6,30))*(Tableau1[machine]=$G3)))>15%,$G3,""),""),CHAR(10)&CHAR(10),CHAR(10)) -> 
A4: 2021-04-20 | B4: BIGLIA 301 SM | G4: BIGLIA 301 SM | H4: =SUMPRODUCT((Tableau1[date]>=$F$1)*(Tableau1[machine]=$G4)*(Tableau1[panne]=0)) -> 89 | I4: =SUMPRODUCT((Tableau1[date]>=$F$1)*(Tableau1[machine]=$G4)*(Tableau1[panne]=1)) -> 0 | J4: 0 | L4: =SUBSTITUTE(IF(ROW()>2,L3&IF(AND(ROW()>2,LEN(L3)>1),CHAR(10),"")&IF(SUMPRODUCT((Tableau1[date]<=DATE(YEAR($A$2),6,30))*(Tableau1[machine]=$G4)*(Tableau1[panne]=1))/SUMPRODUCT((Tableau1[date]<=DATE(YEAR(Tableau1[[#This Row],[date]]),6,30))*(Tableau1[machine]=$G4))>15%,G4,""),""),CHAR(10)&CHAR(10),CHAR(10)) ->  | M4: =SUBSTITUTE(IF(ROW()>2,M3&IF(AND(ROW()>2,LEN(M3)>1),CHAR(10),"")&IF(SUMPRODUCT((Tableau1[date]>DATE(YEAR($A$2),6,30))*(Tableau1[machine]=$G4)*(Tableau1[panne]=1))/MAX(1,SUMPRODUCT((Tableau1[date]>DATE(YEAR($A$2),6,30))*(Tableau1[machine]=$G4)))>15%,$G4,""),""),CHAR(10)&CHAR(10),CHAR(10)) -> 
A5: 2021-04-20 | B5: BIGLIA 42 S2M bitourelle | G5: BIGLIA 42 S2M bitourelle | H5: =SUMPRODUCT((Tableau1[date]>=$F$1)*(Tableau1[machine]=$G5)*(Tableau1[panne]=0)) -> 89 | I5: =SUMPRODUCT((Tableau1[date]>=$F$1)*(Tableau1[machine]=$G5)*(Tableau1[panne]=1)) -> 0 | J5: 0 | L5: =SUBSTITUTE(IF(ROW()>2,L4&IF(AND(ROW()>2,LEN(L4)>1),CHAR(10),"")&IF(SUMPRODUCT((Tableau1[date]<=DATE(YEAR($A$2),6,30))*(Tableau1[machine]=$G5)*(Tableau1[panne]=1))/SUMPRODUCT((Tableau1[date]<=DATE(YEAR(Tableau1[[#This Row],[date]]),6,30))*(Tableau1[machine]=$G5))>15%,G5,""),""),CHAR(10)&CHAR(10),CHAR(10)) ->  | M5: =SUBSTITUTE(IF(ROW()>2,M4&IF(AND(ROW()>2,LEN(M4)>1),CHAR(10),"")&IF(SUMPRODUCT((Tableau1[date]>DATE(YEAR($A$2),6,30))*(Tableau1[machine]=$G5)*(Tableau1[panne]=1))/MAX(1,SUMPRODUCT((Tableau1[date]>DATE(YEAR($A$2),6,30))*(Tableau1[machine]=$G5)))>15%,$G5,""),""),CHAR(10)&CHAR(10),CHAR(10)) -> 
A6: 2021-04-20 | B6: L32 | G6: L32 | H6: =SUMPRODUCT((Tableau1[date]>=$F$1)*(Tableau1[machine]=$G6)*(Tableau1[panne]=0)) -> 89 | I6: =SUMPRODUCT((Tableau1[date]>=$F$1)*(Tableau1[machine]=$G6)*(Tableau1[panne]=1)) -> 0 | J6: 0 | L6: =SUBSTITUTE(IF(ROW()>2,L5&IF(AND(ROW()>2,LEN(L5)>1),CHAR(10),"")&IF(SUMPRODUCT((Tableau1[date]<=DATE(YEAR($A$2),6,30))*(Tableau1[machine]=$G6)*(Tableau1[panne]=1))/SUMPRODUCT((Tableau1[date]<=DATE(YEAR(Tableau1[[#This Row],[date]]),6,30))*(Tableau1[machine]=$G6))>15%,G6,""),""),CHAR(10)&CHAR(10),CHAR(10)) ->  | M6: =SUBSTITUTE(IF(ROW()>2,M5&IF(AND(ROW()>2,LEN(M5)>1),CHAR(10),"")&IF(SUMPRODUCT((Tableau1[date]>DATE(YEAR($A$2),6,30))*(Tableau1[machine]=$G6)*(Tableau1[panne]=1))/MAX(1,SUMPRODUCT((Tableau1[date]>DATE(YEAR($A$2),6,30))*(Tableau1[machine]=$G6)))>15%,$G6,""),""),CHAR(10)&CHAR(10),CHAR(10)) -> 
A7: 2021-04-20 | B7: TSUGAMI | G7: TSUGAMI | H7: =SUMPRODUCT((Tableau1[date]>=$F$1)*(Tableau1[machine]=$G7)*(Tableau1[panne]=0)) -> 89 | I7: =SUMPRODUCT((Tableau1[date]>=$F$1)*(Tableau1[machine]=$G7)*(Tableau1[panne]=1)) -> 0 | J7: 0 | L7: =SUBSTITUTE(IF(ROW()>2,L6&IF(AND(ROW()>2,LEN(L6)>1),CHAR(10),"")&IF(SUMPRODUCT((Tableau1[date]<=DATE(YEAR($A$2),6,30))*(Tableau1[machine]=$G7)*(Tableau1[panne]=1))/SUMPRODUCT((Tableau1[date]<=DATE(YEAR(Tableau1[[#This Row],[date]]),6,30))*(Tableau1[machine]=$G7))>15%,G7,""),""),CHAR(10)&CHAR(10),CHAR(10)) ->  | M7: =SUBSTITUTE(IF(ROW()>2,M6&IF(AND(ROW()>2,LEN(M6)>1),CHAR(10),"")&IF(SUMPRODUCT((Tableau1[date]>DATE(YEAR($A$2),6,30))*(Tableau1[machine]=$G7)*(Tableau1[panne]=1))/MAX(1,SUMPRODUCT((Tableau1[date]>DATE(YEAR($A$2),6,30))*(Tableau1[machine]=$G7)))>15%,$G7,""),""),CHAR(10)&CHAR(10),CHAR(10)) -> 
A8: 2021-04-20 | B8: MORI SEIKI 3 axes | G8: MORI SEIKI 3 axes | H8: =SUMPRODUCT((Tableau1[date]>=$F$1)*(Tableau1[machine]=$G8)*(Tableau1[panne]=0)) -> 89 | I8: =SUMPRODUCT((Tableau1[date]>=$F$1)*(Tableau1[machine]=$G8)*(Tableau1[panne]=1)) -> 0 | J8: 0 | L8: =SUBSTITUTE(IF(ROW()>2,L7&IF(AND(ROW()>2,LEN(L7)>1),CHAR(10),"")&IF(SUMPRODUCT((Tableau1[date]<=DATE(YEAR($A$2),6,30))*(Tableau1[machine]=$G8)*(Tableau1[panne]=1))/SUMPRODUCT((Tableau1[date]<=DATE(YEAR(Tableau1[[#This Row],[date]]),6,30))*(Tableau1[machine]=$G8))>15%,G8,""),""),CHAR(10)&CHAR(10),CHAR(10)) ->  | M8: =SUBSTITUTE(IF(ROW()>2,M7&IF(AND(ROW()>2,LEN(M7)>1),CHAR(10),"")&IF(SUMPRODUCT((Tableau1[date]>DATE(YEAR($A$2),6,30))*(Tableau1[machine]=$G8)*(Tableau1[panne]=1))/MAX(1,SUMPRODUCT((Tableau1[date]>DATE(YEAR($A$2),6,30))*(Tableau1[machine]=$G8)))>15%,$G8,""),""),CHAR(10)&CHAR(10),CHAR(10)) -> 
A9: 2021-04-20 | B9: MORI SEIKI 5 axes | G9: MORI SEIKI 5 axes | H9: =SUMPRODUCT((Tableau1[date]>=$F$1)*(Tableau1[machine]=$G9)*(Tableau1[panne]=0)) -> 89 | I9: =SUMPRODUCT((Tableau1[date]>=$F$1)*(Tableau1[machine]=$G9)*(Tableau1[panne]=1)) -> 0 | J9: 0 | L9: =SUBSTITUTE(IF(ROW()>2,L8&IF(AND(ROW()>2,LEN(L8)>1),CHAR(10),"")&IF(SUMPRODUCT((Tableau1[date]<=DATE(YEAR($A$2),6,30))*(Tableau1[machine]=$G9)*(Tableau1[panne]=1))/SUMPRODUCT((Tableau1[date]<=DATE(YEAR(Tableau1[[#This Row],[date]]),6,30))*(Tableau1[machine]=$G9))>15%,G9,""),""),CHAR(10)&CHAR(10),CHAR(10)) ->  | M9: =SUBSTITUTE(IF(ROW()>2,M8&IF(AND(ROW()>2,LEN(M8)>1),CHAR(10),"")&IF(SUMPRODUCT((Tableau1[date]>DATE(YEAR($A$2),6,30))*(Tableau1[machine]=$G9)*(Tableau1[panne]=1))/MAX(1,SUMPRODUCT((Tableau1[date]>DATE(YEAR($A$2),6,30))*(Tableau1[machine]=$G9)))>15%,$G9,""),""),CHAR(10)&CHAR(10),CHAR(10)) -> 
A10: 2021-04-20 | B10: HARDING | G10: HARDING | H10: =SUMPRODUCT((Tableau1[date]>=$F$1)*(Tableau1[machine]=$G10)*(Tableau1[panne]=0)) -> 89 | I10: =SUMPRODUCT((Tableau1[date]>=$F$1)*(Tableau1[machine]=$G10)*(Tableau1[panne]=1)) -> 0 | J10: 0 | L10: =SUBSTITUTE(IF(ROW()>2,L9&IF(AND(ROW()>2,LEN(L9)>1),CHAR(10),"")&IF(SUMPRODUCT((Tableau1[date]<=DATE(YEAR($A$2),6,30))*(Tableau1[machine]=$G10)*(Tableau1[panne]=1))/SUMPRODUCT((Tableau1[date]<=DATE(YEAR(Tableau1[[#This Row],[date]]),6,30))*(Tableau1[machine]=$G10))>15%,G10,""),""),CHAR(10)&CHAR(10),CHAR(10)) ->  | M10: =SUBSTITUTE(IF(ROW()>2,M9&IF(AND(ROW()>2,LEN(M9)>1),CHAR(10),"")&IF(SUMPRODUCT((Tableau1[date]>DATE(YEAR($A$2),6,30))*(Tableau1[machine]=$G10)*(Tableau1[panne]=1))/MAX(1,SUMPRODUCT((Tableau1[date]>DATE(YEAR($A$2),6,30))*(Tableau1[machine]=$G10)))>15%,$G10,""),""),CHAR(10)&CHAR(10),CHAR(10)) -> 
A11: 2021-04-20 | B11: KITAMURA | G11: KITAMURA | H11: =SUMPRODUCT((Tableau1[date]>=$F$1)*(Tableau1[machine]=$G11)*(Tableau1[panne]=0)) -> 89 | I11: =SUMPRODUCT((Tableau1[date]>=$F$1)*(Tableau1[machine]=$G11)*(Tableau1[panne]=1)) -> 0 | J11: 0 | L11: =SUBSTITUTE(IF(ROW()>2,L10&IF(AND(ROW()>2,LEN(L10)>1),CHAR(10),"")&IF(SUMPRODUCT((Tableau1[date]<=DATE(YEAR($A$2),6,30))*(Tableau1[machine]=$G11)*(Tableau1[panne]=1))/SUMPRODUCT((Tableau1[date]<=DATE(YEAR(Tableau1[[#This Row],[date]]),6,30))*(Tableau1[machine]=$G11))>15%,G11,""),""),CHAR(10)&CHAR(10),CHAR(10)) ->  | M11: =SUBSTITUTE(IF(ROW()>2,M10&IF(AND(ROW()>2,LEN(M10)>1),CHAR(10),"")&IF(SUMPRODUCT((Tableau1[date]>DATE(YEAR($A$2),6,30))*(Tableau1[machine]=$G11)*(Tableau1[panne]=1))/MAX(1,SUMPRODUCT((Tableau1[date]>DATE(YEAR($A$2),6,30))*(Tableau1[machine]=$G11)))>15%,$G11,""),""),CHAR(10)&CHAR(10),CHAR(10)) -> 
A12: 2021-04-20 | B12: MULTIBROCHE | G12: MULTIBROCHE | H12: =SUMPRODUCT((Tableau1[date]>=$F$1)*(Tableau1[machine]=$G12)*(Tableau1[panne]=0)) -> 87 | I12: =SUMPRODUCT((Tableau1[date]>=$F$1)*(Tableau1[machine]=$G12)*(Tableau1[panne]=1)) -> 2 | J12: 0.02247191011 | L12: =SUBSTITUTE(IF(ROW()>2,L11&IF(AND(ROW()>2,LEN(L11)>1),CHAR(10),"")&IF(SUMPRODUCT((Tableau1[date]<=DATE(YEAR($A$2),6,30))*(Tableau1[machine]=$G12)*(Tableau1[panne]=1))/SUMPRODUCT((Tableau1[date]<=DATE(YEAR(Tableau1[[#This Row],[date]]),6,30))*(Tableau1[machine]=$G12))>15%,G12,""),""),CHAR(10)&CHAR(10),CHAR(10)) ->  | M12: =SUBSTITUTE(IF(ROW()>2,M11&IF(AND(ROW()>2,LEN(M11)>1),CHAR(10),"")&IF(SUMPRODUCT((Tableau1[date]>DATE(YEAR($A$2),6,30))*(Tableau1[machine]=$G12)*(Tableau1[panne]=1))/MAX(1,SUMPRODUCT((Tableau1[date]>DATE(YEAR($A$2),6,30))*(Tableau1[machine]=$G12)))>15%,$G12,""),""),CHAR(10)&CHAR(10),CHAR(10)) -> 
A13: 2021-04-20 | B13: NAKAMURA | G13: NAKAMURA | H13: =SUMPRODUCT((Tableau1[date]>=$F$1)*(Tableau1[machine]=$G13)*(Tableau1[panne]=0)) -> 88 | I13: =SUMPRODUCT((Tableau1[date]>=$F$1)*(Tableau1[machine]=$G13)*(Tableau1[panne]=1)) -> 1 | J13: 0.01123595506 | L13: =SUBSTITUTE(IF(ROW()>2,L12&IF(AND(ROW()>2,LEN(L12)>1),CHAR(10),"")&IF(SUMPRODUCT((Tableau1[date]<=DATE(YEAR($A$2),6,30))*(Tableau1[machine]=$G13)*(Tableau1[panne]=1))/SUMPRODUCT((Tableau1[date]<=DATE(YEAR(Tableau1[[#This Row],[date]]),6,30))*(Tableau1[machine]=$G13))>15%,G13,""),""),CHAR(10)&CHAR(10),CHAR(10)) ->  | M13: =SUBSTITUTE(IF(ROW()>2,M12&IF(AND(ROW()>2,LEN(M12)>1),CHAR(10),"")&IF(SUMPRODUCT((Tableau1[date]>DATE(YEAR($A$2),6,30))*(Tableau1[machine]=$G13)*(Tableau1[panne]=1))/MAX(1,SUMPRODUCT((Tableau1[date]>DATE(YEAR($A$2),6,30))*(Tableau1[machine]=$G13)))>15%,$G13,""),""),CHAR(10)&CHAR(10),CHAR(10)) -> 
A14: 2021-04-20 | B14: TOUR WEILER | G14: TOUR WEILER | H14: =SUMPRODUCT((Tableau1[date]>=$F$1)*(Tableau1[machine]=$G14)*(Tableau1[panne]=0)) -> 89 | I14: =SUMPRODUCT((Tableau1[date]>=$F$1)*(Tableau1[machine]=$G14)*(Tableau1[panne]=1)) -> 0 | J14: 0 | L14: =SUBSTITUTE(IF(ROW()>2,L13&IF(AND(ROW()>2,LEN(L13)>1),CHAR(10),"")&IF(SUMPRODUCT((Tableau1[date]<=DATE(YEAR($A$2),6,30))*(Tableau1[machine]=$G14)*(Tableau1[panne]=1))/SUMPRODUCT((Tableau1[date]<=DATE(YEAR(Tableau1[[#This Row],[date]]),6,30))*(Tableau1[machine]=$G14))>15%,G14,""),""),CHAR(10)&CHAR(10),CHAR(10)) ->  | M14: =SUBSTITUTE(IF(ROW()>2,M13&IF(AND(ROW()>2,LEN(M13)>1),CHAR(10),"")&IF(SUMPRODUCT((Tableau1[date]>DATE(YEAR($A$2),6,30))*(Tableau1[machine]=$G14)*(Tableau1[panne]=1))/MAX(1,SUMPRODUCT((Tableau1[date]>DATE(YEAR($A$2),6,30))*(Tableau1[machine]=$G14)))>15%,$G14,""),""),CHAR(10)&CHAR(10),CHAR(10)) -> 
A15: 2021-04-19 | B15: SST16
A16: 2021-04-19 | B16: SB16
A17: 2021-04-19 | B17: BIGLIA 301 SM
A18: 2021-04-19 | B18: BIGLIA 42 S2M bitourelle
A19: 2021-04-19 | B19: L32
A20: 2021-04-19 | B20: TSUGAMI
A21: 2021-04-19 | B21: MORI SEIKI 3 axes
A22: 2021-04-19 | B22: MORI SEIKI 5 axes
A23: 2021-04-19 | B23: HARDING
A24: 2021-04-19 | B24: KITAMURA
A25: 2021-04-19 | B25: MULTIBROCHE
A26: 2021-04-19 | B26: NAKAMURA
A27: 2021-04-19 | B27: TOUR WEILER
A28: 2021-04-17 | B28: SST16
A29: 2021-04-17 | B29: SB16
A30: 2021-04-17 | B30: BIGLIA 301 SM
A31: 2021-04-17 | B31: BIGLIA 42 S2M bitourelle
A32: 2021-04-17 | B32: L32
A33: 2021-04-17 | B33: TSUGAMI
A34: 2021-04-17 | B34: MORI SEIKI 3 axes
A35: 2021-04-17 | B35: MORI SEIKI 5 axes
A36: 2021-04-17 | B36: HARDING
A37: 2021-04-17 | B37: KITAMURA
A38: 2021-04-17 | B38: MULTIBROCHE
A39: 2021-04-17 | B39: NAKAMURA
A40: 2021-04-17 | B40: TOUR WEILER
A41: 2021-04-16 | B41: SST16
A42: 2021-04-16 | B42: SB16
A43: 2021-04-16 | B43: BIGLIA 301 SM
A44: 2021-04-16 | B44: BIGLIA 42 S2M bitourelle
A45: 2021-04-16 | B45: L32
A46: 2021-04-16 | B46: TSUGAMI
A47: 2021-04-16 | B47: MORI SEIKI 3 axes
A48: 2021-04-16 | B48: MORI SEIKI 5 axes
A49: 2021-04-16 | B49: HARDING
A50: 2021-04-16 | B50: KITAMURA
A51: 2021-04-16 | B51: MULTIBROCHE
A52: 2021-04-16 | B52: NAKAMURA
A53: 2021-04-16 | B53: TOUR WEILER
A54: 2021-04-15 | B54: SST16
A55: 2021-04-15 | B55: SB16
A56: 2021-04-15 | B56: BIGLIA 301 SM
A57: 2021-04-15 | B57: BIGLIA 42 S2M bitourelle
A58: 2021-04-15 | B58: L32
A59: 2021-04-15 | B59: TSUGAMI
A60: 2021-04-15 | B60: MORI SEIKI 3 axes
A61: 2021-04-15 | B61: MORI SEIKI 5 axes
A62: 2021-04-15 | B62: HARDING
A63: 2021-04-15 | B63: KITAMURA
A64: 2021-04-15 | B64: MULTIBROCHE
A65: 2021-04-15 | B65: NAKAMURA
A66: 2021-04-15 | B66: TOUR WEILER
A67: 2021-04-14 | B67: SST16
A68: 2021-04-14 | B68: SB16
A69: 2021-04-14 | B69: BIGLIA 301 SM
A70: 2021-04-14 | B70: BIGLIA 42 S2M bitourelle
A71: 2021-04-14 | B71: L32
A72: 2021-04-14 | B72: TSUGAMI
A73: 2021-04-14 | B73: MORI SEIKI 3 axes
A74: 2021-04-14 | B74: MORI SEIKI 5 axes
A75: 2021-04-14 | B75: HARDING
A76: 2021-04-14 | B76: KITAMURA
A77: 2021-04-14 | B77: MULTIBROCHE
A78: 2021-04-14 | B78: NAKAMURA
A79: 2021-04-14 | B79: TOUR WEILER
A80: 2021-04-13 | B80: SST16
A81: 2021-04-13 | B81: SB16
A82: 2021-04-13 | B82: BIGLIA 301 SM
A83: 2021-04-13 | B83: BIGLIA 42 S2M bitourelle
A84: 2021-04-13 | B84: L32
A85: 2021-04-13 | B85: TSUGAMI
A86: 2021-04-13 | B86: MORI SEIKI 3 axes
A87: 2021-04-13 | B87: MORI SEIKI 5 axes
A88: 2021-04-13 | B88: HARDING
A89: 2021-04-13 | B89: KITAMURA
A90: 2021-04-13 | B90: MULTIBROCHE
A91: 2021-04-13 | B91: NAKAMURA
A92: 2021-04-13 | B92: TOUR WEILER
A93: 2021-04-12 | B93: SST16
A94: 2021-04-12 | B94: SB16
A95: 2021-04-12 | B95: BIGLIA 301 SM
A96: 2021-04-12 | B96: BIGLIA 42 S2M bitourelle
A97: 2021-04-12 | B97: L32
A98: 2021-04-12 | B98: TSUGAMI
A99: 2021-04-12 | B99: MORI SEIKI 3 axes
A100: 2021-04-12 | B100: MORI SEIKI 5 axes
A101: 2021-04-12 | B101: HARDING
A102: 2021-04-12 | B102: KITAMURA
A103: 2021-04-12 | B103: MULTIBROCHE
A104: 2021-04-12 | B104: NAKAMURA
A105: 2021-04-12 | B105: TOUR WEILER
A106: 2021-04-10 | B106: SST16
A107: 2021-04-10 | B107: SB16
A108: 2021-04-10 | B108: BIGLIA 301 SM
A109: 2021-04-10 | B109: BIGLIA 42 S2M bitourelle
A110: 2021-04-10 | B110: L32
A111: 2021-04-10 | B111: TSUGAMI
A112: 2021-04-10 | B112: MORI SEIKI 3 axes
A113: 2021-04-10 | B113: MORI SEIKI 5 axes
A114: 2021-04-10 | B114: HARDING
A115: 2021-04-10 | B115: KITAMURA
A116: 2021-04-10 | B116: MULTIBROCHE
A117: 2021-04-10 | B117: NAKAMURA
A118: 2021-04-10 | B118: TOUR WEILER
A119: 2021-04-09 | B119: SST16
A120: 2021-04-09 | B120: SB16
A121: 2021-04-09 | B121: BIGLIA 301 SM
A122: 2021-04-09 | B122: BIGLIA 42 S2M bitourelle
A123: 2021-04-09 | B123: L32
A124: 2021-04-09 | B124: TSUGAMI
A125: 2021-04-09 | B125: MORI SEIKI 3 axes
A126: 2021-04-09 | B126: MORI SEIKI 5 axes
A127: 2021-04-09 | B127: HARDING
A128: 2021-04-09 | B128: KITAMURA
A129: 2021-04-09 | B129: MULTIBROCHE
A130: 2021-04-09 | B130: NAKAMURA
A131: 2021-04-09 | B131: TOUR WEILER
A132: 2021-04-08 | B132: SST16
A133: 2021-04-08 | B133: SB16
A134: 2021-04-08 | B134: BIGLIA 301 SM
A135: 2021-04-08 | B135: BIGLIA 42 S2M bitourelle
A136: 2021-04-08 | B136: L32
A137: 2021-04-08 | B137: TSUGAMI
A138: 2021-04-08 | B138: MORI SEIKI 3 axes
A139: 2021-04-08 | B139: MORI SEIKI 5 axes
A140: 2021-04-08 | B140: HARDING
A141: 2021-04-08 | B141: KITAMURA
A142: 2021-04-08 | B142: MULTIBROCHE
A143: 2021-04-08 | B143: NAKAMURA
A144: 2021-04-08 | B144: TOUR WEILER
A145: 2021-04-07 | B145: SST16
A146: 2021-04-07 | B146: SB16
A147: 2021-04-07 | B147: BIGLIA 301 SM
A148: 2021-04-07 | B148: BIGLIA 42 S2M bitourelle
A149: 2021-04-07 | B149: L32
A150: 2021-04-07 | B150: TSUGAMI
A151: 2021-04-07 | B151: MORI SEIKI 3 axes
A152: 2021-04-07 | B152: MORI SEIKI 5 axes
A153: 2021-04-07 | B153: HARDING
A154: 2021-04-07 | B154: KITAMURA
A155: 2021-04-07 | B155: MULTIBROCHE
A156: 2021-04-07 | B156: NAKAMURA
A157: 2021-04-07 | B157: TOUR WEILER
A158: 2021-04-06 | B158: SST16
A159: 2021-04-06 | B159: SB16
A160: 2021-04-06 | B160: BIGLIA 301 SM
A161: 2021-04-06 | B161: BIGLIA 42 S2M bitourelle
A162: 2021-04-06 | B162: L32
A163: 2021-04-06 | B163: TSUGAMI
A164: 2021-04-06 | B164: MORI SEIKI 3 axes
A165: 2021-04-06 | B165: MORI SEIKI 5 axes
A166: 2021-04-06 | B166: HARDING
A167: 2021-04-06 | B167: KITAMURA
A168: 2021-04-06 | B168: MULTIBROCHE
A169: 2021-04-06 | B169: NAKAMURA
A170: 2021-04-06 | B170: TOUR WEILER
A171: 2021-04-05 | B171: SST16
A172: 2021-04-05 | B172: SB16
A173: 2021-04-05 | B173: BIGLIA 301 SM
A174: 2021-04-05 | B174: BIGLIA 42 S2M bitourelle
A175: 2021-04-05 | B175: L32
A176: 2021-04-05 | B176: TSUGAMI
A177: 2021-04-05 | B177: MORI SEIKI 3 axes
A178: 2021-04-05 | B178: MORI SEIKI 5 axes
A179: 2021-04-05 | B179: HARDING
A180: 2021-04-05 | B180: KITAMURA
A181: 2021-04-05 | B181: MULTIBROCHE
A182: 2021-04-05 | B182: NAKAMURA
A183: 2021-04-05 | B183: TOUR WEILER
A184: 2021-04-03 | B184: SST16
A185: 2021-04-03 | B185: SB16
A186: 2021-04-03 | B186: BIGLIA 301 SM
A187: 2021-04-03 | B187: BIGLIA 42 S2M bitourelle
A188: 2021-04-03 | B188: L32
A189: 2021-04-03 | B189: TSUGAMI
A190: 2021-04-03 | B190: MORI SEIKI 3 axes
A191: 2021-04-03 | B191: MORI SEIKI 5 axes
A192: 2021-04-03 | B192: HARDING
A193: 2021-04-03 | B193: KITAMURA
A194: 2021-04-03 | B194: MULTIBROCHE
A195: 2021-04-03 | B195: NAKAMURA
A196: 2021-04-03 | B196: TOUR WEILER
A197: 2021-04-02 | B197: SST16
A198: 2021-04-02 | B198: SB16
A199: 2021-04-02 | B199: BIGLIA 301 SM
A200: 2021-04-02 | B200: BIGLIA 42 S2M bitourelle
... 971 more rows

Sheet Récap
B1: Semestre 1 | C1: Semestre 2 | I1: Causes de refus | J1: Résultat Global S1 | K1: Résultat Global S2 | L1: Résultat Sans Doublons S1 | M1: Résultat Sans Doublons S2 | N1: Nbre Result/TypeS1
A2: Consultations/Chiffrages déclinés | B2: 0 | C2: 0 | I2: prix objectif très faible | J2: hors capacité | L2: hors capacité | N2: =IFERROR(COUNTIF($J:$J,L2),"") -> 1 | O2: =IFERROR(COUNTIF($K:$K,M2),"") -> 0
A3: Réclamations clients | B3: 0 | C3: 0 | I3: faible serie | N3: =COUNTIF($J:$J,L3) -> 0 | O3: =IFERROR(COUNTIF($K:$K,M3),"") -> 0
A4: Problèmes qualité fournisseurs/sous-traitants | B4: 0 | C4: 0 | I4: difficulté technique | N4: 0 | O4: 0
I5: hors spécialité | N5: 0 | O5: 0
I6: hors capacité | N6: 0 | O6: 0
I7: client à risque | N7: 0 | O7: 0
I8: Refus7 | N8: 0 | O8: 0
I9: Refus8 | N9: 0 | O9: 0
I10: Refus9 | N10: 0 | O10: 0
I11: Refus10 | N11: 0 | O11: 0
I12: Refus11 | N12: 0 | O12: 0
I13: Refus12 | N13: 0 | O13: 0
I14: Refus13 | N14: 0 | O14: 0
I15: Refus14 | N15: 0 | O15: 0
I16: Refus15 | N16: 0 | O16: 0
I17: Refus16 | N17: 0 | O17: 0
I18: Refus17 | N18: 0 | O18: 0
I19: Refus18 | N19: 0 | O19: 0
I20: Refus19 | N20: 0 | O20: 0
I21: Refus20 | N21: 0 | O21: 0
I22: Refus21 | N22: 0 | O22: 0
I23: Refus22 | N23: 0 | O23: 0
I24: Refus23 | N24: 0 | O24: 0
I25: Refus24 | N25: 0 | O25: 0
I26: Refus25 | N26: 0 | O26: 0
I27: Refus26 | N27: 0 | O27: 0
I28: Refus27 | N28: 0 | O28: 0
I29: Refus28 | N29: 0 | O29: 0
I30: Refus29 | N30: 0 | O30: 0
I31: Refus30 | N31: 0 | O31: 0
O32: 0
O33: 0
O55: 0
O56: 0
O57: 0
O58: 0
O59: 0

Sheet Coûts de détection
B1: Coûts de détection | L1: Code
L2: Date
L3: Version
L4: Page
A6: Critéres Sources | B6: Coûts Janvier DT | C6: Coûts Février DT | D6: Coûts Mars DT | E6: Coûts Avril DT | F6: Coûts Mai DT | G6: Coûts Juin DT | H6: Coûts Juillet DT | I6: Coûts Août DT | J6: Coûts Septembre DT | K6: Coûts Octobre DT | L6: Coûts Novembre DT | M6: Coûts Décembre DT
A7: Coût nombre d'heures liés au Triage | B7: ='récap des coûts'!B3 -> 0 | C7: ='récap des coûts'!C3 -> 0 | D7: ='récap des coûts'!D3 -> 0 | E7: ='récap des coûts'!E3 -> 100 | F7: ='récap des coûts'!F3 -> 0 | G7: ='récap des coûts'!G3 -> 0 | H7: ='récap des coûts'!H3 -> 0 | I7: ='récap des coûts'!I3 -> 0 | J7: ='récap des coûts'!J3 -> 0 | K7: ='récap des coûts'!K3 -> 0 | L7: ='récap des coûts'!L3 -> 0 | M7: ='récap des coûts'!M3 -> 0
B8: =SUM(B7:B7) -> 0 | C8: =SUM(C7:C7) -> 0 | D8: =+SUM(D7:D7) -> 0 | E8: =SUM(E7:E7) -> 100 | F8: =SUM(F7) -> 0 | G8: =G7 -> 0 | H8: 0 | I8: 0 | J8: 0 | K8: 0 | L8: 0 | M8: 0
A20: Rédacteur : Safa Charfi | E20: Approbateur : AMOURI Mourad
A21: Date : 08/04/2020 | E21: Date : 08/04/2020
A22: Visa : | E22: Visa :

Sheet Coûts des défaillances externes
B1: Coûts de défaillance externe | K1: Code | L1: : DAS-PRO-26
K2: Date | L2: :20/10/2018
K3: Version | L3: : 02
K4: Page | L4: : 1/2
A6: Critéres Sources | B6: Coûts Janvier DT | C6: Coûts Février DT | D6: Coûts Mars DT | E6: Coûts Avril DT | F6: Coûts Mai DT | G6: Coûts Juin DT | H6: Coûts Juillet DT | I6: Coûts Août DT | J6: Coûts Septembre DT | K6: Coûts Octobre DT | L6: Coûts Novembre DT | M6: Coûts Décembre DT
A7: Coûts de nombre d'heures de traitement des réclamations clients, drogations, rapport 8D | B7: ='récap des coûts'!B10 -> 0 | C7: ='récap des coûts'!C10 -> 0 | D7: ='récap des coûts'!D10 -> 0 | E7: ='récap des coûts'!E10 -> 0 | F7: ='récap des coûts'!F10 -> 0 | G7: ='récap des coûts'!G10 -> 0 | H7: ='récap des coûts'!H10 -> 0 | I7: ='récap des coûts'!I10 -> 0 | J7: ='récap des coûts'!J10 -> 0 | K7: ='récap des coûts'!K10 -> 0 | L7: ='récap des coûts'!L10 -> 0 | M7: ='récap des coûts'!M10 -> 0
A8: Cout de NC externe (détecté chez le client) | B8: ='récap des coûts'!B11 -> 0 | C8: ='récap des coûts'!C11 -> 0 | D8: ='récap des coûts'!D11 -> 0 | E8: ='récap des coûts'!E11 -> 0 | F8: ='récap des coûts'!F11 -> 0 | G8: ='récap des coûts'!G11 -> 0 | H8: ='récap des coûts'!H11 -> 0 | I8: ='récap des coûts'!I11 -> 0 | J8: ='récap des coûts'!J11 -> 0 | K8: ='récap des coûts'!K11 -> 0 | L8: ='récap des coûts'!L11 -> 0 | M8: ='récap des coûts'!M11 -> 0
A9: Avoir dûs à la non qualité | B9: ='récap des coûts'!B11 -> 0 | C9: ='récap des coûts'!C11 -> 0 | D9: ='récap des coûts'!D11 -> 0 | E9: ='récap des coûts'!E11 -> 0 | F9: ='récap des coûts'!F11 -> 0 | G9: ='récap des coûts'!G11 -> 0 | H9: ='récap des coûts'!H11 -> 0 | I9: ='récap des coûts'!I11 -> 0 | J9: ='récap des coûts'!J11 -> 0 | K9: ='récap des coûts'!K11 -> 0 | L9: ='récap des coûts'!L11 -> 0 | M9: ='récap des coûts'!M11 -> 0
A10: Penalité | B10: =0 -> 0 | C10: =0 -> 0
B11: =SUM(B7:B10) -> 0 | C11: =SUM(C7:C10) -> 0 | D11: =+SUM(D7:D10) -> 0 | E11: =SUM(E7:E10) -> 0 | F11: =SUM(F7:F10) -> 0 | G11: =SUM(G7:G10) -> 0 | H11: =SUM(H7:H10) -> 0 | I11: =SUM(I7:I9) -> 0 | J11: =SUM(J7:J9) -> 0 | K11: =SUM(K7:K10) -> 0 | L11: =SUM(L7:L10) -> 0 | M11: =SUM(M7:M10) -> 0
A14: Rédacteur : Safa Charfi | E14: Approbateur : AMOURI Mourad
A15: Date : 08/04/2020 | E15: Date : 08/04/2020
A16: Visa : | E16: Visa :

Sheet Coûts des défaillances internes
C1: Coûts de défaillance interne | V1: Code | Y1: : DAS-PRO-26
V2: Date | Y2: :20/10/2018
V3: Version | Y3: : 02
V4: Page | Y4: : 1/2
A6: Coûts des anomalies internes relevé
A8: Critéres Sources | B8: Secteur | C8: Quoi ? | D8: Fréquence | E8: Montant
A9: Rebuts | B9: PRO | C9: Quantité | D9: Mois
A10: Retouches | B10: PRO | C10: Temps de retouche | D10: Mois
A12: Critéres Sources | B12: Quoi ? / Qui? | C12: Coûts Janvier DT | D12: Quoi ? / Qui? | E12: Coûts Février DT | F12: Quoi ? / Qui? | G12: Coûts Mars DT | H12: Quoi ? / Qui? | I12: Coûts Avril DT | J12: Quoi ? / Qui? | K12: Coûts Mai DT | L12: Quoi ? / Qui? | M12: Coûts Juin DT | N12: Quoi ? / Qui? | O12: Coûts Juillet DT | P12: Quoi ? / Qui? | Q12: Coûts Août DT | R12: Quoi ? / Qui? | S12: Coûts Septembre DT | T12: Quoi ? / Qui? | U12: Coûts Octobre DT | V12: Quoi ? / Qui? | W12: Coûts Novembre DT | X12: Quoi ? / Qui? | Y12: Coûts Décembre DT
A13: Rebuts | C13: 0 | E13: ='récap des coûts'!C17 -> 40184 | G13: ='récap des coûts'!D17 -> 0 | I13: ='récap des coûts'!E17 -> 2 | K13: ='récap des coûts'!F17 -> 0 | M13: ='récap des coûts'!G17 -> 0 | O13: ='récap des coûts'!H17 -> 0 | Q13: ='récap des coûts'!I17 -> 0 | S13: ='récap des coûts'!J17 -> 0 | U13: ='récap des coûts'!K17 -> 0 | W13: ='récap des coûts'!L17 -> 0 | Y13: ='récap des coûts'!M17 -> 0
A14: Retouche | C14: ='récap des coûts'!B18 -> 0 | E14: ='récap des coûts'!C18 -> 0 | G14: ='récap des coûts'!D18 -> 0 | I14: ='récap des coûts'!E18 -> 0 | K14: ='récap des coûts'!F18 -> 0 | M14: ='récap des coûts'!G18 -> 0 | O14: ='récap des coûts'!H18 -> 0 | Q14: ='récap des coûts'!I18 -> 0 | S14: ='récap des coûts'!J18 -> 0 | U14: ='récap des coûts'!K18 -> 0 | W14: ='récap des coûts'!L18 -> 0 | Y14: ='récap des coûts'!M18 -> 0
B15: Total | C15: =SUM(C13:C14) -> 0 | D15: Total | E15: =SUM(E13:E14) -> 40184 | F15: Total | G15: =SUM(G13:G14) -> 0 | H15: Total | I15: =SUM(I13:I14) -> 2 | J15: Total | K15: =SUM(K13:K14) -> 0 | L15: Total | M15: =SUM(M13:M14) -> 0 | N15: Total | O15: =SUM(O13:O14) -> 0 | P15: Total | Q15: =SUM(Q13:Q14) -> 0 | R15: Total | S15: =SUM(S13:S14) -> 0 | T15: Total | U15: =SUM(U13:U14) -> 0 | V15: Total | W15: =SUM(W13:W14) -> 0 | X15: Total | Y15: =SUM(Y13:Y14) -> 0
A18: Rédacteur : Safa Charfi | I18: Approbateur : AMOURI Mourad
A19: Date : 08/04/2020 | I19: Date : 08/04/2020
A20: Visa : | I20: Visa :

Sheet cout opérateur machines
A1: opérateur/machine | B1: cout/ heure
A2: amin | B2: 10
A3: rim | B3: 10
A4: hedia | B4: 7
A5: safa | B5: 10
A6: zina | B6: 7
A7: machine reprise | B7: 8
A8: machine cnc | B8: 15
A9: décolleteur | B9: 10

Sheet Prix de revient
A1: Référence | B1: Désignation | C1: Prix de revient(euro) | D1: Prix de revient(TND)
A2: DE-10048 | B2: INSERT DECOLLETE R171 | C2: 0.168 | D2: =3.16*C2 -> 0.53088 | G2: Prix de revient des articles
A3: IN W164 COUR | B3: INSERT W164 COURT(DE-10144) | C3: 0.121 | D3: =3.16*C3 -> 0.38236
A4: B72903 | B4: 3-BKT ANSCHRAUBWINKEL ST 1158 | C4: 0.51 | D4: 1.6116
A5: SAP NR 5-001-39834 | B5: AXE 5001-39834 INOX | C5: 0.56 | D5: 1.7696
A6: SAP NR 5-001-46857 | B6: FUHRUNGSSAULE-D8-90-M4-i-i | C6: 0.51 | D6: 1.6116
A7: MEC1017 | B7: AXE LEVIER PORTE | C7: 0.174 | D7: 0.54984
A8: E35530672 F | B8: ARMATURE INTERIEUR ZINGUE | C8: 0.079 | D8: 0.24964
A9: LC1327C200 | B9: GOUJON M4 | C9: 0.66 | D9: 2.0856
A10: 35133801 | B10: QAB14*18-D16 NLD(BAGUE ACIER D22) | C10: 0.4 | D10: 1.264
A11: 19087-1-1 | B11: FC FOURCHETTE | C11: =3.16*1.48 -> 4.6768 | D11: 1.48
A12: 19097-2-1 | B12: PIECE MOULEE V02 | C12: =3.16*1.48 -> 4.6768 | D12: 9.7
A13: 2018021-01-01 | B13: TIGE-D10-M8 | C13: 4.6768 | D13: 0.971
A14: 2018063 | B14: INSERT POUR FOURCHETTE FORME D | C14: 4.6768 | D14: 0.487
A15: 2018122-03 | B15: AXE MALE-001 | C15: 4.6768 | D15: 1.85
A16: 2018122-04 | B16: BAGUE-001 | C16: 4.6768 | D16: 1.492
A17: FO013 | B17: ECROU DE ROUE FORD RANGER | C17: 0.35 | D17: =3.16*C17 -> 1.106
A18: FO014 | B18: GOUJON DE ROUE MAZDA | C18: 0.25 | D18: =3.16*C18 -> 0.79
A19: G028 | B19: GOUJON M14*1.5 L=52 NON FRAISEE | C19: 0.25 | D19: 0.79
A20: H001 | B20: GOUJON DE ROUE HYUNDAI H100 | C20: 0.22 | D20: 0.6952
A21: I025 | B21: ECROU DE ROUE TFR ISUZU | C21: 0.3 | D21: 0.948
A22: I137 | B22: ECROU DE ROUE TFR CHROME | C22: 0.32 | D22: 1.0112
A23: MI030 | B23: AXE ETRIER MITSUBISHI INF L200 AVEC SOUFFLET(537) | C23: 1.5 | D23: 4.74
A24: TO008 | B24: GOUJON HILUX | C24: 0.32 | D24: 1.0112
A25: TO009 | B25: GOUJON LONCLUSER AV ET AR | C25: 0.32 | D25: 1.0112
A26: G023 | B26: BAGUE ACIER 16X12X86 | C26: 0.25 | D26: =3.16*C26 -> 0.79
A27: 301-603-009 | B27: FAN OUT JENOPTEC 12FO | C27: 0.145 | D27: 0.4582
A28: 301-603-011-CP1 | B28: FANOUT FOR 36FO JENOPTEC-CHEMISE | C28: 0.65 | D28: 2.054
A29: 301-603-011-CP2 | B29: FANOUT FOR 36FO JENOPTEC-BOUCHON PERCE | C29: 0.415 | D29: 1.3114
A30: 301-603-011-CP3 | B30: FANOUT FOR 36FO JENOPTEC-BOUCHON FILETE | C30: 0.37 | D30: 1.1692
A31: 901-609-001-CP1 | B31: FANOUT 72FO POM C NOIR-CHEMISE | C31: 0.958 | D31: 3.02728
A32: 901-609-001-CP2 | B32: FANOUT 72FO POM C NOIR-BOUCHON PERCE | C32: 0.43 | D32: 1.3588
A33: 901-609-001-CP3 | B33: FANOUT 72FO POM C NOIR-BOUCHON FILETE | C33: 0.29 | D33: 0.9164
A34: IC5253 | B34: MAIN BODY PRIMARY FAN OUT | C34: 0.38 | D34: 1.2008
A35: IC5254 | B35: ANCHORING PLATE RISER | C35: 0.63 | D35: 1.9908
A36: OPE-047 | B36: CRIMP BODY FOR SECONDARY FAN OUT | C36: 0.089 | D36: 0.28124
A37: OTT-169 | B37: MAIN BODY FOR SECONDRY FAN OUT | C37: 0.172 | D37: 0.54352
A38: OTT-170 | B38: CLAMPING RING 120Fo | C38: 0.045 | D38: 0.1422
A39: OTT-171 | B39: CLAMPING RING 240Fo | C39: 0.105 | D39: 0.3318
A40: OTT-172 | B40: CLAMPING RING 360Fo | C40: 0.105 | D40: 0.3318
A41: I110-01-004 | B41: INSERT LEVIER SURMOULEE 345833-01 | C41: 0.68 | D41: 2.1488
A42: 510020 | B42: INSERTO ESAG.M6 8*6 | C42: 0.053 | D42: 0.16748
A43: 510021 | B43: QUADRO 10*60 AVP-AXE ACIER | C43: 0.262 | D43: 0.82792
A44: 510081 | B44: BUSS.DIS.14-3003 13/20X28.7 AVP CARB | C44: 0.204 | D44: 0.64464
A45: 510087 | B45: BUSS D13/20X18,2 AVP CARB-BAGUE ACIER D20 | C45: 0.164 | D45: 0.51824
A46: 510090 | B46: INSERTO ESAG,M8 12*12 | C46: 0.127 | D46: 0.40132
A47: 511040 | B47: BRONZINA 16/18X10.3 | C47: 0.19 | D47: 0.6004
A48: 511100 | B48: DIS.0050227100 PERNO D.6X62 | D48: 0
A49: 511110 | B49: DIS.0050213300 PERNO D.6X30,6 INOX D6 | C49: 0.145 | D49: 0.4582
A50: 512800 | B50: PERNO DISINNESTO RULLO G16922290 laiton | C50: 0.076 | D50: 0.24016
A51: 199400 | B51: TIRANT ACIER D6 | C51: 0.102 | D51: 0.32232
A52: 200101 | B52: AXE D'ARTICULATION | C52: 0.16 | D52: 0.5056
A53: 202200 | B53: TIGE DE PISTON | C53: 2.8 | D53: 8.848
A54: 480387 | B54: EVACUATION 2/3G X-ONE | C54: 1.7 | D54: 5.372
A55: OUTI-BOUCH | B55: BOUCHON EN PLASTIQUE | C55: 0.131 | D55: 0.41396
A56: OUTI-PLOT | B56: PLOT NEZ DE MARCHE | C56: 0.14 | D56: 0.4424
A57: SE89O0 | B57: RACCORD ACIER HEX 17 MPS000300 | C57: 0.12 | D57: 0.3792
A58: SH42Z1 | B58: PORTA VALVOLA DA SALDRE | C58: 0.3 | D58: 0.948
A59: K0162AA | B59: JONC SUPPORT CIBLE | C59: 0.4 | D59: 1.264
A60: BROCH L 230 | B60: BROCHE ACIER D13 ZINGUE L230 | C60: 0.8 | D60: 2.528
A61: ALBLO021019STJCN | B61: BLOC A CLAPET | C61: 2.8 | D61: 8.848
A62: ALBOS06100L08 | B62: BOSSAGE PURGE M6 | C62: 0.35 | D62: 1.106
A63: BOSSAGE1_8L08 | B63: BOSSAGE 1/8G Lg8mm | C63: 1.4 | D63: 4.424
A64: CHCHEMISE014JCN | B64: CHEMISE JCI Ø14 | C64: 0.7 | D64: 2.212
A65: CHSIEGE-JCN | B65: SIÈGE JCU-BAGUE EN ACIER | C65: 1.35 | D65: 4.266
A66: ECM16L18HEX19 | B66: ECROU M16*1.5 L18 HEX19 | C66: 0.5 | D66: 1.58
A67: 200300 | B67: TIGE DE PISTON | C67: 1.034 | D67: 3.26744
A68: 200300 | B68: TIGE DE PISTON | C68: 1.034 | D68: 3.26744
A69: 301-601-002-ST | B69: CORDGRIP M20-RACCORD PIECE AUTO REF 71002213 | C69: 0.04063492063 | D69: =3.16*C69 -> 0.1284063492
A70: 301-603-011-CP1 | B70: FANOUT FOR 36FO JENOPTEC-CP1 | C70: 0.65 | D70: 2.054
A71: 301-603-011-CP2 | B71: FANOUT FOR 36FO JENOPTEC-CP2 | C71: 0.415 | D71: 1.3114
A72: 301-603-011-CP3 | B72: FANOUT FOR 36FO JENOPTEC-CP3 | C72: 0.37 | D72: 1.1692
A73: 901-609-001-CP1 | B73: FANOUT FOR 72FO JENOPTEC-CP1 | C73: 0.958 | D73: 3.02728
A74: 901-609-001-CP2 | B74: FANOUT FOR 72FO JENOPTEC-CP2 | C74: 0.43 | D74: 1.3588
A75: EMA-71005903 | B75: BOUCHON BLEU MJM | C75: 0.131 | D75: 0.41396
A76: INSERT D8 | B76: INSERT LAITON D8 | C76: 0.2 | D76: 0.632
A77: 512520 | B77: INSERTO INOX M8 | C77: 0.395 | D77: =C77*3.16 -> 1.2482
A78: I143-CP1 | B78: ECROU DE ROUE TFR ISUZU -nak | C78: 0 | D78: =C78*3.16 -> 0
A79: F046-CP2 | B79: BAGUE DECOLLETEE TUBE D'EAU PALIO -CP2 | C79: 0 | D79: =C79*3.16 -> 0
A80: 200200 | B80: Embout de tige | C80: 1.117 | D80: 3.52972
A81: BROCH L 180 | B81: BROCHE ACIER D13 ZINGUE L180 | C81: 0.3 | D81: 0.948
A82: H004-CP1 | B82: BAGUE DECOLLETEE D38-CP1 | C82: 0 | D82: 0
A83: 28407-100-10 | B83: BAGUE d'ANNEAU OUVERT-INOX D20 | C83: 0.42 | D83: 1.3272
A84: TO010-CP2 | B84: AXE JUMELLE TOYOTA PM-CP2 | C84: 0 | D84: 0
A85: 19081-3 | B85: S4-V7 | C85: =D85/3.16 -> 6.329113924 | D85: 20
A86: MI030-CP2-PROD | B86: BOULON AXE ETRIER MITSUBISHI D21.9-CP2 PROD | C86: 0 | D86: 0
A87: 20013-21 | B87: AXE METALLIQUE MONODOIGT | C87: =D87/3.16 -> 0.4025316456 | D87: 1.272
A88: 551275 | B88: ECROU FREIN M12*150(taraudage sur PF42 apres reclamation) | C88: 0 | D88: 0
A89: 19164-11 | B89: P1 FSS V01 | C89: =D89/3.16 -> 0.4025316456 | D89: 1.272
A90: 480387 | B90: EVACUATION 2/3G X-ONE nakamura | C90: 1.7 | D90: 5.372
A91: SE89O0 | B91: RACCORD ACIER HEX 17 MPS000300 percage | C91: 0.12 | D91: 0.3792
A92: 3-72-70036 | B92: AXE INOX D5.5*1620 | C92: 0.2 | D92: 0.632
A93: 7531 | B93: AXE INOX D5*1828 | C93: 0.2 | D93: 0.632
A94: 12*22*69 | B94: BAGUE 12*22*69 | C94: 0 | D94: =3.16*C94 -> 0
A95: I039 | B95: GOUON DE ROUE ISUZI | C95: 0 | D95: 0
A96: 0-5525-1 | B96: 14*20*38 | C96: 0 | D96: 0
A97: B012 | B97: ECROU FUSEE 404 | C97: 0 | D97: 0
A98: 0-4236-1 | B98: Bague Galvanisée 16*20*38 apartir des chutes | C98: 0 | D98: 0
A99: TF57-CP2 | B99: Axe jumelle double | C99: 0 | D99: 0
A100: 4-8809-1 | B100: Bague Galvanisée 10*16*25 | C100: 0 | D100: 0
A101: I081-95-CP9 | B101: CHEMISE BOITIER TFR+KB | C101: 0 | D101: 0
A102: 0-3773-1 | B102: Bague Galvanisée 12*16*32 | C102: 0 | D102: 0
A103: 0-4226-1 | B103: Bague Galvanisée 14*16*32 | C103: 0 | D103: 0
A104: 4-7029-1 | B104: Bague Galvanisée 12*18*32 | C104: 0 | D104: 0
A105: 4-7986-1 | B105: Bague Galvanisée 9*12*30,5 | C105: 0 | D105: 0
A106: B041-CP3 | B106: PISTON TETE POMPETE 404 | C106: 0 | D106: 0
A107: BAG LAIT 10.2X12.9 | B107: BAGUE LAITON Ø10.2*12.9 | C107: 0 | D107: 0
A108: I100-CP2 | B108: AXE ETRIER ISUZU-CP2 | C108: 0 | D108: 0
A109: B041-CP3 | B109: PISTON TETE POMPETE 404 | C109: 0 | D109: 0
A110: 0-4457 | B110: Anneau Brute 30*38*21 | C110: 0 | D110: 0
A111: 893004 | B111: SUPPORT DE ROUTULE D40 | C111: 0 | D111: 0
A112: 181075 | B112: BAGUE 10.5X24X75 | C112: 0 | D112: 0
A113: 0-4457 | B113: Anneau Brute 30*38*21 | C113: 0 | D113: 0
A114: 0-4965 | B114: Anneau Brute 30*38*27 | C114: 0 | D114: 0
A115: 4-7002-1 | B115: Bague Galvanisée 16*28*100 | C115: 0 | D115: 0
A116: 4-7986-1 | B116: Bague Galvanisée 9*12*30,5 | C116: 0 | D116: 0
A117: I097 | B117: ECROU GOUJON DE ROUE TOYOTA | C117: 0 | D117: 0
A118: 4-7088 | B118: Anneau Brute 30*38*24 | C118: 0 | D118: 0
A119: 4-7986-1 | B119: Bague Galvanisée 9*12*30,5 | C119: 0 | D119: 0
A120: 0-4457 | B120: Anneau Brute 30*38*21 | C120: 0 | D120: 0
A121: BCH-IN-D14-10 | B121: Bouchon inox D14-10 | C121: 0 | D121: 0
A122: 30*38*21 | B122: Anneau Brute 30*38*21 | C122: 0 | D122: 0
A123: FO021-CP2 | B123: AXE L=124mm JEMELLE FORD | C123: 0 | D123: 0
A124: FO002-CP2 | B124: BAGUE INTERIEUR SILENT BLOC FORD RANGER | C124: 0 | D124: 0
A125: FO012-CP1-PROD | B125: BAGUE TUBE DEAU FORD PROD | C125: 0 | D125: 0
A126: I071 | B126: RACCORD POMPE A EAU ISUZU | C126: 0 | D126: 0
A127: I007 | B127: ECROU SEMI ARBRE ISUZU | C127: 0 | D127: 0
A128: 4-7348-1 | B128: Bague Galvanisée 16*22*44 apartir des chutes | C128: 0 | D128: 0
A129: M062 | B129: CAL NECESSAIRE CONTRE RESSORT OM40 | C129: 0 | D129: 0
A130: I004 | B130: ECROU SUSPENSION ISUZU | C130: 0 | D130: 0
A131: 4-7494-1 | B131: Bague Galvanisée 16*22*38apartir des chutes | C131: 0 | D131: 0
A132: 0-5202-1 | B132: Bague Galvanisée 14*20*40 | C132: 0 | D132: 0
A133: 4-7176-1 | B133: Bague Galvanisée 12*18*44 | C133: 0 | D133: 0
A134: 0-3888 | B134: Anneau Brute 25.2*32*17 Nakamura | C134: 0 | D134: 0
A135: D004-ACI | B135: CULOT BOUGIE H16 C9YC EN ACIER | C135: 0 | D135: 0
A136: 0-3773-1 | B136: Bague Galvanisée 12*16*32 a partir des chutes | C136: 0 | D136: 0
A137: 0-5022-1 | B137: Bague Galvanisée 20*26*52 | C137: 0 | D137: 0
A138: 0-4180 | B138: Anneau FX 25.2*32*21- par chutes | C138: 0 | D138: 0
A139: 4-7910 | B139: Bague Aluminium 14,4*27*42 à partir des chutes | C139: 0 | D139: 0
A140: 0-3888 | B140: Anneau 25.2*32*17 | C140: 0 | D140: 0
A141: FO011-PROD | B141: AXE ETRIER FORD RANGER-PROD | C141: 0 | D141: 0
A142: 4-8661 | B142: Bague Brute 12*20*14.5 | C142: 0 | D142: 0
A143: 4-7611 | B143: Anneau 25.2*32*29 | C143: 0 | D143: 0
A144: 0-3863 | B144: Anneau BN 25.2*32*31.5 a partir des chutes | C144: 0 | D144: 0
A145: 4-7910 | B145: Bague Aluminium 14,4*27*50 | C145: 0 | D145: 0
A146: 0-6210-1 | B146: Bague Galvanisée 12*22*43 à partir des chutes | C146: 0 | D146: 0
A147: 0-5280-1 | B147: Bague Galvanisée 12*20*40 à partir de chutes | C147: 0 | D147: 0
A148: 0-5052-1 | B148: Bague Galvanisée 12*16*15 | C148: 0 | D148: 0
A149: 0-5524-1 | B149: Bague Galvanisée 14*20*38 | C149: 0 | D149: 0
A150: 301-603-026-CP1 | B150: Fanout for 6FO Idea-CP1 | C150: 0.47 | D150: 1.4852
A151: ARRET-PORTE-CP1 | B151: ARRET DE PORTE-CP1 | C151: 0 | D151: 0
A152: 4-8746 | B152: Bague Galvaniée 40*42.4*49 | C152: 0 | D152: 0
A153: I197-CP1 | B153: AXE ETRIER D'MAX 8-98006256 TETE CARRE-CP1 | C153: 0 | D153: 0
A154: 4-8749 | B154: Bague Galvaniée 40*42.4*24 | C154: 0 | D154: 0
A155: 4-7003-1 | B155: Bague Galvanisée 16*28*66 | C155: 0 | D155: 0
A156: 4-8136-1 | B156: test SWF | C156: 5000 | D156: 4000

Sheet récap des coûts
A1: Mois | B1: Janvier | C1: Février | D1: Mars | E1: Avril | F1: Mai | G1: Juin | H1: Juillet | I1: Aout | J1: Septembre | K1: Octobre | L1: Novembre | M1: Décembre
A2: N° mois | B2: 1 | C2: 2 | D2: 3 | E2: 4 | F2: 5 | G2: 6 | H2: 7 | I2: 8 | J2: 9 | K2: 10 | L2: 11 | M2: 12
A3: Coût tri en DT | B3: =cout_mois.cout_mois("Rapport journalier",B2) -> 0 | C3: 0 | D3: 0 | E3: =cout_mois.cout_mois("Rapport journalier",E2) -> 100 | F3: 0 | G3: 0 | H3: 0 | I3: 0 | J3: 0 | K3: 0 | L3: 0 | M3: 0
A4: coût formation professionnelle en DT | B4: =cout_mois2.cout_mois2("Rapport journalier",B2) -> 0 | C4: 0 | D4: 0 | E4: 0 | F4: 0 | G4: 0 | H4: 0 | I4: 0 | J4: 0 | K4: 0 | L4: 0 | M4: 0
A5: l'année en cours
A6: 2022
A7: nombre d'affûtages mensuellement | B7: =nbre_aff_mois.nbre_aff_mois("Rapport journalier",B2) -> 0 | C7: 0 | D7: 0 | E7: 0 | F7: 0 | G7: 0 | H7: 0 | I7: 0 | J7: 0 | K7: 0 | L7: 0 | M7: 0
A8: coût mensuel d'affûtage | B8: =5*B7 -> 0 | C8: =5*C7 -> 0 | D8: =5*D7 -> 0 | E8: =5*E7 -> 0 | F8: 0 | G8: =5*G7 -> 0 | H8: 0 | I8: 0 | J8: =5*J7 -> 0 | K8: 0 | L8: 0 | M8: 0
A9: nombre mensuel de réclamations | B9: =nbre_rec_mois.nbre_rec_mois("Rapport journalier",B2) -> 0 | C9: 0 | D9: 0 | E9: 0 | F9: 0 | G9: 0 | H9: 0 | I9: 0 | J9: 0 | K9: 0 | L9: 0 | M9: 0
A10: coût mensuel des réclamations | B10: =3*B9*'cout opérateur machines'!$B$3 -> 0 | C10: =3*C9*'cout opérateur machines'!$B$3 -> 0 | D10: =3*D9*'cout opérateur machines'!$B$3 -> 0 | E10: =3*E9*'cout opérateur machines'!$B$3 -> 0 | F10: =3*F9*'cout opérateur machines'!$B$3 -> 0 | G10: =3*G9*'cout opérateur machines'!$B$3 -> 0 | H10: =3*H9*'cout opérateur machines'!$B$3 -> 0 | I10: =3*I9*'cout opérateur machines'!$B$3 -> 0 | J10: =3*J9*'cout opérateur machines'!$B$3 -> 0 | K10: =3*K9*'cout opérateur machines'!$B$3 -> 0 | L10: =3*L9*'cout opérateur machines'!$B$3 -> 0 | M10: =3*M9*'cout opérateur machines'!$B$3 -> 0
A11: coût mensuel des avoirs | B11: =cout_avoir_mois.cout_avoir_mois("Rapport journalier",B2) -> 0 | C11: 0 | D11: 0 | E11: 0 | F11: 0 | G11: 0 | H11: 0 | I11: 0 | J11: 0 | K11: 0 | L11: 0 | M11: 0
A12: cout pièces de rechange | B12: =cout_PR_mois.cout_PR_mois("Rapport journalier",B2) -> 0 | C12: =cout_PR_mois.cout_PR_mois("Rapport journalier",C2) -> 0 | D12: =cout_PR_mois.cout_PR_mois("Rapport journalier",D2) -> 0 | E12: 0 | F12: 0 | G12: 0 | H12: 0 | I12: 0 | J12: 0 | K12: 0 | L12: 0 | M12: 0
A13: durée mensuelle de pannes en min | B13: 0 | C13: 0 | D13: 0 | E13: 0 | F13: 0 | G13: 0 | H13: 0 | I13: 0 | J13: 0 | K13: 0 | L13: 0 | M13: 0
A14: durée mensuelle de pannes en heures | B14: =B13/60 -> 0 | C14: 0 | D14: 0 | E14: 0 | F14: 0 | G14: 0 | H14: =H13/60 -> 0 | I14: 0 | J14: 0 | K14: 0 | L14: 0 | M14: 0
A15: coût des pannes | B15: =B14*'cout opérateur machines'!$B$8 -> 0 | C15: =C14*'cout opérateur machines'!$B$8 -> 0 | D15: =D14*'cout opérateur machines'!$B$8 -> 0 | E15: =E14*'cout opérateur machines'!$B$8 -> 0 | F15: =F14*'cout opérateur machines'!$B$8 -> 0 | G15: =G14*'cout opérateur machines'!$B$8 -> 0 | H15: =H14*'cout opérateur machines'!$B$8 -> 0 | I15: =I14*'cout opérateur machines'!$B$8 -> 0 | J15: =J14*'cout opérateur machines'!$B$8 -> 0 | K15: =K14*'cout opérateur machines'!$B$8 -> 0 | L15: =L14*'cout opérateur machines'!$B$8 -> 0 | M15: =M14*'cout opérateur machines'!$B$8 -> 0
A16: coût de la maintenance curative | B16: =B15+B12 -> 0 | C16: =C15+C12 -> 0 | D16: =D15+D12 -> 0 | E16: =E15+E12 -> 0 | F16: =F15+F12 -> 0 | G16: 0 | H16: 0 | I16: 0 | J16: 0 | K16: 0 | L16: 0 | M16: 0
A17: coût des rebuts | B17: =cout_rebuts_mois.cout_rebuts_mois("Rapport journalier",B2) -> 0 | C17: =cout_rebuts_mois.cout_rebuts_mois("Rapport journalier",C2) -> 40184 | D17: =cout_rebuts_mois.cout_rebuts_mois("Rapport journalier",D2) -> 0 | E17: =cout_rebuts_mois.cout_rebuts_mois("Rapport journalier",E2) -> 2 | F17: =cout_rebuts_mois.cout_rebuts_mois("Rapport journalier",F2) -> 0 | G17: 0 | H17: 0 | I17: 0 | J17: 0 | K17: 0 | L17: =cout_rebuts_mois.cout_rebuts_mois("Rapport journalier",L2) -> 0 | M17: 0
A18: coûts de la reprise ( retouche) | B18: =cout_reprise_mois.cout_reprise_mois("Rapport journalier",B2) -> 0 | C18: 0 | D18: 0 | E18: =cout_reprise_mois.cout_reprise_mois("Rapport journalier",E2) -> 0 | F18: 0 | G18: 0 | H18: 0 | I18: 0 | J18: 0 | K18: 0 | L18: 0 | M18: 0

Sheet 31-12-2021
E2: Rapport journalier | R2: Code:DAS-SMQ-24
R3: Date: 27/12/2019
R4: Version:01
R5: Page:1
D12: A | E12: B | F12: C | G12: D | H12: E | I12: F | J12: M | K12: N | L12: O | M12: P | N12: I | O12: L | P12: K | Q12: J | R12: G | S12: H
B13: Machine | D13: SST16 | E13: SB16 | F13: BIGLIA 301 SM | G13: BIGLIA 42 S2M bitourelle | H13: L32 | I13: TSUGAMI | J13: MORI SEIKI 3 axes | K13: MORI SEIKI 5 axes | L13: HARDING | M13: KITAMURA | N13: MULTIBROCHE | O13: NAKAMURA | P13: TOUR WEILER
B14: Référence | E14: 202166 | F14: 163 | G14: 0.0008062681163
B15: Désignation | E15: 270727 | F15: 90 | G15: 0.0003324382127
B16: Compteur 8h | E16: 91754 | F16: 6 | G16: 6.539224448e-05
B17: Compteur 17h | E17: 0 | F17: 0 | I17: 0.002
B18: Enregistrement | C18: 9h
C19: 16h
B20: Identification
B21: Propreté des tables de contrôle
B22: Rangement des outils de contrôle
B23: Existance de l'OF
B24: Affutage | T24: =+COUNTA(D24:S24) -> 0
B25: Maintenance
B26: Nombre des NC poubelle
B27: Nombre des NC à retoucher
B28: Machine pour retouche
B29: Panne
B30: Cout pièces de rechange | T30: =SUM(D30:S30) -> 0
B31: prix de revient pièce | D31: =IFERROR(VLOOKUP(D14,'Prix de revient'!$A:$D,4,0),0) -> 0 | E31: =IFERROR(VLOOKUP(E14,'Prix de revient'!$A:$D,4,0),0) -> 0 | F31: =IFERROR(VLOOKUP(F14,'Prix de revient'!$A:$D,4,0),0) -> 0 | G31: =IFERROR(VLOOKUP(G14,'Prix de revient'!$A:$D,4,0),0) -> 0 | H31: =IFERROR(VLOOKUP(H14,'Prix de revient'!$A:$D,4,0),0) -> 0 | I31: =IFERROR(VLOOKUP(I14,'Prix de revient'!$A:$D,4,0),0) -> 0 | J31: =IFERROR(VLOOKUP(J14,'Prix de revient'!$A:$D,4,0),0) -> 0 | K31: =IFERROR(VLOOKUP(K14,'Prix de revient'!$A:$D,4,0),0) -> 0 | L31: =IFERROR(VLOOKUP(L14,'Prix de revient'!$A:$D,4,0),0) -> 0 | M31: =IFERROR(VLOOKUP(M14,'Prix de revient'!$A:$D,4,0),0) -> 0 | N31: =IFERROR(VLOOKUP(N14,'Prix de revient'!$A:$D,4,0),0) -> 0 | O31: =IFERROR(VLOOKUP(O14,'Prix de revient'!$A:$D,4,0),0) -> 0 | P31: =IFERROR(VLOOKUP(P14,'Prix de revient'!$A:$D,4,0),0) -> 0 | Q31: =IFERROR(VLOOKUP(Q14,'Prix de revient'!$A:$D,4,0),0) -> 0 | R31: =IFERROR(VLOOKUP(R14,'Prix de revient'!$A:$D,4,0),0) -> 0 | S31: =IFERROR(VLOOKUP(S14,'Prix de revient'!$A:$D,4,0),0) -> 0
B32: coût de rebuts | D32: =D26*D31 -> 0 | E32: =E26*E31 -> 0 | F32: 0 | G32: 0 | H32: 0 | I32: 0 | J32: 0 | K32: 0 | L32: 0 | M32: 0 | N32: 0 | O32: 0 | P32: 0 | Q32: 0 | R32: 0 | S32: 0 | T32: =SUM(D32:S32) -> 0
B33: gestion de modification
C41: Clients | D41: Audit | E41: Réclamation | F41: Avoir | H41: Fournisseurs/ sous-traitants | I41: Réception de matiere | J41: Probleme qualité | L41: Les formations professionnelles | M41: Cout | N41: Chiffrage décliné | O41: Actions à suivre | Q41: Article qui a subit un tri | R41: durée du tri | S41: Nombre des pieces non-conformes | T41: ouvrier faisant le tri | U41: cout par tri | W41: Article qui a subit la reprise | X41: durée de la reprise | Y41: opérateur faisant la reprise | Z41: coût de reprise | AD41: Machine | AE41: article | AF41: gamme | AG41: objet de la modification
U42: =IF(R42="","",R42*VLOOKUP(T42,'cout opérateur machines'!A1:B8,2,0)) ->  | Z42: =X42*8 -> 0
U43: =IF(R43="","",R43*VLOOKUP(T43,'cout opérateur machines'!A2:B9,2,0)) ->  | Z43: =X43*8 -> 0
U44: =IF(R44="","",R44*VLOOKUP(T44,'cout opérateur machines'!A3:B10,2,0)) ->  | Z44: 0
U45: =IF(R45="","",R45*VLOOKUP(T45,'cout opérateur machines'!A4:B11,2,0)) ->  | Z45: 0
U46: =IF(R46="","",R46*VLOOKUP(T46,'cout opérateur machines'!A5:B12,2,0)) ->  | Z46: 0
U47: =IF(R47="","",R47*VLOOKUP(T47,'cout opérateur machines'!A6:B13,2,0)) ->  | Z47: 0
E48: =COUNTA(E42:E47) -> 0 | F48: =SUM(F42:F47) -> 0 | M48: =SUM(M42:M47) -> 0 | N48: causes de refus | S48: cout total du jour | U48: =SUM(U42:U47) -> 0 | Z48: 0
H49: envoi des réclamations F/ S-T | I49: réponse F/ S-T | J49: alerte | Z49: =SUM(Z42:Z48) -> 0
C50: dans le cas d'une réclamation | J50: =IF(J42="","",IF(H50=0," réclamation non traitée",IF(I50=0, "veuillez contacter le F/ S-T par téléphone",""))) ->  | S50: N° mois | U50: 0
C51: nombre de pièces NC | J51: =IF(J43="","",IF(H51=0," réclamation non traitée",IF(I51=0, "veuillez contacter le F/ S-T par téléphone",""))) -> 
C52: nombre de pièces par carton
C53: coût de transport par carton
C54: nombre de cartons renvoyés
C55: temps de tri
C56: coût horaire de tri
C57: temps de retouche
C58: coût horaire de retouche
C59: temps de traitement de la réclamation
C60: coût horaire de traitement
C61: coût total | D61: =IFERROR(((D51/D52)*D53)+D54*D53+D55*D56+D57*D58+D59*D60,"") -> 

Sheet 21-4-22
E2: Rapport journalier | R2: Code:DAS-SMQ-24
R3: Date: 27/12/2019
R4: Version:01
R5: Page:1
D12: A | E12: B | F12: C | G12: D | H12: E | I12: F | J12: M | K12: N | L12: O | M12: P | N12: I | O12: L | P12: K | Q12: J | R12: G | S12: H
B13: Machine | D13: SST16 | E13: SB16 | F13: BIGLIA 301 SM | G13: BIGLIA 42 S2M bitourelle | H13: L32 | I13: TSUGAMI | J13: MORI SEIKI 3 axes | K13: MORI SEIKI 5 axes | L13: HARDING | M13: KITAMURA | N13: MULTIBROCHE | O13: NAKAMURA | P13: TOUR WEILER
B14: Référence | D14: 200101 | E14: G022-CP1 | F14: 510090 | G14: G028/G015 | H14: 200200-2022 | I14: I097 maj | J14: i004 | K14: - | L14: F029-CP3. | M14: G027-HAR | N14: MPS000300 | O14: I007 | P14: 199400-MAJ | Q14: 181035 | R14: 68.0815 | S14: 200300
B15: Désignation | D15: AXE D'ARTICULATION | E15: AXE D15-M11*100 maj-c | F15: Inserto Esag M8 12x12 | G15: GOUJON M14*1.5 L=52 NON FRAISEE | H15: Embout de tige-2022 | I15: ECROU DE ROUE FORD RANGER- finition rayon 18-04-2022 MANUELLE | J15: Ecrou suspension- surfacage | K15: Arrêt | L15: TUBE L125.5 TUBE D4EAU PUNTO 2 | M15: GOUJON M14*1.5L=52 PH2 HARDING | N15: raccord HEX 17 | O15: ECROU SEMI ARBRE ISUZU | P15: Tirant acier D6 18-04-2022 PAR CHUTE | Q15: BAGUE USINEE 11*18*35 19-04-2022 | R15: Buse droite à collerette Ø8 M445 FRD | S15: TIGE DE PISTON-maj ca
B16: Compteur 8h | D16: 8251 | E16: 0 | F16: 966 | G16: 0 | H16: 4771 | I16: 9172 | J16: 236 | K16: 0 | L16: 49 | M16: 49 | N16: 0 | O16: 0 | P16: 4020 | Q16: 0 | R16: 16860 | S16: 3083
B17: Compteur 17h | D17: 9450 | E17: 0 | F17: 1309 | G17: 228 | H17: 4945 | I17: 9557 | J17: 276 | K17: 0 | L17: 76 | M17: 76 | N17: 0 | O17: 0 | P17: 4422 | Q17: 0 | R17: 17387 | S17: 3375
B18: Enregistrement | C18: 9h
C19: 16h
B20: Identification
B21: Propreté des tables de contrôle
B22: Rangement des outils de contrôle
B23: Existance de l'OF
B24: Affutage | T24: =+COUNTA(D24:S24) -> 0
B25: Maintenance
B26: Nombre des NC poubelle | F26: 6
B27: Nombre des NC à retoucher
B28: Machine pour retouche
B29: Panne
B30: Cout pièces de rechange | T30: =SUM(D30:S30) -> 0
B31: prix de revient pièce | D31: =IFERROR(VLOOKUP(D14,'Prix de revient'!$A:$D,4,0),0) -> 0.5056 | E31: =IFERROR(VLOOKUP(E14,'Prix de revient'!$A:$D,4,0),0) -> 0 | F31: =IFERROR(VLOOKUP(F14,'Prix de revient'!$A:$D,4,0),0) -> 0.40132 | G31: =IFERROR(VLOOKUP(G14,'Prix de revient'!$A:$D,4,0),0) -> 0 | H31: =IFERROR(VLOOKUP(H14,'Prix de revient'!$A:$D,4,0),0) -> 0 | I31: =IFERROR(VLOOKUP(I14,'Prix de revient'!$A:$D,4,0),0) -> 0 | J31: =IFERROR(VLOOKUP(J14,'Prix de revient'!$A:$D,4,0),0) -> 0 | K31: =IFERROR(VLOOKUP(K14,'Prix de revient'!$A:$D,4,0),0) -> 0 | L31: =IFERROR(VLOOKUP(L14,'Prix de revient'!$A:$D,4,0),0) -> 0 | M31: =IFERROR(VLOOKUP(M14,'Prix de revient'!$A:$D,4,0),0) -> 0 | N31: =IFERROR(VLOOKUP(N14,'Prix de revient'!$A:$D,4,0),0) -> 0 | O31: =IFERROR(VLOOKUP(O14,'Prix de revient'!$A:$D,4,0),0) -> 0 | P31: =IFERROR(VLOOKUP(P14,'Prix de revient'!$A:$D,4,0),0) -> 0 | Q31: =IFERROR(VLOOKUP(Q14,'Prix de revient'!$A:$D,4,0),0) -> 0 | R31: =IFERROR(VLOOKUP(R14,'Prix de revient'!$A:$D,4,0),0) -> 0 | S31: =IFERROR(VLOOKUP(S14,'Prix de revient'!$A:$D,4,0),0) -> 3.26744
B32: coût de rebuts | D32: =D26*D31 -> 0 | E32: =E26*E31 -> 0 | F32: 2.40792 | G32: 0 | H32: 0 | I32: 0 | J32: 0 | K32: 0 | L32: 0 | M32: 0 | N32: 0 | O32: 0 | P32: 0 | Q32: 0 | R32: 0 | S32: 0 | T32: =SUM(D32:S32) -> 2.40792
B33: gestion de modification
C41: Clients | D41: Audit | E41: Réclamation | F41: Avoir | H41: Fournisseurs/ sous-traitants | I41: Réception de matiere | J41: Probleme qualité | L41: Les formations professionnelles | M41: Cout | N41: Chiffrage décliné | O41: Actions à suivre | Q41: Article qui a subit un tri | R41: durée du tri | S41: Nombre des pieces non-conformes | T41: ouvrier faisant le tri | U41: cout par tri | W41: Article qui a subit la reprise | X41: durée de la reprise | Y41: opérateur faisant la reprise | Z41: coût de reprise | AD41: Machine | AE41: article | AF41: gamme | AG41: objet de la modification
R42: 10 | T42: rim | U42: =IF(R42="","",R42*VLOOKUP(T42,'cout opérateur machines'!A1:B8,2,0)) -> 100 | Z42: =X42*8 -> 0
U43: =IF(R43="","",R43*VLOOKUP(T43,'cout opérateur machines'!A2:B9,2,0)) ->  | Z43: =X43*8 -> 0
U44: =IF(R44="","",R44*VLOOKUP(T44,'cout opérateur machines'!A3:B10,2,0)) ->  | Z44: 0
U45: =IF(R45="","",R45*VLOOKUP(T45,'cout opérateur machines'!A4:B11,2,0)) ->  | Z45: 0
U46: =IF(R46="","",R46*VLOOKUP(T46,'cout opérateur machines'!A5:B12,2,0)) ->  | Z46: 0
U47: =IF(R47="","",R47*VLOOKUP(T47,'cout opérateur machines'!A6:B13,2,0)) ->  | Z47: 0
E48: =COUNTA(E42:E47) -> 0 | F48: =SUM(F42:F47) -> 0 | M48: =SUM(M42:M47) -> 0 | N48: causes de refus | S48: cout total du jour | U48: =SUM(U42:U47) -> 100 | Z48: 0
H49: envoi des réclamations F/ S-T | I49: réponse F/ S-T | J49: alerte | Z49: =SUM(Z42:Z48) -> 0
C50: dans le cas d'une réclamation | J50: =IF(J42="","",IF(H50=0," réclamation non traitée",IF(I50=0, "veuillez contacter le F/ S-T par téléphone",""))) ->  | S50: N° mois | U50: 4
C51: nombre de pièces NC | J51: =IF(J43="","",IF(H51=0," réclamation non traitée",IF(I51=0, "veuillez contacter le F/ S-T par téléphone",""))) -> 
C52: nombre de pièces par carton
C53: coût de transport par carton
C54: nombre de cartons renvoyés
C55: temps de tri
C56: coût horaire de tri
C57: temps de retouche
C58: coût horaire de retouche
C59: temps de traitement de la réclamation
C60: coût horaire de traitement
C61: coût total | D61: =IFERROR(((D51/D52)*D53)+D54*D53+D55*D56+D57*D58+D59*D60,"") -> 

Sheet 20-4-22
E2: Rapport journalier | R2: Code:DAS-SMQ-24
R3: Date: 27/12/2019
R4: Version:01
R5: Page:1
D12: A | E12: B | F12: C | G12: D | H12: E | I12: F | J12: M | K12: N | L12: O | M12: P | N12: I | O12: L | P12: K | Q12: J | R12: G | S12: H
B13: Machine | D13: SST16 | E13: SB16 | F13: BIGLIA 301 SM | G13: BIGLIA 42 S2M bitourelle | H13: L32 | I13: TSUGAMI | J13: MORI SEIKI 3 axes | K13: MORI SEIKI 5 axes | L13: HARDING | M13: KITAMURA | N13: MULTIBROCHE | O13: NAKAMURA | P13: TOUR WEILER
B14: Référence | D14: 200101 | E14: G022-CP1 | F14: 510090 | G14: 19155-PT12 | H14: 200200-2022 | I14: I097 maj | J14: i004 | K14: - | L14: F029-CP3. | M14: G027-HAR | N14: MPS000300 | O14: I007 | P14: 199400-MAJ | Q14: 181035 | R14: 68.0815 | S14: 200300
B15: Désignation | D15: AXE D'ARTICULATION | E15: AXE D15-M11*100 maj-c | F15: Inserto Esag M8 12x12 | G15: BAGUE DE RACCORDEMENT B42 | H15: Embout de tige-2022 | I15: ECROU DE ROUE FORD RANGER- finition rayon 18-04-2022 MANUELLE | J15: Ecrou suspension- surfacage | K15: Arrêt | L15: TUBE L125.5 TUBE D4EAU PUNTO 2 | M15: GOUJON M14*1.5L=52 PH2 HARDING | N15: raccord HEX 17 | O15: ECROU SEMI ARBRE ISUZU | P15: Tirant acier D6 18-04-2022 PAR CHUTE | Q15: BAGUE USINEE 11*18*35 19-04-2022 | R15: Buse droite à collerette Ø8 M445 FRD | S15: TIGE DE PISTON-maj ca
B16: Compteur 8h | D16: 7300 | E16: 0 | F16: 533 | G16: 87 | H16: 4771 | I16: 8811 | J16: 193 | K16: 0 | L16: 23 | M16: 23 | N16: 0 | O16: 0 | P16: 3642 | Q16: 564 | R16: 16226 | S16: 2778
B17: Compteur 17h | D17: 8251 | E17: 0 | F17: 966 | G17: 237 | H17: 4771 | I17: 9172 | J17: 236 | K17: 0 | L17: 49 | M17: 49 | N17: 0 | O17: 0 | P17: 4020 | Q17: 1000 | R17: 16860 | S17: 3083
B18: Enregistrement | C18: 9h
C19: 16h
B20: Identification
B21: Propreté des tables de contrôle
B22: Rangement des outils de contrôle
B23: Existance de l'OF
B24: Affutage | T24: =+COUNTA(D24:S24) -> 0
B25: Maintenance
B26: Nombre des NC poubelle
B27: Nombre des NC à retoucher
B28: Machine pour retouche
B29: Panne
B30: Cout pièces de rechange | T30: =SUM(D30:S30) -> 0
B31: prix de revient pièce | D31: =IFERROR(VLOOKUP(D14,'Prix de revient'!$A:$D,4,0),0) -> 0.5056 | E31: =IFERROR(VLOOKUP(E14,'Prix de revient'!$A:$D,4,0),0) -> 0 | F31: =IFERROR(VLOOKUP(F14,'Prix de revient'!$A:$D,4,0),0) -> 0.40132 | G31: =IFERROR(VLOOKUP(G14,'Prix de revient'!$A:$D,4,0),0) -> 0 | H31: =IFERROR(VLOOKUP(H14,'Prix de revient'!$A:$D,4,0),0) -> 0 | I31: =IFERROR(VLOOKUP(I14,'Prix de revient'!$A:$D,4,0),0) -> 0 | J31: =IFERROR(VLOOKUP(J14,'Prix de revient'!$A:$D,4,0),0) -> 0 | K31: =IFERROR(VLOOKUP(K14,'Prix de revient'!$A:$D,4,0),0) -> 0 | L31: =IFERROR(VLOOKUP(L14,'Prix de revient'!$A:$D,4,0),0) -> 0 | M31: =IFERROR(VLOOKUP(M14,'Prix de revient'!$A:$D,4,0),0) -> 0 | N31: =IFERROR(VLOOKUP(N14,'Prix de revient'!$A:$D,4,0),0) -> 0 | O31: =IFERROR(VLOOKUP(O14,'Prix de revient'!$A:$D,4,0),0) -> 0 | P31: =IFERROR(VLOOKUP(P14,'Prix de revient'!$A:$D,4,0),0) -> 0 | Q31: =IFERROR(VLOOKUP(Q14,'Prix de revient'!$A:$D,4,0),0) -> 0 | R31: =IFERROR(VLOOKUP(R14,'Prix de revient'!$A:$D,4,0),0) -> 0 | S31: =IFERROR(VLOOKUP(S14,'Prix de revient'!$A:$D,4,0),0) -> 3.26744
B32: coût de rebuts | D32: =D26*D31 -> 0 | E32: =E26*E31 -> 0 | F32: 0 | G32: 0 | H32: 0 | I32: 0 | J32: 0 | K32: 0 | L32: 0 | M32: 0 | N32: 0 | O32: 0 | P32: 0 | Q32: 0 | R32: 0 | S32: 0 | T32: =SUM(D32:S32) -> 0
B33: gestion de modification
C41: Clients | D41: Audit | E41: Réclamation | F41: Avoir | H41: Fournisseurs/ sous-traitants | I41: Réception de matiere | J41: Probleme qualité | L41: Les formations professionnelles | M41: Cout | N41: Chiffrage décliné | O41: Actions à suivre | Q41: Article qui a subit un tri | R41: durée du tri | S41: Nombre des pieces non-conformes | T41: ouvrier faisant le tri | U41: cout par tri | W41: Article qui a subit la reprise | X41: durée de la reprise | Y41: opérateur faisant la reprise | Z41: coût de reprise | AD41: Machine | AE41: article | AF41: gamme | AG41: objet de la modification
U42: =IF(R42="","",R42*VLOOKUP(T42,'cout opérateur machines'!A1:B8,2,0)) ->  | Z42: =X42*8 -> 0
U43: =IF(R43="","",R43*VLOOKUP(T43,'cout opérateur machines'!A2:B9,2,0)) ->  | Z43: =X43*8 -> 0
U44: =IF(R44="","",R44*VLOOKUP(T44,'cout opérateur machines'!A3:B10,2,0)) ->  | Z44: 0
U45: =IF(R45="","",R45*VLOOKUP(T45,'cout opérateur machines'!A4:B11,2,0)) ->  | Z45: 0
U46: =IF(R46="","",R46*VLOOKUP(T46,'cout opérateur machines'!A5:B12,2,0)) ->  | Z46: 0
U47: =IF(R47="","",R47*VLOOKUP(T47,'cout opérateur machines'!A6:B13,2,0)) ->  | Z47: 0
E48: =COUNTA(E42:E47) -> 0 | F48: =SUM(F42:F47) -> 0 | M48: =SUM(M42:M47) -> 0 | N48: causes de refus | S48: cout total du jour | U48: =SUM(U42:U47) -> 0 | Z48: 0
H49: envoi des réclamations F/ S-T | I49: réponse F/ S-T | J49: alerte | Z49: =SUM(Z42:Z48) -> 0
C50: dans le cas d'une réclamation | J50: =IF(J42="","",IF(H50=0," réclamation non traitée",IF(I50=0, "veuillez contacter le F/ S-T par téléphone",""))) ->  | S50: N° mois | U50: 4
C51: nombre de pièces NC | J51: =IF(J43="","",IF(H51=0," réclamation non traitée",IF(I51=0, "veuillez contacter le F/ S-T par téléphone",""))) -> 
C52: nombre de pièces par carton
C53: coût de transport par carton
C54: nombre de cartons renvoyés
C55: temps de tri
C56: coût horaire de tri
C57: temps de retouche
C58: coût horaire de retouche
C59: temps de traitement de la réclamation
C60: coût horaire de traitement
C61: coût total | D61: =IFERROR(((D51/D52)*D53)+D54*D53+D55*D56+D57*D58+D59*D60,"") -> 

Sheet 19-4-22
E2: Rapport journalier | R2: Code:DAS-SMQ-24
R3: Date: 27/12/2019
R4: Version:01
R5: Page:1
D12: A | E12: B | F12: C | G12: D | H12: E | I12: F | J12: M | K12: N | L12: O | M12: P | N12: I | O12: L | P12: K | Q12: J | R12: G | S12: H
B13: Machine | D13: SST16 | E13: SB16 | F13: BIGLIA 301 SM | G13: BIGLIA 42 S2M bitourelle | H13: L32 | I13: TSUGAMI | J13: MORI SEIKI 3 axes | K13: MORI SEIKI 5 axes | L13: HARDING | M13: KITAMURA | N13: MULTIBROCHE | O13: NAKAMURA | P13: TOUR WEILER
B14: Référence | D14: 200101 | E14: G022-CP1 | F14: 510090 | G14: 19155-PT12 | H14: 200200-2022 | I14: I097 maj | J14: i004 | K14: - | L14: F029-CP3. | M14: G027-HAR | N14: MPS000300 | O14: I007 | P14: 199400-MAJ | Q14: 181035 | R14: 68.0815 | S14: 200300
B15: Désignation | D15: AXE D'ARTICULATION | E15: AXE D15-M11*100 maj-c | F15: Inserto Esag M8 12x12 | G15: BAGUE DE RACCORDEMENT B42 | H15: Embout de tige-2022 | I15: ECROU DE ROUE FORD RANGER- finition rayon 18-04-2022 MANUELLE | J15: Ecrou suspension- surfacage | K15: Arrêt | L15: TUBE L125.5 TUBE D4EAU PUNTO 2 | M15: GOUJON M14*1.5L=52 PH2 HARDING | N15: raccord HEX 17 | O15: ECROU SEMI ARBRE ISUZU | P15: Tirant acier D6 18-04-2022 PAR CHUTE | Q15: BAGUE USINEE 11*18*35 19-04-2022 | R15: Buse droite à collerette Ø8 M445 FRD | S15: TIGE DE PISTON-maj ca
B16: Compteur 8h | D16: 6098 | E16: 0 | F16: 148 | G16: 0 | H16: 4771 | I16: 8422 | J16: 156 | K16: 0 | L16: 0 | M16: 0 | N16: 0 | O16: 0 | P16: 3202 | Q16: 160 | R16: 15583 | S16: 2507
B17: Compteur 17h | D17: 7300 | E17: 0 | F17: 533 | G17: 87 | H17: 4771 | I17: 8811 | J17: 193 | K17: 0 | L17: 23 | M17: 23 | N17: 0 | O17: 0 | P17: 3642 | Q17: 564 | R17: 16226 | S17: 2778
B18: Enregistrement | C18: 9h
C19: 16h
B20: Identification
B21: Propreté des tables de contrôle
B22: Rangement des outils de contrôle
B23: Existance de l'OF
B24: Affutage | T24: =+COUNTA(D24:S24) -> 0
B25: Maintenance
B26: Nombre des NC poubelle
B27: Nombre des NC à retoucher
B28: Machine pour retouche
B29: Panne
B30: Cout pièces de rechange | T30: =SUM(D30:S30) -> 0
B31: prix de revient pièce | D31: =IFERROR(VLOOKUP(D14,'Prix de revient'!$A:$D,4,0),0) -> 0.5056 | E31: =IFERROR(VLOOKUP(E14,'Prix de revient'!$A:$D,4,0),0) -> 0 | F31: =IFERROR(VLOOKUP(F14,'Prix de revient'!$A:$D,4,0),0) -> 0.40132 | G31: =IFERROR(VLOOKUP(G14,'Prix de revient'!$A:$D,4,0),0) -> 0 | H31: =IFERROR(VLOOKUP(H14,'Prix de revient'!$A:$D,4,0),0) -> 0 | I31: =IFERROR(VLOOKUP(I14,'Prix de revient'!$A:$D,4,0),0) -> 0 | J31: =IFERROR(VLOOKUP(J14,'Prix de revient'!$A:$D,4,0),0) -> 0 | K31: =IFERROR(VLOOKUP(K14,'Prix de revient'!$A:$D,4,0),0) -> 0 | L31: =IFERROR(VLOOKUP(L14,'Prix de revient'!$A:$D,4,0),0) -> 0 | M31: =IFERROR(VLOOKUP(M14,'Prix de revient'!$A:$D,4,0),0) -> 0 | N31: =IFERROR(VLOOKUP(N14,'Prix de revient'!$A:$D,4,0),0) -> 0 | O31: =IFERROR(VLOOKUP(O14,'Prix de revient'!$A:$D,4,0),0) -> 0 | P31: =IFERROR(VLOOKUP(P14,'Prix de revient'!$A:$D,4,0),0) -> 0 | Q31: =IFERROR(VLOOKUP(Q14,'Prix de revient'!$A:$D,4,0),0) -> 0 | R31: =IFERROR(VLOOKUP(R14,'Prix de revient'!$A:$D,4,0),0) -> 0 | S31: =IFERROR(VLOOKUP(S14,'Prix de revient'!$A:$D,4,0),0) -> 3.26744
B32: coût de rebuts | D32: =D26*D31 -> 0 | E32: =E26*E31 -> 0 | F32: 0 | G32: 0 | H32: 0 | I32: 0 | J32: 0 | K32: 0 | L32: 0 | M32: 0 | N32: 0 | O32: 0 | P32: 0 | Q32: 0 | R32: 0 | S32: 0 | T32: =SUM(D32:S32) -> 0
B33: gestion de modification
C41: Clients | D41: Audit | E41: Réclamation | F41: Avoir | H41: Fournisseurs/ sous-traitants | I41: Réception de matiere | J41: Probleme qualité | L41: Les formations professionnelles | M41: Cout | N41: Chiffrage décliné | O41: Actions à suivre | Q41: Article qui a subit un tri | R41: durée du tri | S41: Nombre des pieces non-conformes | T41: ouvrier faisant le tri | U41: cout par tri | W41: Article qui a subit la reprise | X41: durée de la reprise | Y41: opérateur faisant la reprise | Z41: coût de reprise | AD41: Machine | AE41: article | AF41: gamme | AG41: objet de la modification
U42: =IF(R42="","",R42*VLOOKUP(T42,'cout opérateur machines'!A1:B8,2,0)) ->  | Z42: =X42*8 -> 0
U43: =IF(R43="","",R43*VLOOKUP(T43,'cout opérateur machines'!A2:B9,2,0)) ->  | Z43: =X43*8 -> 0
U44: =IF(R44="","",R44*VLOOKUP(T44,'cout opérateur machines'!A3:B10,2,0)) ->  | Z44: 0
U45: =IF(R45="","",R45*VLOOKUP(T45,'cout opérateur machines'!A4:B11,2,0)) ->  | Z45: 0
U46: =IF(R46="","",R46*VLOOKUP(T46,'cout opérateur machines'!A5:B12,2,0)) ->  | Z46: 0
U47: =IF(R47="","",R47*VLOOKUP(T47,'cout opérateur machines'!A6:B13,2,0)) ->  | Z47: 0
E48: =COUNTA(E42:E47) -> 0 | F48: =SUM(F42:F47) -> 0 | M48: =SUM(M42:M47) -> 0 | N48: causes de refus | S48: cout total du jour | U48: =SUM(U42:U47) -> 0 | Z48: 0
H49: envoi des réclamations F/ S-T | I49: réponse F/ S-T | J49: alerte | Z49: =SUM(Z42:Z48) -> 0
C50: dans le cas d'une réclamation | J50: =IF(J42="","",IF(H50=0," réclamation non traitée",IF(I50=0, "veuillez contacter le F/ S-T par téléphone",""))) ->  | S50: N° mois | U50: 4
C51: nombre de pièces NC | J51: =IF(J43="","",IF(H51=0," réclamation non traitée",IF(I51=0, "veuillez contacter le F/ S-T par téléphone",""))) -> 
C52: nombre de pièces par carton
C53: coût de transport par carton
C54: nombre de cartons renvoyés
C55: temps de tri
C56: coût horaire de tri
C57: temps de retouche
C58: coût horaire de retouche
C59: temps de traitement de la réclamation
C60: coût horaire de traitement
C61: coût total | D61: =IFERROR(((D51/D52)*D53)+D54*D53+D55*D56+D57*D58+D59*D60,"") -> 

Sheet 18-4-22
E2: Rapport journalier | R2: Code:DAS-SMQ-24
R3: Date: 27/12/2019
R4: Version:01
R5: Page:1
D12: A | E12: B | F12: C | G12: D | H12: E | I12: F | J12: M | K12: N | L12: O | M12: P | N12: I | O12: L | P12: K | Q12: J | R12: G | S12: H
B13: Machine | D13: SST16 | E13: SB16 | F13: BIGLIA 301 SM | G13: BIGLIA 42 S2M bitourelle | H13: L32 | I13: TSUGAMI | J13: MORI SEIKI 3 axes | K13: MORI SEIKI 5 axes | L13: HARDING | M13: KITAMURA | N13: MULTIBROCHE | O13: NAKAMURA | P13: TOUR WEILER
B14: Référence | D14: 200101 | E14: G022-CP1 | F14: 510090 | G14: G027-maj | H14: 200200-2022 | I14: I097 maj | J14: i004 | K14: - | L14: 480387 | M14: 9531 | N14: MPS000300 | O14: I007 | P14: 199400-MAJ | Q14: 181035 | R14: 68.0815 | S14: 200300
B15: Désignation | D15: AXE D'ARTICULATION | E15: AXE D15-M11*100 maj-c | F15: Inserto Esag M8 12x12 | G15: GOUJON M14*1.5L=52 18-04-2022 manuelle | H15: Embout de tige-2022 | I15: ECROU DE ROUE FORD RANGER- finition rayon 18-04-2022 MANUELLE | J15: Ecrou suspension- surfacage | K15: Arrêt | L15: Evacuation 2 et 3 | M15: USINAGE BORNE CPF SANS TROU Ø10-4 MONTAGE maj cadence 26-11-2021 | N15: raccord HEX 17 | O15: ECROU SEMI ARBRE ISUZU | P15: Tirant acier D6 18-04-2022 PAR CHUTE | Q15: BAGUE USINEE 11*18*35 19-04-2022 | R15: Buse droite à collerette Ø8 M445 FRD | S15: TIGE DE PISTON-maj ca
B16: Compteur 8h | D16: 5013 | E16: 0 | F16: 0 | G16: 1367 | H16: 4771 | I16: 7874 | J16: 118 | K16: 0 | L16: 0 | M16: 0 | N16: 0 | O16: 0 | P16: 2824 | Q16: 0 | R16: 14960 | S16: 2368
B17: Compteur 17h | D17: 6098 | E17: 0 | F17: 148 | G17: 1660 | H17: 4771 | I17: 8422 | J17: 156 | K17: 0 | L17: 0 | M17: 9 | N17: 0 | O17: 0 | P17: 3202 | Q17: 160 | R17: 15583 | S17: 2507
B18: Enregistrement | C18: 9h
C19: 16h
B20: Identification
B21: Propreté des tables de contrôle
B22: Rangement des outils de contrôle
B23: Existance de l'OF
B24: Affutage | T24: =+COUNTA(D24:S24) -> 0
B25: Maintenance
B26: Nombre des NC poubelle
B27: Nombre des NC à retoucher
B28: Machine pour retouche
B29: Panne
B30: Cout pièces de rechange | T30: =SUM(D30:S30) -> 0
B31: prix de revient pièce | D31: =IFERROR(VLOOKUP(D14,'Prix de revient'!$A:$D,4,0),0) -> 0.5056 | E31: =IFERROR(VLOOKUP(E14,'Prix de revient'!$A:$D,4,0),0) -> 0 | F31: =IFERROR(VLOOKUP(F14,'Prix de revient'!$A:$D,4,0),0) -> 0.40132 | G31: =IFERROR(VLOOKUP(G14,'Prix de revient'!$A:$D,4,0),0) -> 0 | H31: =IFERROR(VLOOKUP(H14,'Prix de revient'!$A:$D,4,0),0) -> 0 | I31: =IFERROR(VLOOKUP(I14,'Prix de revient'!$A:$D,4,0),0) -> 0 | J31: =IFERROR(VLOOKUP(J14,'Prix de revient'!$A:$D,4,0),0) -> 0 | K31: =IFERROR(VLOOKUP(K14,'Prix de revient'!$A:$D,4,0),0) -> 0 | L31: =IFERROR(VLOOKUP(L14,'Prix de revient'!$A:$D,4,0),0) -> 5.372 | M31: =IFERROR(VLOOKUP(M14,'Prix de revient'!$A:$D,4,0),0) -> 0 | N31: =IFERROR(VLOOKUP(N14,'Prix de revient'!$A:$D,4,0),0) -> 0 | O31: =IFERROR(VLOOKUP(O14,'Prix de revient'!$A:$D,4,0),0) -> 0 | P31: =IFERROR(VLOOKUP(P14,'Prix de revient'!$A:$D,4,0),0) -> 0 | Q31: =IFERROR(VLOOKUP(Q14,'Prix de revient'!$A:$D,4,0),0) -> 0 | R31: =IFERROR(VLOOKUP(R14,'Prix de revient'!$A:$D,4,0),0) -> 0 | S31: =IFERROR(VLOOKUP(S14,'Prix de revient'!$A:$D,4,0),0) -> 3.26744
B32: coût de rebuts | D32: =D26*D31 -> 0 | E32: =E26*E31 -> 0 | F32: 0 | G32: 0 | H32: 0 | I32: 0 | J32: 0 | K32: 0 | L32: 0 | M32: 0 | N32: 0 | O32: 0 | P32: 0 | Q32: 0 | R32: 0 | S32: 0 | T32: =SUM(D32:S32) -> 0
B33: gestion de modification
C41: Clients | D41: Audit | E41: Réclamation | F41: Avoir | H41: Fournisseurs/ sous-traitants | I41: Réception de matiere | J41: Probleme qualité | L41: Les formations professionnelles | M41: Cout | N41: Chiffrage décliné | O41: Actions à suivre | Q41: Article qui a subit un tri | R41: durée du tri | S41: Nombre des pieces non-conformes | T41: ouvrier faisant le tri | U41: cout par tri | W41: Article qui a subit la reprise | X41: durée de la reprise | Y41: opérateur faisant la reprise | Z41: coût de reprise | AD41: Machine | AE41: article | AF41: gamme | AG41: objet de la modification
U42: =IF(R42="","",R42*VLOOKUP(T42,'cout opérateur machines'!A1:B8,2,0)) ->  | Z42: =X42*8 -> 0
U43: =IF(R43="","",R43*VLOOKUP(T43,'cout opérateur machines'!A2:B9,2,0)) ->  | Z43: =X43*8 -> 0
U44: =IF(R44="","",R44*VLOOKUP(T44,'cout opérateur machines'!A3:B10,2,0)) ->  | Z44: 0
U45: =IF(R45="","",R45*VLOOKUP(T45,'cout opérateur machines'!A4:B11,2,0)) ->  | Z45: 0
U46: =IF(R46="","",R46*VLOOKUP(T46,'cout opérateur machines'!A5:B12,2,0)) ->  | Z46: 0
U47: =IF(R47="","",R47*VLOOKUP(T47,'cout opérateur machines'!A6:B13,2,0)) ->  | Z47: 0
E48: =COUNTA(E42:E47) -> 0 | F48: =SUM(F42:F47) -> 0 | M48: =SUM(M42:M47) -> 0 | N48: causes de refus | S48: cout total du jour | U48: =SUM(U42:U47) -> 0 | Z48: 0
H49: envoi des réclamations F/ S-T | I49: réponse F/ S-T | J49: alerte | Z49: =SUM(Z42:Z48) -> 0
C50: dans le cas d'une réclamation | J50: =IF(J42="","",IF(H50=0," réclamation non traitée",IF(I50=0, "veuillez contacter le F/ S-T par téléphone",""))) ->  | S50: N° mois | U50: 4
C51: nombre de pièces NC | J51: =IF(J43="","",IF(H51=0," réclamation non traitée",IF(I51=0, "veuillez contacter le F/ S-T par téléphone",""))) -> 
C52: nombre de pièces par carton
C53: coût de transport par carton
C54: nombre de cartons renvoyés
C55: temps de tri
C56: coût horaire de tri
C57: temps de retouche
C58: coût horaire de retouche
C59: temps de traitement de la réclamation
C60: coût horaire de traitement
C61: coût total | D61: =IFERROR(((D51/D52)*D53)+D54*D53+D55*D56+D57*D58+D59*D60,"") -> 

Sheet 16-4-22
E2: Rapport journalier | R2: Code:DAS-SMQ-24
R3: Date: 27/12/2019
R4: Version:01
R5: Page:1
D12: A | E12: B | F12: C | G12: D | H12: E | I12: F | J12: M | K12: N | L12: O | M12: P | N12: I | O12: L | P12: K | Q12: J | R12: G | S12: H
B13: Machine | D13: SST16 | E13: SB16 | F13: BIGLIA 301 SM | G13: BIGLIA 42 S2M bitourelle | H13: L32 | I13: TSUGAMI | J13: MORI SEIKI 3 axes | K13: MORI SEIKI 5 axes | L13: HARDING | M13: KITAMURA | N13: MULTIBROCHE | O13: NAKAMURA | P13: TOUR WEILER
B14: Référence | D14: 200101 | E14: G022-CP1 | F14: 19155-PT11 | G14: G027 | H14: 200200-2022 | I14: i097-tsughami | J14: i004 | K14: - | L14: 480387 | M14: 9518-maj | N14: MPS000300 | O14: I007 | P14: 199400-a | Q14: 4-7891 | R14: 68.0815 | S14: 200300
B15: Désignation | D15: AXE D'ARTICULATION | E15: AXE D15-M11*100 maj-c | F15: AXE DE RACCORDEMENT | G15: GOUJON M14*1.5L=52 | H15: Embout de tige-2022 | I15: ECROU DE ROUE FORD RANGER- finition rayon | J15: Ecrou suspension- surfacage | K15: Arrêt | L15: Evacuation 2 et 3 | M15: USINAGE BORNE RBD-1 | N15: raccord HEX 17 | O15: ECROU SEMI ARBRE ISUZU | P15: Tirant acier D6 maj-c | Q15: Bague galvanisée 32*42*20 par chute (fini) | R15: Buse droite à collerette Ø8 M445 FRD | S15: TIGE DE PISTON-maj ca
B16: Compteur 8h | D16: 4107 | E16: 9670 | F16: 74 | G16: 1081 | H16: 4771 | I16: 7456 | J16: 97 | K16: 0 | L16: 142 | M16: 0 | N16: 0 | O16: 0 | P16: 2180 | Q16: 1405 | R16: 14493 | S16: 2223
B17: Compteur 17h | D17: 5013 | E17: 9958 | F17: 114 | G17: 1367 | H17: 4771 | I17: 7874 | J17: 118 | K17: 0 | L17: 142 | M17: 0 | N17: 0 | O17: 0 | P17: 2824 | Q17: 1798 | R17: 14960 | S17: 2368
B18: Enregistrement | C18: 9h
C19: 16h
B20: Identification
B21: Propreté des tables de contrôle
B22: Rangement des outils de contrôle
B23: Existance de l'OF
B24: Affutage | T24: =+COUNTA(D24:S24) -> 0
B25: Maintenance
B26: Nombre des NC poubelle
B27: Nombre des NC à retoucher
B28: Machine pour retouche
B29: Panne
B30: Cout pièces de rechange | T30: =SUM(D30:S30) -> 0
B31: prix de revient pièce | D31: =IFERROR(VLOOKUP(D14,'Prix de revient'!$A:$D,4,0),0) -> 0.5056 | E31: =IFERROR(VLOOKUP(E14,'Prix de revient'!$A:$D,4,0),0) -> 0 | F31: =IFERROR(VLOOKUP(F14,'Prix de revient'!$A:$D,4,0),0) -> 0 | G31: =IFERROR(VLOOKUP(G14,'Prix de revient'!$A:$D,4,0),0) -> 0 | H31: =IFERROR(VLOOKUP(H14,'Prix de revient'!$A:$D,4,0),0) -> 0 | I31: =IFERROR(VLOOKUP(I14,'Prix de revient'!$A:$D,4,0),0) -> 0 | J31: =IFERROR(VLOOKUP(J14,'Prix de revient'!$A:$D,4,0),0) -> 0 | K31: =IFERROR(VLOOKUP(K14,'Prix de revient'!$A:$D,4,0),0) -> 0 | L31: =IFERROR(VLOOKUP(L14,'Prix de revient'!$A:$D,4,0),0) -> 5.372 | M31: =IFERROR(VLOOKUP(M14,'Prix de revient'!$A:$D,4,0),0) -> 0 | N31: =IFERROR(VLOOKUP(N14,'Prix de revient'!$A:$D,4,0),0) -> 0 | O31: =IFERROR(VLOOKUP(O14,'Prix de revient'!$A:$D,4,0),0) -> 0 | P31: =IFERROR(VLOOKUP(P14,'Prix de revient'!$A:$D,4,0),0) -> 0 | Q31: =IFERROR(VLOOKUP(Q14,'Prix de revient'!$A:$D,4,0),0) -> 0 | R31: =IFERROR(VLOOKUP(R14,'Prix de revient'!$A:$D,4,0),0) -> 0 | S31: =IFERROR(VLOOKUP(S14,'Prix de revient'!$A:$D,4,0),0) -> 3.26744
B32: coût de rebuts | D32: =D26*D31 -> 0 | E32: =E26*E31 -> 0 | F32: 0 | G32: 0 | H32: 0 | I32: 0 | J32: 0 | K32: 0 | L32: 0 | M32: 0 | N32: 0 | O32: 0 | P32: 0 | Q32: 0 | R32: 0 | S32: 0 | T32: =SUM(D32:S32) -> 0
B33: gestion de modification
C41: Clients | D41: Audit | E41: Réclamation | F41: Avoir | H41: Fournisseurs/ sous-traitants | I41: Réception de matiere | J41: Probleme qualité | L41: Les formations professionnelles | M41: Cout | N41: Chiffrage décliné | O41: Actions à suivre | Q41: Article qui a subit un tri | R41: durée du tri | S41: Nombre des pieces non-conformes | T41: ouvrier faisant le tri | U41: cout par tri | W41: Article qui a subit la reprise | X41: durée de la reprise | Y41: opérateur faisant la reprise | Z41: coût de reprise | AD41: Machine | AE41: article | AF41: gamme | AG41: objet de la modification
U42: =IF(R42="","",R42*VLOOKUP(T42,'cout opérateur machines'!A1:B8,2,0)) ->  | Z42: =X42*8 -> 0
U43: =IF(R43="","",R43*VLOOKUP(T43,'cout opérateur machines'!A2:B9,2,0)) ->  | Z43: =X43*8 -> 0
U44: =IF(R44="","",R44*VLOOKUP(T44,'cout opérateur machines'!A3:B10,2,0)) ->  | Z44: 0
U45: =IF(R45="","",R45*VLOOKUP(T45,'cout opérateur machines'!A4:B11,2,0)) ->  | Z45: 0
U46: =IF(R46="","",R46*VLOOKUP(T46,'cout opérateur machines'!A5:B12,2,0)) ->  | Z46: 0
U47: =IF(R47="","",R47*VLOOKUP(T47,'cout opérateur machines'!A6:B13,2,0)) ->  | Z47: 0
E48: =COUNTA(E42:E47) -> 0 | F48: =SUM(F42:F47) -> 0 | M48: =SUM(M42:M47) -> 0 | N48: causes de refus | S48: cout total du jour | U48: =SUM(U42:U47) -> 0 | Z48: 0
H49: envoi des réclamations F/ S-T | I49: réponse F/ S-T | J49: alerte | Z49: =SUM(Z42:Z48) -> 0
C50: dans le cas d'une réclamation | J50: =IF(J42="","",IF(H50=0," réclamation non traitée",IF(I50=0, "veuillez contacter le F/ S-T par téléphone",""))) ->  | S50: N° mois | U50: 4
C51: nombre de pièces NC | J51: =IF(J43="","",IF(H51=0," réclamation non traitée",IF(I51=0, "veuillez contacter le F/ S-T par téléphone",""))) -> 
C52: nombre de pièces par carton
C53: coût de transport par carton
C54: nombre de cartons renvoyés
C55: temps de tri
C56: coût horaire de tri
C57: temps de retouche
C58: coût horaire de retouche
C59: temps de traitement de la réclamation
C60: coût horaire de traitement
C61: coût total | D61: =IFERROR(((D51/D52)*D53)+D54*D53+D55*D56+D57*D58+D59*D60,"") -> 

Sheet 15-4-22
E2: Rapport journalier | R2: Code:DAS-SMQ-24
R3: Date: 27/12/2019
R4: Version:01
R5: Page:1
D12: A | E12: B | F12: C | G12: D | H12: E | I12: F | J12: M | K12: N | L12: O | M12: P | N12: I | O12: L | P12: K | Q12: J | R12: G | S12: H
B13: Machine | D13: SST16 | E13: SB16 | F13: BIGLIA 301 SM | G13: BIGLIA 42 S2M bitourelle | H13: L32 | I13: TSUGAMI | J13: MORI SEIKI 3 axes | K13: MORI SEIKI 5 axes | L13: HARDING | M13: KITAMURA | N13: MULTIBROCHE | O13: NAKAMURA | P13: TOUR WEILER
B14: Référence | D14: 200101 | E14: G022-CP1 | F14: 19155-PT11 | G14: G027 | H14: 200200-2022 | I14: i097-tsughami | J14: i004 | K14: - | L14: 480387 | M14: 9518-maj | N14: MPS000300 | O14: I007 | P14: 199400-a | Q14: 4-7891 | R14: 68.0815 | S14: 200300
B15: Désignation | D15: AXE D'ARTICULATION | E15: AXE D15-M11*100 maj-c | F15: AXE DE RACCORDEMENT | G15: GOUJON M14*1.5L=52 | H15: Embout de tige-2022 | I15: ECROU DE ROUE FORD RANGER- finition rayon | J15: Ecrou suspension- surfacage | K15: Arrêt | L15: Evacuation 2 et 3 | M15: USINAGE BORNE RBD-1 | N15: raccord HEX 17 | O15: ECROU SEMI ARBRE ISUZU | P15: Tirant acier D6 maj-c | Q15: Bague galvanisée 32*42*20 par chute (fini) | R15: Buse droite à collerette Ø8 M445 FRD | S15: TIGE DE PISTON-maj ca
B16: Compteur 8h | D16: 3430 | E16: 9270 | F16: 0 | G16: 783 | H16: 4771 | I16: 7429 | J16: 62 | K16: 0 | L16: 142 | M16: 0 | N16: 0 | O16: 0 | P16: 1601 | Q16: 605 | R16: 14157 | S16: 1952
B17: Compteur 17h | D17: 4107 | E17: 9670 | F17: 74 | G17: 1081 | H17: 4771 | I17: 7456 | J17: 97 | K17: 0 | L17: 142 | M17: 0 | N17: 0 | O17: 0 | P17: 2180 | Q17: 1405 | R17: 14493 | S17: 2223
B18: Enregistrement | C18: 9h
C19: 16h
B20: Identification
B21: Propreté des tables de contrôle
B22: Rangement des outils de contrôle
B23: Existance de l'OF
B24: Affutage | T24: =+COUNTA(D24:S24) -> 0
B25: Maintenance
B26: Nombre des NC poubelle
B27: Nombre des NC à retoucher
B28: Machine pour retouche
B29: Panne
B30: Cout pièces de rechange | T30: =SUM(D30:S30) -> 0
B31: prix de revient pièce | D31: =IFERROR(VLOOKUP(D14,'Prix de revient'!$A:$D,4,0),0) -> 0.5056 | E31: =IFERROR(VLOOKUP(E14,'Prix de revient'!$A:$D,4,0),0) -> 0 | F31: =IFERROR(VLOOKUP(F14,'Prix de revient'!$A:$D,4,0),0) -> 0 | G31: =IFERROR(VLOOKUP(G14,'Prix de revient'!$A:$D,4,0),0) -> 0 | H31: =IFERROR(VLOOKUP(H14,'Prix de revient'!$A:$D,4,0),0) -> 0 | I31: =IFERROR(VLOOKUP(I14,'Prix de revient'!$A:$D,4,0),0) -> 0 | J31: =IFERROR(VLOOKUP(J14,'Prix de revient'!$A:$D,4,0),0) -> 0 | K31: =IFERROR(VLOOKUP(K14,'Prix de revient'!$A:$D,4,0),0) -> 0 | L31: =IFERROR(VLOOKUP(L14,'Prix de revient'!$A:$D,4,0),0) -> 5.372 | M31: =IFERROR(VLOOKUP(M14,'Prix de revient'!$A:$D,4,0),0) -> 0 | N31: =IFERROR(VLOOKUP(N14,'Prix de revient'!$A:$D,4,0),0) -> 0 | O31: =IFERROR(VLOOKUP(O14,'Prix de revient'!$A:$D,4,0),0) -> 0 | P31: =IFERROR(VLOOKUP(P14,'Prix de revient'!$A:$D,4,0),0) -> 0 | Q31: =IFERROR(VLOOKUP(Q14,'Prix de revient'!$A:$D,4,0),0) -> 0 | R31: =IFERROR(VLOOKUP(R14,'Prix de revient'!$A:$D,4,0),0) -> 0 | S31: =IFERROR(VLOOKUP(S14,'Prix de revient'!$A:$D,4,0),0) -> 3.26744
B32: coût de rebuts | D32: =D26*D31 -> 0 | E32: =E26*E31 -> 0 | F32: 0 | G32: 0 | H32: 0 | I32: 0 | J32: 0 | K32: 0 | L32: 0 | M32: 0 | N32: 0 | O32: 0 | P32: 0 | Q32: 0 | R32: 0 | S32: 0 | T32: =SUM(D32:S32) -> 0
B33: gestion de modification
C41: Clients | D41: Audit | E41: Réclamation | F41: Avoir | H41: Fournisseurs/ sous-traitants | I41: Réception de matiere | J41: Probleme qualité | L41: Les formations professionnelles | M41: Cout | N41: Chiffrage décliné | O41: Actions à suivre | Q41: Article qui a subit un tri | R41: durée du tri | S41: Nombre des pieces non-conformes | T41: ouvrier faisant le tri | U41: cout par tri | W41: Article qui a subit la reprise | X41: durée de la reprise | Y41: opérateur faisant la reprise | Z41: coût de reprise | AD41: Machine | AE41: article | AF41: gamme | AG41: objet de la modification
U42: =IF(R42="","",R42*VLOOKUP(T42,'cout opérateur machines'!A1:B8,2,0)) ->  | Z42: =X42*8 -> 0
U43: =IF(R43="","",R43*VLOOKUP(T43,'cout opérateur machines'!A2:B9,2,0)) ->  | Z43: =X43*8 -> 0
U44: =IF(R44="","",R44*VLOOKUP(T44,'cout opérateur machines'!A3:B10,2,0)) ->  | Z44: 0
U45: =IF(R45="","",R45*VLOOKUP(T45,'cout opérateur machines'!A4:B11,2,0)) ->  | Z45: 0
U46: =IF(R46="","",R46*VLOOKUP(T46,'cout opérateur machines'!A5:B12,2,0)) ->  | Z46: 0
U47: =IF(R47="","",R47*VLOOKUP(T47,'cout opérateur machines'!A6:B13,2,0)) ->  | Z47: 0
E48: =COUNTA(E42:E47) -> 0 | F48: =SUM(F42:F47) -> 0 | M48: =SUM(M42:M47) -> 0 | N48: causes de refus | S48: cout total du jour | U48: =SUM(U42:U47) -> 0 | Z48: 0
H49: envoi des réclamations F/ S-T | I49: réponse F/ S-T | J49: alerte | Z49: =SUM(Z42:Z48) -> 0
C50: dans le cas d'une réclamation | J50: =IF(J42="","",IF(H50=0," réclamation non traitée",IF(I50=0, "veuillez contacter le F/ S-T par téléphone",""))) ->  | S50: N° mois | U50: 4
C51: nombre de pièces NC | J51: =IF(J43="","",IF(H51=0," réclamation non traitée",IF(I51=0, "veuillez contacter le F/ S-T par téléphone",""))) -> 
C52: nombre de pièces par carton
C53: coût de transport par carton
C54: nombre de cartons renvoyés
C55: temps de tri
C56: coût horaire de tri
C57: temps de retouche
C58: coût horaire de retouche
C59: temps de traitement de la réclamation
C60: coût horaire de traitement
C61: coût total | D61: =IFERROR(((D51/D52)*D53)+D54*D53+D55*D56+D57*D58+D59*D60,"") -> 

Sheet 14-4-22
E2: Rapport journalier | R2: Code:DAS-SMQ-24
R3: Date: 27/12/2019
R4: Version:01
R5: Page:1
D12: A | E12: B | F12: C | G12: D | H12: E | I12: F | J12: M | K12: N | L12: O | M12: P | N12: I | O12: L | P12: K | Q12: J | R12: G | S12: H
B13: Machine | D13: SST16 | E13: SB16 | F13: BIGLIA 301 SM | G13: BIGLIA 42 S2M bitourelle | H13: L32 | I13: TSUGAMI | J13: MORI SEIKI 3 axes | K13: MORI SEIKI 5 axes | L13: HARDING | M13: KITAMURA | N13: MULTIBROCHE | O13: NAKAMURA | P13: TOUR WEILER
B14: Référence | D14: 200101 | E14: G022-CP1 | F14: 512520 | G14: G027 | H14: 200200-2022 | I14: i097-tsughami | J14: i004 | K14: - | L14: 480387 | M14: 9518-maj | N14: MPS000300 | O14: I007 | P14: 199400-a | Q14: 4-7891 | R14: 68.0815 | S14: 200300
B15: Désignation | D15: AXE D'ARTICULATION | E15: AXE D15-M11*100 maj-c | F15: INSERTO MANOPOLA INOX M8- | G15: GOUJON M14*1.5L=52 | H15: Embout de tige-2022 | I15: ECROU DE ROUE FORD RANGER- finition rayon | J15: Ecrou suspension- surfacage | K15: Arrêt | L15: Evacuation 2 et 3 | M15: USINAGE BORNE RBD-1 | N15: raccord HEX 17 | O15: ECROU SEMI ARBRE ISUZU | P15: Tirant acier D6 maj-c | Q15: Bague galvanisée 32*42*20 par chute (fini) | R15: Buse droite à collerette Ø8 M445 FRD | S15: TIGE DE PISTON-maj ca
B16: Compteur 8h | D16: 2385 | E16: 8845 | F16: 547 | G16: 510 | H16: 4771 | I16: 7063 | J16: 32 | K16: 0 | L16: 142 | M16: 0 | N16: 0 | O16: 0 | P16: 1249 | Q16: 0 | R16: 13592 | S16: 1689
B17: Compteur 17h | D17: 3430 | E17: 9270 | F17: 889 | G17: 783 | H17: 4771 | I17: 7429 | J17: 62 | K17: 0 | L17: 142 | M17: 0 | N17: 0 | O17: 0 | P17: 1601 | Q17: 605 | R17: 14157 | S17: 1952
B18: Enregistrement | C18: 9h
C19: 16h
B20: Identification
B21: Propreté des tables de contrôle
B22: Rangement des outils de contrôle
B23: Existance de l'OF
B24: Affutage | T24: =+COUNTA(D24:S24) -> 0
B25: Maintenance
B26: Nombre des NC poubelle
B27: Nombre des NC à retoucher
B28: Machine pour retouche
B29: Panne
B30: Cout pièces de rechange | T30: =SUM(D30:S30) -> 0
B31: prix de revient pièce | D31: =IFERROR(VLOOKUP(D14,'Prix de revient'!$A:$D,4,0),0) -> 0.5056 | E31: =IFERROR(VLOOKUP(E14,'Prix de revient'!$A:$D,4,0),0) -> 0 | F31: =IFERROR(VLOOKUP(F14,'Prix de revient'!$A:$D,4,0),0) -> 1.2482 | G31: =IFERROR(VLOOKUP(G14,'Prix de revient'!$A:$D,4,0),0) -> 0 | H31: =IFERROR(VLOOKUP(H14,'Prix de revient'!$A:$D,4,0),0) -> 0 | I31: =IFERROR(VLOOKUP(I14,'Prix de revient'!$A:$D,4,0),0) -> 0 | J31: =IFERROR(VLOOKUP(J14,'Prix de revient'!$A:$D,4,0),0) -> 0 | K31: =IFERROR(VLOOKUP(K14,'Prix de revient'!$A:$D,4,0),0) -> 0 | L31: =IFERROR(VLOOKUP(L14,'Prix de revient'!$A:$D,4,0),0) -> 5.372 | M31: =IFERROR(VLOOKUP(M14,'Prix de revient'!$A:$D,4,0),0) -> 0 | N31: =IFERROR(VLOOKUP(N14,'Prix de revient'!$A:$D,4,0),0) -> 0 | O31: =IFERROR(VLOOKUP(O14,'Prix de revient'!$A:$D,4,0),0) -> 0 | P31: =IFERROR(VLOOKUP(P14,'Prix de revient'!$A:$D,4,0),0) -> 0 | Q31: =IFERROR(VLOOKUP(Q14,'Prix de revient'!$A:$D,4,0),0) -> 0 | R31: =IFERROR(VLOOKUP(R14,'Prix de revient'!$A:$D,4,0),0) -> 0 | S31: =IFERROR(VLOOKUP(S14,'Prix de revient'!$A:$D,4,0),0) -> 3.26744
B32: coût de rebuts | D32: =D26*D31 -> 0 | E32: =E26*E31 -> 0 | F32: 0 | G32: 0 | H32: 0 | I32: 0 | J32: 0 | K32: 0 | L32: 0 | M32: 0 | N32: 0 | O32: 0 | P32: 0 | Q32: 0 | R32: 0 | S32: 0 | T32: =SUM(D32:S32) -> 0
B33: gestion de modification
C41: Clients | D41: Audit | E41: Réclamation | F41: Avoir | H41: Fournisseurs/ sous-traitants | I41: Réception de matiere | J41: Probleme qualité | L41: Les formations professionnelles | M41: Cout | N41: Chiffrage décliné | O41: Actions à suivre | Q41: Article qui a subit un tri | R41: durée du tri | S41: Nombre des pieces non-conformes | T41: ouvrier faisant le tri | U41: cout par tri | W41: Article qui a subit la reprise | X41: durée de la reprise | Y41: opérateur faisant la reprise | Z41: coût de reprise | AD41: Machine | AE41: article | AF41: gamme | AG41: objet de la modification
U42: =IF(R42="","",R42*VLOOKUP(T42,'cout opérateur machines'!A1:B8,2,0)) ->  | Z42: =X42*8 -> 0
U43: =IF(R43="","",R43*VLOOKUP(T43,'cout opérateur machines'!A2:B9,2,0)) ->  | Z43: =X43*8 -> 0
U44: =IF(R44="","",R44*VLOOKUP(T44,'cout opérateur machines'!A3:B10,2,0)) ->  | Z44: 0
U45: =IF(R45="","",R45*VLOOKUP(T45,'cout opérateur machines'!A4:B11,2,0)) ->  | Z45: 0
U46: =IF(R46="","",R46*VLOOKUP(T46,'cout opérateur machines'!A5:B12,2,0)) ->  | Z46: 0
U47: =IF(R47="","",R47*VLOOKUP(T47,'cout opérateur machines'!A6:B13,2,0)) ->  | Z47: 0
E48: =COUNTA(E42:E47) -> 0 | F48: =SUM(F42:F47) -> 0 | M48: =SUM(M42:M47) -> 0 | N48: causes de refus | S48: cout total du jour | U48: =SUM(U42:U47) -> 0 | Z48: 0
H49: envoi des réclamations F/ S-T | I49: réponse F/ S-T | J49: alerte | Z49: =SUM(Z42:Z48) -> 0
C50: dans le cas d'une réclamation | J50: =IF(J42="","",IF(H50=0," réclamation non traitée",IF(I50=0, "veuillez contacter le F/ S-T par téléphone",""))) ->  | S50: N° mois | U50: 4
C51: nombre de pièces NC | J51: =IF(J43="","",IF(H51=0," réclamation non traitée",IF(I51=0, "veuillez contacter le F/ S-T par téléphone",""))) -> 
C52: nombre de pièces par carton
C53: coût de transport par carton
C54: nombre de cartons renvoyés
C55: temps de tri
C56: coût horaire de tri
C57: temps de retouche
C58: coût horaire de retouche
C59: temps de traitement de la réclamation
C60: coût horaire de traitement
C61: coût total | D61: =IFERROR(((D51/D52)*D53)+D54*D53+D55*D56+D57*D58+D59*D60,"") -> 

Sheet 13-4-22
E2: Rapport journalier | R2: Code:DAS-SMQ-24
R3: Date: 27/12/2019
R4: Version:01
R5: Page:1
D12: A | E12: B | F12: C | G12: D | H12: E | I12: F | J12: M | K12: N | L12: O | M12: P | N12: I | O12: L | P12: K | Q12: J | R12: G | S12: H
B13: Machine | D13: SST16 | E13: SB16 | F13: BIGLIA 301 SM | G13: BIGLIA 42 S2M bitourelle | H13: L32 | I13: TSUGAMI | J13: MORI SEIKI 3 axes | K13: MORI SEIKI 5 axes | L13: HARDING | M13: KITAMURA | N13: MULTIBROCHE | O13: NAKAMURA | P13: TOUR WEILER
B14: Référence | D14: 200101 | E14: G022-CP1 | F14: 512520 | G14: G027 | H14: 200200-2022 | I14: i097-tsughami | J14: i004 | K14: - | L14: 480387 | M14: 9518-maj | N14: MPS000300 | O14: I007 | P14: 199400-a | Q14: 4-7891 | R14: 68.0815 | S14: 200300
B15: Désignation | D15: AXE D'ARTICULATION | E15: AXE D15-M11*100 maj-c | F15: INSERTO MANOPOLA INOX M8- | G15: GOUJON M14*1.5L=52 | H15: Embout de tige-2022 | I15: ECROU DE ROUE FORD RANGER- finition rayon | J15: Ecrou suspension- surfacage | K15: Arrêt | L15: Evacuation 2 et 3 | M15: USINAGE BORNE RBD-1 | N15: raccord HEX 17 | O15: ECROU SEMI ARBRE ISUZU | P15: Tirant acier D6 maj-c | Q15: ANNEAU BRUTE 32*42*20 chuttes | R15: Buse droite à collerette Ø8 M445 FRD | S15: TIGE DE PISTON-maj ca
B16: Compteur 8h | D16: 1336 | E16: 8405 | F16: 75 | G16: 200 | H16: 4771 | I16: 0 | J16: 9 | K16: 0 | L16: 140 | M16: 6972 | N16: 0 | O16: 0 | P16: 601 | Q16: 1163 | R16: 13093 | S16: 1424
B17: Compteur 17h | D17: 2385 | E17: 8845 | F17: 547 | G17: 510 | H17: 4771 | I17: 0 | J17: 32 | K17: 0 | L17: 142 | M17: 6972 | N17: 0 | O17: 0 | P17: 1249 | Q17: 1527 | R17: 13592 | S17: 1689
B18: Enregistrement | C18: 9h
C19: 16h
B20: Identification
B21: Propreté des tables de contrôle
B22: Rangement des outils de contrôle
B23: Existance de l'OF
B24: Affutage | T24: =+COUNTA(D24:S24) -> 0
B25: Maintenance
B26: Nombre des NC poubelle
B27: Nombre des NC à retoucher
B28: Machine pour retouche
B29: Panne
B30: Cout pièces de rechange | T30: =SUM(D30:S30) -> 0
B31: prix de revient pièce | D31: =IFERROR(VLOOKUP(D14,'Prix de revient'!$A:$D,4,0),0) -> 0.5056 | E31: =IFERROR(VLOOKUP(E14,'Prix de revient'!$A:$D,4,0),0) -> 0 | F31: =IFERROR(VLOOKUP(F14,'Prix de revient'!$A:$D,4,0),0) -> 1.2482 | G31: =IFERROR(VLOOKUP(G14,'Prix de revient'!$A:$D,4,0),0) -> 0 | H31: =IFERROR(VLOOKUP(H14,'Prix de revient'!$A:$D,4,0),0) -> 0 | I31: =IFERROR(VLOOKUP(I14,'Prix de revient'!$A:$D,4,0),0) -> 0 | J31: =IFERROR(VLOOKUP(J14,'Prix de revient'!$A:$D,4,0),0) -> 0 | K31: =IFERROR(VLOOKUP(K14,'Prix de revient'!$A:$D,4,0),0) -> 0 | L31: =IFERROR(VLOOKUP(L14,'Prix de revient'!$A:$D,4,0),0) -> 5.372 | M31: =IFERROR(VLOOKUP(M14,'Prix de revient'!$A:$D,4,0),0) -> 0 | N31: =IFERROR(VLOOKUP(N14,'Prix de revient'!$A:$D,4,0),0) -> 0 | O31: =IFERROR(VLOOKUP(O14,'Prix de revient'!$A:$D,4,0),0) -> 0 | P31: =IFERROR(VLOOKUP(P14,'Prix de revient'!$A:$D,4,0),0) -> 0 | Q31: =IFERROR(VLOOKUP(Q14,'Prix de revient'!$A:$D,4,0),0) -> 0 | R31: =IFERROR(VLOOKUP(R14,'Prix de revient'!$A:$D,4,0),0) -> 0 | S31: =IFERROR(VLOOKUP(S14,'Prix de revient'!$A:$D,4,0),0) -> 3.26744
B32: coût de rebuts | D32: =D26*D31 -> 0 | E32: =E26*E31 -> 0 | F32: 0 | G32: 0 | H32: 0 | I32: 0 | J32: 0 | K32: 0 | L32: 0 | M32: 0 | N32: 0 | O32: 0 | P32: 0 | Q32: 0 | R32: 0 | S32: 0 | T32: =SUM(D32:S32) -> 0
B33: gestion de modification
C41: Clients | D41: Audit | E41: Réclamation | F41: Avoir | H41: Fournisseurs/ sous-traitants | I41: Réception de matiere | J41: Probleme qualité | L41: Les formations professionnelles | M41: Cout | N41: Chiffrage décliné | O41: Actions à suivre | Q41: Article qui a subit un tri | R41: durée du tri | S41: Nombre des pieces non-conformes | T41: ouvrier faisant le tri | U41: cout par tri | W41: Article qui a subit la reprise | X41: durée de la reprise | Y41: opérateur faisant la reprise | Z41: coût de reprise | AD41: Machine | AE41: article | AF41: gamme | AG41: objet de la modification
U42: =IF(R42="","",R42*VLOOKUP(T42,'cout opérateur machines'!A1:B8,2,0)) ->  | Z42: =X42*8 -> 0
U43: =IF(R43="","",R43*VLOOKUP(T43,'cout opérateur machines'!A2:B9,2,0)) ->  | Z43: =X43*8 -> 0
U44: =IF(R44="","",R44*VLOOKUP(T44,'cout opérateur machines'!A3:B10,2,0)) ->  | Z44: 0
U45: =IF(R45="","",R45*VLOOKUP(T45,'cout opérateur machines'!A4:B11,2,0)) ->  | Z45: 0
U46: =IF(R46="","",R46*VLOOKUP(T46,'cout opérateur machines'!A5:B12,2,0)) ->  | Z46: 0
U47: =IF(R47="","",R47*VLOOKUP(T47,'cout opérateur machines'!A6:B13,2,0)) ->  | Z47: 0
E48: =COUNTA(E42:E47) -> 0 | F48: =SUM(F42:F47) -> 0 | M48: =SUM(M42:M47) -> 0 | N48: causes de refus | S48: cout total du jour | U48: =SUM(U42:U47) -> 0 | Z48: 0
H49: envoi des réclamations F/ S-T | I49: réponse F/ S-T | J49: alerte | Z49: =SUM(Z42:Z48) -> 0
C50: dans le cas d'une réclamation | J50: =IF(J42="","",IF(H50=0," réclamation non traitée",IF(I50=0, "veuillez contacter le F/ S-T par téléphone",""))) ->  | S50: N° mois | U50: 4
C51: nombre de pièces NC | J51: =IF(J43="","",IF(H51=0," réclamation non traitée",IF(I51=0, "veuillez contacter le F/ S-T par téléphone",""))) -> 
C52: nombre de pièces par carton
C53: coût de transport par carton
C54: nombre de cartons renvoyés
C55: temps de tri
C56: coût horaire de tri
C57: temps de retouche
C58: coût horaire de retouche
C59: temps de traitement de la réclamation
C60: coût horaire de traitement
C61: coût total | D61: =IFERROR(((D51/D52)*D53)+D54*D53+D55*D56+D57*D58+D59*D60,"") -> 

Sheet 12-4-22
E2: Rapport journalier | R2: Code:DAS-SMQ-24
R3: Date: 27/12/2019
R4: Version:01
R5: Page:1
D12: A | E12: B | F12: C | G12: D | H12: E | I12: F | J12: M | K12: N | L12: O | M12: P | N12: I | O12: L | P12: K | Q12: J | R12: G | S12: H
B13: Machine | D13: SST16 | E13: SB16 | F13: BIGLIA 301 SM | G13: BIGLIA 42 S2M bitourelle | H13: L32 | I13: TSUGAMI | J13: MORI SEIKI 3 axes | K13: MORI SEIKI 5 axes | L13: HARDING | M13: KITAMURA | N13: MULTIBROCHE | O13: NAKAMURA | P13: TOUR WEILER
B14: Référence | D14: 200101 | E14: G022-CP1 | F14: 512520 | G14: G027 | H14: 200200-2022 | I14: i097-tsughami | J14: i004 | K14: - | L14: 480387 | M14: 9518-maj | N14: MPS000300 | O14: I007 | P14: 199400-a | Q14: 4-7891 | R14: 68.0815 | S14: 200300
B15: Désignation | D15: AXE D'ARTICULATION | E15: AXE D15-M11*100 maj-c | F15: INSERTO MANOPOLA INOX M8- | G15: GOUJON M14*1.5L=52 | H15: Embout de tige-2022 | I15: ECROU DE ROUE FORD RANGER- finition rayon | J15: Ecrou suspension- surfacage | K15: Arrêt | L15: Evacuation 2 et 3 | M15: USINAGE BORNE RBD-1 | N15: raccord HEX 17 | O15: ECROU SEMI ARBRE ISUZU | P15: Tirant acier D6 maj-c | Q15: ANNEAU BRUTE 32*42*20 chuttes | R15: Buse droite à collerette Ø8 M445 FRD | S15: TIGE DE PISTON-maj ca
B16: Compteur 8h | D16: 0 | E16: 8046 | F16: 0 | G16: 0 | H16: 4771 | I16: 0 | J16: 0 | K16: 0 | L16: 132 | M16: 6822 | N16: 0 | O16: 0 | P16: 80 | Q16: 907 | R16: 12573 | S16: 1139
B17: Compteur 17h | D17: 1336 | E17: 8405 | F17: 75 | G17: 200 | H17: 4771 | I17: 0 | J17: 9 | K17: 0 | L17: 140 | M17: 6972 | N17: 0 | O17: 0 | P17: 601 | Q17: 1163 | R17: 13093 | S17: 1424
B18: Enregistrement | C18: 9h
C19: 16h
B20: Identification
B21: Propreté des tables de contrôle
B22: Rangement des outils de contrôle
B23: Existance de l'OF
B24: Affutage | T24: =+COUNTA(D24:S24) -> 0
B25: Maintenance
B26: Nombre des NC poubelle
B27: Nombre des NC à retoucher
B28: Machine pour retouche
B29: Panne
B30: Cout pièces de rechange | T30: =SUM(D30:S30) -> 0
B31: prix de revient pièce | D31: =IFERROR(VLOOKUP(D14,'Prix de revient'!$A:$D,4,0),0) -> 0.5056 | E31: =IFERROR(VLOOKUP(E14,'Prix de revient'!$A:$D,4,0),0) -> 0 | F31: =IFERROR(VLOOKUP(F14,'Prix de revient'!$A:$D,4,0),0) -> 1.2482 | G31: =IFERROR(VLOOKUP(G14,'Prix de revient'!$A:$D,4,0),0) -> 0 | H31: =IFERROR(VLOOKUP(H14,'Prix de revient'!$A:$D,4,0),0) -> 0 | I31: =IFERROR(VLOOKUP(I14,'Prix de revient'!$A:$D,4,0),0) -> 0 | J31: =IFERROR(VLOOKUP(J14,'Prix de revient'!$A:$D,4,0),0) -> 0 | K31: =IFERROR(VLOOKUP(K14,'Prix de revient'!$A:$D,4,0),0) -> 0 | L31: =IFERROR(VLOOKUP(L14,'Prix de revient'!$A:$D,4,0),0) -> 5.372 | M31: =IFERROR(VLOOKUP(M14,'Prix de revient'!$A:$D,4,0),0) -> 0 | N31: =IFERROR(VLOOKUP(N14,'Prix de revient'!$A:$D,4,0),0) -> 0 | O31: =IFERROR(VLOOKUP(O14,'Prix de revient'!$A:$D,4,0),0) -> 0 | P31: =IFERROR(VLOOKUP(P14,'Prix de revient'!$A:$D,4,0),0) -> 0 | Q31: =IFERROR(VLOOKUP(Q14,'Prix de revient'!$A:$D,4,0),0) -> 0 | R31: =IFERROR(VLOOKUP(R14,'Prix de revient'!$A:$D,4,0),0) -> 0 | S31: =IFERROR(VLOOKUP(S14,'Prix de revient'!$A:$D,4,0),0) -> 3.26744
B32: coût de rebuts | D32: =D26*D31 -> 0 | E32: =E26*E31 -> 0 | F32: 0 | G32: 0 | H32: 0 | I32: 0 | J32: 0 | K32: 0 | L32: 0 | M32: 0 | N32: 0 | O32: 0 | P32: 0 | Q32: 0 | R32: 0 | S32: 0 | T32: =SUM(D32:S32) -> 0
B33: gestion de modification
C41: Clients | D41: Audit | E41: Réclamation | F41: Avoir | H41: Fournisseurs/ sous-traitants | I41: Réception de matiere | J41: Probleme qualité | L41: Les formations professionnelles | M41: Cout | N41: Chiffrage décliné | O41: Actions à suivre | Q41: Article qui a subit un tri | R41: durée du tri | S41: Nombre des pieces non-conformes | T41: ouvrier faisant le tri | U41: cout par tri | W41: Article qui a subit la reprise | X41: durée de la reprise | Y41: opérateur faisant la reprise | Z41: coût de reprise | AD41: Machine | AE41: article | AF41: gamme | AG41: objet de la modification
U42: =IF(R42="","",R42*VLOOKUP(T42,'cout opérateur machines'!A1:B8,2,0)) ->  | Z42: =X42*8 -> 0
U43: =IF(R43="","",R43*VLOOKUP(T43,'cout opérateur machines'!A2:B9,2,0)) ->  | Z43: =X43*8 -> 0
U44: =IF(R44="","",R44*VLOOKUP(T44,'cout opérateur machines'!A3:B10,2,0)) ->  | Z44: 0
U45: =IF(R45="","",R45*VLOOKUP(T45,'cout opérateur machines'!A4:B11,2,0)) ->  | Z45: 0
U46: =IF(R46="","",R46*VLOOKUP(T46,'cout opérateur machines'!A5:B12,2,0)) ->  | Z46: 0
U47: =IF(R47="","",R47*VLOOKUP(T47,'cout opérateur machines'!A6:B13,2,0)) ->  | Z47: 0
E48: =COUNTA(E42:E47) -> 0 | F48: =SUM(F42:F47) -> 0 | M48: =SUM(M42:M47) -> 0 | N48: causes de refus | S48: cout total du jour | U48: =SUM(U42:U47) -> 0 | Z48: 0
H49: envoi des réclamations F/ S-T | I49: réponse F/ S-T | J49: alerte | Z49: =SUM(Z42:Z48) -> 0
C50: dans le cas d'une réclamation | J50: =IF(J42="","",IF(H50=0," réclamation non traitée",IF(I50=0, "veuillez contacter le F/ S-T par téléphone",""))) ->  | S50: N° mois | U50: 4
C51: nombre de pièces NC | J51: =IF(J43="","",IF(H51=0," réclamation non traitée",IF(I51=0, "veuillez contacter le F/ S-T par téléphone",""))) -> 
C52: nombre de pièces par carton
C53: coût de transport par carton
C54: nombre de cartons renvoyés
C55: temps de tri
C56: coût horaire de tri
C57: temps de retouche
C58: coût horaire de retouche
C59: temps de traitement de la réclamation
C60: coût horaire de traitement
C61: coût total | D61: =IFERROR(((D51/D52)*D53)+D54*D53+D55*D56+D57*D58+D59*D60,"") -> 

Sheet 11-4-22
E2: Rapport journalier | R2: Code:DAS-SMQ-24
R3: Date: 27/12/2019
R4: Version:01
R5: Page:1
D12: A | E12: B | F12: C | G12: D | H12: E | I12: F | J12: M | K12: N | L12: O | M12: P | N12: I | O12: L | P12: K | Q12: J | R12: G | S12: H
B13: Machine | D13: SST16 | E13: SB16 | F13: BIGLIA 301 SM | G13: BIGLIA 42 S2M bitourelle | H13: L32 | I13: TSUGAMI | J13: MORI SEIKI 3 axes | K13: MORI SEIKI 5 axes | L13: HARDING | M13: KITAMURA | N13: MULTIBROCHE | O13: NAKAMURA | P13: TOUR WEILER
B14: Référence | D14: - | E14: G022-CP1 | F14: 4-8344 | G14: MI018-B42 | H14: 200200-2022 | I14: i097-tsughami | J14: I110-01-004 | K14: - | L14: 480387 | M14: 9518-maj | N14: MPS000300 | O14: I007 | P14: 199400-a | Q14: 4-7891 | R14: 68.0815 | S14: 200300
B15: Désignation | D15: Arrêt | E15: AXE D15-M11*100 maj-c | F15: Bague Galvanisée 12*27*39.5 | G15: GOUJON DE ROUE MITSIBITCHI GM-SUR-B42 | H15: Embout de tige-2022 | I15: ECROU DE ROUE FORD RANGER- finition rayon | J15: INSERT LEVIER SURMOULEE 345833-01 - fraisage | K15: Arrêt | L15: Evacuation 2 et 3 | M15: USINAGE BORNE RBD-1 | N15: raccord HEX 17 | O15: ECROU SEMI ARBRE ISUZU | P15: Tirant acier D6 maj-c | Q15: ANNEAU BRUTE 32*42*20 chuttes | R15: Buse droite à collerette Ø8 M445 FRD | S15: TIGE DE PISTON-maj ca
B16: Compteur 8h | D16: 0 | E16: 7641 | F16: 0 | G16: 10732 | H16: 4771 | I16: 0 | J16: 1225 | K16: 0 | L16: 117 | M16: 6635 | N16: 0 | O16: 2017 | P16: 0 | Q16: 602 | R16: 11968 | S16: 864
B17: Compteur 17h | D17: 0 | E17: 8046 | F17: 266 | G17: 11884 | H17: 4771 | I17: 0 | J17: 1253 | K17: 0 | L17: 132 | M17: 6822 | N17: 0 | O17: 2183 | P17: 80 | Q17: 907 | R17: 12573 | S17: 1139
B18: Enregistrement | C18: 9h
C19: 16h
B20: Identification
B21: Propreté des tables de contrôle
B22: Rangement des outils de contrôle
B23: Existance de l'OF
B24: Affutage | T24: =+COUNTA(D24:S24) -> 0
B25: Maintenance
B26: Nombre des NC poubelle
B27: Nombre des NC à retoucher
B28: Machine pour retouche
B29: Panne
B30: Cout pièces de rechange | T30: =SUM(D30:S30) -> 0
B31: prix de revient pièce | D31: =IFERROR(VLOOKUP(D14,'Prix de revient'!$A:$D,4,0),0) -> 0 | E31: =IFERROR(VLOOKUP(E14,'Prix de revient'!$A:$D,4,0),0) -> 0 | F31: =IFERROR(VLOOKUP(F14,'Prix de revient'!$A:$D,4,0),0) -> 0 | G31: =IFERROR(VLOOKUP(G14,'Prix de revient'!$A:$D,4,0),0) -> 0 | H31: =IFERROR(VLOOKUP(H14,'Prix de revient'!$A:$D,4,0),0) -> 0 | I31: =IFERROR(VLOOKUP(I14,'Prix de revient'!$A:$D,4,0),0) -> 0 | J31: =IFERROR(VLOOKUP(J14,'Prix de revient'!$A:$D,4,0),0) -> 2.1488 | K31: =IFERROR(VLOOKUP(K14,'Prix de revient'!$A:$D,4,0),0) -> 0 | L31: =IFERROR(VLOOKUP(L14,'Prix de revient'!$A:$D,4,0),0) -> 5.372 | M31: =IFERROR(VLOOKUP(M14,'Prix de revient'!$A:$D,4,0),0) -> 0 | N31: =IFERROR(VLOOKUP(N14,'Prix de revient'!$A:$D,4,0),0) -> 0 | O31: =IFERROR(VLOOKUP(O14,'Prix de revient'!$A:$D,4,0),0) -> 0 | P31: =IFERROR(VLOOKUP(P14,'Prix de revient'!$A:$D,4,0),0) -> 0 | Q31: =IFERROR(VLOOKUP(Q14,'Prix de revient'!$A:$D,4,0),0) -> 0 | R31: =IFERROR(VLOOKUP(R14,'Prix de revient'!$A:$D,4,0),0) -> 0 | S31: =IFERROR(VLOOKUP(S14,'Prix de revient'!$A:$D,4,0),0) -> 3.26744
B32: coût de rebuts | D32: =D26*D31 -> 0 | E32: =E26*E31 -> 0 | F32: 0 | G32: 0 | H32: 0 | I32: 0 | J32: 0 | K32: 0 | L32: 0 | M32: 0 | N32: 0 | O32: 0 | P32: 0 | Q32: 0 | R32: 0 | S32: 0 | T32: =SUM(D32:S32) -> 0
B33: gestion de modification
C41: Clients | D41: Audit | E41: Réclamation | F41: Avoir | H41: Fournisseurs/ sous-traitants | I41: Réception de matiere | J41: Probleme qualité | L41: Les formations professionnelles | M41: Cout | N41: Chiffrage décliné | O41: Actions à suivre | Q41: Article qui a subit un tri | R41: durée du tri | S41: Nombre des pieces non-conformes | T41: ouvrier faisant le tri | U41: cout par tri | W41: Article qui a subit la reprise | X41: durée de la reprise | Y41: opérateur faisant la reprise | Z41: coût de reprise | AD41: Machine | AE41: article | AF41: gamme | AG41: objet de la modification
U42: =IF(R42="","",R42*VLOOKUP(T42,'cout opérateur machines'!A1:B8,2,0)) ->  | Z42: =X42*8 -> 0
U43: =IF(R43="","",R43*VLOOKUP(T43,'cout opérateur machines'!A2:B9,2,0)) ->  | Z43: =X43*8 -> 0
U44: =IF(R44="","",R44*VLOOKUP(T44,'cout opérateur machines'!A3:B10,2,0)) ->  | Z44: 0
U45: =IF(R45="","",R45*VLOOKUP(T45,'cout opérateur machines'!A4:B11,2,0)) ->  | Z45: 0
U46: =IF(R46="","",R46*VLOOKUP(T46,'cout opérateur machines'!A5:B12,2,0)) ->  | Z46: 0
U47: =IF(R47="","",R47*VLOOKUP(T47,'cout opérateur machines'!A6:B13,2,0)) ->  | Z47: 0
E48: =COUNTA(E42:E47) -> 0 | F48: =SUM(F42:F47) -> 0 | M48: =SUM(M42:M47) -> 0 | N48: causes de refus | S48: cout total du jour | U48: =SUM(U42:U47) -> 0 | Z48: 0
H49: envoi des réclamations F/ S-T | I49: réponse F/ S-T | J49: alerte | Z49: =SUM(Z42:Z48) -> 0
C50: dans le cas d'une réclamation | J50: =IF(J42="","",IF(H50=0," réclamation non traitée",IF(I50=0, "veuillez contacter le F/ S-T par téléphone",""))) ->  | S50: N° mois | U50: 4
C51: nombre de pièces NC | J51: =IF(J43="","",IF(H51=0," réclamation non traitée",IF(I51=0, "veuillez contacter le F/ S-T par téléphone",""))) -> 
C52: nombre de pièces par carton
C53: coût de transport par carton
C54: nombre de cartons renvoyés
C55: temps de tri
C56: coût horaire de tri
C57: temps de retouche
C58: coût horaire de retouche
C59: temps de traitement de la réclamation
C60: coût horaire de traitement
C61: coût total | D61: =IFERROR(((D51/D52)*D53)+D54*D53+D55*D56+D57*D58+D59*D60,"") -> 

Sheet 09-4-22
E2: Rapport journalier | R2: Code:DAS-SMQ-24
R3: Date: 27/12/2019
R4: Version:01
R5: Page:1
D12: A | E12: B | F12: C | G12: D | H12: E | I12: F | J12: M | K12: N | L12: O | M12: P | N12: I | O12: L | P12: K | Q12: J | R12: G | S12: H
B13: Machine | D13: SST16 | E13: SB16 | F13: BIGLIA 301 SM | G13: BIGLIA 42 S2M bitourelle | H13: L32 | I13: TSUGAMI | J13: MORI SEIKI 3 axes | K13: MORI SEIKI 5 axes | L13: HARDING | M13: KITAMURA | N13: MULTIBROCHE | O13: NAKAMURA | P13: TOUR WEILER
B14: Référence | D14: - | E14: G022-CP1 | F14: 4-8025 | G14: MI018-B42 | H14: 200200-2022 | I14: i097-tsughami | J14: I110-01-004 | K14: - | L14: 480387 | M14: 9518-maj | N14: MPS000300 | O14: I007 | P14: 0-5280-1 | Q14: 4-7891 | R14: 68.0815 | S14: 200300
B15: Désignation | D15: Arrêt | E15: AXE D15-M11*100 maj-c | F15: BAGUE GALVANISEE 12*24*40 | G15: GOUJON DE ROUE MITSIBITCHI GM-SUR-B42 | H15: Embout de tige-2022 | I15: ECROU DE ROUE FORD RANGER- finition rayon | J15: INSERT LEVIER SURMOULEE 345833-01 - fraisage | K15: Arrêt | L15: Evacuation 2 et 3 | M15: USINAGE BORNE RBD-1 | N15: raccord HEX 17 | O15: ECROU SEMI ARBRE ISUZU | P15: Bague Galvanisée 12*20*40 -chutes | Q15: ANNEAU BRUTE 32*42*20 chuttes | R15: Buse droite à collerette Ø8 M445 FRD | S15: TIGE DE PISTON-maj ca
B16: Compteur 8h | D16: 0 | E16: 7262 | F16: 0 | G16: 10418 | H16: 4771 | I16: 0 | J16: 1204 | K16: 0 | L16: 102 | M16: 6420 | N16: 0 | O16: 1912 | P16: 300 | Q16: 345 | R16: 11430 | S16: 621
B17: Compteur 17h | D17: 0 | E17: 7641 | F17: 330 | G17: 10732 | H17: 4771 | I17: 0 | J17: 1225 | K17: 0 | L17: 117 | M17: 6635 | N17: 0 | O17: 2017 | P17: 920 | Q17: 602 | R17: 11968 | S17: 864
B18: Enregistrement | C18: 9h
C19: 16h
B20: Identification
B21: Propreté des tables de contrôle
B22: Rangement des outils de contrôle
B23: Existance de l'OF
B24: Affutage | T24: =+COUNTA(D24:S24) -> 0
B25: Maintenance
B26: Nombre des NC poubelle
B27: Nombre des NC à retoucher
B28: Machine pour retouche
B29: Panne
B30: Cout pièces de rechange | T30: =SUM(D30:S30) -> 0
B31: prix de revient pièce | D31: =IFERROR(VLOOKUP(D14,'Prix de revient'!$A:$D,4,0),0) -> 0 | E31: =IFERROR(VLOOKUP(E14,'Prix de revient'!$A:$D,4,0),0) -> 0 | F31: =IFERROR(VLOOKUP(F14,'Prix de revient'!$A:$D,4,0),0) -> 0 | G31: =IFERROR(VLOOKUP(G14,'Prix de revient'!$A:$D,4,0),0) -> 0 | H31: =IFERROR(VLOOKUP(H14,'Prix de revient'!$A:$D,4,0),0) -> 0 | I31: =IFERROR(VLOOKUP(I14,'Prix de revient'!$A:$D,4,0),0) -> 0 | J31: =IFERROR(VLOOKUP(J14,'Prix de revient'!$A:$D,4,0),0) -> 2.1488 | K31: =IFERROR(VLOOKUP(K14,'Prix de revient'!$A:$D,4,0),0) -> 0 | L31: =IFERROR(VLOOKUP(L14,'Prix de revient'!$A:$D,4,0),0) -> 5.372 | M31: =IFERROR(VLOOKUP(M14,'Prix de revient'!$A:$D,4,0),0) -> 0 | N31: =IFERROR(VLOOKUP(N14,'Prix de revient'!$A:$D,4,0),0) -> 0 | O31: =IFERROR(VLOOKUP(O14,'Prix de revient'!$A:$D,4,0),0) -> 0 | P31: =IFERROR(VLOOKUP(P14,'Prix de revient'!$A:$D,4,0),0) -> 0 | Q31: =IFERROR(VLOOKUP(Q14,'Prix de revient'!$A:$D,4,0),0) -> 0 | R31: =IFERROR(VLOOKUP(R14,'Prix de revient'!$A:$D,4,0),0) -> 0 | S31: =IFERROR(VLOOKUP(S14,'Prix de revient'!$A:$D,4,0),0) -> 3.26744
B32: coût de rebuts | D32: =D26*D31 -> 0 | E32: =E26*E31 -> 0 | F32: 0 | G32: 0 | H32: 0 | I32: 0 | J32: 0 | K32: 0 | L32: 0 | M32: 0 | N32: 0 | O32: 0 | P32: 0 | Q32: 0 | R32: 0 | S32: 0 | T32: =SUM(D32:S32) -> 0
B33: gestion de modification
C41: Clients | D41: Audit | E41: Réclamation | F41: Avoir | H41: Fournisseurs/ sous-traitants | I41: Réception de matiere | J41: Probleme qualité | L41: Les formations professionnelles | M41: Cout | N41: Chiffrage décliné | O41: Actions à suivre | Q41: Article qui a subit un tri | R41: durée du tri | S41: Nombre des pieces non-conformes | T41: ouvrier faisant le tri | U41: cout par tri | W41: Article qui a subit la reprise | X41: durée de la reprise | Y41: opérateur faisant la reprise | Z41: coût de reprise | AD41: Machine | AE41: article | AF41: gamme | AG41: objet de la modification
U42: =IF(R42="","",R42*VLOOKUP(T42,'cout opérateur machines'!A1:B8,2,0)) ->  | Z42: =X42*8 -> 0
U43: =IF(R43="","",R43*VLOOKUP(T43,'cout opérateur machines'!A2:B9,2,0)) ->  | Z43: =X43*8 -> 0
U44: =IF(R44="","",R44*VLOOKUP(T44,'cout opérateur machines'!A3:B10,2,0)) ->  | Z44: 0
U45: =IF(R45="","",R45*VLOOKUP(T45,'cout opérateur machines'!A4:B11,2,0)) ->  | Z45: 0
U46: =IF(R46="","",R46*VLOOKUP(T46,'cout opérateur machines'!A5:B12,2,0)) ->  | Z46: 0
U47: =IF(R47="","",R47*VLOOKUP(T47,'cout opérateur machines'!A6:B13,2,0)) ->  | Z47: 0
E48: =COUNTA(E42:E47) -> 0 | F48: =SUM(F42:F47) -> 0 | M48: =SUM(M42:M47) -> 0 | N48: causes de refus | S48: cout total du jour | U48: =SUM(U42:U47) -> 0 | Z48: 0
H49: envoi des réclamations F/ S-T | I49: réponse F/ S-T | J49: alerte | Z49: =SUM(Z42:Z48) -> 0
C50: dans le cas d'une réclamation | J50: =IF(J42="","",IF(H50=0," réclamation non traitée",IF(I50=0, "veuillez contacter le F/ S-T par téléphone",""))) ->  | S50: N° mois | U50: 4
C51: nombre de pièces NC | J51: =IF(J43="","",IF(H51=0," réclamation non traitée",IF(I51=0, "veuillez contacter le F/ S-T par téléphone",""))) -> 
C52: nombre de pièces par carton
C53: coût de transport par carton
C54: nombre de cartons renvoyés
C55: temps de tri
C56: coût horaire de tri
C57: temps de retouche
C58: coût horaire de retouche
C59: temps de traitement de la réclamation
C60: coût horaire de traitement
C61: coût total | D61: =IFERROR(((D51/D52)*D53)+D54*D53+D55*D56+D57*D58+D59*D60,"") -> 

Sheet 08-4-22
E2: Rapport journalier | R2: Code:DAS-SMQ-24
R3: Date: 27/12/2019
R4: Version:01
R5: Page:1
D12: A | E12: B | F12: C | G12: D | H12: E | I12: F | J12: M | K12: N | L12: O | M12: P | N12: I | O12: L | P12: K | Q12: J | R12: G | S12: H
B13: Machine | D13: SST16 | E13: SB16 | F13: BIGLIA 301 SM | G13: BIGLIA 42 S2M bitourelle | H13: L32 | I13: TSUGAMI | J13: MORI SEIKI 3 axes | K13: MORI SEIKI 5 axes | L13: HARDING | M13: KITAMURA | N13: MULTIBROCHE | O13: NAKAMURA | P13: TOUR WEILER
B14: Référence | D14: - | E14: G022-CP1 | F14: 0-5928A-1 | G14: MI018-B42 | H14: 200200-2022 | I14: i097-tsughami | J14: I110-01-004 | K14: - | L14: 480387 | M14: 9518-maj | N14: MPS000300 | O14: I007 | P14: 0-5280-1 | Q14: 4-7891 | R14: 68.0815 | S14: 200300
B15: Désignation | D15: Arrêt | E15: AXE D15-M11*100 maj-c | F15: Bague Galvanisée 14*22,9*54,2 | G15: GOUJON DE ROUE MITSIBITCHI GM-SUR-B42 | H15: Embout de tige-2022 | I15: ECROU DE ROUE FORD RANGER- finition rayon | J15: INSERT LEVIER SURMOULEE 345833-01 - fraisage | K15: Arrêt | L15: Evacuation 2 et 3 | M15: USINAGE BORNE RBD-1 | N15: raccord HEX 17 | O15: ECROU SEMI ARBRE ISUZU | P15: Bague Galvanisée 12*20*40 -chutes | Q15: ANNEAU BRUTE 32*42*20 chuttes | R15: Buse droite à collerette Ø8 M445 FRD | S15: TIGE DE PISTON
B16: Compteur 8h | D16: 0 | E16: 6862 | F16: 240 | G16: 10124 | H16: 4771 | I16: 0 | J16: 1171 | K16: 0 | L16: 92 | M16: 6220 | N16: 0 | O16: 1776 | P16: 0 | Q16: 0 | R16: 10761 | S16: 398
B17: Compteur 17h | D17: 0 | E17: 7262 | F17: 450 | G17: 10418 | H17: 4771 | I17: 0 | J17: 1204 | K17: 0 | L17: 102 | M17: 6420 | N17: 0 | O17: 1912 | P17: 300 | Q17: 345 | R17: 11430 | S17: 621
B18: Enregistrement | C18: 9h
C19: 16h
B20: Identification
B21: Propreté des tables de contrôle
B22: Rangement des outils de contrôle
B23: Existance de l'OF
B24: Affutage | T24: =+COUNTA(D24:S24) -> 0
B25: Maintenance
B26: Nombre des NC poubelle
B27: Nombre des NC à retoucher
B28: Machine pour retouche
B29: Panne
B30: Cout pièces de rechange | T30: =SUM(D30:S30) -> 0
B31: prix de revient pièce | D31: =IFERROR(VLOOKUP(D14,'Prix de revient'!$A:$D,4,0),0) -> 0 | E31: =IFERROR(VLOOKUP(E14,'Prix de revient'!$A:$D,4,0),0) -> 0 | F31: =IFERROR(VLOOKUP(F14,'Prix de revient'!$A:$D,4,0),0) -> 0 | G31: =IFERROR(VLOOKUP(G14,'Prix de revient'!$A:$D,4,0),0) -> 0 | H31: =IFERROR(VLOOKUP(H14,'Prix de revient'!$A:$D,4,0),0) -> 0 | I31: =IFERROR(VLOOKUP(I14,'Prix de revient'!$A:$D,4,0),0) -> 0 | J31: =IFERROR(VLOOKUP(J14,'Prix de revient'!$A:$D,4,0),0) -> 2.1488 | K31: =IFERROR(VLOOKUP(K14,'Prix de revient'!$A:$D,4,0),0) -> 0 | L31: =IFERROR(VLOOKUP(L14,'Prix de revient'!$A:$D,4,0),0) -> 5.372 | M31: =IFERROR(VLOOKUP(M14,'Prix de revient'!$A:$D,4,0),0) -> 0 | N31: =IFERROR(VLOOKUP(N14,'Prix de revient'!$A:$D,4,0),0) -> 0 | O31: =IFERROR(VLOOKUP(O14,'Prix de revient'!$A:$D,4,0),0) -> 0 | P31: =IFERROR(VLOOKUP(P14,'Prix de revient'!$A:$D,4,0),0) -> 0 | Q31: =IFERROR(VLOOKUP(Q14,'Prix de revient'!$A:$D,4,0),0) -> 0 | R31: =IFERROR(VLOOKUP(R14,'Prix de revient'!$A:$D,4,0),0) -> 0 | S31: =IFERROR(VLOOKUP(S14,'Prix de revient'!$A:$D,4,0),0) -> 3.26744
B32: coût de rebuts | D32: =D26*D31 -> 0 | E32: =E26*E31 -> 0 | F32: 0 | G32: 0 | H32: 0 | I32: 0 | J32: 0 | K32: 0 | L32: 0 | M32: 0 | N32: 0 | O32: 0 | P32: 0 | Q32: 0 | R32: 0 | S32: 0 | T32: =SUM(D32:S32) -> 0
B33: gestion de modification
C41: Clients | D41: Audit | E41: Réclamation | F41: Avoir | H41: Fournisseurs/ sous-traitants | I41: Réception de matiere | J41: Probleme qualité | L41: Les formations professionnelles | M41: Cout | N41: Chiffrage décliné | O41: Actions à suivre | Q41: Article qui a subit un tri | R41: durée du tri | S41: Nombre des pieces non-conformes | T41: ouvrier faisant le tri | U41: cout par tri | W41: Article qui a subit la reprise | X41: durée de la reprise | Y41: opérateur faisant la reprise | Z41: coût de reprise | AD41: Machine | AE41: article | AF41: gamme | AG41: objet de la modification
U42: =IF(R42="","",R42*VLOOKUP(T42,'cout opérateur machines'!A1:B8,2,0)) ->  | Z42: =X42*8 -> 0
U43: =IF(R43="","",R43*VLOOKUP(T43,'cout opérateur machines'!A2:B9,2,0)) ->  | Z43: =X43*8 -> 0
U44: =IF(R44="","",R44*VLOOKUP(T44,'cout opérateur machines'!A3:B10,2,0)) ->  | Z44: 0
U45: =IF(R45="","",R45*VLOOKUP(T45,'cout opérateur machines'!A4:B11,2,0)) ->  | Z45: 0
U46: =IF(R46="","",R46*VLOOKUP(T46,'cout opérateur machines'!A5:B12,2,0)) ->  | Z46: 0
U47: =IF(R47="","",R47*VLOOKUP(T47,'cout opérateur machines'!A6:B13,2,0)) ->  | Z47: 0
E48: =COUNTA(E42:E47) -> 0 | F48: =SUM(F42:F47) -> 0 | M48: =SUM(M42:M47) -> 0 | N48: causes de refus | S48: cout total du jour | U48: =SUM(U42:U47) -> 0 | Z48: 0
H49: envoi des réclamations F/ S-T | I49: réponse F/ S-T | J49: alerte | Z49: =SUM(Z42:Z48) -> 0
C50: dans le cas d'une réclamation | J50: =IF(J42="","",IF(H50=0," réclamation non traitée",IF(I50=0, "veuillez contacter le F/ S-T par téléphone",""))) ->  | S50: N° mois | U50: 4
C51: nombre de pièces NC | J51: =IF(J43="","",IF(H51=0," réclamation non traitée",IF(I51=0, "veuillez contacter le F/ S-T par téléphone",""))) -> 
C52: nombre de pièces par carton
C53: coût de transport par carton
C54: nombre de cartons renvoyés
C55: temps de tri
C56: coût horaire de tri
C57: temps de retouche
C58: coût horaire de retouche
C59: temps de traitement de la réclamation
C60: coût horaire de traitement
C61: coût total | D61: =IFERROR(((D51/D52)*D53)+D54*D53+D55*D56+D57*D58+D59*D60,"") -> 

Sheet 07-4-22
E2: Rapport journalier | R2: Code:DAS-SMQ-24
R3: Date: 27/12/2019
R4: Version:01
R5: Page:1
D12: A | E12: B | F12: C | G12: D | H12: E | I12: F | J12: M | K12: N | L12: O | M12: P | N12: I | O12: L | P12: K | Q12: J | R12: G | S12: H
B13: Machine | D13: SST16 | E13: SB16 | F13: BIGLIA 301 SM | G13: BIGLIA 42 S2M bitourelle | H13: L32 | I13: TSUGAMI | J13: MORI SEIKI 3 axes | K13: MORI SEIKI 5 axes | L13: HARDING | M13: KITAMURA | N13: MULTIBROCHE | O13: NAKAMURA | P13: TOUR WEILER
B14: Référence | D14: - | E14: G022-CP1 | F14: 0-5928A-1 | G14: MI018-B42 | H14: 200200-2022 | I14: i097-tsughami | J14: I110-01-004 | K14: - | L14: 480387 | M14: 9518-maj | N14: MPS000300 | O14: I007 | P14: POMEL-P1 | Q14: 4-8748-1 | R14: 68.0815 | S14: 200300
B15: Désignation | D15: Arrêt | E15: AXE D15-M11*100 maj-c | F15: Bague Galvanisée 14*22,9*54,2 | G15: GOUJON DE ROUE MITSIBITCHI GM-SUR-B42 | H15: Embout de tige-2022 | I15: ECROU DE ROUE FORD RANGER- finition rayon | J15: INSERT LEVIER SURMOULEE 345833-01 - fraisage | K15: Arrêt | L15: Evacuation 2 et 3 | M15: USINAGE BORNE RBD-1 | N15: raccord HEX 17 | O15: ECROU SEMI ARBRE ISUZU | P15: POMELLE-PIECE male | Q15: Bague Galvaniée 38*40,4*28-chutes | R15: Buse droite à collerette Ø8 M445 FRD | S15: TIGE DE PISTON
B16: Compteur 8h | D16: 0 | E16: 6470 | F16: 0 | G16: 9810 | H16: 4771 | I16: 6576 | J16: 1148 | K16: 0 | L16: 84 | M16: 6065 | N16: 0 | O16: 1648 | P16: 855 | Q16: 36 | R16: 10138 | S16: 165
B17: Compteur 17h | D17: 0 | E17: 6862 | F17: 240 | G17: 10124 | H17: 4771 | I17: 7063 | J17: 1171 | K17: 0 | L17: 92 | M17: 6220 | N17: 0 | O17: 1776 | P17: 1053 | Q17: 193 | R17: 10761 | S17: 398
B18: Enregistrement | C18: 9h
C19: 16h
B20: Identification
B21: Propreté des tables de contrôle
B22: Rangement des outils de contrôle
B23: Existance de l'OF
B24: Affutage | T24: =+COUNTA(D24:S24) -> 0
B25: Maintenance
B26: Nombre des NC poubelle
B27: Nombre des NC à retoucher
B28: Machine pour retouche
B29: Panne
B30: Cout pièces de rechange | T30: =SUM(D30:S30) -> 0
B31: prix de revient pièce | D31: =IFERROR(VLOOKUP(D14,'Prix de revient'!$A:$D,4,0),0) -> 0 | E31: =IFERROR(VLOOKUP(E14,'Prix de revient'!$A:$D,4,0),0) -> 0 | F31: =IFERROR(VLOOKUP(F14,'Prix de revient'!$A:$D,4,0),0) -> 0 | G31: =IFERROR(VLOOKUP(G14,'Prix de revient'!$A:$D,4,0),0) -> 0 | H31: =IFERROR(VLOOKUP(H14,'Prix de revient'!$A:$D,4,0),0) -> 0 | I31: =IFERROR(VLOOKUP(I14,'Prix de revient'!$A:$D,4,0),0) -> 0 | J31: =IFERROR(VLOOKUP(J14,'Prix de revient'!$A:$D,4,0),0) -> 2.1488 | K31: =IFERROR(VLOOKUP(K14,'Prix de revient'!$A:$D,4,0),0) -> 0 | L31: =IFERROR(VLOOKUP(L14,'Prix de revient'!$A:$D,4,0),0) -> 5.372 | M31: =IFERROR(VLOOKUP(M14,'Prix de revient'!$A:$D,4,0),0) -> 0 | N31: =IFERROR(VLOOKUP(N14,'Prix de revient'!$A:$D,4,0),0) -> 0 | O31: =IFERROR(VLOOKUP(O14,'Prix de revient'!$A:$D,4,0),0) -> 0 | P31: =IFERROR(VLOOKUP(P14,'Prix de revient'!$A:$D,4,0),0) -> 0 | Q31: =IFERROR(VLOOKUP(Q14,'Prix de revient'!$A:$D,4,0),0) -> 0 | R31: =IFERROR(VLOOKUP(R14,'Prix de revient'!$A:$D,4,0),0) -> 0 | S31: =IFERROR(VLOOKUP(S14,'Prix de revient'!$A:$D,4,0),0) -> 3.26744
B32: coût de rebuts | D32: =D26*D31 -> 0 | E32: =E26*E31 -> 0 | F32: 0 | G32: 0 | H32: 0 | I32: 0 | J32: 0 | K32: 0 | L32: 0 | M32: 0 | N32: 0 | O32: 0 | P32: 0 | Q32: 0 | R32: 0 | S32: 0 | T32: =SUM(D32:S32) -> 0
B33: gestion de modification
C41: Clients | D41: Audit | E41: Réclamation | F41: Avoir | H41: Fournisseurs/ sous-traitants | I41: Réception de matiere | J41: Probleme qualité | L41: Les formations professionnelles | M41: Cout | N41: Chiffrage décliné | O41: Actions à suivre | Q41: Article qui a subit un tri | R41: durée du tri | S41: Nombre des pieces non-conformes | T41: ouvrier faisant le tri | U41: cout par tri | W41: Article qui a subit la reprise | X41: durée de la reprise | Y41: opérateur faisant la reprise | Z41: coût de reprise | AD41: Machine | AE41: article | AF41: gamme | AG41: objet de la modification
U42: =IF(R42="","",R42*VLOOKUP(T42,'cout opérateur machines'!A1:B8,2,0)) ->  | Z42: =X42*8 -> 0
U43: =IF(R43="","",R43*VLOOKUP(T43,'cout opérateur machines'!A2:B9,2,0)) ->  | Z43: =X43*8 -> 0
U44: =IF(R44="","",R44*VLOOKUP(T44,'cout opérateur machines'!A3:B10,2,0)) ->  | Z44: 0
U45: =IF(R45="","",R45*VLOOKUP(T45,'cout opérateur machines'!A4:B11,2,0)) ->  | Z45: 0
U46: =IF(R46="","",R46*VLOOKUP(T46,'cout opérateur machines'!A5:B12,2,0)) ->  | Z46: 0
U47: =IF(R47="","",R47*VLOOKUP(T47,'cout opérateur machines'!A6:B13,2,0)) ->  | Z47: 0
E48: =COUNTA(E42:E47) -> 0 | F48: =SUM(F42:F47) -> 0 | M48: =SUM(M42:M47) -> 0 | N48: causes de refus | S48: cout total du jour | U48: =SUM(U42:U47) -> 0 | Z48: 0
H49: envoi des réclamations F/ S-T | I49: réponse F/ S-T | J49: alerte | Z49: =SUM(Z42:Z48) -> 0
C50: dans le cas d'une réclamation | J50: =IF(J42="","",IF(H50=0," réclamation non traitée",IF(I50=0, "veuillez contacter le F/ S-T par téléphone",""))) ->  | S50: N° mois | U50: 4
C51: nombre de pièces NC | J51: =IF(J43="","",IF(H51=0," réclamation non traitée",IF(I51=0, "veuillez contacter le F/ S-T par téléphone",""))) -> 
C52: nombre de pièces par carton
C53: coût de transport par carton
C54: nombre de cartons renvoyés
C55: temps de tri
C56: coût horaire de tri
C57: temps de retouche
C58: coût horaire de retouche
C59: temps de traitement de la réclamation
C60: coût horaire de traitement
C61: coût total | D61: =IFERROR(((D51/D52)*D53)+D54*D53+D55*D56+D57*D58+D59*D60,"") -> 

Sheet 06-4-22
E2: Rapport journalier | R2: Code:DAS-SMQ-24
R3: Date: 27/12/2019
R4: Version:01
R5: Page:1
D12: A | E12: B | F12: C | G12: D | H12: E | I12: F | J12: M | K12: N | L12: O | M12: P | N12: I | O12: L | P12: K | Q12: J | R12: G | S12: H
B13: Machine | D13: SST16 | E13: SB16 | F13: BIGLIA 301 SM | G13: BIGLIA 42 S2M bitourelle | H13: L32 | I13: TSUGAMI | J13: MORI SEIKI 3 axes | K13: MORI SEIKI 5 axes | L13: HARDING | M13: KITAMURA | N13: MULTIBROCHE | O13: NAKAMURA | P13: TOUR WEILER
B14: Référence | D14: - | E14: G022-CP1 | F14: 230500 | G14: MI018-B42 | H14: 200200-2022 | I14: i097-tsughami | J14: I110-01-004 | K14: - | L14: 480387 | M14: 9518-maj | N14: MPS000300 | O14: I007 | P14: POMEL-P1 | Q14: 4-8748-1 | R14: 68.0815 | S14: 200300
B15: Désignation | D15: Arrêt | E15: AXE D15-M11*100 maj-c | F15: BRAS DE MANOEUVRE G MAN | G15: GOUJON DE ROUE MITSIBITCHI GM-SUR-B42 | H15: Embout de tige-2022 | I15: ECROU DE ROUE FORD RANGER- finition rayon | J15: INSERT LEVIER SURMOULEE 345833-01 - fraisage | K15: Arrêt | L15: Evacuation 2 et 3 | M15: USINAGE BORNE RBD-1 | N15: raccord HEX 17 | O15: ECROU SEMI ARBRE ISUZU | P15: POMELLE-PIECE male | Q15: Bague Galvaniée 38*40,4*28-chutes | R15: Buse droite à collerette Ø8 M445 FRD | S15: TIGE DE PISTON
B16: Compteur 8h | D16: 0 | E16: 6050 | F16: 2930 | G16: 9525 | H16: 4771 | I16: 6153 | J16: 1135 | K16: 0 | L16: 76 | M16: 5863 | N16: 0 | O16: 1537 | P16: 668 | Q16: 0 | R16: 9610 | S16: 0
B17: Compteur 17h | D17: 0 | E17: 6470 | F17: 3070 | G17: 9810 | H17: 4771 | I17: 6576 | J17: 1148 | K17: 0 | L17: 84 | M17: 6065 | N17: 0 | O17: 1648 | P17: 855 | Q17: 36 | R17: 10138 | S17: 165
B18: Enregistrement | C18: 9h
C19: 16h
B20: Identification
B21: Propreté des tables de contrôle
B22: Rangement des outils de contrôle
B23: Existance de l'OF
B24: Affutage | T24: =+COUNTA(D24:S24) -> 0
B25: Maintenance
B26: Nombre des NC poubelle
B27: Nombre des NC à retoucher
B28: Machine pour retouche
B29: Panne
B30: Cout pièces de rechange | T30: =SUM(D30:S30) -> 0
B31: prix de revient pièce | D31: =IFERROR(VLOOKUP(D14,'Prix de revient'!$A:$D,4,0),0) -> 0 | E31: =IFERROR(VLOOKUP(E14,'Prix de revient'!$A:$D,4,0),0) -> 0 | F31: =IFERROR(VLOOKUP(F14,'Prix de revient'!$A:$D,4,0),0) -> 0 | G31: =IFERROR(VLOOKUP(G14,'Prix de revient'!$A:$D,4,0),0) -> 0 | H31: =IFERROR(VLOOKUP(H14,'Prix de revient'!$A:$D,4,0),0) -> 0 | I31: =IFERROR(VLOOKUP(I14,'Prix de revient'!$A:$D,4,0),0) -> 0 | J31: =IFERROR(VLOOKUP(J14,'Prix de revient'!$A:$D,4,0),0) -> 2.1488 | K31: =IFERROR(VLOOKUP(K14,'Prix de revient'!$A:$D,4,0),0) -> 0 | L31: =IFERROR(VLOOKUP(L14,'Prix de revient'!$A:$D,4,0),0) -> 5.372 | M31: =IFERROR(VLOOKUP(M14,'Prix de revient'!$A:$D,4,0),0) -> 0 | N31: =IFERROR(VLOOKUP(N14,'Prix de revient'!$A:$D,4,0),0) -> 0 | O31: =IFERROR(VLOOKUP(O14,'Prix de revient'!$A:$D,4,0),0) -> 0 | P31: =IFERROR(VLOOKUP(P14,'Prix de revient'!$A:$D,4,0),0) -> 0 | Q31: =IFERROR(VLOOKUP(Q14,'Prix de revient'!$A:$D,4,0),0) -> 0 | R31: =IFERROR(VLOOKUP(R14,'Prix de revient'!$A:$D,4,0),0) -> 0 | S31: =IFERROR(VLOOKUP(S14,'Prix de revient'!$A:$D,4,0),0) -> 3.26744
B32: coût de rebuts | D32: =D26*D31 -> 0 | E32: =E26*E31 -> 0 | F32: 0 | G32: 0 | H32: 0 | I32: 0 | J32: 0 | K32: 0 | L32: 0 | M32: 0 | N32: 0 | O32: 0 | P32: 0 | Q32: 0 | R32: 0 | S32: 0 | T32: =SUM(D32:S32) -> 0
B33: gestion de modification
C41: Clients | D41: Audit | E41: Réclamation | F41: Avoir | H41: Fournisseurs/ sous-traitants | I41: Réception de matiere | J41: Probleme qualité | L41: Les formations professionnelles | M41: Cout | N41: Chiffrage décliné | O41: Actions à suivre | Q41: Article qui a subit un tri | R41: durée du tri | S41: Nombre des pieces non-conformes | T41: ouvrier faisant le tri | U41: cout par tri | W41: Article qui a subit la reprise | X41: durée de la reprise | Y41: opérateur faisant la reprise | Z41: coût de reprise | AD41: Machine | AE41: article | AF41: gamme | AG41: objet de la modification
U42: =IF(R42="","",R42*VLOOKUP(T42,'cout opérateur machines'!A1:B8,2,0)) ->  | Z42: =X42*8 -> 0
U43: =IF(R43="","",R43*VLOOKUP(T43,'cout opérateur machines'!A2:B9,2,0)) ->  | Z43: =X43*8 -> 0
U44: =IF(R44="","",R44*VLOOKUP(T44,'cout opérateur machines'!A3:B10,2,0)) ->  | Z44: 0
U45: =IF(R45="","",R45*VLOOKUP(T45,'cout opérateur machines'!A4:B11,2,0)) ->  | Z45: 0
U46: =IF(R46="","",R46*VLOOKUP(T46,'cout opérateur machines'!A5:B12,2,0)) ->  | Z46: 0
U47: =IF(R47="","",R47*VLOOKUP(T47,'cout opérateur machines'!A6:B13,2,0)) ->  | Z47: 0
E48: =COUNTA(E42:E47) -> 0 | F48: =SUM(F42:F47) -> 0 | M48: =SUM(M42:M47) -> 0 | N48: causes de refus | S48: cout total du jour | U48: =SUM(U42:U47) -> 0 | Z48: 0
H49: envoi des réclamations F/ S-T | I49: réponse F/ S-T | J49: alerte | Z49: =SUM(Z42:Z48) -> 0
C50: dans le cas d'une réclamation | J50: =IF(J42="","",IF(H50=0," réclamation non traitée",IF(I50=0, "veuillez contacter le F/ S-T par téléphone",""))) ->  | S50: N° mois | U50: 4
C51: nombre de pièces NC | J51: =IF(J43="","",IF(H51=0," réclamation non traitée",IF(I51=0, "veuillez contacter le F/ S-T par téléphone",""))) -> 
C52: nombre de pièces par carton
C53: coût de transport par carton
C54: nombre de cartons renvoyés
C55: temps de tri
C56: coût horaire de tri
C57: temps de retouche
C58: coût horaire de retouche
C59: temps de traitement de la réclamation
C60: coût horaire de traitement
C61: coût total | D61: =IFERROR(((D51/D52)*D53)+D54*D53+D55*D56+D57*D58+D59*D60,"") -> 

Sheet 05-4-22
E2: Rapport journalier | R2: Code:DAS-SMQ-24
R3: Date: 27/12/2019
R4: Version:01
R5: Page:1
D12: A | E12: B | F12: C | G12: D | H12: E | I12: F | J12: M | K12: N | L12: O | M12: P | N12: I | O12: L | P12: K | Q12: J | R12: G | S12: H
B13: Machine | D13: SST16 | E13: SB16 | F13: BIGLIA 301 SM | G13: BIGLIA 42 S2M bitourelle | H13: L32 | I13: TSUGAMI | J13: MORI SEIKI 3 axes | K13: MORI SEIKI 5 axes | L13: HARDING | M13: KITAMURA | N13: MULTIBROCHE | O13: NAKAMURA | P13: TOUR WEILER
B14: Référence | D14: - | E14: G022-CP1 | F14: 230500 | G14: MI018-B42 | H14: 200200-2022 | I14: i097-tsughami | J14: I110-01-004 | K14: - | L14: 480387 | M14: 9518-maj | N14: MPS000300 | O14: I007 | P14: POMEL-P1 | Q14: 0-5280-1 | R14: 68.0815 | S14: outi-plot
B15: Désignation | D15: Arrêt | E15: AXE D15-M11*100 maj-c | F15: BRAS DE MANOEUVRE G MAN | G15: GOUJON DE ROUE MITSIBITCHI GM-SUR-B42 | H15: Embout de tige-2022 | I15: ECROU DE ROUE FORD RANGER- finition rayon | J15: INSERT LEVIER SURMOULEE 345833-01 - fraisage | K15: Arrêt | L15: Evacuation 2 et 3 | M15: USINAGE BORNE RBD-1 | N15: raccord HEX 17 | O15: ECROU SEMI ARBRE ISUZU | P15: POMELLE-PIECE male | Q15: Bague Galvanisée 12*20*40 -chutes | R15: Buse droite à collerette Ø8 M445 FRD | S15: plot nez de marche
B16: Compteur 8h | D16: 0 | E16: 5634 | F16: 2691 | G16: 9214 | H16: 4771 | I16: 5727 | J16: 1116 | K16: 0 | L16: 69 | M16: 5638 | N16: 0 | O16: 1408 | P16: 513 | Q16: 468 | R16: 9070 | S16: 0
B17: Compteur 17h | D17: 0 | E17: 6050 | F17: 2930 | G17: 9525 | H17: 4771 | I17: 6153 | J17: 1135 | K17: 0 | L17: 76 | M17: 5863 | N17: 0 | O17: 1537 | P17: 668 | Q17: 951 | R17: 9610 | S17: 0
B18: Enregistrement | C18: 9h
C19: 16h
B20: Identification
B21: Propreté des tables de contrôle
B22: Rangement des outils de contrôle
B23: Existance de l'OF
B24: Affutage | T24: =+COUNTA(D24:S24) -> 0
B25: Maintenance
B26: Nombre des NC poubelle
B27: Nombre des NC à retoucher
B28: Machine pour retouche
B29: Panne
B30: Cout pièces de rechange | T30: =SUM(D30:S30) -> 0
B31: prix de revient pièce | D31: =IFERROR(VLOOKUP(D14,'Prix de revient'!$A:$D,4,0),0) -> 0 | E31: =IFERROR(VLOOKUP(E14,'Prix de revient'!$A:$D,4,0),0) -> 0 | F31: =IFERROR(VLOOKUP(F14,'Prix de revient'!$A:$D,4,0),0) -> 0 | G31: =IFERROR(VLOOKUP(G14,'Prix de revient'!$A:$D,4,0),0) -> 0 | H31: =IFERROR(VLOOKUP(H14,'Prix de revient'!$A:$D,4,0),0) -> 0 | I31: =IFERROR(VLOOKUP(I14,'Prix de revient'!$A:$D,4,0),0) -> 0 | J31: =IFERROR(VLOOKUP(J14,'Prix de revient'!$A:$D,4,0),0) -> 2.1488 | K31: =IFERROR(VLOOKUP(K14,'Prix de revient'!$A:$D,4,0),0) -> 0 | L31: =IFERROR(VLOOKUP(L14,'Prix de revient'!$A:$D,4,0),0) -> 5.372 | M31: =IFERROR(VLOOKUP(M14,'Prix de revient'!$A:$D,4,0),0) -> 0 | N31: =IFERROR(VLOOKUP(N14,'Prix de revient'!$A:$D,4,0),0) -> 0 | O31: =IFERROR(VLOOKUP(O14,'Prix de revient'!$A:$D,4,0),0) -> 0 | P31: =IFERROR(VLOOKUP(P14,'Prix de revient'!$A:$D,4,0),0) -> 0 | Q31: =IFERROR(VLOOKUP(Q14,'Prix de revient'!$A:$D,4,0),0) -> 0 | R31: =IFERROR(VLOOKUP(R14,'Prix de revient'!$A:$D,4,0),0) -> 0 | S31: =IFERROR(VLOOKUP(S14,'Prix de revient'!$A:$D,4,0),0) -> 0.4424
B32: coût de rebuts | D32: =D26*D31 -> 0 | E32: =E26*E31 -> 0 | F32: 0 | G32: 0 | H32: 0 | I32: 0 | J32: 0 | K32: 0 | L32: 0 | M32: 0 | N32: 0 | O32: 0 | P32: 0 | Q32: 0 | R32: 0 | S32: 0 | T32: =SUM(D32:S32) -> 0
B33: gestion de modification
C41: Clients | D41: Audit | E41: Réclamation | F41: Avoir | H41: Fournisseurs/ sous-traitants | I41: Réception de matiere | J41: Probleme qualité | L41: Les formations professionnelles | M41: Cout | N41: Chiffrage décliné | O41: Actions à suivre | Q41: Article qui a subit un tri | R41: durée du tri | S41: Nombre des pieces non-conformes | T41: ouvrier faisant le tri | U41: cout par tri | W41: Article qui a subit la reprise | X41: durée de la reprise | Y41: opérateur faisant la reprise | Z41: coût de reprise | AD41: Machine | AE41: article | AF41: gamme | AG41: objet de la modification
U42: =IF(R42="","",R42*VLOOKUP(T42,'cout opérateur machines'!A1:B8,2,0)) ->  | Z42: =X42*8 -> 0
U43: =IF(R43="","",R43*VLOOKUP(T43,'cout opérateur machines'!A2:B9,2,0)) ->  | Z43: =X43*8 -> 0
U44: =IF(R44="","",R44*VLOOKUP(T44,'cout opérateur machines'!A3:B10,2,0)) ->  | Z44: 0
U45: =IF(R45="","",R45*VLOOKUP(T45,'cout opérateur machines'!A4:B11,2,0)) ->  | Z45: 0
U46: =IF(R46="","",R46*VLOOKUP(T46,'cout opérateur machines'!A5:B12,2,0)) ->  | Z46: 0
U47: =IF(R47="","",R47*VLOOKUP(T47,'cout opérateur machines'!A6:B13,2,0)) ->  | Z47: 0
E48: =COUNTA(E42:E47) -> 0 | F48: =SUM(F42:F47) -> 0 | M48: =SUM(M42:M47) -> 0 | N48: causes de refus | S48: cout total du jour | U48: =SUM(U42:U47) -> 0 | Z48: 0
H49: envoi des réclamations F/ S-T | I49: réponse F/ S-T | J49: alerte | Z49: =SUM(Z42:Z48) -> 0
C50: dans le cas d'une réclamation | J50: =IF(J42="","",IF(H50=0," réclamation non traitée",IF(I50=0, "veuillez contacter le F/ S-T par téléphone",""))) ->  | S50: N° mois | U50: 4
C51: nombre de pièces NC | J51: =IF(J43="","",IF(H51=0," réclamation non traitée",IF(I51=0, "veuillez contacter le F/ S-T par téléphone",""))) -> 
C52: nombre de pièces par carton
C53: coût de transport par carton
C54: nombre de cartons renvoyés
C55: temps de tri
C56: coût horaire de tri
C57: temps de retouche
C58: coût horaire de retouche
C59: temps de traitement de la réclamation
C60: coût horaire de traitement
C61: coût total | D61: =IFERROR(((D51/D52)*D53)+D54*D53+D55*D56+D57*D58+D59*D60,"") -> 

Sheet 04-4-22
E2: Rapport journalier | R2: Code:DAS-SMQ-24
R3: Date: 27/12/2019
R4: Version:01
R5: Page:1
D12: A | E12: B | F12: C | G12: D | H12: E | I12: F | J12: M | K12: N | L12: O | M12: P | N12: I | O12: L | P12: K | Q12: J | R12: G | S12: H
B13: Machine | D13: SST16 | E13: SB16 | F13: BIGLIA 301 SM | G13: BIGLIA 42 S2M bitourelle | H13: L32 | I13: TSUGAMI | J13: MORI SEIKI 3 axes | K13: MORI SEIKI 5 axes | L13: HARDING | M13: KITAMURA | N13: MULTIBROCHE | O13: NAKAMURA | P13: TOUR WEILER
B14: Référence | D14: - | E14: G022-CP1 | F14: 230500 | G14: MI018-B42 | H14: 200200-2022 | I14: i097-tsughami | J14: I110-01-004 | K14: - | L14: 480387 | M14: 9518-maj | N14: MPS000300 | O14: I007 | P14: POMEL-P2 | Q14: 0-5280-1 | R14: 68.0815 | S14: outi-plot
B15: Désignation | D15: Arrêt | E15: AXE D15-M11*100 maj-c | F15: BRAS DE MANOEUVRE G MAN | G15: GOUJON DE ROUE MITSIBITCHI GM-SUR-B42 | H15: Embout de tige-2022 | I15: ECROU DE ROUE FORD RANGER- finition rayon | J15: INSERT LEVIER SURMOULEE 345833-01 - fraisage | K15: Arrêt | L15: Evacuation 2 et 3 | M15: USINAGE BORNE RBD-1 | N15: raccord HEX 17 | O15: ECROU SEMI ARBRE ISUZU | P15: POMELLE-PIECE FEMELLE | Q15: Bague Galvanisée 12*20*40 -chutes | R15: Buse droite à collerette Ø8 M445 FRD | S15: plot nez de marche
B16: Compteur 8h | D16: 0 | E16: 5180 | F16: 2452 | G16: 8937 | H16: 4771 | I16: 5517 | J16: 1099 | K16: 0 | L16: 58 | M16: 5444 | N16: 0 | O16: 1185 | P16: 380 | Q16: 0 | R16: 8433 | S16: 0
B17: Compteur 17h | D17: 0 | E17: 5634 | F17: 2691 | G17: 9214 | H17: 4771 | I17: 5727 | J17: 1116 | K17: 0 | L17: 69 | M17: 5638 | N17: 0 | O17: 1408 | P17: 513 | Q17: 468 | R17: 9070 | S17: 0
B18: Enregistrement | C18: 9h
C19: 16h
B20: Identification
B21: Propreté des tables de contrôle
B22: Rangement des outils de contrôle
B23: Existance de l'OF
B24: Affutage | T24: =+COUNTA(D24:S24) -> 0
B25: Maintenance
B26: Nombre des NC poubelle
B27: Nombre des NC à retoucher
B28: Machine pour retouche
B29: Panne
B30: Cout pièces de rechange | T30: =SUM(D30:S30) -> 0
B31: prix de revient pièce | D31: =IFERROR(VLOOKUP(D14,'Prix de revient'!$A:$D,4,0),0) -> 0 | E31: =IFERROR(VLOOKUP(E14,'Prix de revient'!$A:$D,4,0),0) -> 0 | F31: =IFERROR(VLOOKUP(F14,'Prix de revient'!$A:$D,4,0),0) -> 0 | G31: =IFERROR(VLOOKUP(G14,'Prix de revient'!$A:$D,4,0),0) -> 0 | H31: =IFERROR(VLOOKUP(H14,'Prix de revient'!$A:$D,4,0),0) -> 0 | I31: =IFERROR(VLOOKUP(I14,'Prix de revient'!$A:$D,4,0),0) -> 0 | J31: =IFERROR(VLOOKUP(J14,'Prix de revient'!$A:$D,4,0),0) -> 2.1488 | K31: =IFERROR(VLOOKUP(K14,'Prix de revient'!$A:$D,4,0),0) -> 0 | L31: =IFERROR(VLOOKUP(L14,'Prix de revient'!$A:$D,4,0),0) -> 5.372 | M31: =IFERROR(VLOOKUP(M14,'Prix de revient'!$A:$D,4,0),0) -> 0 | N31: =IFERROR(VLOOKUP(N14,'Prix de revient'!$A:$D,4,0),0) -> 0 | O31: =IFERROR(VLOOKUP(O14,'Prix de revient'!$A:$D,4,0),0) -> 0 | P31: =IFERROR(VLOOKUP(P14,'Prix de revient'!$A:$D,4,0),0) -> 0 | Q31: =IFERROR(VLOOKUP(Q14,'Prix de revient'!$A:$D,4,0),0) -> 0 | R31: =IFERROR(VLOOKUP(R14,'Prix de revient'!$A:$D,4,0),0) -> 0 | S31: =IFERROR(VLOOKUP(S14,'Prix de revient'!$A:$D,4,0),0) -> 0.4424
B32: coût de rebuts | D32: =D26*D31 -> 0 | E32: =E26*E31 -> 0 | F32: 0 | G32: 0 | H32: 0 | I32: 0 | J32: 0 | K32: 0 | L32: 0 | M32: 0 | N32: 0 | O32: 0 | P32: 0 | Q32: 0 | R32: 0 | S32: 0 | T32: =SUM(D32:S32) -> 0
B33: gestion de modification
C41: Clients | D41: Audit | E41: Réclamation | F41: Avoir | H41: Fournisseurs/ sous-traitants | I41: Réception de matiere | J41: Probleme qualité | L41: Les formations professionnelles | M41: Cout | N41: Chiffrage décliné | O41: Actions à suivre | Q41: Article qui a subit un tri | R41: durée du tri | S41: Nombre des pieces non-conformes | T41: ouvrier faisant le tri | U41: cout par tri | W41: Article qui a subit la reprise | X41: durée de la reprise | Y41: opérateur faisant la reprise | Z41: coût de reprise | AD41: Machine | AE41: article | AF41: gamme | AG41: objet de la modification
U42: =IF(R42="","",R42*VLOOKUP(T42,'cout opérateur machines'!A1:B8,2,0)) ->  | Z42: =X42*8 -> 0
U43: =IF(R43="","",R43*VLOOKUP(T43,'cout opérateur machines'!A2:B9,2,0)) ->  | Z43: =X43*8 -> 0
U44: =IF(R44="","",R44*VLOOKUP(T44,'cout opérateur machines'!A3:B10,2,0)) ->  | Z44: 0
U45: =IF(R45="","",R45*VLOOKUP(T45,'cout opérateur machines'!A4:B11,2,0)) ->  | Z45: 0
U46: =IF(R46="","",R46*VLOOKUP(T46,'cout opérateur machines'!A5:B12,2,0)) ->  | Z46: 0
U47: =IF(R47="","",R47*VLOOKUP(T47,'cout opérateur machines'!A6:B13,2,0)) ->  | Z47: 0
E48: =COUNTA(E42:E47) -> 0 | F48: =SUM(F42:F47) -> 0 | M48: =SUM(M42:M47) -> 0 | N48: causes de refus | S48: cout total du jour | U48: =SUM(U42:U47) -> 0 | Z48: 0
H49: envoi des réclamations F/ S-T | I49: réponse F/ S-T | J49: alerte | Z49: =SUM(Z42:Z48) -> 0
C50: dans le cas d'une réclamation | J50: =IF(J42="","",IF(H50=0," réclamation non traitée",IF(I50=0, "veuillez contacter le F/ S-T par téléphone",""))) ->  | S50: N° mois | U50: 4
C51: nombre de pièces NC | J51: =IF(J43="","",IF(H51=0," réclamation non traitée",IF(I51=0, "veuillez contacter le F/ S-T par téléphone",""))) -> 
C52: nombre de pièces par carton
C53: coût de transport par carton
C54: nombre de cartons renvoyés
C55: temps de tri
C56: coût horaire de tri
C57: temps de retouche
C58: coût horaire de retouche
C59: temps de traitement de la réclamation
C60: coût horaire de traitement
C61: coût total | D61: =IFERROR(((D51/D52)*D53)+D54*D53+D55*D56+D57*D58+D59*D60,"") -> 

Sheet 02-4-22
E2: Rapport journalier | R2: Code:DAS-SMQ-24
R3: Date: 27/12/2019
R4: Version:01
R5: Page:1
D12: A | E12: B | F12: C | G12: D | H12: E | I12: F | J12: M | K12: N | L12: O | M12: P | N12: I | O12: L | P12: K | Q12: J | R12: G | S12: H
B13: Machine | D13: SST16 | E13: SB16 | F13: BIGLIA 301 SM | G13: BIGLIA 42 S2M bitourelle | H13: L32 | I13: TSUGAMI | J13: MORI SEIKI 3 axes | K13: MORI SEIKI 5 axes | L13: HARDING | M13: KITAMURA | N13: MULTIBROCHE | O13: NAKAMURA | P13: TOUR WEILER
B14: Référence | D14: BROCH L 230 | E14: G022-CP1 | F14: 230500 | G14: MI018-B42 | H14: 200200-2022 | I14: i097-tsughami | J14: I110-01-004 | K14: PIG-11D | L14: 480387 | M14: 9518-maj | N14: MPS000300 | O14: I007 | P14: POMEL-P2 | Q14: 0-5280-1 | R14: 68.0815 | S14: outi-plot
B15: Désignation | D15: BROCHE ACIER D13 ZINGUE L230 | E15: AXE D15-M11*100 maj-c | F15: BRAS DE MANOEUVRE G MAN | G15: GOUJON DE ROUE MITSIBITCHI GM-SUR-B42 | H15: Embout de tige-2022 | I15: ECROU DE ROUE FORD RANGER- finition rayon | J15: INSERT LEVIER SURMOULEE 345833-01 - fraisage | K15: PIGNON 11 DENTS FRAISAGE | L15: Evacuation 2 et 3 | M15: USINAGE BORNE RBD-1 | N15: raccord HEX 17 | O15: ECROU SEMI ARBRE ISUZU | P15: POMELLE-PIECE FEMELLE | Q15: Bague Galvanisée 12*20*40 -chutes | R15: Buse droite à collerette Ø8 M445 FRD | S15: plot nez de marche
B16: Compteur 8h | D16: 0 | E16: 4945 | F16: 2297 | G16: 8680 | H16: 4771 | I16: 5101 | J16: 1090 | K16: 0 | L16: 53 | M16: 5314 | N16: 0 | O16: 1185 | P16: 202 | Q16: 0 | R16: 7993 | S16: 0
B17: Compteur 17h | D17: 0 | E17: 5180 | F17: 2452 | G17: 8937 | H17: 4771 | I17: 5517 | J17: 1099 | K17: 0 | L17: 58 | M17: 5444 | N17: 0 | O17: 1185 | P17: 380 | Q17: 190 | R17: 8433 | S17: 0
B18: Enregistrement | C18: 9h
C19: 16h
B20: Identification
B21: Propreté des tables de contrôle
B22: Rangement des outils de contrôle
B23: Existance de l'OF
B24: Affutage | T24: =+COUNTA(D24:S24) -> 0
B25: Maintenance
B26: Nombre des NC poubelle
B27: Nombre des NC à retoucher
B28: Machine pour retouche
B29: Panne
B30: Cout pièces de rechange | T30: =SUM(D30:S30) -> 0
B31: prix de revient pièce | D31: =IFERROR(VLOOKUP(D14,'Prix de revient'!$A:$D,4,0),0) -> 2.528 | E31: =IFERROR(VLOOKUP(E14,'Prix de revient'!$A:$D,4,0),0) -> 0 | F31: =IFERROR(VLOOKUP(F14,'Prix de revient'!$A:$D,4,0),0) -> 0 | G31: =IFERROR(VLOOKUP(G14,'Prix de revient'!$A:$D,4,0),0) -> 0 | H31: =IFERROR(VLOOKUP(H14,'Prix de revient'!$A:$D,4,0),0) -> 0 | I31: =IFERROR(VLOOKUP(I14,'Prix de revient'!$A:$D,4,0),0) -> 0 | J31: =IFERROR(VLOOKUP(J14,'Prix de revient'!$A:$D,4,0),0) -> 2.1488 | K31: =IFERROR(VLOOKUP(K14,'Prix de revient'!$A:$D,4,0),0) -> 0 | L31: =IFERROR(VLOOKUP(L14,'Prix de revient'!$A:$D,4,0),0) -> 5.372 | M31: =IFERROR(VLOOKUP(M14,'Prix de revient'!$A:$D,4,0),0) -> 0 | N31: =IFERROR(VLOOKUP(N14,'Prix de revient'!$A:$D,4,0),0) -> 0 | O31: =IFERROR(VLOOKUP(O14,'Prix de revient'!$A:$D,4,0),0) -> 0 | P31: =IFERROR(VLOOKUP(P14,'Prix de revient'!$A:$D,4,0),0) -> 0 | Q31: =IFERROR(VLOOKUP(Q14,'Prix de revient'!$A:$D,4,0),0) -> 0 | R31: =IFERROR(VLOOKUP(R14,'Prix de revient'!$A:$D,4,0),0) -> 0 | S31: =IFERROR(VLOOKUP(S14,'Prix de revient'!$A:$D,4,0),0) -> 0.4424
B32: coût de rebuts | D32: =D26*D31 -> 0 | E32: =E26*E31 -> 0 | F32: 0 | G32: 0 | H32: 0 | I32: 0 | J32: 0 | K32: 0 | L32: 0 | M32: 0 | N32: 0 | O32: 0 | P32: 0 | Q32: 0 | R32: 0 | S32: 0 | T32: =SUM(D32:S32) -> 0
B33: gestion de modification
C41: Clients | D41: Audit | E41: Réclamation | F41: Avoir | H41: Fournisseurs/ sous-traitants | I41: Réception de matiere | J41: Probleme qualité | L41: Les formations professionnelles | M41: Cout | N41: Chiffrage décliné | O41: Actions à suivre | Q41: Article qui a subit un tri | R41: durée du tri | S41: Nombre des pieces non-conformes | T41: ouvrier faisant le tri | U41: cout par tri | W41: Article qui a subit la reprise | X41: durée de la reprise | Y41: opérateur faisant la reprise | Z41: coût de reprise | AD41: Machine | AE41: article | AF41: gamme | AG41: objet de la modification
U42: =IF(R42="","",R42*VLOOKUP(T42,'cout opérateur machines'!A1:B8,2,0)) ->  | Z42: =X42*8 -> 0
U43: =IF(R43="","",R43*VLOOKUP(T43,'cout opérateur machines'!A2:B9,2,0)) ->  | Z43: =X43*8 -> 0
U44: =IF(R44="","",R44*VLOOKUP(T44,'cout opérateur machines'!A3:B10,2,0)) ->  | Z44: 0
U45: =IF(R45="","",R45*VLOOKUP(T45,'cout opérateur machines'!A4:B11,2,0)) ->  | Z45: 0
U46: =IF(R46="","",R46*VLOOKUP(T46,'cout opérateur machines'!A5:B12,2,0)) ->  | Z46: 0
U47: =IF(R47="","",R47*VLOOKUP(T47,'cout opérateur machines'!A6:B13,2,0)) ->  | Z47: 0
E48: =COUNTA(E42:E47) -> 0 | F48: =SUM(F42:F47) -> 0 | M48: =SUM(M42:M47) -> 0 | N48: causes de refus | S48: cout total du jour | U48: =SUM(U42:U47) -> 0 | Z48: 0
H49: envoi des réclamations F/ S-T | I49: réponse F/ S-T | J49: alerte | Z49: =SUM(Z42:Z48) -> 0
C50: dans le cas d'une réclamation | J50: =IF(J42="","",IF(H50=0," réclamation non traitée",IF(I50=0, "veuillez contacter le F/ S-T par téléphone",""))) ->  | S50: N° mois | U50: 4
C51: nombre de pièces NC | J51: =IF(J43="","",IF(H51=0," réclamation non traitée",IF(I51=0, "veuillez contacter le F/ S-T par téléphone",""))) -> 
C52: nombre de pièces par carton
C53: coût de transport par carton
C54: nombre de cartons renvoyés
C55: temps de tri
C56: coût horaire de tri
C57: temps de retouche
C58: coût horaire de retouche
C59: temps de traitement de la réclamation
C60: coût horaire de traitement
C61: coût total | D61: =IFERROR(((D51/D52)*D53)+D54*D53+D55*D56+D57*D58+D59*D60,"") -> 

Sheet 01-4-22
E2: Rapport journalier | R2: Code:DAS-SMQ-24
R3: Date: 27/12/2019
R4: Version:01
R5: Page:1
D12: A | E12: B | F12: C | G12: D | H12: E | I12: F | J12: M | K12: N | L12: O | M12: P | N12: I | O12: L | P12: K | Q12: J | R12: G | S12: H
B13: Machine | D13: SST16 | E13: SB16 | F13: BIGLIA 301 SM | G13: BIGLIA 42 S2M bitourelle | H13: L32 | I13: TSUGAMI | J13: MORI SEIKI 3 axes | K13: MORI SEIKI 5 axes | L13: HARDING | M13: KITAMURA | N13: MULTIBROCHE | O13: NAKAMURA | P13: TOUR WEILER
B14: Référence | D14: BROCH L 230 | E14: G022-CP1 | F14: 230500 | G14: MI018-B42 | H14: 200200-2022 | I14: i097-tsughami | J14: I110-01-004 | K14: PIG-11D | L14: 480387 | M14: 9518-maj | N14: MPS000300 | O14: I007 | P14: POMEL-P2 | Q14: PT8666 | R14: 68.0815 | S14: outi-plot
B15: Désignation | D15: BROCHE ACIER D13 ZINGUE L230 | E15: AXE D15-M11*100 maj-c | F15: BRAS DE MANOEUVRE G MAN | G15: GOUJON DE ROUE MITSIBITCHI GM-SUR-B42 | H15: Embout de tige-2022 | I15: ECROU DE ROUE FORD RANGER- finition rayon | J15: INSERT LEVIER SURMOULEE 345833-01 - fraisage | K15: PIGNON 11 DENTS FRAISAGE | L15: Evacuation 2 et 3 | M15: USINAGE BORNE RBD-1 | N15: raccord HEX 17 | O15: ECROU SEMI ARBRE ISUZU | P15: POMELLE-PIECE FEMELLE | Q15: Rehausse-NAKAMURHA | R15: Buse droite à collerette Ø8 M445 FRD | S15: plot nez de marche
B16: Compteur 8h | D16: 0 | E16: 4405 | F16: 2021 | G16: 8438 | H16: 4771 | I16: 4744 | J16: 1074 | K16: 0 | L16: 44 | M16: 5104 | N16: 0 | O16: 1012 | P16: 0 | Q16: 1216 | R16: 7352 | S16: 0
B17: Compteur 17h | D17: 0 | E17: 4945 | F17: 2297 | G17: 8680 | H17: 4771 | I17: 5101 | J17: 1090 | K17: 0 | L17: 53 | M17: 5314 | N17: 0 | O17: 1185 | P17: 202 | Q17: 1686 | R17: 7993 | S17: 0
B18: Enregistrement | C18: 9h
C19: 16h
B20: Identification
B21: Propreté des tables de contrôle
B22: Rangement des outils de contrôle
B23: Existance de l'OF
B24: Affutage | T24: =+COUNTA(D24:S24) -> 0
B25: Maintenance
B26: Nombre des NC poubelle
B27: Nombre des NC à retoucher
B28: Machine pour retouche
B29: Panne
B30: Cout pièces de rechange | T30: =SUM(D30:S30) -> 0
B31: prix de revient pièce | D31: =IFERROR(VLOOKUP(D14,'Prix de revient'!$A:$D,4,0),0) -> 2.528 | E31: =IFERROR(VLOOKUP(E14,'Prix de revient'!$A:$D,4,0),0) -> 0 | F31: =IFERROR(VLOOKUP(F14,'Prix de revient'!$A:$D,4,0),0) -> 0 | G31: =IFERROR(VLOOKUP(G14,'Prix de revient'!$A:$D,4,0),0) -> 0 | H31: =IFERROR(VLOOKUP(H14,'Prix de revient'!$A:$D,4,0),0) -> 0 | I31: =IFERROR(VLOOKUP(I14,'Prix de revient'!$A:$D,4,0),0) -> 0 | J31: =IFERROR(VLOOKUP(J14,'Prix de revient'!$A:$D,4,0),0) -> 2.1488 | K31: =IFERROR(VLOOKUP(K14,'Prix de revient'!$A:$D,4,0),0) -> 0 | L31: =IFERROR(VLOOKUP(L14,'Prix de revient'!$A:$D,4,0),0) -> 5.372 | M31: =IFERROR(VLOOKUP(M14,'Prix de revient'!$A:$D,4,0),0) -> 0 | N31: =IFERROR(VLOOKUP(N14,'Prix de revient'!$A:$D,4,0),0) -> 0 | O31: =IFERROR(VLOOKUP(O14,'Prix de revient'!$A:$D,4,0),0) -> 0 | P31: =IFERROR(VLOOKUP(P14,'Prix de revient'!$A:$D,4,0),0) -> 0 | Q31: =IFERROR(VLOOKUP(Q14,'Prix de revient'!$A:$D,4,0),0) -> 0 | R31: =IFERROR(VLOOKUP(R14,'Prix de revient'!$A:$D,4,0),0) -> 0 | S31: =IFERROR(VLOOKUP(S14,'Prix de revient'!$A:$D,4,0),0) -> 0.4424
B32: coût de rebuts | D32: =D26*D31 -> 0 | E32: =E26*E31 -> 0 | F32: 0 | G32: 0 | H32: 0 | I32: 0 | J32: 0 | K32: 0 | L32: 0 | M32: 0 | N32: 0 | O32: 0 | P32: 0 | Q32: 0 | R32: 0 | S32: 0 | T32: =SUM(D32:S32) -> 0
B33: gestion de modification
C41: Clients | D41: Audit | E41: Réclamation | F41: Avoir | H41: Fournisseurs/ sous-traitants | I41: Réception de matiere | J41: Probleme qualité | L41: Les formations professionnelles | M41: Cout | N41: Chiffrage décliné | O41: Actions à suivre | Q41: Article qui a subit un tri | R41: durée du tri | S41: Nombre des pieces non-conformes | T41: ouvrier faisant le tri | U41: cout par tri | W41: Article qui a subit la reprise | X41: durée de la reprise | Y41: opérateur faisant la reprise | Z41: coût de reprise | AD41: Machine | AE41: article | AF41: gamme | AG41: objet de la modification
U42: =IF(R42="","",R42*VLOOKUP(T42,'cout opérateur machines'!A1:B8,2,0)) ->  | Z42: =X42*8 -> 0
U43: =IF(R43="","",R43*VLOOKUP(T43,'cout opérateur machines'!A2:B9,2,0)) ->  | Z43: =X43*8 -> 0
U44: =IF(R44="","",R44*VLOOKUP(T44,'cout opérateur machines'!A3:B10,2,0)) ->  | Z44: 0
U45: =IF(R45="","",R45*VLOOKUP(T45,'cout opérateur machines'!A4:B11,2,0)) ->  | Z45: 0
U46: =IF(R46="","",R46*VLOOKUP(T46,'cout opérateur machines'!A5:B12,2,0)) ->  | Z46: 0
U47: =IF(R47="","",R47*VLOOKUP(T47,'cout opérateur machines'!A6:B13,2,0)) ->  | Z47: 0
E48: =COUNTA(E42:E47) -> 0 | F48: =SUM(F42:F47) -> 0 | M48: =SUM(M42:M47) -> 0 | N48: causes de refus | S48: cout total du jour | U48: =SUM(U42:U47) -> 0 | Z48: 0
H49: envoi des réclamations F/ S-T | I49: réponse F/ S-T | J49: alerte | Z49: =SUM(Z42:Z48) -> 0
C50: dans le cas d'une réclamation | J50: =IF(J42="","",IF(H50=0," réclamation non traitée",IF(I50=0, "veuillez contacter le F/ S-T par téléphone",""))) ->  | S50: N° mois | U50: 4
C51: nombre de pièces NC | J51: =IF(J43="","",IF(H51=0," réclamation non traitée",IF(I51=0, "veuillez contacter le F/ S-T par téléphone",""))) -> 
C52: nombre de pièces par carton
C53: coût de transport par carton
C54: nombre de cartons renvoyés
C55: temps de tri
C56: coût horaire de tri
C57: temps de retouche
C58: coût horaire de retouche
C59: temps de traitement de la réclamation
C60: coût horaire de traitement
C61: coût total | D61: =IFERROR(((D51/D52)*D53)+D54*D53+D55*D56+D57*D58+D59*D60,"") -> 

Sheet 31-3-22
E2: Rapport journalier | R2: Code:DAS-SMQ-24
R3: Date: 27/12/2019
R4: Version:01
R5: Page:1
D12: A | E12: B | F12: C | G12: D | H12: E | I12: F | J12: M | K12: N | L12: O | M12: P | N12: I | O12: L | P12: K | Q12: J | R12: G | S12: H
B13: Machine | D13: SST16 | E13: SB16 | F13: BIGLIA 301 SM | G13: BIGLIA 42 S2M bitourelle | H13: L32 | I13: TSUGAMI | J13: MORI SEIKI 3 axes | K13: MORI SEIKI 5 axes | L13: HARDING | M13: KITAMURA | N13: MULTIBROCHE | O13: NAKAMURA | P13: TOUR WEILER
B14: Référence | D14: BROCH L 230 | E14: G022-CP1 | F14: 230500 | G14: MI018-B42 | H14: 200200-2022 | I14: i097-tsughami | J14: I110-01-004 | K14: PIG-11D | L14: 480387 | M14: 9518-maj | N14: MPS000300 | O14: I007 | P14: I143-CP1 | Q14: PT8666 | R14: 68.0815 | S14: outi-plot
B15: Désignation | D15: BROCHE ACIER D13 ZINGUE L230 | E15: AXE D15-M11*100 maj-c | F15: BRAS DE MANOEUVRE G MAN | G15: GOUJON DE ROUE MITSIBITCHI GM-SUR-B42 | H15: Embout de tige-2022 | I15: ECROU DE ROUE FORD RANGER- finition rayon | J15: INSERT LEVIER SURMOULEE 345833-01 - fraisage | K15: PIGNON 11 DENTS FRAISAGE | L15: Evacuation 2 et 3 | M15: USINAGE BORNE RBD-1 | N15: raccord HEX 17 | O15: ECROU SEMI ARBRE ISUZU | P15: ECROU DE ROUE ISUZU-CP1 | Q15: Rehausse-NAKAMURHA | R15: Buse droite à collerette Ø8 M445 FRD | S15: plot nez de marche
B16: Compteur 8h | D16: 0 | E16: 3913 | F16: 1755 | G16: 8183 | H16: 4771 | I16: 4314 | J16: 1074 | K16: 0 | L16: 35 | M16: 4934 | N16: 0 | O16: 831 | P16: 3538 | Q16: 0 | R16: 6664 | S16: 0
B17: Compteur 17h | D17: 0 | E17: 4405 | F17: 2021 | G17: 8438 | H17: 4771 | I17: 4744 | J17: 1074 | K17: 0 | L17: 44 | M17: 5104 | N17: 0 | O17: 1012 | P17: 3817 | Q17: 1216 | R17: 7352 | S17: 0
B18: Enregistrement | C18: 9h
C19: 16h
B20: Identification
B21: Propreté des tables de contrôle
B22: Rangement des outils de contrôle
B23: Existance de l'OF
B24: Affutage | T24: =+COUNTA(D24:S24) -> 0
B25: Maintenance
B26: Nombre des NC poubelle
B27: Nombre des NC à retoucher
B28: Machine pour retouche
B29: Panne
B30: Cout pièces de rechange | T30: =SUM(D30:S30) -> 0
B31: prix de revient pièce | D31: =IFERROR(VLOOKUP(D14,'Prix de revient'!$A:$D,4,0),0) -> 2.528 | E31: =IFERROR(VLOOKUP(E14,'Prix de revient'!$A:$D,4,0),0) -> 0 | F31: =IFERROR(VLOOKUP(F14,'Prix de revient'!$A:$D,4,0),0) -> 0 | G31: =IFERROR(VLOOKUP(G14,'Prix de revient'!$A:$D,4,0),0) -> 0 | H31: =IFERROR(VLOOKUP(H14,'Prix de revient'!$A:$D,4,0),0) -> 0 | I31: =IFERROR(VLOOKUP(I14,'Prix de revient'!$A:$D,4,0),0) -> 0 | J31: =IFERROR(VLOOKUP(J14,'Prix de revient'!$A:$D,4,0),0) -> 2.1488 | K31: =IFERROR(VLOOKUP(K14,'Prix de revient'!$A:$D,4,0),0) -> 0 | L31: =IFERROR(VLOOKUP(L14,'Prix de revient'!$A:$D,4,0),0) -> 5.372 | M31: =IFERROR(VLOOKUP(M14,'Prix de revient'!$A:$D,4,0),0) -> 0 | N31: =IFERROR(VLOOKUP(N14,'Prix de revient'!$A:$D,4,0),0) -> 0 | O31: =IFERROR(VLOOKUP(O14,'Prix de revient'!$A:$D,4,0),0) -> 0 | P31: =IFERROR(VLOOKUP(P14,'Prix de revient'!$A:$D,4,0),0) -> 0 | Q31: =IFERROR(VLOOKUP(Q14,'Prix de revient'!$A:$D,4,0),0) -> 0 | R31: =IFERROR(VLOOKUP(R14,'Prix de revient'!$A:$D,4,0),0) -> 0 | S31: =IFERROR(VLOOKUP(S14,'Prix de revient'!$A:$D,4,0),0) -> 0.4424
B32: coût de rebuts | D32: =D26*D31 -> 0 | E32: =E26*E31 -> 0 | F32: 0 | G32: 0 | H32: 0 | I32: 0 | J32: 0 | K32: 0 | L32: 0 | M32: 0 | N32: 0 | O32: 0 | P32: 0 | Q32: 0 | R32: 0 | S32: 0 | T32: =SUM(D32:S32) -> 0
B33: gestion de modification
C41: Clients | D41: Audit | E41: Réclamation | F41: Avoir | H41: Fournisseurs/ sous-traitants | I41: Réception de matiere | J41: Probleme qualité | L41: Les formations professionnelles | M41: Cout | N41: Chiffrage décliné | O41: Actions à suivre | Q41: Article qui a subit un tri | R41: durée du tri | S41: Nombre des pieces non-conformes | T41: ouvrier faisant le tri | U41: cout par tri | W41: Article qui a subit la reprise | X41: durée de la reprise | Y41: opérateur faisant la reprise | Z41: coût de reprise | AD41: Machine | AE41: article | AF41: gamme | AG41: objet de la modification
U42: =IF(R42="","",R42*VLOOKUP(T42,'cout opérateur machines'!A1:B8,2,0)) ->  | Z42: =X42*8 -> 0
U43: =IF(R43="","",R43*VLOOKUP(T43,'cout opérateur machines'!A2:B9,2,0)) ->  | Z43: =X43*8 -> 0
U44: =IF(R44="","",R44*VLOOKUP(T44,'cout opérateur machines'!A3:B10,2,0)) ->  | Z44: 0
U45: =IF(R45="","",R45*VLOOKUP(T45,'cout opérateur machines'!A4:B11,2,0)) ->  | Z45: 0
U46: =IF(R46="","",R46*VLOOKUP(T46,'cout opérateur machines'!A5:B12,2,0)) ->  | Z46: 0
U47: =IF(R47="","",R47*VLOOKUP(T47,'cout opérateur machines'!A6:B13,2,0)) ->  | Z47: 0
E48: =COUNTA(E42:E47) -> 0 | F48: =SUM(F42:F47) -> 0 | M48: =SUM(M42:M47) -> 0 | N48: causes de refus | S48: cout total du jour | U48: =SUM(U42:U47) -> 0 | Z48: 0
H49: envoi des réclamations F/ S-T | I49: réponse F/ S-T | J49: alerte | Z49: =SUM(Z42:Z48) -> 0
C50: dans le cas d'une réclamation | J50: =IF(J42="","",IF(H50=0," réclamation non traitée",IF(I50=0, "veuillez contacter le F/ S-T par téléphone",""))) ->  | S50: N° mois | U50: 3
C51: nombre de pièces NC | J51: =IF(J43="","",IF(H51=0," réclamation non traitée",IF(I51=0, "veuillez contacter le F/ S-T par téléphone",""))) -> 
C52: nombre de pièces par carton
C53: coût de transport par carton
C54: nombre de cartons renvoyés
C55: temps de tri
C56: coût horaire de tri
C57: temps de retouche
C58: coût horaire de retouche
C59: temps de traitement de la réclamation
C60: coût horaire de traitement
C61: coût total | D61: =IFERROR(((D51/D52)*D53)+D54*D53+D55*D56+D57*D58+D59*D60,"") -> 

Sheet 30-3-22
E2: Rapport journalier | R2: Code:DAS-SMQ-24
R3: Date: 27/12/2019
R4: Version:01
R5: Page:1
D12: A | E12: B | F12: C | G12: D | H12: E | I12: F | J12: M | K12: N | L12: O | M12: P | N12: I | O12: L | P12: K | Q12: J | R12: G | S12: H
B13: Machine | D13: SST16 | E13: SB16 | F13: BIGLIA 301 SM | G13: BIGLIA 42 S2M bitourelle | H13: L32 | I13: TSUGAMI | J13: MORI SEIKI 3 axes | K13: MORI SEIKI 5 axes | L13: HARDING | M13: KITAMURA | N13: MULTIBROCHE | O13: NAKAMURA | P13: TOUR WEILER
B14: Référence | D14: BROCH L 230 | E14: G022-CP1 | F14: 230500 | G14: MI018-B42 | H14: 200200-2022 | I14: i097-tsughami | J14: I110-01-004 | K14: PIG-11D | L14: 480387 | M14: 9518-maj | N14: MPS000300 | O14: I007 | P14: I143-CP1 | Q14: PT8666 | R14: 68.0815 | S14: outi-plot
B15: Désignation | D15: BROCHE ACIER D13 ZINGUE L230 | E15: AXE D15-M11*100 maj-c | F15: BRAS DE MANOEUVRE G MAN | G15: GOUJON DE ROUE MITSIBITCHI GM-SUR-B42 | H15: Embout de tige-2022 | I15: ECROU DE ROUE FORD RANGER- finition rayon | J15: INSERT LEVIER SURMOULEE 345833-01 - fraisage | K15: PIGNON 11 DENTS FRAISAGE | L15: Evacuation 2 et 3 | M15: USINAGE BORNE RBD-1 | N15: raccord HEX 17 | O15: ECROU SEMI ARBRE ISUZU | P15: ECROU DE ROUE ISUZU-CP1 | Q15: Rehausse-NAKAMURHA | R15: Buse droite à collerette Ø8 M445 FRD | S15: plot nez de marche
B16: Compteur 8h | D16: 0 | E16: 3508 | F16: 1491 | G16: 7938 | H16: 4771 | I16: 3847 | J16: 1074 | K16: 0 | L16: 24 | M16: 4732 | N16: 0 | O16: 570 | P16: 3130 | Q16: 1304 | R16: 6027 | S16: 0
B17: Compteur 17h | D17: 0 | E17: 3913 | F17: 1755 | G17: 8183 | H17: 4771 | I17: 4314 | J17: 1074 | K17: 0 | L17: 35 | M17: 4934 | N17: 0 | O17: 831 | P17: 3538 | Q17: 2242 | R17: 6664 | S17: 0
B18: Enregistrement | C18: 9h
C19: 16h
B20: Identification
B21: Propreté des tables de contrôle
B22: Rangement des outils de contrôle
B23: Existance de l'OF
B24: Affutage | T24: =+COUNTA(D24:S24) -> 0
B25: Maintenance
B26: Nombre des NC poubelle | E26: 5
B27: Nombre des NC à retoucher
B28: Machine pour retouche
B29: Panne
B30: Cout pièces de rechange | T30: =SUM(D30:S30) -> 0
B31: prix de revient pièce | D31: =IFERROR(VLOOKUP(D14,'Prix de revient'!$A:$D,4,0),0) -> 2.528 | E31: =IFERROR(VLOOKUP(E14,'Prix de revient'!$A:$D,4,0),0) -> 0 | F31: =IFERROR(VLOOKUP(F14,'Prix de revient'!$A:$D,4,0),0) -> 0 | G31: =IFERROR(VLOOKUP(G14,'Prix de revient'!$A:$D,4,0),0) -> 0 | H31: =IFERROR(VLOOKUP(H14,'Prix de revient'!$A:$D,4,0),0) -> 0 | I31: =IFERROR(VLOOKUP(I14,'Prix de revient'!$A:$D,4,0),0) -> 0 | J31: =IFERROR(VLOOKUP(J14,'Prix de revient'!$A:$D,4,0),0) -> 2.1488 | K31: =IFERROR(VLOOKUP(K14,'Prix de revient'!$A:$D,4,0),0) -> 0 | L31: =IFERROR(VLOOKUP(L14,'Prix de revient'!$A:$D,4,0),0) -> 5.372 | M31: =IFERROR(VLOOKUP(M14,'Prix de revient'!$A:$D,4,0),0) -> 0 | N31: =IFERROR(VLOOKUP(N14,'Prix de revient'!$A:$D,4,0),0) -> 0 | O31: =IFERROR(VLOOKUP(O14,'Prix de revient'!$A:$D,4,0),0) -> 0 | P31: =IFERROR(VLOOKUP(P14,'Prix de revient'!$A:$D,4,0),0) -> 0 | Q31: =IFERROR(VLOOKUP(Q14,'Prix de revient'!$A:$D,4,0),0) -> 0 | R31: =IFERROR(VLOOKUP(R14,'Prix de revient'!$A:$D,4,0),0) -> 0 | S31: =IFERROR(VLOOKUP(S14,'Prix de revient'!$A:$D,4,0),0) -> 0.4424
B32: coût de rebuts | D32: =D26*D31 -> 0 | E32: =E26*E31 -> 0 | F32: 0 | G32: 0 | H32: 0 | I32: 0 | J32: 0 | K32: 0 | L32: 0 | M32: 0 | N32: 0 | O32: 0 | P32: 0 | Q32: 0 | R32: 0 | S32: 0 | T32: =SUM(D32:S32) -> 0
B33: gestion de modification
C41: Clients | D41: Audit | E41: Réclamation | F41: Avoir | H41: Fournisseurs/ sous-traitants | I41: Réception de matiere | J41: Probleme qualité | L41: Les formations professionnelles | M41: Cout | N41: Chiffrage décliné | O41: Actions à suivre | Q41: Article qui a subit un tri | R41: durée du tri | S41: Nombre des pieces non-conformes | T41: ouvrier faisant le tri | U41: cout par tri | W41: Article qui a subit la reprise | X41: durée de la reprise | Y41: opérateur faisant la reprise | Z41: coût de reprise | AD41: Machine | AE41: article | AF41: gamme | AG41: objet de la modification
U42: =IF(R42="","",R42*VLOOKUP(T42,'cout opérateur machines'!A1:B8,2,0)) ->  | Z42: =X42*8 -> 0
U43: =IF(R43="","",R43*VLOOKUP(T43,'cout opérateur machines'!A2:B9,2,0)) ->  | Z43: =X43*8 -> 0
U44: =IF(R44="","",R44*VLOOKUP(T44,'cout opérateur machines'!A3:B10,2,0)) ->  | Z44: 0
U45: =IF(R45="","",R45*VLOOKUP(T45,'cout opérateur machines'!A4:B11,2,0)) ->  | Z45: 0
U46: =IF(R46="","",R46*VLOOKUP(T46,'cout opérateur machines'!A5:B12,2,0)) ->  | Z46: 0
U47: =IF(R47="","",R47*VLOOKUP(T47,'cout opérateur machines'!A6:B13,2,0)) ->  | Z47: 0
E48: =COUNTA(E42:E47) -> 0 | F48: =SUM(F42:F47) -> 0 | M48: =SUM(M42:M47) -> 0 | N48: causes de refus | S48: cout total du jour | U48: =SUM(U42:U47) -> 0 | Z48: 0
H49: envoi des réclamations F/ S-T | I49: réponse F/ S-T | J49: alerte | Z49: =SUM(Z42:Z48) -> 0
C50: dans le cas d'une réclamation | J50: =IF(J42="","",IF(H50=0," réclamation non traitée",IF(I50=0, "veuillez contacter le F/ S-T par téléphone",""))) ->  | S50: N° mois | U50: 3
C51: nombre de pièces NC | J51: =IF(J43="","",IF(H51=0," réclamation non traitée",IF(I51=0, "veuillez contacter le F/ S-T par téléphone",""))) -> 
C52: nombre de pièces par carton
C53: coût de transport par carton
C54: nombre de cartons renvoyés
C55: temps de tri
C56: coût horaire de tri
C57: temps de retouche
C58: coût horaire de retouche
C59: temps de traitement de la réclamation
C60: coût horaire de traitement
C61: coût total | D61: =IFERROR(((D51/D52)*D53)+D54*D53+D55*D56+D57*D58+D59*D60,"") -> 

Sheet 29-3-22
E2: Rapport journalier | R2: Code:DAS-SMQ-24
R3: Date: 27/12/2019
R4: Version:01
R5: Page:1
D12: A | E12: B | F12: C | G12: D | H12: E | I12: F | J12: M | K12: N | L12: O | M12: P | N12: I | O12: L | P12: K | Q12: J | R12: G | S12: H
B13: Machine | D13: SST16 | E13: SB16 | F13: BIGLIA 301 SM | G13: BIGLIA 42 S2M bitourelle | H13: L32 | I13: TSUGAMI | J13: MORI SEIKI 3 axes | K13: MORI SEIKI 5 axes | L13: HARDING | M13: KITAMURA | N13: MULTIBROCHE | O13: NAKAMURA | P13: TOUR WEILER
B14: Référence | D14: BROCH L 230 | E14: G022-CP1 | F14: 230500 | G14: MI018-B42 | H14: 200200-2022 | I14: i097-tsughami | J14: I110-01-004 | K14: PIG-11D | L14: 480387 | M14: 9518-maj | N14: MPS000300 | O14: I007 | P14: I143-CP1 | Q14: PT8666 | R14: 68.0815 | S14: outi-plot
B15: Désignation | D15: BROCHE ACIER D13 ZINGUE L230 | E15: AXE D15-M11*100 maj-c | F15: BRAS DE MANOEUVRE G MAN | G15: GOUJON DE ROUE MITSIBITCHI GM-SUR-B42 | H15: Embout de tige-2022 | I15: ECROU DE ROUE FORD RANGER- finition rayon | J15: INSERT LEVIER SURMOULEE 345833-01 - fraisage | K15: PIGNON 11 DENTS FRAISAGE | L15: Evacuation 2 et 3 | M15: USINAGE BORNE RBD-1 | N15: raccord HEX 17 | O15: ECROU SEMI ARBRE ISUZU | P15: ECROU DE ROUE ISUZU-CP1 | Q15: Rehausse-NAKAMURHA | R15: Buse droite à collerette Ø8 M445 FRD | S15: plot nez de marche
B16: Compteur 8h | D16: 0 | E16: 3033 | F16: 1223 | G16: 7634 | H16: 4771 | I16: 3419 | J16: 1061 | K16: 0 | L16: 14 | M16: 4582 | N16: 0 | O16: 354 | P16: 2954 | Q16: 787 | R16: 5360 | S16: 0
B17: Compteur 17h | D17: 0 | E17: 3508 | F17: 1491 | G17: 7938 | H17: 4771 | I17: 3847 | J17: 1074 | K17: 0 | L17: 24 | M17: 4732 | N17: 0 | O17: 570 | P17: 3130 | Q17: 1304 | R17: 6027 | S17: 0
B18: Enregistrement | C18: 9h
C19: 16h
B20: Identification
B21: Propreté des tables de contrôle
B22: Rangement des outils de contrôle
B23: Existance de l'OF
B24: Affutage | T24: =+COUNTA(D24:S24) -> 0
B25: Maintenance
B26: Nombre des NC poubelle | E26: 18 | R26: 2
B27: Nombre des NC à retoucher
B28: Machine pour retouche
B29: Panne
B30: Cout pièces de rechange | T30: =SUM(D30:S30) -> 0
B31: prix de revient pièce | D31: =IFERROR(VLOOKUP(D14,'Prix de revient'!$A:$D,4,0),0) -> 2.528 | E31: =IFERROR(VLOOKUP(E14,'Prix de revient'!$A:$D,4,0),0) -> 0 | F31: =IFERROR(VLOOKUP(F14,'Prix de revient'!$A:$D,4,0),0) -> 0 | G31: =IFERROR(VLOOKUP(G14,'Prix de revient'!$A:$D,4,0),0) -> 0 | H31: =IFERROR(VLOOKUP(H14,'Prix de revient'!$A:$D,4,0),0) -> 0 | I31: =IFERROR(VLOOKUP(I14,'Prix de revient'!$A:$D,4,0),0) -> 0 | J31: =IFERROR(VLOOKUP(J14,'Prix de revient'!$A:$D,4,0),0) -> 2.1488 | K31: =IFERROR(VLOOKUP(K14,'Prix de revient'!$A:$D,4,0),0) -> 0 | L31: =IFERROR(VLOOKUP(L14,'Prix de revient'!$A:$D,4,0),0) -> 5.372 | M31: =IFERROR(VLOOKUP(M14,'Prix de revient'!$A:$D,4,0),0) -> 0 | N31: =IFERROR(VLOOKUP(N14,'Prix de revient'!$A:$D,4,0),0) -> 0 | O31: =IFERROR(VLOOKUP(O14,'Prix de revient'!$A:$D,4,0),0) -> 0 | P31: =IFERROR(VLOOKUP(P14,'Prix de revient'!$A:$D,4,0),0) -> 0 | Q31: =IFERROR(VLOOKUP(Q14,'Prix de revient'!$A:$D,4,0),0) -> 0 | R31: =IFERROR(VLOOKUP(R14,'Prix de revient'!$A:$D,4,0),0) -> 0 | S31: =IFERROR(VLOOKUP(S14,'Prix de revient'!$A:$D,4,0),0) -> 0.4424
B32: coût de rebuts | D32: =D26*D31 -> 0 | E32: =E26*E31 -> 0 | F32: 0 | G32: 0 | H32: 0 | I32: 0 | J32: 0 | K32: 0 | L32: 0 | M32: 0 | N32: 0 | O32: 0 | P32: 0 | Q32: 0 | R32: 0 | S32: 0 | T32: =SUM(D32:S32) -> 0
B33: gestion de modification
C41: Clients | D41: Audit | E41: Réclamation | F41: Avoir | H41: Fournisseurs/ sous-traitants | I41: Réception de matiere | J41: Probleme qualité | L41: Les formations professionnelles | M41: Cout | N41: Chiffrage décliné | O41: Actions à suivre | Q41: Article qui a subit un tri | R41: durée du tri | S41: Nombre des pieces non-conformes | T41: ouvrier faisant le tri | U41: cout par tri | W41: Article qui a subit la reprise | X41: durée de la reprise | Y41: opérateur faisant la reprise | Z41: coût de reprise | AD41: Machine | AE41: article | AF41: gamme | AG41: objet de la modification
U42: =IF(R42="","",R42*VLOOKUP(T42,'cout opérateur machines'!A1:B8,2,0)) ->  | Z42: =X42*8 -> 0
U43: =IF(R43="","",R43*VLOOKUP(T43,'cout opérateur machines'!A2:B9,2,0)) ->  | Z43: =X43*8 -> 0
U44: =IF(R44="","",R44*VLOOKUP(T44,'cout opérateur machines'!A3:B10,2,0)) ->  | Z44: 0
U45: =IF(R45="","",R45*VLOOKUP(T45,'cout opérateur machines'!A4:B11,2,0)) ->  | Z45: 0
U46: =IF(R46="","",R46*VLOOKUP(T46,'cout opérateur machines'!A5:B12,2,0)) ->  | Z46: 0
U47: =IF(R47="","",R47*VLOOKUP(T47,'cout opérateur machines'!A6:B13,2,0)) ->  | Z47: 0
E48: =COUNTA(E42:E47) -> 0 | F48: =SUM(F42:F47) -> 0 | M48: =SUM(M42:M47) -> 0 | N48: causes de refus | S48: cout total du jour | U48: =SUM(U42:U47) -> 0 | Z48: 0
H49: envoi des réclamations F/ S-T | I49: réponse F/ S-T | J49: alerte | Z49: =SUM(Z42:Z48) -> 0
C50: dans le cas d'une réclamation | J50: =IF(J42="","",IF(H50=0," réclamation non traitée",IF(I50=0, "veuillez contacter le F/ S-T par téléphone",""))) ->  | S50: N° mois | U50: 3
C51: nombre de pièces NC | J51: =IF(J43="","",IF(H51=0," réclamation non traitée",IF(I51=0, "veuillez contacter le F/ S-T par téléphone",""))) -> 
C52: nombre de pièces par carton
C53: coût de transport par carton
C54: nombre de cartons renvoyés
C55: temps de tri
C56: coût horaire de tri
C57: temps de retouche
C58: coût horaire de retouche
C59: temps de traitement de la réclamation
C60: coût horaire de traitement
C61: coût total | D61: =IFERROR(((D51/D52)*D53)+D54*D53+D55*D56+D57*D58+D59*D60,"") -> 

Sheet 28-3-22
E2: Rapport journalier | R2: Code:DAS-SMQ-24
R3: Date: 27/12/2019
R4: Version:01
R5: Page:1
D12: A | E12: B | F12: C | G12: D | H12: E | I12: F | J12: M | K12: N | L12: O | M12: P | N12: I | O12: L | P12: K | Q12: J | R12: G | S12: H
B13: Machine | D13: SST16 | E13: SB16 | F13: BIGLIA 301 SM | G13: BIGLIA 42 S2M bitourelle | H13: L32 | I13: TSUGAMI | J13: MORI SEIKI 3 axes | K13: MORI SEIKI 5 axes | L13: HARDING | M13: KITAMURA | N13: MULTIBROCHE | O13: NAKAMURA | P13: TOUR WEILER
B14: Référence | D14: BROCH L 230 | E14: G022-CP1 | F14: 230500 | G14: MI018-B42 | H14: 200200-2022 | I14: i097-tsughami | J14: I110-01-004 | K14: PIG-11D | L14: 480387 | M14: 9518-maj | N14: MPS000300 | O14: I007 | P14: I143-CP1 | Q14: PT8666 | R14: 68.0815 | S14: outi-plot
B15: Désignation | D15: BROCHE ACIER D13 ZINGUE L230 | E15: AXE D15-M11x100 | F15: BRAS DE MANOEUVRE G MAN | G15: GOUJON DE ROUE MITSIBITCHI GM-SUR-B42 | H15: Embout de tige-2022 | I15: ECROU DE ROUE FORD RANGER- finition rayon | J15: INSERT LEVIER SURMOULEE 345833-01 - fraisage | K15: PIGNON 11 DENTS FRAISAGE | L15: Evacuation 2 et 3 | M15: USINAGE BORNE RBD-1 | N15: raccord HEX 17 | O15: ECROU SEMI ARBRE ISUZU | P15: ECROU DE ROUE ISUZU-CP1 | Q15: Rehausse-NAKAMURHA | R15: Buse droite à collerette Ø8 M445 FRD | S15: plot nez de marche
B16: Compteur 8h | D16: 0 | E16: 2744 | F16: 1083 | G16: 7360 | H16: 4771 | I16: 2918 | J16: 1025 | K16: 0 | L16: 4 | M16: 4405 | N16: 0 | O16: 114 | P16: 2610 | Q16: 0 | R16: 4648 | S16: 816
B17: Compteur 17h | D17: 239 | E17: 3033 | F17: 1223 | G17: 7634 | H17: 4771 | I17: 3419 | J17: 1061 | K17: 0 | L17: 14 | M17: 4582 | N17: 0 | O17: 354 | P17: 2954 | Q17: 787 | R17: 5360 | S17: 816
B18: Enregistrement | C18: 9h
C19: 16h
B20: Identification
B21: Propreté des tables de contrôle
B22: Rangement des outils de contrôle
B23: Existance de l'OF
B24: Affutage | T24: =+COUNTA(D24:S24) -> 0
B25: Maintenance
B26: Nombre des NC poubelle
B27: Nombre des NC à retoucher
B28: Machine pour retouche
B29: Panne
B30: Cout pièces de rechange | T30: =SUM(D30:S30) -> 0
B31: prix de revient pièce | D31: =IFERROR(VLOOKUP(D14,'Prix de revient'!$A:$D,4,0),0) -> 2.528 | E31: =IFERROR(VLOOKUP(E14,'Prix de revient'!$A:$D,4,0),0) -> 0 | F31: =IFERROR(VLOOKUP(F14,'Prix de revient'!$A:$D,4,0),0) -> 0 | G31: =IFERROR(VLOOKUP(G14,'Prix de revient'!$A:$D,4,0),0) -> 0 | H31: =IFERROR(VLOOKUP(H14,'Prix de revient'!$A:$D,4,0),0) -> 0 | I31: =IFERROR(VLOOKUP(I14,'Prix de revient'!$A:$D,4,0),0) -> 0 | J31: =IFERROR(VLOOKUP(J14,'Prix de revient'!$A:$D,4,0),0) -> 2.1488 | K31: =IFERROR(VLOOKUP(K14,'Prix de revient'!$A:$D,4,0),0) -> 0 | L31: =IFERROR(VLOOKUP(L14,'Prix de revient'!$A:$D,4,0),0) -> 5.372 | M31: =IFERROR(VLOOKUP(M14,'Prix de revient'!$A:$D,4,0),0) -> 0 | N31: =IFERROR(VLOOKUP(N14,'Prix de revient'!$A:$D,4,0),0) -> 0 | O31: =IFERROR(VLOOKUP(O14,'Prix de revient'!$A:$D,4,0),0) -> 0 | P31: =IFERROR(VLOOKUP(P14,'Prix de revient'!$A:$D,4,0),0) -> 0 | Q31: =IFERROR(VLOOKUP(Q14,'Prix de revient'!$A:$D,4,0),0) -> 0 | R31: =IFERROR(VLOOKUP(R14,'Prix de revient'!$A:$D,4,0),0) -> 0 | S31: =IFERROR(VLOOKUP(S14,'Prix de revient'!$A:$D,4,0),0) -> 0.4424
B32: coût de rebuts | D32: =D26*D31 -> 0 | E32: =E26*E31 -> 0 | F32: 0 | G32: 0 | H32: 0 | I32: 0 | J32: 0 | K32: 0 | L32: 0 | M32: 0 | N32: 0 | O32: 0 | P32: 0 | Q32: 0 | R32: 0 | S32: 0 | T32: =SUM(D32:S32) -> 0
B33: gestion de modification
C41: Clients | D41: Audit | E41: Réclamation | F41: Avoir | H41: Fournisseurs/ sous-traitants | I41: Réception de matiere | J41: Probleme qualité | L41: Les formations professionnelles | M41: Cout | N41: Chiffrage décliné | O41: Actions à suivre | Q41: Article qui a subit un tri | R41: durée du tri | S41: Nombre des pieces non-conformes | T41: ouvrier faisant le tri | U41: cout par tri | W41: Article qui a subit la reprise | X41: durée de la reprise | Y41: opérateur faisant la reprise | Z41: coût de reprise | AD41: Machine | AE41: article | AF41: gamme | AG41: objet de la modification
U42: =IF(R42="","",R42*VLOOKUP(T42,'cout opérateur machines'!A1:B8,2,0)) ->  | Z42: =X42*8 -> 0
U43: =IF(R43="","",R43*VLOOKUP(T43,'cout opérateur machines'!A2:B9,2,0)) ->  | Z43: =X43*8 -> 0
U44: =IF(R44="","",R44*VLOOKUP(T44,'cout opérateur machines'!A3:B10,2,0)) ->  | Z44: 0
U45: =IF(R45="","",R45*VLOOKUP(T45,'cout opérateur machines'!A4:B11,2,0)) ->  | Z45: 0
U46: =IF(R46="","",R46*VLOOKUP(T46,'cout opérateur machines'!A5:B12,2,0)) ->  | Z46: 0
U47: =IF(R47="","",R47*VLOOKUP(T47,'cout opérateur machines'!A6:B13,2,0)) ->  | Z47: 0
E48: =COUNTA(E42:E47) -> 0 | F48: =SUM(F42:F47) -> 0 | M48: =SUM(M42:M47) -> 0 | N48: causes de refus | S48: cout total du jour | U48: =SUM(U42:U47) -> 0 | Z48: 0
H49: envoi des réclamations F/ S-T | I49: réponse F/ S-T | J49: alerte | Z49: =SUM(Z42:Z48) -> 0
C50: dans le cas d'une réclamation | J50: =IF(J42="","",IF(H50=0," réclamation non traitée",IF(I50=0, "veuillez contacter le F/ S-T par téléphone",""))) ->  | S50: N° mois | U50: 3
C51: nombre de pièces NC | J51: =IF(J43="","",IF(H51=0," réclamation non traitée",IF(I51=0, "veuillez contacter le F/ S-T par téléphone",""))) -> 
C52: nombre de pièces par carton
C53: coût de transport par carton
C54: nombre de cartons renvoyés
C55: temps de tri
C56: coût horaire de tri
C57: temps de retouche
C58: coût horaire de retouche
C59: temps de traitement de la réclamation
C60: coût horaire de traitement
C61: coût total | D61: =IFERROR(((D51/D52)*D53)+D54*D53+D55*D56+D57*D58+D59*D60,"") -> 

Sheet 26-3-22
E2: Rapport journalier | R2: Code:DAS-SMQ-24
R3: Date: 27/12/2019
R4: Version:01
R5: Page:1
D12: A | E12: B | F12: C | G12: D | H12: E | I12: F | J12: M | K12: N | L12: O | M12: P | N12: I | O12: L | P12: K | Q12: J | R12: G | S12: H
B13: Machine | D13: SST16 | E13: SB16 | F13: BIGLIA 301 SM | G13: BIGLIA 42 S2M bitourelle | H13: L32 | I13: TSUGAMI | J13: MORI SEIKI 3 axes | K13: MORI SEIKI 5 axes | L13: HARDING | M13: KITAMURA | N13: MULTIBROCHE | O13: NAKAMURA | P13: TOUR WEILER
B14: Référence | D14: 200101 | E14: G022-CP1 | F14: 230500 | G14: MI018-B42 | H14: 200200-2022 | I14: i097-tsughami | J14: I110-01-004 | K14: PIG-11D | L14: 480387-SF-pf | M14: 9518-maj | N14: MPS000300 | O14: I007 | P14: I143-CP1 | Q14: PT8666 | R14: 68.0815 | S14: outi-plot
B15: Désignation | D15: AXE D'ARTICULATION | E15: AXE D15-M11x100 | F15: BRAS DE MANOEUVRE G MAN | G15: GOUJON DE ROUE MITSIBITCHI GM-SUR-B42 | H15: Embout de tige-2022 | I15: ECROU DE ROUE FORD RANGER- finition rayon | J15: INSERT LEVIER SURMOULEE 345833-01 - fraisage | K15: PIGNON 11 DENTS FRAISAGE | L15: EVACUATION 2/3G X-ONE-harding-CARRE+M4 | M15: USINAGE BORNE RBD-1 | N15: raccord HEX 17 | O15: ECROU SEMI ARBRE ISUZU | P15: ECROU DE ROUE ISUZU-CP1 | Q15: Rehausse-NAKAMURHA | R15: Buse droite à collerette Ø8 M445 FRD | S15: plot nez de marche
B16: Compteur 8h | D16: 6195 | E16: 2482 | F16: 1064 | G16: 7144 | H16: 4771 | I16: 2660 | J16: 1001 | K16: 0 | L16: 0 | M16: 4296 | N16: 0 | O16: 0 | P16: 2362 | Q16: 1577 | R16: 4262 | S16: 816
B17: Compteur 17h | D17: 6195 | E17: 2744 | F17: 1083 | G17: 7360 | H17: 4771 | I17: 2918 | J17: 1025 | K17: 0 | L17: 4 | M17: 4405 | N17: 0 | O17: 114 | P17: 2610 | Q17: 2200 | R17: 4648 | S17: 816
B18: Enregistrement | C18: 9h
C19: 16h
B20: Identification
B21: Propreté des tables de contrôle
B22: Rangement des outils de contrôle
B23: Existance de l'OF
B24: Affutage | T24: =+COUNTA(D24:S24) -> 0
B25: Maintenance
B26: Nombre des NC poubelle
B27: Nombre des NC à retoucher
B28: Machine pour retouche
B29: Panne
B30: Cout pièces de rechange | T30: =SUM(D30:S30) -> 0
B31: prix de revient pièce | D31: =IFERROR(VLOOKUP(D14,'Prix de revient'!$A:$D,4,0),0) -> 0.5056 | E31: =IFERROR(VLOOKUP(E14,'Prix de revient'!$A:$D,4,0),0) -> 0 | F31: =IFERROR(VLOOKUP(F14,'Prix de revient'!$A:$D,4,0),0) -> 0 | G31: =IFERROR(VLOOKUP(G14,'Prix de revient'!$A:$D,4,0),0) -> 0 | H31: =IFERROR(VLOOKUP(H14,'Prix de revient'!$A:$D,4,0),0) -> 0 | I31: =IFERROR(VLOOKUP(I14,'Prix de revient'!$A:$D,4,0),0) -> 0 | J31: =IFERROR(VLOOKUP(J14,'Prix de revient'!$A:$D,4,0),0) -> 2.1488 | K31: =IFERROR(VLOOKUP(K14,'Prix de revient'!$A:$D,4,0),0) -> 0 | L31: =IFERROR(VLOOKUP(L14,'Prix de revient'!$A:$D,4,0),0) -> 0 | M31: =IFERROR(VLOOKUP(M14,'Prix de revient'!$A:$D,4,0),0) -> 0 | N31: =IFERROR(VLOOKUP(N14,'Prix de revient'!$A:$D,4,0),0) -> 0 | O31: =IFERROR(VLOOKUP(O14,'Prix de revient'!$A:$D,4,0),0) -> 0 | P31: =IFERROR(VLOOKUP(P14,'Prix de revient'!$A:$D,4,0),0) -> 0 | Q31: =IFERROR(VLOOKUP(Q14,'Prix de revient'!$A:$D,4,0),0) -> 0 | R31: =IFERROR(VLOOKUP(R14,'Prix de revient'!$A:$D,4,0),0) -> 0 | S31: =IFERROR(VLOOKUP(S14,'Prix de revient'!$A:$D,4,0),0) -> 0.4424
B32: coût de rebuts | D32: =D26*D31 -> 0 | E32: =E26*E31 -> 0 | F32: 0 | G32: 0 | H32: 0 | I32: 0 | J32: 0 | K32: 0 | L32: 0 | M32: 0 | N32: 0 | O32: 0 | P32: 0 | Q32: 0 | R32: 0 | S32: 0 | T32: =SUM(D32:S32) -> 0
B33: gestion de modification
C41: Clients | D41: Audit | E41: Réclamation | F41: Avoir | H41: Fournisseurs/ sous-traitants | I41: Réception de matiere | J41: Probleme qualité | L41: Les formations professionnelles | M41: Cout | N41: Chiffrage décliné | O41: Actions à suivre | Q41: Article qui a subit un tri | R41: durée du tri | S41: Nombre des pieces non-conformes | T41: ouvrier faisant le tri | U41: cout par tri | W41: Article qui a subit la reprise | X41: durée de la reprise | Y41: opérateur faisant la reprise | Z41: coût de reprise | AD41: Machine | AE41: article | AF41: gamme | AG41: objet de la modification
U42: =IF(R42="","",R42*VLOOKUP(T42,'cout opérateur machines'!A1:B8,2,0)) ->  | Z42: =X42*8 -> 0
U43: =IF(R43="","",R43*VLOOKUP(T43,'cout opérateur machines'!A2:B9,2,0)) ->  | Z43: =X43*8 -> 0
U44: =IF(R44="","",R44*VLOOKUP(T44,'cout opérateur machines'!A3:B10,2,0)) ->  | Z44: 0
U45: =IF(R45="","",R45*VLOOKUP(T45,'cout opérateur machines'!A4:B11,2,0)) ->  | Z45: 0
U46: =IF(R46="","",R46*VLOOKUP(T46,'cout opérateur machines'!A5:B12,2,0)) ->  | Z46: 0
U47: =IF(R47="","",R47*VLOOKUP(T47,'cout opérateur machines'!A6:B13,2,0)) ->  | Z47: 0
E48: =COUNTA(E42:E47) -> 0 | F48: =SUM(F42:F47) -> 0 | M48: =SUM(M42:M47) -> 0 | N48: causes de refus | S48: cout total du jour | U48: =SUM(U42:U47) -> 0 | Z48: 0
H49: envoi des réclamations F/ S-T | I49: réponse F/ S-T | J49: alerte | Z49: =SUM(Z42:Z48) -> 0
C50: dans le cas d'une réclamation | J50: =IF(J42="","",IF(H50=0," réclamation non traitée",IF(I50=0, "veuillez contacter le F/ S-T par téléphone",""))) ->  | S50: N° mois | U50: 3
C51: nombre de pièces NC | J51: =IF(J43="","",IF(H51=0," réclamation non traitée",IF(I51=0, "veuillez contacter le F/ S-T par téléphone",""))) -> 
C52: nombre de pièces par carton
C53: coût de transport par carton
C54: nombre de cartons renvoyés
C55: temps de tri
C56: coût horaire de tri
C57: temps de retouche
C58: coût horaire de retouche
C59: temps de traitement de la réclamation
C60: coût horaire de traitement
C61: coût total | D61: =IFERROR(((D51/D52)*D53)+D54*D53+D55*D56+D57*D58+D59*D60,"") -> 

Sheet 25-3-22
E2: Rapport journalier | R2: Code:DAS-SMQ-24
R3: Date: 27/12/2019
R4: Version:01
R5: Page:1
D12: A | E12: B | F12: C | G12: D | H12: E | I12: F | J12: M | K12: N | L12: O | M12: P | N12: I | O12: L | P12: K | Q12: J | R12: G | S12: H
B13: Machine | D13: SST16 | E13: SB16 | F13: BIGLIA 301 SM | G13: BIGLIA 42 S2M bitourelle | H13: L32 | I13: TSUGAMI | J13: MORI SEIKI 3 axes | K13: MORI SEIKI 5 axes | L13: HARDING | M13: KITAMURA | N13: MULTIBROCHE | O13: NAKAMURA | P13: TOUR WEILER
B14: Référence | D14: 200101 | E14: G022-CP1 | F14: 230500 | G14: MI018-B42 | H14: 200200-2022 | I14: i097-tsughami | J14: I110-01-004 | K14: PIG-11D | L14: I006 | M14: 9518-maj | N14: MPS000300 | O14: F046-CP2 | P14: I143-CP1 | Q14: PT8666 | R14: 68.0815 | S14: outi-plot
B15: Désignation | D15: AXE D'ARTICULATION | E15: AXE D15-M11x100 | F15: BRAS DE MANOEUVRE G MAN | G15: GOUJON DE ROUE MITSIBITCHI GM-SUR-B42 | H15: Embout de tige-2022 | I15: ECROU DE ROUE FORD RANGER- finition rayon | J15: INSERT LEVIER SURMOULEE 345833-01 - fraisage | K15: PIGNON 11 DENTS FRAISAGE | L15: CAL SUSPENSION PM ISUZU-HARDING | M15: USINAGE BORNE RBD-1 | N15: raccord HEX 17 | O15: BADUE DECOLLETTE TUBE D'EAU PALIO-CP2 | P15: ECROU DE ROUE ISUZU-CP1 | Q15: Rehausse-NAKAMURHA | R15: Buse droite à collerette Ø8 M445 FRD | S15: plot nez de marche
B16: Compteur 8h | D16: 5181 | E16: 2057 | F16: 867 | G16: 6776 | H16: 4771 | I16: 1968 | J16: 969 | K16: 0 | L16: 0 | M16: 4167 | N16: 0 | O16: 720 | P16: 1922 | Q16: 977 | R16: 3731 | S16: 313
B17: Compteur 17h | D17: 6195 | E17: 2482 | F17: 1064 | G17: 7144 | H17: 4771 | I17: 2660 | J17: 1001 | K17: 0 | L17: 0 | M17: 4296 | N17: 0 | O17: 768 | P17: 2362 | Q17: 1577 | R17: 4262 | S17: 816
B18: Enregistrement | C18: 9h
C19: 16h
B20: Identification
B21: Propreté des tables de contrôle
B22: Rangement des outils de contrôle
B23: Existance de l'OF
B24: Affutage | T24: =+COUNTA(D24:S24) -> 0
B25: Maintenance
B26: Nombre des NC poubelle
B27: Nombre des NC à retoucher
B28: Machine pour retouche
B29: Panne
B30: Cout pièces de rechange | T30: =SUM(D30:S30) -> 0
B31: prix de revient pièce | D31: =IFERROR(VLOOKUP(D14,'Prix de revient'!$A:$D,4,0),0) -> 0.5056 | E31: =IFERROR(VLOOKUP(E14,'Prix de revient'!$A:$D,4,0),0) -> 0 | F31: =IFERROR(VLOOKUP(F14,'Prix de revient'!$A:$D,4,0),0) -> 0 | G31: =IFERROR(VLOOKUP(G14,'Prix de revient'!$A:$D,4,0),0) -> 0 | H31: =IFERROR(VLOOKUP(H14,'Prix de revient'!$A:$D,4,0),0) -> 0 | I31: =IFERROR(VLOOKUP(I14,'Prix de revient'!$A:$D,4,0),0) -> 0 | J31: =IFERROR(VLOOKUP(J14,'Prix de revient'!$A:$D,4,0),0) -> 2.1488 | K31: =IFERROR(VLOOKUP(K14,'Prix de revient'!$A:$D,4,0),0) -> 0 | L31: =IFERROR(VLOOKUP(L14,'Prix de revient'!$A:$D,4,0),0) -> 0 | M31: =IFERROR(VLOOKUP(M14,'Prix de revient'!$A:$D,4,0),0) -> 0 | N31: =IFERROR(VLOOKUP(N14,'Prix de revient'!$A:$D,4,0),0) -> 0 | O31: =IFERROR(VLOOKUP(O14,'Prix de revient'!$A:$D,4,0),0) -> 0 | P31: =IFERROR(VLOOKUP(P14,'Prix de revient'!$A:$D,4,0),0) -> 0 | Q31: =IFERROR(VLOOKUP(Q14,'Prix de revient'!$A:$D,4,0),0) -> 0 | R31: =IFERROR(VLOOKUP(R14,'Prix de revient'!$A:$D,4,0),0) -> 0 | S31: =IFERROR(VLOOKUP(S14,'Prix de revient'!$A:$D,4,0),0) -> 0.4424
B32: coût de rebuts | D32: =D26*D31 -> 0 | E32: =E26*E31 -> 0 | F32: 0 | G32: 0 | H32: 0 | I32: 0 | J32: 0 | K32: 0 | L32: 0 | M32: 0 | N32: 0 | O32: 0 | P32: 0 | Q32: 0 | R32: 0 | S32: 0 | T32: =SUM(D32:S32) -> 0
B33: gestion de modification
C41: Clients | D41: Audit | E41: Réclamation | F41: Avoir | H41: Fournisseurs/ sous-traitants | I41: Réception de matiere | J41: Probleme qualité | L41: Les formations professionnelles | M41: Cout | N41: Chiffrage décliné | O41: Actions à suivre | Q41: Article qui a subit un tri | R41: durée du tri | S41: Nombre des pieces non-conformes | T41: ouvrier faisant le tri | U41: cout par tri | W41: Article qui a subit la reprise | X41: durée de la reprise | Y41: opérateur faisant la reprise | Z41: coût de reprise | AD41: Machine | AE41: article | AF41: gamme | AG41: objet de la modification
U42: =IF(R42="","",R42*VLOOKUP(T42,'cout opérateur machines'!A1:B8,2,0)) ->  | Z42: =X42*8 -> 0
U43: =IF(R43="","",R43*VLOOKUP(T43,'cout opérateur machines'!A2:B9,2,0)) ->  | Z43: =X43*8 -> 0
U44: =IF(R44="","",R44*VLOOKUP(T44,'cout opérateur machines'!A3:B10,2,0)) ->  | Z44: 0
U45: =IF(R45="","",R45*VLOOKUP(T45,'cout opérateur machines'!A4:B11,2,0)) ->  | Z45: 0
U46: =IF(R46="","",R46*VLOOKUP(T46,'cout opérateur machines'!A5:B12,2,0)) ->  | Z46: 0
U47: =IF(R47="","",R47*VLOOKUP(T47,'cout opérateur machines'!A6:B13,2,0)) ->  | Z47: 0
E48: =COUNTA(E42:E47) -> 0 | F48: =SUM(F42:F47) -> 0 | M48: =SUM(M42:M47) -> 0 | N48: causes de refus | S48: cout total du jour | U48: =SUM(U42:U47) -> 0 | Z48: 0
H49: envoi des réclamations F/ S-T | I49: réponse F/ S-T | J49: alerte | Z49: =SUM(Z42:Z48) -> 0
C50: dans le cas d'une réclamation | J50: =IF(J42="","",IF(H50=0," réclamation non traitée",IF(I50=0, "veuillez contacter le F/ S-T par téléphone",""))) ->  | S50: N° mois | U50: 3
C51: nombre de pièces NC | J51: =IF(J43="","",IF(H51=0," réclamation non traitée",IF(I51=0, "veuillez contacter le F/ S-T par téléphone",""))) -> 
C52: nombre de pièces par carton
C53: coût de transport par carton
C54: nombre de cartons renvoyés
C55: temps de tri
C56: coût horaire de tri
C57: temps de retouche
C58: coût horaire de retouche
C59: temps de traitement de la réclamation
C60: coût horaire de traitement
C61: coût total | D61: =IFERROR(((D51/D52)*D53)+D54*D53+D55*D56+D57*D58+D59*D60,"") -> 

Sheet 24-3-22
E2: Rapport journalier | R2: Code:DAS-SMQ-24
R3: Date: 27/12/2019
R4: Version:01
R5: Page:1
D12: A | E12: B | F12: C | G12: D | H12: E | I12: F | J12: M | K12: N | L12: O | M12: P | N12: I | O12: L | P12: K | Q12: J | R12: G | S12: H
B13: Machine | D13: SST16 | E13: SB16 | F13: BIGLIA 301 SM | G13: BIGLIA 42 S2M bitourelle | H13: L32 | I13: TSUGAMI | J13: MORI SEIKI 3 axes | K13: MORI SEIKI 5 axes | L13: HARDING | M13: KITAMURA | N13: MULTIBROCHE | O13: NAKAMURA | P13: TOUR WEILER
B14: Référence | D14: 200101 | E14: G022-CP1 | F14: 230500 | G14: MI018-B42 | H14: 200200-2022 | I14: i097-tsughami | J14: I110-01-004 | K14: PIG-11D | L14: I006 | M14: 9518-maj | N14: MPS000300 | O14: F046-CP2 | P14: I143-CP1 | Q14: PT8666 | R14: 68.0815 | S14: outi-plot
B15: Désignation | D15: AXE D'ARTICULATION | E15: AXE D15-M11x100 | F15: BRAS DE MANOEUVRE G MAN | G15: GOUJON DE ROUE MITSIBITCHI GM-SUR-B42 | H15: Embout de tige-2022 | I15: ECROU DE ROUE FORD RANGER- finition rayon | J15: INSERT LEVIER SURMOULEE 345833-01 - fraisage | K15: PIGNON 11 DENTS FRAISAGE | L15: CAL SUSPENSION PM ISUZU-HARDING | M15: USINAGE BORNE RBD-1 | N15: raccord HEX 17 | O15: BADUE DECOLLETTE TUBE D'EAU PALIO-CP2 | P15: ECROU DE ROUE ISUZU-CP1 | Q15: Rehausse-NAKAMURHA | R15: Buse droite à collerette Ø8 M445 FRD | S15: plot nez de marche
B16: Compteur 8h | D16: 3885 | E16: 1725 | F16: 616 | G16: 6480 | H16: 4771 | I16: 1386 | J16: 941 | K16: 270 | L16: 0 | M16: 3975 | N16: 0 | O16: 610 | P16: 1448 | Q16: 507 | R16: 3120 | S16: 0
B17: Compteur 17h | D17: 5181 | E17: 2057 | F17: 867 | G17: 6776 | H17: 4771 | I17: 1968 | J17: 969 | K17: 270 | L17: 0 | M17: 4167 | N17: 0 | O17: 720 | P17: 1922 | Q17: 977 | R17: 3731 | S17: 313
B18: Enregistrement | C18: 9h
C19: 16h
B20: Identification
B21: Propreté des tables de contrôle
B22: Rangement des outils de contrôle
B23: Existance de l'OF
B24: Affutage | T24: =+COUNTA(D24:S24) -> 0
B25: Maintenance
B26: Nombre des NC poubelle
B27: Nombre des NC à retoucher
B28: Machine pour retouche
B29: Panne
B30: Cout pièces de rechange | T30: =SUM(D30:S30) -> 0
B31: prix de revient pièce | D31: =IFERROR(VLOOKUP(D14,'Prix de revient'!$A:$D,4,0),0) -> 0.5056 | E31: =IFERROR(VLOOKUP(E14,'Prix de revient'!$A:$D,4,0),0) -> 0 | F31: =IFERROR(VLOOKUP(F14,'Prix de revient'!$A:$D,4,0),0) -> 0 | G31: =IFERROR(VLOOKUP(G14,'Prix de revient'!$A:$D,4,0),0) -> 0 | H31: =IFERROR(VLOOKUP(H14,'Prix de revient'!$A:$D,4,0),0) -> 0 | I31: =IFERROR(VLOOKUP(I14,'Prix de revient'!$A:$D,4,0),0) -> 0 | J31: =IFERROR(VLOOKUP(J14,'Prix de revient'!$A:$D,4,0),0) -> 2.1488 | K31: =IFERROR(VLOOKUP(K14,'Prix de revient'!$A:$D,4,0),0) -> 0 | L31: =IFERROR(VLOOKUP(L14,'Prix de revient'!$A:$D,4,0),0) -> 0 | M31: =IFERROR(VLOOKUP(M14,'Prix de revient'!$A:$D,4,0),0) -> 0 | N31: =IFERROR(VLOOKUP(N14,'Prix de revient'!$A:$D,4,0),0) -> 0 | O31: =IFERROR(VLOOKUP(O14,'Prix de revient'!$A:$D,4,0),0) -> 0 | P31: =IFERROR(VLOOKUP(P14,'Prix de revient'!$A:$D,4,0),0) -> 0 | Q31: =IFERROR(VLOOKUP(Q14,'Prix de revient'!$A:$D,4,0),0) -> 0 | R31: =IFERROR(VLOOKUP(R14,'Prix de revient'!$A:$D,4,0),0) -> 0 | S31: =IFERROR(VLOOKUP(S14,'Prix de revient'!$A:$D,4,0),0) -> 0.4424
B32: coût de rebuts | D32: =D26*D31 -> 0 | E32: =E26*E31 -> 0 | F32: 0 | G32: 0 | H32: 0 | I32: 0 | J32: 0 | K32: 0 | L32: 0 | M32: 0 | N32: 0 | O32: 0 | P32: 0 | Q32: 0 | R32: 0 | S32: 0 | T32: =SUM(D32:S32) -> 0
B33: gestion de modification
C41: Clients | D41: Audit | E41: Réclamation | F41: Avoir | H41: Fournisseurs/ sous-traitants | I41: Réception de matiere | J41: Probleme qualité | L41: Les formations professionnelles | M41: Cout | N41: Chiffrage décliné | O41: Actions à suivre | Q41: Article qui a subit un tri | R41: durée du tri | S41: Nombre des pieces non-conformes | T41: ouvrier faisant le tri | U41: cout par tri | W41: Article qui a subit la reprise | X41: durée de la reprise | Y41: opérateur faisant la reprise | Z41: coût de reprise | AD41: Machine | AE41: article | AF41: gamme | AG41: objet de la modification
U42: =IF(R42="","",R42*VLOOKUP(T42,'cout opérateur machines'!A1:B8,2,0)) ->  | Z42: =X42*8 -> 0
U43: =IF(R43="","",R43*VLOOKUP(T43,'cout opérateur machines'!A2:B9,2,0)) ->  | Z43: =X43*8 -> 0
U44: =IF(R44="","",R44*VLOOKUP(T44,'cout opérateur machines'!A3:B10,2,0)) ->  | Z44: 0
U45: =IF(R45="","",R45*VLOOKUP(T45,'cout opérateur machines'!A4:B11,2,0)) ->  | Z45: 0
U46: =IF(R46="","",R46*VLOOKUP(T46,'cout opérateur machines'!A5:B12,2,0)) ->  | Z46: 0
U47: =IF(R47="","",R47*VLOOKUP(T47,'cout opérateur machines'!A6:B13,2,0)) ->  | Z47: 0
E48: =COUNTA(E42:E47) -> 0 | F48: =SUM(F42:F47) -> 0 | M48: =SUM(M42:M47) -> 0 | N48: causes de refus | S48: cout total du jour | U48: =SUM(U42:U47) -> 0 | Z48: 0
H49: envoi des réclamations F/ S-T | I49: réponse F/ S-T | J49: alerte | Z49: =SUM(Z42:Z48) -> 0
C50: dans le cas d'une réclamation | J50: =IF(J42="","",IF(H50=0," réclamation non traitée",IF(I50=0, "veuillez contacter le F/ S-T par téléphone",""))) ->  | S50: N° mois | U50: 3
C51: nombre de pièces NC | J51: =IF(J43="","",IF(H51=0," réclamation non traitée",IF(I51=0, "veuillez contacter le F/ S-T par téléphone",""))) -> 
C52: nombre de pièces par carton
C53: coût de transport par carton
C54: nombre de cartons renvoyés
C55: temps de tri
C56: coût horaire de tri
C57: temps de retouche
C58: coût horaire de retouche
C59: temps de traitement de la réclamation
C60: coût horaire de traitement
C61: coût total | D61: =IFERROR(((D51/D52)*D53)+D54*D53+D55*D56+D57*D58+D59*D60,"") -> 

Sheet 23-3-22
E2: Rapport journalier | R2: Code:DAS-SMQ-24
R3: Date: 27/12/2019
R4: Version:01
R5: Page:1
D12: A | E12: B | F12: C | G12: D | H12: E | I12: F | J12: M | K12: N | L12: O | M12: P | N12: I | O12: L | P12: K | Q12: J | R12: G | S12: H
B13: Machine | D13: SST16 | E13: SB16 | F13: BIGLIA 301 SM | G13: BIGLIA 42 S2M bitourelle | H13: L32 | I13: TSUGAMI | J13: MORI SEIKI 3 axes | K13: MORI SEIKI 5 axes | L13: HARDING | M13: KITAMURA | N13: MULTIBROCHE | O13: NAKAMURA | P13: TOUR WEILER
B14: Référence | D14: 200101 | E14: G022-CP1 | F14: 230500 | G14: MI018-B42 | H14: 200200-2022 | I14: i097-tsughami | J14: I110-01-004 | K14: PIG-11D | L14: I006 | M14: I004 | N14: MPS000300 | O14: F046-CP2 | P14: I143-CP1 | Q14: PT8666 | R14: 68.0815 | S14: AXE-INOX-D8-L58-maj-c
B15: Désignation | D15: AXE D'ARTICULATION | E15: AXE D15-M11x100 | F15: BRAS DE MANOEUVRE G MAN | G15: GOUJON DE ROUE MITSIBITCHI GM-SUR-B42 | H15: Embout de tige-2022 | I15: ECROU DE ROUE FORD RANGER- finition rayon | J15: INSERT LEVIER SURMOULEE 345833-01 - fraisage | K15: PIGNON 11 DENTS FRAISAGE | L15: CAL SUSPENSION PM ISUZU-HARDING | M15: ECROU SUSPENSION ISUZU-HARDING | N15: raccord HEX 17 | O15: BAGUE DECOLLETEE TUBE D'EAU PALIO -CP2 | P15: ECROU DE ROUE ISUZU-CP1 | Q15: Rehausse-NAKAMURHA | R15: Buse droite à collerette Ø8 M445 FRD | S15: AXE INOX D8 L58 maj-c
B16: Compteur 8h | D16: 2574 | E16: 1352 | F16: 376 | G16: 6251 | H16: 4771 | I16: 627 | J16: 917 | K16: 270 | L16: 0 | M16: 0 | N16: 0 | O16: 514 | P16: 1086 | Q16: 127 | R16: 2635 | S16: 0
B17: Compteur 17h | D17: 3885 | E17: 1725 | F17: 616 | G17: 6480 | H17: 4771 | I17: 1386 | J17: 941 | K17: 270 | L17: 0 | M17: 0 | N17: 0 | O17: 610 | P17: 1448 | Q17: 507 | R17: 3120 | S17: 0
B18: Enregistrement | C18: 9h
C19: 16h
B20: Identification
B21: Propreté des tables de contrôle
B22: Rangement des outils de contrôle
B23: Existance de l'OF
B24: Affutage | T24: =+COUNTA(D24:S24) -> 0
B25: Maintenance
B26: Nombre des NC poubelle
B27: Nombre des NC à retoucher
B28: Machine pour retouche
B29: Panne
B30: Cout pièces de rechange | T30: =SUM(D30:S30) -> 0
B31: prix de revient pièce | D31: =IFERROR(VLOOKUP(D14,'Prix de revient'!$A:$D,4,0),0) -> 0.5056 | E31: =IFERROR(VLOOKUP(E14,'Prix de revient'!$A:$D,4,0),0) -> 0 | F31: =IFERROR(VLOOKUP(F14,'Prix de revient'!$A:$D,4,0),0) -> 0 | G31: =IFERROR(VLOOKUP(G14,'Prix de revient'!$A:$D,4,0),0) -> 0 | H31: =IFERROR(VLOOKUP(H14,'Prix de revient'!$A:$D,4,0),0) -> 0 | I31: =IFERROR(VLOOKUP(I14,'Prix de revient'!$A:$D,4,0),0) -> 0 | J31: =IFERROR(VLOOKUP(J14,'Prix de revient'!$A:$D,4,0),0) -> 2.1488 | K31: =IFERROR(VLOOKUP(K14,'Prix de revient'!$A:$D,4,0),0) -> 0 | L31: =IFERROR(VLOOKUP(L14,'Prix de revient'!$A:$D,4,0),0) -> 0 | M31: =IFERROR(VLOOKUP(M14,'Prix de revient'!$A:$D,4,0),0) -> 0 | N31: =IFERROR(VLOOKUP(N14,'Prix de revient'!$A:$D,4,0),0) -> 0 | O31: =IFERROR(VLOOKUP(O14,'Prix de revient'!$A:$D,4,0),0) -> 0 | P31: =IFERROR(VLOOKUP(P14,'Prix de revient'!$A:$D,4,0),0) -> 0 | Q31: =IFERROR(VLOOKUP(Q14,'Prix de revient'!$A:$D,4,0),0) -> 0 | R31: =IFERROR(VLOOKUP(R14,'Prix de revient'!$A:$D,4,0),0) -> 0 | S31: =IFERROR(VLOOKUP(S14,'Prix de revient'!$A:$D,4,0),0) -> 0
B32: coût de rebuts | D32: =D26*D31 -> 0 | E32: =E26*E31 -> 0 | F32: 0 | G32: 0 | H32: 0 | I32: 0 | J32: 0 | K32: 0 | L32: 0 | M32: 0 | N32: 0 | O32: 0 | P32: 0 | Q32: 0 | R32: 0 | S32: 0 | T32: =SUM(D32:S32) -> 0
B33: gestion de modification
C41: Clients | D41: Audit | E41: Réclamation | F41: Avoir | H41: Fournisseurs/ sous-traitants | I41: Réception de matiere | J41: Probleme qualité | L41: Les formations professionnelles | M41: Cout | N41: Chiffrage décliné | O41: Actions à suivre | Q41: Article qui a subit un tri | R41: durée du tri | S41: Nombre des pieces non-conformes | T41: ouvrier faisant le tri | U41: cout par tri | W41: Article qui a subit la reprise | X41: durée de la reprise | Y41: opérateur faisant la reprise | Z41: coût de reprise | AD41: Machine | AE41: article | AF41: gamme | AG41: objet de la modification
U42: =IF(R42="","",R42*VLOOKUP(T42,'cout opérateur machines'!A1:B8,2,0)) ->  | Z42: =X42*8 -> 0
U43: =IF(R43="","",R43*VLOOKUP(T43,'cout opérateur machines'!A2:B9,2,0)) ->  | Z43: =X43*8 -> 0
U44: =IF(R44="","",R44*VLOOKUP(T44,'cout opérateur machines'!A3:B10,2,0)) ->  | Z44: 0
U45: =IF(R45="","",R45*VLOOKUP(T45,'cout opérateur machines'!A4:B11,2,0)) ->  | Z45: 0
U46: =IF(R46="","",R46*VLOOKUP(T46,'cout opérateur machines'!A5:B12,2,0)) ->  | Z46: 0
U47: =IF(R47="","",R47*VLOOKUP(T47,'cout opérateur machines'!A6:B13,2,0)) ->  | Z47: 0
E48: =COUNTA(E42:E47) -> 0 | F48: =SUM(F42:F47) -> 0 | M48: =SUM(M42:M47) -> 0 | N48: causes de refus | S48: cout total du jour | U48: =SUM(U42:U47) -> 0 | Z48: 0
H49: envoi des réclamations F/ S-T | I49: réponse F/ S-T | J49: alerte | Z49: =SUM(Z42:Z48) -> 0
C50: dans le cas d'une réclamation | J50: =IF(J42="","",IF(H50=0," réclamation non traitée",IF(I50=0, "veuillez contacter le F/ S-T par téléphone",""))) ->  | S50: N° mois | U50: 3
C51: nombre de pièces NC | J51: =IF(J43="","",IF(H51=0," réclamation non traitée",IF(I51=0, "veuillez contacter le F/ S-T par téléphone",""))) -> 
C52: nombre de pièces par carton
C53: coût de transport par carton
C54: nombre de cartons renvoyés
C55: temps de tri
C56: coût horaire de tri
C57: temps de retouche
C58: coût horaire de retouche
C59: temps de traitement de la réclamation
C60: coût horaire de traitement
C61: coût total | D61: =IFERROR(((D51/D52)*D53)+D54*D53+D55*D56+D57*D58+D59*D60,"") -> 

Sheet 22-3-22
E2: Rapport journalier | R2: Code:DAS-SMQ-24
R3: Date: 27/12/2019
R4: Version:01
R5: Page:1
D12: A | E12: B | F12: C | G12: D | H12: E | I12: F | J12: M | K12: N | L12: O | M12: P | N12: I | O12: L | P12: K | Q12: J | R12: G | S12: H
B13: Machine | D13: SST16 | E13: SB16 | F13: BIGLIA 301 SM | G13: BIGLIA 42 S2M bitourelle | H13: L32 | I13: TSUGAMI | J13: MORI SEIKI 3 axes | K13: MORI SEIKI 5 axes | L13: HARDING | M13: KITAMURA | N13: MULTIBROCHE | O13: NAKAMURA | P13: TOUR WEILER
B14: Référence | D14: 200101 | E14: G022-CP1 | F14: 230500 | G14: MI018-B42 | H14: 200200-2022 | I14: i097-tsughami | J14: I110-01-004 | K14: PIG-11D | L14: I006 | M14: I004 | N14: MPS000300 | O14: F046-CP2 | P14: I143-CP1 | Q14: PT8666 | R14: 68.0815 | S14: AXE-INOX-D8-L58-maj-c
B15: Désignation | D15: AXE D'ARTICULATION | E15: AXE D15-M11x100 | F15: BRAS DE MANOEUVRE G MAN | G15: GOUJON DE ROUE MITSIBITCHI GM-SUR-B42 | H15: Embout de tige-2022 | I15: ECROU DE ROUE FORD RANGER- finition rayon | J15: INSERT LEVIER SURMOULEE 345833-01 - fraisage | K15: PIGNON 11 DENTS FRAISAGE | L15: CAL SUSPENSION PM ISUZU-HARDING | M15: ECROU SUSPENSION ISUZU-HARDING | N15: raccord HEX 17 | O15: BAGUE DECOLLETEE TUBE D'EAU PALIO -CP2 | P15: ECROU DE ROUE ISUZU-CP1 | Q15: Rehausse-NAKAMURHA | R15: Buse droite à collerette Ø8 M445 FRD | S15: AXE INOX D8 L58 maj-c
B16: Compteur 8h | D16: 1380 | E16: 1352 | F16: 122 | G16: 5971 | H16: 4771 | I16: 0 | J16: 878 | K16: 270 | L16: 298 | M16: 298 | N16: 0 | O16: 409 | P16: 747 | Q16: 0 | R16: 2153 | S16: 19510
B17: Compteur 17h | D17: 2574 | E17: 1352 | F17: 376 | G17: 6251 | H17: 4771 | I17: 627 | J17: 917 | K17: 270 | L17: 298 | M17: 298 | N17: 0 | O17: 514 | P17: 1086 | Q17: 127 | R17: 2635 | S17: 20734
B18: Enregistrement | C18: 9h
C19: 16h
B20: Identification
B21: Propreté des tables de contrôle
B22: Rangement des outils de contrôle
B23: Existance de l'OF
B24: Affutage | T24: =+COUNTA(D24:S24) -> 0
B25: Maintenance
B26: Nombre des NC poubelle
B27: Nombre des NC à retoucher
B28: Machine pour retouche
B29: Panne
B30: Cout pièces de rechange | T30: =SUM(D30:S30) -> 0
B31: prix de revient pièce | D31: =IFERROR(VLOOKUP(D14,'Prix de revient'!$A:$D,4,0),0) -> 0.5056 | E31: =IFERROR(VLOOKUP(E14,'Prix de revient'!$A:$D,4,0),0) -> 0 | F31: =IFERROR(VLOOKUP(F14,'Prix de revient'!$A:$D,4,0),0) -> 0 | G31: =IFERROR(VLOOKUP(G14,'Prix de revient'!$A:$D,4,0),0) -> 0 | H31: =IFERROR(VLOOKUP(H14,'Prix de revient'!$A:$D,4,0),0) -> 0 | I31: =IFERROR(VLOOKUP(I14,'Prix de revient'!$A:$D,4,0),0) -> 0 | J31: =IFERROR(VLOOKUP(J14,'Prix de revient'!$A:$D,4,0),0) -> 2.1488 | K31: =IFERROR(VLOOKUP(K14,'Prix de revient'!$A:$D,4,0),0) -> 0 | L31: =IFERROR(VLOOKUP(L14,'Prix de revient'!$A:$D,4,0),0) -> 0 | M31: =IFERROR(VLOOKUP(M14,'Prix de revient'!$A:$D,4,0),0) -> 0 | N31: =IFERROR(VLOOKUP(N14,'Prix de revient'!$A:$D,4,0),0) -> 0 | O31: =IFERROR(VLOOKUP(O14,'Prix de revient'!$A:$D,4,0),0) -> 0 | P31: =IFERROR(VLOOKUP(P14,'Prix de revient'!$A:$D,4,0),0) -> 0 | Q31: =IFERROR(VLOOKUP(Q14,'Prix de revient'!$A:$D,4,0),0) -> 0 | R31: =IFERROR(VLOOKUP(R14,'Prix de revient'!$A:$D,4,0),0) -> 0 | S31: =IFERROR(VLOOKUP(S14,'Prix de revient'!$A:$D,4,0),0) -> 0
B32: coût de rebuts | D32: =D26*D31 -> 0 | E32: =E26*E31 -> 0 | F32: 0 | G32: 0 | H32: 0 | I32: 0 | J32: 0 | K32: 0 | L32: 0 | M32: 0 | N32: 0 | O32: 0 | P32: 0 | Q32: 0 | R32: 0 | S32: 0 | T32: =SUM(D32:S32) -> 0
B33: gestion de modification
C41: Clients | D41: Audit | E41: Réclamation | F41: Avoir | H41: Fournisseurs/ sous-traitants | I41: Réception de matiere | J41: Probleme qualité | L41: Les formations professionnelles | M41: Cout | N41: Chiffrage décliné | O41: Actions à suivre | Q41: Article qui a subit un tri | R41: durée du tri | S41: Nombre des pieces non-conformes | T41: ouvrier faisant le tri | U41: cout par tri | W41: Article qui a subit la reprise | X41: durée de la reprise | Y41: opérateur faisant la reprise | Z41: coût de reprise | AD41: Machine | AE41: article | AF41: gamme | AG41: objet de la modification
U42: =IF(R42="","",R42*VLOOKUP(T42,'cout opérateur machines'!A1:B8,2,0)) ->  | Z42: =X42*8 -> 0
U43: =IF(R43="","",R43*VLOOKUP(T43,'cout opérateur machines'!A2:B9,2,0)) ->  | Z43: =X43*8 -> 0
U44: =IF(R44="","",R44*VLOOKUP(T44,'cout opérateur machines'!A3:B10,2,0)) ->  | Z44: 0
U45: =IF(R45="","",R45*VLOOKUP(T45,'cout opérateur machines'!A4:B11,2,0)) ->  | Z45: 0
U46: =IF(R46="","",R46*VLOOKUP(T46,'cout opérateur machines'!A5:B12,2,0)) ->  | Z46: 0
U47: =IF(R47="","",R47*VLOOKUP(T47,'cout opérateur machines'!A6:B13,2,0)) ->  | Z47: 0
E48: =COUNTA(E42:E47) -> 0 | F48: =SUM(F42:F47) -> 0 | M48: =SUM(M42:M47) -> 0 | N48: causes de refus | S48: cout total du jour | U48: =SUM(U42:U47) -> 0 | Z48: 0
H49: envoi des réclamations F/ S-T | I49: réponse F/ S-T | J49: alerte | Z49: =SUM(Z42:Z48) -> 0
C50: dans le cas d'une réclamation | J50: =IF(J42="","",IF(H50=0," réclamation non traitée",IF(I50=0, "veuillez contacter le F/ S-T par téléphone",""))) ->  | S50: N° mois | U50: 3
C51: nombre de pièces NC | J51: =IF(J43="","",IF(H51=0," réclamation non traitée",IF(I51=0, "veuillez contacter le F/ S-T par téléphone",""))) -> 
C52: nombre de pièces par carton
C53: coût de transport par carton
C54: nombre de cartons renvoyés
C55: temps de tri
C56: coût horaire de tri
C57: temps de retouche
C58: coût horaire de retouche
C59: temps de traitement de la réclamation
C60: coût horaire de traitement
C61: coût total | D61: =IFERROR(((D51/D52)*D53)+D54*D53+D55*D56+D57*D58+D59*D60,"") -> 

Sheet 21-3-22
E2: Rapport journalier | R2: Code:DAS-SMQ-24
R3: Date: 27/12/2019
R4: Version:01
R5: Page:1
D12: A | E12: B | F12: C | G12: D | H12: E | I12: F | J12: M | K12: N | L12: O | M12: P | N12: I | O12: L | P12: K | Q12: J | R12: G | S12: H
B13: Machine | D13: SST16 | E13: SB16 | F13: BIGLIA 301 SM | G13: BIGLIA 42 S2M bitourelle | H13: L32 | I13: TSUGAMI | J13: MORI SEIKI 3 axes | K13: MORI SEIKI 5 axes | L13: HARDING | M13: KITAMURA | N13: MULTIBROCHE | O13: NAKAMURA | P13: TOUR WEILER
B14: Référence | D14: 200101 | E14: G022-CP1 | F14: 230500 | G14: MI018-B42 | H14: 200200-2022 | I14: B55 6*14.8 | J14: I110-01-004 | K14: PIG-11D | L14: I006 | M14: I004 | N14: MPS000300 | O14: F046-CP2 | P14: I143-CP1 | Q14: PT8666 | R14: 68.0815 | S14: AXE-INOX-D8-L58-maj-c
B15: Désignation | D15: AXE D'ARTICULATION | E15: AXE D15-M11x100 | F15: BRAS DE MANOEUVRE G MAN | G15: GOUJON DE ROUE MITSIBITCHI GM-SUR-B42 | H15: Embout de tige-2022 | I15: Rivet couvercle B55 | J15: INSERT LEVIER SURMOULEE 345833-01 - fraisage | K15: PIGNON 11 DENTS FRAISAGE | L15: CAL SUSPENSION PM ISUZU-HARDING | M15: ECROU SUSPENSION ISUZU-HARDING | N15: raccord HEX 17 | O15: BAGUE DECOLLETEE TUBE D'EAU PALIO -CP2 | P15: ECROU DE ROUE ISUZU-CP1 | Q15: Rehausse-NAKAMURHA | R15: Buse droite à collerette Ø8 M445 FRD | S15: AXE INOX D8 L58 maj-c
B16: Compteur 8h | D16: 119 | E16: 1301 | F16: 0 | G16: 5460 | H16: 4771 | I16: 36473 | J16: 842 | K16: 270 | L16: 287 | M16: 287 | N16: 0 | O16: 283 | P16: 308 | Q16: 0 | R16: 1495 | S16: 18235
B17: Compteur 17h | D17: 1380 | E17: 1352 | F17: 122 | G17: 5971 | H17: 4771 | I17: 36473 | J17: 878 | K17: 270 | L17: 298 | M17: 298 | N17: 0 | O17: 409 | P17: 747 | Q17: 252 | R17: 2153 | S17: 19510
B18: Enregistrement | C18: 9h
C19: 16h
B20: Identification
B21: Propreté des tables de contrôle
B22: Rangement des outils de contrôle
B23: Existance de l'OF
B24: Affutage | T24: =+COUNTA(D24:S24) -> 0
B25: Maintenance
B26: Nombre des NC poubelle
B27: Nombre des NC à retoucher
B28: Machine pour retouche
B29: Panne
B30: Cout pièces de rechange | T30: =SUM(D30:S30) -> 0
B31: prix de revient pièce | D31: =IFERROR(VLOOKUP(D14,'Prix de revient'!$A:$D,4,0),0) -> 0.5056 | E31: =IFERROR(VLOOKUP(E14,'Prix de revient'!$A:$D,4,0),0) -> 0 | F31: =IFERROR(VLOOKUP(F14,'Prix de revient'!$A:$D,4,0),0) -> 0 | G31: =IFERROR(VLOOKUP(G14,'Prix de revient'!$A:$D,4,0),0) -> 0 | H31: =IFERROR(VLOOKUP(H14,'Prix de revient'!$A:$D,4,0),0) -> 0 | I31: =IFERROR(VLOOKUP(I14,'Prix de revient'!$A:$D,4,0),0) -> 0 | J31: =IFERROR(VLOOKUP(J14,'Prix de revient'!$A:$D,4,0),0) -> 2.1488 | K31: =IFERROR(VLOOKUP(K14,'Prix de revient'!$A:$D,4,0),0) -> 0 | L31: =IFERROR(VLOOKUP(L14,'Prix de revient'!$A:$D,4,0),0) -> 0 | M31: =IFERROR(VLOOKUP(M14,'Prix de revient'!$A:$D,4,0),0) -> 0 | N31: =IFERROR(VLOOKUP(N14,'Prix de revient'!$A:$D,4,0),0) -> 0 | O31: =IFERROR(VLOOKUP(O14,'Prix de revient'!$A:$D,4,0),0) -> 0 | P31: =IFERROR(VLOOKUP(P14,'Prix de revient'!$A:$D,4,0),0) -> 0 | Q31: =IFERROR(VLOOKUP(Q14,'Prix de revient'!$A:$D,4,0),0) -> 0 | R31: =IFERROR(VLOOKUP(R14,'Prix de revient'!$A:$D,4,0),0) -> 0 | S31: =IFERROR(VLOOKUP(S14,'Prix de revient'!$A:$D,4,0),0) -> 0
B32: coût de rebuts | D32: =D26*D31 -> 0 | E32: =E26*E31 -> 0 | F32: 0 | G32: 0 | H32: 0 | I32: 0 | J32: 0 | K32: 0 | L32: 0 | M32: 0 | N32: 0 | O32: 0 | P32: 0 | Q32: 0 | R32: 0 | S32: 0 | T32: =SUM(D32:S32) -> 0
B33: gestion de modification
C41: Clients | D41: Audit | E41: Réclamation | F41: Avoir | H41: Fournisseurs/ sous-traitants | I41: Réception de matiere | J41: Probleme qualité | L41: Les formations professionnelles | M41: Cout | N41: Chiffrage décliné | O41: Actions à suivre | Q41: Article qui a subit un tri | R41: durée du tri | S41: Nombre des pieces non-conformes | T41: ouvrier faisant le tri | U41: cout par tri | W41: Article qui a subit la reprise | X41: durée de la reprise | Y41: opérateur faisant la reprise | Z41: coût de reprise | AD41: Machine | AE41: article | AF41: gamme | AG41: objet de la modification
U42: =IF(R42="","",R42*VLOOKUP(T42,'cout opérateur machines'!A1:B8,2,0)) ->  | Z42: =X42*8 -> 0
U43: =IF(R43="","",R43*VLOOKUP(T43,'cout opérateur machines'!A2:B9,2,0)) ->  | Z43: =X43*8 -> 0
U44: =IF(R44="","",R44*VLOOKUP(T44,'cout opérateur machines'!A3:B10,2,0)) ->  | Z44: 0
U45: =IF(R45="","",R45*VLOOKUP(T45,'cout opérateur machines'!A4:B11,2,0)) ->  | Z45: 0
U46: =IF(R46="","",R46*VLOOKUP(T46,'cout opérateur machines'!A5:B12,2,0)) ->  | Z46: 0
U47: =IF(R47="","",R47*VLOOKUP(T47,'cout opérateur machines'!A6:B13,2,0)) ->  | Z47: 0
E48: =COUNTA(E42:E47) -> 0 | F48: =SUM(F42:F47) -> 0 | M48: =SUM(M42:M47) -> 0 | N48: causes de refus | S48: cout total du jour | U48: =SUM(U42:U47) -> 0 | Z48: 0
H49: envoi des réclamations F/ S-T | I49: réponse F/ S-T | J49: alerte | Z49: =SUM(Z42:Z48) -> 0
C50: dans le cas d'une réclamation | J50: =IF(J42="","",IF(H50=0," réclamation non traitée",IF(I50=0, "veuillez contacter le F/ S-T par téléphone",""))) ->  | S50: N° mois | U50: 3
C51: nombre de pièces NC | J51: =IF(J43="","",IF(H51=0," réclamation non traitée",IF(I51=0, "veuillez contacter le F/ S-T par téléphone",""))) -> 
C52: nombre de pièces par carton
C53: coût de transport par carton
C54: nombre de cartons renvoyés
C55: temps de tri
C56: coût horaire de tri
C57: temps de retouche
C58: coût horaire de retouche
C59: temps de traitement de la réclamation
C60: coût horaire de traitement
C61: coût total | D61: =IFERROR(((D51/D52)*D53)+D54*D53+D55*D56+D57*D58+D59*D60,"") -> 

Sheet 19-3-22
E2: Rapport journalier | R2: Code:DAS-SMQ-24
R3: Date: 27/12/2019
R4: Version:01
R5: Page:1
D12: A | E12: B | F12: C | G12: D | H12: E | I12: F | J12: M | K12: N | L12: O | M12: P | N12: I | O12: L | P12: K | Q12: J | R12: G | S12: H
B13: Machine | D13: SST16 | E13: SB16 | F13: BIGLIA 301 SM | G13: BIGLIA 42 S2M bitourelle | H13: L32 | I13: TSUGAMI | J13: MORI SEIKI 3 axes | K13: MORI SEIKI 5 axes | L13: HARDING | M13: KITAMURA | N13: MULTIBROCHE | O13: NAKAMURA | P13: TOUR WEILER
B14: Référence | D14: 200101 | E14: G022-CP1 | F14: G011-A | G14: MI018-B42 | H14: 200200-2022 | I14: B55 6*14.8 | J14: I110-01-004 | K14: PIG-11D | L14: I006 | M14: I004 | N14: MPS000300 | O14: F046-CP2 | P14: I143-CP1 | Q14: PT8666 | R14: 68.0815 | S14: AXE-INOX-D8-L58-maj-c
B15: Désignation | D15: AXE D'ARTICULATION | E15: AXE D15-M11x100 | F15: Bague Acier D32*22 L=21 maj-c | G15: GOUJON DE ROUE MITSIBITCHI GM-SUR-B42 | H15: Embout de tige-2022 | I15: Rivet couvercle B55 | J15: INSERT LEVIER SURMOULEE 345833-01 - fraisage | K15: PIGNON 11 DENTS FRAISAGE | L15: CAL SUSPENSION PM ISUZU-HARDING | M15: ECROU SUSPENSION ISUZU-HARDING | N15: raccord HEX 17 | O15: BAGUE DECOLLETEE TUBE D'EAU PALIO -CP2 | P15: ECROU DE ROUE ISUZU-CP1 | Q15: Rehausse-NAKAMURHA | R15: Buse droite à collerette Ø8 M445 FRD | S15: AXE INOX D8 L58 maj-c
B16: Compteur 8h | D16: 0 | E16: 1156 | F16: 6190 | G16: 5232 | H16: 4771 | I16: 35351 | J16: 833 | K16: 270 | L16: 285 | M16: 285 | N16: 0 | O16: 207 | P16: 65 | Q16: 1003 | R16: 1070 | S16: 17500
B17: Compteur 17h | D17: 119 | E17: 1301 | F17: 6434 | G17: 5460 | H17: 4771 | I17: 36473 | J17: 842 | K17: 270 | L17: 287 | M17: 287 | N17: 0 | O17: 283 | P17: 308 | Q17: 1363 | R17: 1495 | S17: 18235
B18: Enregistrement | C18: 9h
C19: 16h
B20: Identification
B21: Propreté des tables de contrôle
B22: Rangement des outils de contrôle
B23: Existance de l'OF
B24: Affutage | T24: =+COUNTA(D24:S24) -> 0
B25: Maintenance
B26: Nombre des NC poubelle
B27: Nombre des NC à retoucher
B28: Machine pour retouche
B29: Panne
B30: Cout pièces de rechange | T30: =SUM(D30:S30) -> 0
B31: prix de revient pièce | D31: =IFERROR(VLOOKUP(D14,'Prix de revient'!$A:$D,4,0),0) -> 0.5056 | E31: =IFERROR(VLOOKUP(E14,'Prix de revient'!$A:$D,4,0),0) -> 0 | F31: =IFERROR(VLOOKUP(F14,'Prix de revient'!$A:$D,4,0),0) -> 0 | G31: =IFERROR(VLOOKUP(G14,'Prix de revient'!$A:$D,4,0),0) -> 0 | H31: =IFERROR(VLOOKUP(H14,'Prix de revient'!$A:$D,4,0),0) -> 0 | I31: =IFERROR(VLOOKUP(I14,'Prix de revient'!$A:$D,4,0),0) -> 0 | J31: =IFERROR(VLOOKUP(J14,'Prix de revient'!$A:$D,4,0),0) -> 2.1488 | K31: =IFERROR(VLOOKUP(K14,'Prix de revient'!$A:$D,4,0),0) -> 0 | L31: =IFERROR(VLOOKUP(L14,'Prix de revient'!$A:$D,4,0),0) -> 0 | M31: =IFERROR(VLOOKUP(M14,'Prix de revient'!$A:$D,4,0),0) -> 0 | N31: =IFERROR(VLOOKUP(N14,'Prix de revient'!$A:$D,4,0),0) -> 0 | O31: =IFERROR(VLOOKUP(O14,'Prix de revient'!$A:$D,4,0),0) -> 0 | P31: =IFERROR(VLOOKUP(P14,'Prix de revient'!$A:$D,4,0),0) -> 0 | Q31: =IFERROR(VLOOKUP(Q14,'Prix de revient'!$A:$D,4,0),0) -> 0 | R31: =IFERROR(VLOOKUP(R14,'Prix de revient'!$A:$D,4,0),0) -> 0 | S31: =IFERROR(VLOOKUP(S14,'Prix de revient'!$A:$D,4,0),0) -> 0
B32: coût de rebuts | D32: =D26*D31 -> 0 | E32: =E26*E31 -> 0 | F32: 0 | G32: 0 | H32: 0 | I32: 0 | J32: 0 | K32: 0 | L32: 0 | M32: 0 | N32: 0 | O32: 0 | P32: 0 | Q32: 0 | R32: 0 | S32: 0 | T32: =SUM(D32:S32) -> 0
B33: gestion de modification
C41: Clients | D41: Audit | E41: Réclamation | F41: Avoir | H41: Fournisseurs/ sous-traitants | I41: Réception de matiere | J41: Probleme qualité | L41: Les formations professionnelles | M41: Cout | N41: Chiffrage décliné | O41: Actions à suivre | Q41: Article qui a subit un tri | R41: durée du tri | S41: Nombre des pieces non-conformes | T41: ouvrier faisant le tri | U41: cout par tri | W41: Article qui a subit la reprise | X41: durée de la reprise | Y41: opérateur faisant la reprise | Z41: coût de reprise | AD41: Machine | AE41: article | AF41: gamme | AG41: objet de la modification
U42: =IF(R42="","",R42*VLOOKUP(T42,'cout opérateur machines'!A1:B8,2,0)) ->  | Z42: =X42*8 -> 0
U43: =IF(R43="","",R43*VLOOKUP(T43,'cout opérateur machines'!A2:B9,2,0)) ->  | Z43: =X43*8 -> 0
U44: =IF(R44="","",R44*VLOOKUP(T44,'cout opérateur machines'!A3:B10,2,0)) ->  | Z44: 0
U45: =IF(R45="","",R45*VLOOKUP(T45,'cout opérateur machines'!A4:B11,2,0)) ->  | Z45: 0
U46: =IF(R46="","",R46*VLOOKUP(T46,'cout opérateur machines'!A5:B12,2,0)) ->  | Z46: 0
U47: =IF(R47="","",R47*VLOOKUP(T47,'cout opérateur machines'!A6:B13,2,0)) ->  | Z47: 0
E48: =COUNTA(E42:E47) -> 0 | F48: =SUM(F42:F47) -> 0 | M48: =SUM(M42:M47) -> 0 | N48: causes de refus | S48: cout total du jour | U48: =SUM(U42:U47) -> 0 | Z48: 0
H49: envoi des réclamations F/ S-T | I49: réponse F/ S-T | J49: alerte | Z49: =SUM(Z42:Z48) -> 0
C50: dans le cas d'une réclamation | J50: =IF(J42="","",IF(H50=0," réclamation non traitée",IF(I50=0, "veuillez contacter le F/ S-T par téléphone",""))) ->  | S50: N° mois | U50: 3
C51: nombre de pièces NC | J51: =IF(J43="","",IF(H51=0," réclamation non traitée",IF(I51=0, "veuillez contacter le F/ S-T par téléphone",""))) -> 
C52: nombre de pièces par carton
C53: coût de transport par carton
C54: nombre de cartons renvoyés
C55: temps de tri
C56: coût horaire de tri
C57: temps de retouche
C58: coût horaire de retouche
C59: temps de traitement de la réclamation
C60: coût horaire de traitement
C61: coût total | D61: =IFERROR(((D51/D52)*D53)+D54*D53+D55*D56+D57*D58+D59*D60,"") -> 

Sheet 18-3-22
E2: Rapport journalier | R2: Code:DAS-SMQ-24
R3: Date: 27/12/2019
R4: Version:01
R5: Page:1
D12: A | E12: B | F12: C | G12: D | H12: E | I12: F | J12: M | K12: N | L12: O | M12: P | N12: I | O12: L | P12: K | Q12: J | R12: G | S12: H
B13: Machine | D13: SST16 | E13: SB16 | F13: BIGLIA 301 SM | G13: BIGLIA 42 S2M bitourelle | H13: L32 | I13: TSUGAMI | J13: MORI SEIKI 3 axes | K13: MORI SEIKI 5 axes | L13: HARDING | M13: KITAMURA | N13: MULTIBROCHE | O13: NAKAMURA | P13: TOUR WEILER
B14: Référence | D14: T-RB400-MajC | E14: G022-CP1 | F14: G011-A | G14: MI018-B42 | H14: 200200-2022 | I14: B55 6*14.8 | J14: I110-01-004 | K14: PIG-11D | L14: I006 | M14: I004 | N14: MPS000300 | O14: F046-CP2 | P14: I143-CP1 | Q14: PT8666 | R14: 68.0815 | S14: AXE-INOX-D8-L58-maj-c
B15: Désignation | D15: RIVET TRB400-MajC | E15: AXE D15-M11x100 | F15: Bague Acier D32*22 L=21 maj-c | G15: GOUJON DE ROUE MITSIBITCHI GM-SUR-B42 | H15: Embout de tige-2022 | I15: Rivet couvercle B55 | J15: INSERT LEVIER SURMOULEE 345833-01 - fraisage | K15: PIGNON 11 DENTS FRAISAGE | L15: CAL SUSPENSION PM ISUZU-HARDING | M15: ECROU SUSPENSION ISUZU-HARDING | N15: raccord HEX 17 | O15: BAGUE DECOLLETEE TUBE D'EAU PALIO -CP2 | P15: ECROU DE ROUE ISUZU-CP1 | Q15: Rehausse-NAKAMURHA | R15: Buse droite à collerette Ø8 M445 FRD | S15: AXE INOX D8 L58 maj-c
B16: Compteur 8h | D16: 0 | E16: 586 | F16: 5575 | G16: 4918 | H16: 4771 | I16: 32917 | J16: 784 | K16: 270 | L16: 285 | M16: 285 | N16: 0 | O16: 32 | P16: 0 | Q16: 523 | R16: 348 | S16: 16032
B17: Compteur 17h | D17: 0 | E17: 1156 | F17: 6190 | G17: 5232 | H17: 4771 | I17: 35351 | J17: 833 | K17: 270 | L17: 285 | M17: 285 | N17: 0 | O17: 207 | P17: 65 | Q17: 1003 | R17: 1070 | S17: 17500
B18: Enregistrement | C18: 9h
C19: 16h
B20: Identification
B21: Propreté des tables de contrôle
B22: Rangement des outils de contrôle
B23: Existance de l'OF
B24: Affutage | T24: =+COUNTA(D24:S24) -> 0
B25: Maintenance
B26: Nombre des NC poubelle | R26: 10
B27: Nombre des NC à retoucher
B28: Machine pour retouche
B29: Panne
B30: Cout pièces de rechange | T30: =SUM(D30:S30) -> 0
B31: prix de revient pièce | D31: =IFERROR(VLOOKUP(D14,'Prix de revient'!$A:$D,4,0),0) -> 0 | E31: =IFERROR(VLOOKUP(E14,'Prix de revient'!$A:$D,4,0),0) -> 0 | F31: =IFERROR(VLOOKUP(F14,'Prix de revient'!$A:$D,4,0),0) -> 0 | G31: =IFERROR(VLOOKUP(G14,'Prix de revient'!$A:$D,4,0),0) -> 0 | H31: =IFERROR(VLOOKUP(H14,'Prix de revient'!$A:$D,4,0),0) -> 0 | I31: =IFERROR(VLOOKUP(I14,'Prix de revient'!$A:$D,4,0),0) -> 0 | J31: =IFERROR(VLOOKUP(J14,'Prix de revient'!$A:$D,4,0),0) -> 2.1488 | K31: =IFERROR(VLOOKUP(K14,'Prix de revient'!$A:$D,4,0),0) -> 0 | L31: =IFERROR(VLOOKUP(L14,'Prix de revient'!$A:$D,4,0),0) -> 0 | M31: =IFERROR(VLOOKUP(M14,'Prix de revient'!$A:$D,4,0),0) -> 0 | N31: =IFERROR(VLOOKUP(N14,'Prix de revient'!$A:$D,4,0),0) -> 0 | O31: =IFERROR(VLOOKUP(O14,'Prix de revient'!$A:$D,4,0),0) -> 0 | P31: =IFERROR(VLOOKUP(P14,'Prix de revient'!$A:$D,4,0),0) -> 0 | Q31: =IFERROR(VLOOKUP(Q14,'Prix de revient'!$A:$D,4,0),0) -> 0 | R31: =IFERROR(VLOOKUP(R14,'Prix de revient'!$A:$D,4,0),0) -> 0 | S31: =IFERROR(VLOOKUP(S14,'Prix de revient'!$A:$D,4,0),0) -> 0
B32: coût de rebuts | D32: =D26*D31 -> 0 | E32: =E26*E31 -> 0 | F32: 0 | G32: 0 | H32: 0 | I32: 0 | J32: 0 | K32: 0 | L32: 0 | M32: 0 | N32: 0 | O32: 0 | P32: 0 | Q32: 0 | R32: 0 | S32: 0 | T32: =SUM(D32:S32) -> 0
B33: gestion de modification
C41: Clients | D41: Audit | E41: Réclamation | F41: Avoir | H41: Fournisseurs/ sous-traitants | I41: Réception de matiere | J41: Probleme qualité | L41: Les formations professionnelles | M41: Cout | N41: Chiffrage décliné | O41: Actions à suivre | Q41: Article qui a subit un tri | R41: durée du tri | S41: Nombre des pieces non-conformes | T41: ouvrier faisant le tri | U41: cout par tri | W41: Article qui a subit la reprise | X41: durée de la reprise | Y41: opérateur faisant la reprise | Z41: coût de reprise | AD41: Machine | AE41: article | AF41: gamme | AG41: objet de la modification
U42: =IF(R42="","",R42*VLOOKUP(T42,'cout opérateur machines'!A1:B8,2,0)) ->  | Z42: =X42*8 -> 0
U43: =IF(R43="","",R43*VLOOKUP(T43,'cout opérateur machines'!A2:B9,2,0)) ->  | Z43: =X43*8 -> 0
U44: =IF(R44="","",R44*VLOOKUP(T44,'cout opérateur machines'!A3:B10,2,0)) ->  | Z44: 0
U45: =IF(R45="","",R45*VLOOKUP(T45,'cout opérateur machines'!A4:B11,2,0)) ->  | Z45: 0
U46: =IF(R46="","",R46*VLOOKUP(T46,'cout opérateur machines'!A5:B12,2,0)) ->  | Z46: 0
U47: =IF(R47="","",R47*VLOOKUP(T47,'cout opérateur machines'!A6:B13,2,0)) ->  | Z47: 0
E48: =COUNTA(E42:E47) -> 0 | F48: =SUM(F42:F47) -> 0 | M48: =SUM(M42:M47) -> 0 | N48: causes de refus | S48: cout total du jour | U48: =SUM(U42:U47) -> 0 | Z48: 0
H49: envoi des réclamations F/ S-T | I49: réponse F/ S-T | J49: alerte | Z49: =SUM(Z42:Z48) -> 0
C50: dans le cas d'une réclamation | J50: =IF(J42="","",IF(H50=0," réclamation non traitée",IF(I50=0, "veuillez contacter le F/ S-T par téléphone",""))) ->  | S50: N° mois | U50: 3
C51: nombre de pièces NC | J51: =IF(J43="","",IF(H51=0," réclamation non traitée",IF(I51=0, "veuillez contacter le F/ S-T par téléphone",""))) -> 
C52: nombre de pièces par carton
C53: coût de transport par carton
C54: nombre de cartons renvoyés
C55: temps de tri
C56: coût horaire de tri
C57: temps de retouche
C58: coût horaire de retouche
C59: temps de traitement de la réclamation
C60: coût horaire de traitement
C61: coût total | D61: =IFERROR(((D51/D52)*D53)+D54*D53+D55*D56+D57*D58+D59*D60,"") -> 

Sheet 17-3-22
E2: Rapport journalier | R2: Code:DAS-SMQ-24
R3: Date: 27/12/2019
R4: Version:01
R5: Page:1
D12: A | E12: B | F12: C | G12: D | H12: E | I12: F | J12: M | K12: N | L12: O | M12: P | N12: I | O12: L | P12: K | Q12: J | R12: G | S12: H
B13: Machine | D13: SST16 | E13: SB16 | F13: BIGLIA 301 SM | G13: BIGLIA 42 S2M bitourelle | H13: L32 | I13: TSUGAMI | J13: MORI SEIKI 3 axes | K13: MORI SEIKI 5 axes | L13: HARDING | M13: KITAMURA | N13: MULTIBROCHE | O13: NAKAMURA | P13: TOUR WEILER
B14: Référence | D14: T-RB400-MajC | E14: G022-CP1 | F14: G011-A | G14: MI018-B42 | H14: 200200-2022 | I14: B55 6*14.8 | J14: I110-01-004 | K14: PIG-11D | L14: I006 | M14: I004 | N14: MPS000300 | O14: F046-CP2 | P14: 4-8136-1 | Q14: PT8666 | R14: 68.0815 | S14: AXE-INOX-D8-L58
B15: Désignation | D15: RIVET TRB400-MajC | E15: AXE D15-M11x100 | F15: Bague Acier D32*22 L=21 maj-c | G15: GOUJON DE ROUE MITSIBITCHI GM-SUR-B42 | H15: Embout de tige-2022 | I15: Rivet couvercle B55 | J15: INSERT LEVIER SURMOULEE 345833-01 - fraisage | K15: PIGNON 11 DENTS FRAISAGE | L15: CAL SUSPENSION PM ISUZU-HARDING | M15: ECROU SUSPENSION ISUZU-HARDING | N15: raccord HEX 17 | O15: BAGUE DECOLLETEE TUBE D'EAU PALIO -CP2 | P15: Bague galvanisee 12*22*53 | Q15: Rehausse-NAKAMURHA | R15: Buse droite à collerette Ø8 M445 FRD | S15: AXE INOX D8 L58
B16: Compteur 8h | D16: 51700 | E16: 243 | F16: 5020 | G16: 4480 | H16: 4771 | I16: 30522 | J16: 740 | K16: 270 | L16: 285 | M16: 285 | N16: 0 | O16: 0 | P16: 0 | Q16: 0 | R16: 0 | S16: 14600
B17: Compteur 17h | D17: 52632 | E17: 586 | F17: 5575 | G17: 4918 | H17: 4771 | I17: 32917 | J17: 784 | K17: 270 | L17: 285 | M17: 285 | N17: 0 | O17: 32 | P17: 602 | Q17: 523 | R17: 348 | S17: 16032
B18: Enregistrement | C18: 9h
C19: 16h
B20: Identification
B21: Propreté des tables de contrôle
B22: Rangement des outils de contrôle
B23: Existance de l'OF
B24: Affutage | T24: =+COUNTA(D24:S24) -> 0
B25: Maintenance
B26: Nombre des NC poubelle
B27: Nombre des NC à retoucher
B28: Machine pour retouche
B29: Panne
B30: Cout pièces de rechange | T30: =SUM(D30:S30) -> 0
B31: prix de revient pièce | D31: =IFERROR(VLOOKUP(D14,'Prix de revient'!$A:$D,4,0),0) -> 0 | E31: =IFERROR(VLOOKUP(E14,'Prix de revient'!$A:$D,4,0),0) -> 0 | F31: =IFERROR(VLOOKUP(F14,'Prix de revient'!$A:$D,4,0),0) -> 0 | G31: =IFERROR(VLOOKUP(G14,'Prix de revient'!$A:$D,4,0),0) -> 0 | H31: =IFERROR(VLOOKUP(H14,'Prix de revient'!$A:$D,4,0),0) -> 0 | I31: =IFERROR(VLOOKUP(I14,'Prix de revient'!$A:$D,4,0),0) -> 0 | J31: =IFERROR(VLOOKUP(J14,'Prix de revient'!$A:$D,4,0),0) -> 2.1488 | K31: =IFERROR(VLOOKUP(K14,'Prix de revient'!$A:$D,4,0),0) -> 0 | L31: =IFERROR(VLOOKUP(L14,'Prix de revient'!$A:$D,4,0),0) -> 0 | M31: =IFERROR(VLOOKUP(M14,'Prix de revient'!$A:$D,4,0),0) -> 0 | N31: =IFERROR(VLOOKUP(N14,'Prix de revient'!$A:$D,4,0),0) -> 0 | O31: =IFERROR(VLOOKUP(O14,'Prix de revient'!$A:$D,4,0),0) -> 0 | P31: =IFERROR(VLOOKUP(P14,'Prix de revient'!$A:$D,4,0),0) -> 4000 | Q31: =IFERROR(VLOOKUP(Q14,'Prix de revient'!$A:$D,4,0),0) -> 0 | R31: =IFERROR(VLOOKUP(R14,'Prix de revient'!$A:$D,4,0),0) -> 0 | S31: =IFERROR(VLOOKUP(S14,'Prix de revient'!$A:$D,4,0),0) -> 0
B32: coût de rebuts | D32: =D26*D31 -> 0 | E32: =E26*E31 -> 0 | F32: 0 | G32: 0 | H32: 0 | I32: 0 | J32: 0 | K32: 0 | L32: 0 | M32: 0 | N32: 0 | O32: 0 | P32: 0 | Q32: 0 | R32: 0 | S32: 0 | T32: =SUM(D32:S32) -> 0
B33: gestion de modification
C41: Clients | D41: Audit | E41: Réclamation | F41: Avoir | H41: Fournisseurs/ sous-traitants | I41: Réception de matiere | J41: Probleme qualité | L41: Les formations professionnelles | M41: Cout | N41: Chiffrage décliné | O41: Actions à suivre | Q41: Article qui a subit un tri | R41: durée du tri | S41: Nombre des pieces non-conformes | T41: ouvrier faisant le tri | U41: cout par tri | W41: Article qui a subit la reprise | X41: durée de la reprise | Y41: opérateur faisant la reprise | Z41: coût de reprise | AD41: Machine | AE41: article | AF41: gamme | AG41: objet de la modification
U42: =IF(R42="","",R42*VLOOKUP(T42,'cout opérateur machines'!A1:B8,2,0)) ->  | Z42: =X42*8 -> 0
U43: =IF(R43="","",R43*VLOOKUP(T43,'cout opérateur machines'!A2:B9,2,0)) ->  | Z43: =X43*8 -> 0
U44: =IF(R44="","",R44*VLOOKUP(T44,'cout opérateur machines'!A3:B10,2,0)) ->  | Z44: 0
U45: =IF(R45="","",R45*VLOOKUP(T45,'cout opérateur machines'!A4:B11,2,0)) ->  | Z45: 0
U46: =IF(R46="","",R46*VLOOKUP(T46,'cout opérateur machines'!A5:B12,2,0)) ->  | Z46: 0
U47: =IF(R47="","",R47*VLOOKUP(T47,'cout opérateur machines'!A6:B13,2,0)) ->  | Z47: 0
E48: =COUNTA(E42:E47) -> 0 | F48: =SUM(F42:F47) -> 0 | M48: =SUM(M42:M47) -> 0 | N48: causes de refus | S48: cout total du jour | U48: =SUM(U42:U47) -> 0 | Z48: 0
H49: envoi des réclamations F/ S-T | I49: réponse F/ S-T | J49: alerte | Z49: =SUM(Z42:Z48) -> 0
C50: dans le cas d'une réclamation | J50: =IF(J42="","",IF(H50=0," réclamation non traitée",IF(I50=0, "veuillez contacter le F/ S-T par téléphone",""))) ->  | S50: N° mois | U50: 3
C51: nombre de pièces NC | J51: =IF(J43="","",IF(H51=0," réclamation non traitée",IF(I51=0, "veuillez contacter le F/ S-T par téléphone",""))) -> 
C52: nombre de pièces par carton
C53: coût de transport par carton
C54: nombre de cartons renvoyés
C55: temps de tri
C56: coût horaire de tri
C57: temps de retouche
C58: coût horaire de retouche
C59: temps de traitement de la réclamation
C60: coût horaire de traitement
C61: coût total | D61: =IFERROR(((D51/D52)*D53)+D54*D53+D55*D56+D57*D58+D59*D60,"") -> 

Sheet 16-3-22
E2: Rapport journalier | R2: Code:DAS-SMQ-24
R3: Date: 27/12/2019
R4: Version:01
R5: Page:1
D12: A | E12: B | F12: C | G12: D | H12: E | I12: F | J12: M | K12: N | L12: O | M12: P | N12: I | O12: L | P12: K | Q12: J | R12: G | S12: H
B13: Machine | D13: SST16 | E13: SB16 | F13: BIGLIA 301 SM | G13: BIGLIA 42 S2M bitourelle | H13: L32 | I13: TSUGAMI | J13: MORI SEIKI 3 axes | K13: MORI SEIKI 5 axes | L13: HARDING | M13: KITAMURA | N13: MULTIBROCHE | O13: NAKAMURA | P13: TOUR WEILER
B14: Référence | D14: T-RB400-MajC | E14: G022-CP1 | F14: G011-A | G14: MI018-B42 | H14: 200200-2022 | I14: B55 6*14.8 | J14: I110-01-004 | K14: PIG-11D | L14: I006 | M14: I004 | N14: MPS000300 | O14: F045-CP2-NAK | P14: 199400-1 | Q14: PT8666 | R14: 68.0814 | S14: AXE-INOX-D8-L58
B15: Désignation | D15: RIVET TRB400-MajC | E15: AXE D15-M11x100 | F15: Bague Acier D32*22 L=21 maj-c | G15: GOUJON DE ROUE MITSIBITCHI GM-SUR-B42 | H15: Embout de tige-2022 | I15: Rivet couvercle B55 | J15: INSERT LEVIER SURMOULEE 345833-01 - fraisage | K15: PIGNON 11 DENTS FRAISAGE | L15: CAL SUSPENSION PM ISUZU-HARDING | M15: ECROU SUSPENSION ISUZU-HARDING | N15: raccord HEX 17 | O15: BAGUE DECOLLETEE TUBE D'EAU UNO DISEL -CP2 NAK | P15: tirant acier D6 maj-1 | Q15: Rehausse-NAKAMURHA | R15: Buse droite à collerette Ø8 | S15: AXE INOX D8 L58
B16: Compteur 8h | D16: 50090 | E16: 0 | F16: 4414 | G16: 3851 | H16: 4771 | I16: 28080 | J16: 705 | K16: 270 | L16: 281 | M16: 281 | N16: 0 | O16: 685 | P16: 10947 | Q16: 290 | R16: 18880 | S16: 13120
B17: Compteur 17h | D17: 51700 | E17: 243 | F17: 5020 | G17: 4480 | H17: 4771 | I17: 30522 | J17: 740 | K17: 270 | L17: 285 | M17: 285 | N17: 0 | O17: 803 | P17: 12161 | Q17: 760 | R17: 19663 | S17: 14600
B18: Enregistrement | C18: 9h
C19: 16h
B20: Identification
B21: Propreté des tables de contrôle
B22: Rangement des outils de contrôle
B23: Existance de l'OF
B24: Affutage | T24: =+COUNTA(D24:S24) -> 0
B25: Maintenance
B26: Nombre des NC poubelle
B27: Nombre des NC à retoucher
B28: Machine pour retouche
B29: Panne
B30: Cout pièces de rechange | T30: =SUM(D30:S30) -> 0
B31: prix de revient pièce | D31: =IFERROR(VLOOKUP(D14,'Prix de revient'!$A:$D,4,0),0) -> 0 | E31: =IFERROR(VLOOKUP(E14,'Prix de revient'!$A:$D,4,0),0) -> 0 | F31: =IFERROR(VLOOKUP(F14,'Prix de revient'!$A:$D,4,0),0) -> 0 | G31: =IFERROR(VLOOKUP(G14,'Prix de revient'!$A:$D,4,0),0) -> 0 | H31: =IFERROR(VLOOKUP(H14,'Prix de revient'!$A:$D,4,0),0) -> 0 | I31: =IFERROR(VLOOKUP(I14,'Prix de revient'!$A:$D,4,0),0) -> 0 | J31: =IFERROR(VLOOKUP(J14,'Prix de revient'!$A:$D,4,0),0) -> 2.1488 | K31: =IFERROR(VLOOKUP(K14,'Prix de revient'!$A:$D,4,0),0) -> 0 | L31: =IFERROR(VLOOKUP(L14,'Prix de revient'!$A:$D,4,0),0) -> 0 | M31: =IFERROR(VLOOKUP(M14,'Prix de revient'!$A:$D,4,0),0) -> 0 | N31: =IFERROR(VLOOKUP(N14,'Prix de revient'!$A:$D,4,0),0) -> 0 | O31: =IFERROR(VLOOKUP(O14,'Prix de revient'!$A:$D,4,0),0) -> 0 | P31: =IFERROR(VLOOKUP(P14,'Prix de revient'!$A:$D,4,0),0) -> 0 | Q31: =IFERROR(VLOOKUP(Q14,'Prix de revient'!$A:$D,4,0),0) -> 0 | R31: =IFERROR(VLOOKUP(R14,'Prix de revient'!$A:$D,4,0),0) -> 0 | S31: =IFERROR(VLOOKUP(S14,'Prix de revient'!$A:$D,4,0),0) -> 0
B32: coût de rebuts | D32: =D26*D31 -> 0 | E32: =E26*E31 -> 0 | F32: 0 | G32: 0 | H32: 0 | I32: 0 | J32: 0 | K32: 0 | L32: 0 | M32: 0 | N32: 0 | O32: 0 | P32: 0 | Q32: 0 | R32: 0 | S32: 0 | T32: =SUM(D32:S32) -> 0
B33: gestion de modification
C41: Clients | D41: Audit | E41: Réclamation | F41: Avoir | H41: Fournisseurs/ sous-traitants | I41: Réception de matiere | J41: Probleme qualité | L41: Les formations professionnelles | M41: Cout | N41: Chiffrage décliné | O41: Actions à suivre | Q41: Article qui a subit un tri | R41: durée du tri | S41: Nombre des pieces non-conformes | T41: ouvrier faisant le tri | U41: cout par tri | W41: Article qui a subit la reprise | X41: durée de la reprise | Y41: opérateur faisant la reprise | Z41: coût de reprise | AD41: Machine | AE41: article | AF41: gamme | AG41: objet de la modification
U42: =IF(R42="","",R42*VLOOKUP(T42,'cout opérateur machines'!A1:B8,2,0)) ->  | Z42: =X42*8 -> 0
U43: =IF(R43="","",R43*VLOOKUP(T43,'cout opérateur machines'!A2:B9,2,0)) ->  | Z43: =X43*8 -> 0
U44: =IF(R44="","",R44*VLOOKUP(T44,'cout opérateur machines'!A3:B10,2,0)) ->  | Z44: 0
U45: =IF(R45="","",R45*VLOOKUP(T45,'cout opérateur machines'!A4:B11,2,0)) ->  | Z45: 0
U46: =IF(R46="","",R46*VLOOKUP(T46,'cout opérateur machines'!A5:B12,2,0)) ->  | Z46: 0
U47: =IF(R47="","",R47*VLOOKUP(T47,'cout opérateur machines'!A6:B13,2,0)) ->  | Z47: 0
E48: =COUNTA(E42:E47) -> 0 | F48: =SUM(F42:F47) -> 0 | M48: =SUM(M42:M47) -> 0 | N48: causes de refus | S48: cout total du jour | U48: =SUM(U42:U47) -> 0 | Z48: 0
H49: envoi des réclamations F/ S-T | I49: réponse F/ S-T | J49: alerte | Z49: =SUM(Z42:Z48) -> 0
C50: dans le cas d'une réclamation | J50: =IF(J42="","",IF(H50=0," réclamation non traitée",IF(I50=0, "veuillez contacter le F/ S-T par téléphone",""))) ->  | S50: N° mois | U50: 3
C51: nombre de pièces NC | J51: =IF(J43="","",IF(H51=0," réclamation non traitée",IF(I51=0, "veuillez contacter le F/ S-T par téléphone",""))) -> 
C52: nombre de pièces par carton
C53: coût de transport par carton
C54: nombre de cartons renvoyés
C55: temps de tri
C56: coût horaire de tri
C57: temps de retouche
C58: coût horaire de retouche
C59: temps de traitement de la réclamation
C60: coût horaire de traitement
C61: coût total | D61: =IFERROR(((D51/D52)*D53)+D54*D53+D55*D56+D57*D58+D59*D60,"") -> 

Sheet 15-3-22
E2: Rapport journalier | R2: Code:DAS-SMQ-24
R3: Date: 27/12/2019
R4: Version:01
R5: Page:1
D12: A | E12: B | F12: C | G12: D | H12: E | I12: F | J12: M | K12: N | L12: O | M12: P | N12: I | O12: L | P12: K | Q12: J | R12: G | S12: H
B13: Machine | D13: SST16 | E13: SB16 | F13: BIGLIA 301 SM | G13: BIGLIA 42 S2M bitourelle | H13: L32 | I13: TSUGAMI | J13: MORI SEIKI 3 axes | K13: MORI SEIKI 5 axes | L13: HARDING | M13: KITAMURA | N13: MULTIBROCHE | O13: NAKAMURA | P13: TOUR WEILER
B14: Référence | D14: T-RB400-MajC | E14: 10.2*6.7*20.5 | F14: G011-A | G14: MI018-B42 | H14: 200200-2022 | I14: B55 6*14.8 | J14: I110-01-004 | K14: PIG-11D | L14: I006 | M14: I004 | N14: MPS000300 | O14: F045-CP2-NAK | P14: 199400-1 | Q14: PT8666 | R14: 68.0814 | S14: AXE-INOX-D8-L58
B15: Désignation | D15: RIVET TRB400-MajC | E15: Bague Acier 10.2*6.7*20.5 | F15: Bague Acier D32*22 L=21 maj-c | G15: GOUJON DE ROUE MITSIBITCHI GM-SUR-B42 | H15: Embout de tige-2022 | I15: Rivet couvercle B55 | J15: INSERT LEVIER SURMOULEE 345833-01 - fraisage | K15: PIGNON 11 DENTS FRAISAGE | L15: CAL SUSPENSION PM ISUZU-HARDING | M15: ECROU SUSPENSION ISUZU-HARDING | N15: raccord HEX 17 | O15: BAGUE DECOLLETEE TUBE D'EAU UNO DISEL -CP2 NAK | P15: tirant acier D6 maj-1 | Q15: Rehausse-NAKAMURHA | R15: Buse droite à collerette Ø8 | S15: AXE INOX D8 L58
B16: Compteur 8h | D16: 48542 | E16: 1620 | F16: 3902 | G16: 3440 | H16: 4771 | I16: 25555 | J16: 666 | K16: 270 | L16: 253 | M16: 253 | N16: 0 | O16: 590 | P16: 9643 | Q16: 0 | R16: 18112 | S16: 11640
B17: Compteur 17h | D17: 50090 | E17: 2200 | F17: 4414 | G17: 3851 | H17: 4771 | I17: 28080 | J17: 705 | K17: 270 | L17: 281 | M17: 281 | N17: 0 | O17: 685 | P17: 10947 | Q17: 290 | R17: 18880 | S17: 13120
B18: Enregistrement | C18: 9h
C19: 16h
B20: Identification
B21: Propreté des tables de contrôle
B22: Rangement des outils de contrôle
B23: Existance de l'OF
B24: Affutage | T24: =+COUNTA(D24:S24) -> 0
B25: Maintenance
B26: Nombre des NC poubelle
B27: Nombre des NC à retoucher
B28: Machine pour retouche
B29: Panne
B30: Cout pièces de rechange | T30: =SUM(D30:S30) -> 0
B31: prix de revient pièce | D31: =IFERROR(VLOOKUP(D14,'Prix de revient'!$A:$D,4,0),0) -> 0 | E31: =IFERROR(VLOOKUP(E14,'Prix de revient'!$A:$D,4,0),0) -> 0 | F31: =IFERROR(VLOOKUP(F14,'Prix de revient'!$A:$D,4,0),0) -> 0 | G31: =IFERROR(VLOOKUP(G14,'Prix de revient'!$A:$D,4,0),0) -> 0 | H31: =IFERROR(VLOOKUP(H14,'Prix de revient'!$A:$D,4,0),0) -> 0 | I31: =IFERROR(VLOOKUP(I14,'Prix de revient'!$A:$D,4,0),0) -> 0 | J31: =IFERROR(VLOOKUP(J14,'Prix de revient'!$A:$D,4,0),0) -> 2.1488 | K31: =IFERROR(VLOOKUP(K14,'Prix de revient'!$A:$D,4,0),0) -> 0 | L31: =IFERROR(VLOOKUP(L14,'Prix de revient'!$A:$D,4,0),0) -> 0 | M31: =IFERROR(VLOOKUP(M14,'Prix de revient'!$A:$D,4,0),0) -> 0 | N31: =IFERROR(VLOOKUP(N14,'Prix de revient'!$A:$D,4,0),0) -> 0 | O31: =IFERROR(VLOOKUP(O14,'Prix de revient'!$A:$D,4,0),0) -> 0 | P31: =IFERROR(VLOOKUP(P14,'Prix de revient'!$A:$D,4,0),0) -> 0 | Q31: =IFERROR(VLOOKUP(Q14,'Prix de revient'!$A:$D,4,0),0) -> 0 | R31: =IFERROR(VLOOKUP(R14,'Prix de revient'!$A:$D,4,0),0) -> 0 | S31: =IFERROR(VLOOKUP(S14,'Prix de revient'!$A:$D,4,0),0) -> 0
B32: coût de rebuts | D32: =D26*D31 -> 0 | E32: =E26*E31 -> 0 | F32: 0 | G32: 0 | H32: 0 | I32: 0 | J32: 0 | K32: 0 | L32: 0 | M32: 0 | N32: 0 | O32: 0 | P32: 0 | Q32: 0 | R32: 0 | S32: 0 | T32: =SUM(D32:S32) -> 0
B33: gestion de modification
C41: Clients | D41: Audit | E41: Réclamation | F41: Avoir | H41: Fournisseurs/ sous-traitants | I41: Réception de matiere | J41: Probleme qualité | L41: Les formations professionnelles | M41: Cout | N41: Chiffrage décliné | O41: Actions à suivre | Q41: Article qui a subit un tri | R41: durée du tri | S41: Nombre des pieces non-conformes | T41: ouvrier faisant le tri | U41: cout par tri | W41: Article qui a subit la reprise | X41: durée de la reprise | Y41: opérateur faisant la reprise | Z41: coût de reprise | AD41: Machine | AE41: article | AF41: gamme | AG41: objet de la modification
U42: =IF(R42="","",R42*VLOOKUP(T42,'cout opérateur machines'!A1:B8,2,0)) ->  | Z42: =X42*8 -> 0
U43: =IF(R43="","",R43*VLOOKUP(T43,'cout opérateur machines'!A2:B9,2,0)) ->  | Z43: =X43*8 -> 0
U44: =IF(R44="","",R44*VLOOKUP(T44,'cout opérateur machines'!A3:B10,2,0)) ->  | Z44: 0
U45: =IF(R45="","",R45*VLOOKUP(T45,'cout opérateur machines'!A4:B11,2,0)) ->  | Z45: 0
U46: =IF(R46="","",R46*VLOOKUP(T46,'cout opérateur machines'!A5:B12,2,0)) ->  | Z46: 0
U47: =IF(R47="","",R47*VLOOKUP(T47,'cout opérateur machines'!A6:B13,2,0)) ->  | Z47: 0
E48: =COUNTA(E42:E47) -> 0 | F48: =SUM(F42:F47) -> 0 | M48: =SUM(M42:M47) -> 0 | N48: causes de refus | S48: cout total du jour | U48: =SUM(U42:U47) -> 0 | Z48: 0
H49: envoi des réclamations F/ S-T | I49: réponse F/ S-T | J49: alerte | Z49: =SUM(Z42:Z48) -> 0
C50: dans le cas d'une réclamation | J50: =IF(J42="","",IF(H50=0," réclamation non traitée",IF(I50=0, "veuillez contacter le F/ S-T par téléphone",""))) ->  | S50: N° mois | U50: 3
C51: nombre de pièces NC | J51: =IF(J43="","",IF(H51=0," réclamation non traitée",IF(I51=0, "veuillez contacter le F/ S-T par téléphone",""))) -> 
C52: nombre de pièces par carton
C53: coût de transport par carton
C54: nombre de cartons renvoyés
C55: temps de tri
C56: coût horaire de tri
C57: temps de retouche
C58: coût horaire de retouche
C59: temps de traitement de la réclamation
C60: coût horaire de traitement
C61: coût total | D61: =IFERROR(((D51/D52)*D53)+D54*D53+D55*D56+D57*D58+D59*D60,"") -> 

Sheet 14-3-22
E2: Rapport journalier | R2: Code:DAS-SMQ-24
R3: Date: 27/12/2019
R4: Version:01
R5: Page:1
D12: A | E12: B | F12: C | G12: D | H12: E | I12: F | J12: M | K12: N | L12: O | M12: P | N12: I | O12: L | P12: K | Q12: J | R12: G | S12: H
B13: Machine | D13: SST16 | E13: SB16 | F13: BIGLIA 301 SM | G13: BIGLIA 42 S2M bitourelle | H13: L32 | I13: TSUGAMI | J13: MORI SEIKI 3 axes | K13: MORI SEIKI 5 axes | L13: HARDING | M13: KITAMURA | N13: MULTIBROCHE | O13: NAKAMURA | P13: TOUR WEILER
B14: Référence | D14: T-RB400-MajC | E14: 10.2*6.7*20.5 | F14: G011-A | G14: MI018-B42 | H14: 200200-2022 | I14: B55 6*14.8 | J14: I110-01-004 | K14: PIG-11D | L14: I006 | M14: I004 | N14: MPS000300 | O14: F045-CP2-NAK | P14: 199400-1 | Q14: 18*27*43-2 | R14: 68.0814 | S14: AXE-INOX-D8-L58
B15: Désignation | D15: RIVET TRB400-MajC | E15: Bague Acier 10.2*6.7*20.5 | F15: Bague Acier D32*22 L=21 maj-c | G15: GOUJON DE ROUE MITSIBITCHI GM-SUR-B42 | H15: Embout de tige-2022 | I15: Rivet couvercle B55 | J15: INSERT LEVIER SURMOULEE 345833-01 - fraisage | K15: PIGNON 11 DENTS FRAISAGE | L15: CAL SUSPENSION PM ISUZU-HARDING | M15: ECROU SUSPENSION ISUZU-HARDING | N15: raccord HEX 17 | O15: BAGUE DECOLLETEE TUBE D'EAU UNO DISEL -CP2 NAK | P15: tirant acier D6 maj-1 | Q15: Bague aluminuim 18*27*43-2 | R15: Buse droite à collerette Ø8 | S15: AXE INOX D8 L58
B16: Compteur 8h | D16: 46917 | E16: 240 | F16: 3310 | G16: 2810 | H16: 4771 | I16: 23117 | J16: 629 | K16: 270 | L16: 225 | M16: 225 | N16: 0 | O16: 468 | P16: 7916 | Q16: 876 | R16: 17316 | S16: 10210
B17: Compteur 17h | D17: 48542 | E17: 1620 | F17: 3902 | G17: 3440 | H17: 4771 | I17: 25555 | J17: 666 | K17: 270 | L17: 253 | M17: 253 | N17: 0 | O17: 590 | P17: 9643 | Q17: 1427 | R17: 18112 | S17: 11640
B18: Enregistrement | C18: 9h
C19: 16h
B20: Identification
B21: Propreté des tables de contrôle
B22: Rangement des outils de contrôle
B23: Existance de l'OF
B24: Affutage | T24: =+COUNTA(D24:S24) -> 0
B25: Maintenance
B26: Nombre des NC poubelle
B27: Nombre des NC à retoucher
B28: Machine pour retouche
B29: Panne
B30: Cout pièces de rechange | T30: =SUM(D30:S30) -> 0
B31: prix de revient pièce | D31: =IFERROR(VLOOKUP(D14,'Prix de revient'!$A:$D,4,0),0) -> 0 | E31: =IFERROR(VLOOKUP(E14,'Prix de revient'!$A:$D,4,0),0) -> 0 | F31: =IFERROR(VLOOKUP(F14,'Prix de revient'!$A:$D,4,0),0) -> 0 | G31: =IFERROR(VLOOKUP(G14,'Prix de revient'!$A:$D,4,0),0) -> 0 | H31: =IFERROR(VLOOKUP(H14,'Prix de revient'!$A:$D,4,0),0) -> 0 | I31: =IFERROR(VLOOKUP(I14,'Prix de revient'!$A:$D,4,0),0) -> 0 | J31: =IFERROR(VLOOKUP(J14,'Prix de revient'!$A:$D,4,0),0) -> 2.1488 | K31: =IFERROR(VLOOKUP(K14,'Prix de revient'!$A:$D,4,0),0) -> 0 | L31: =IFERROR(VLOOKUP(L14,'Prix de revient'!$A:$D,4,0),0) -> 0 | M31: =IFERROR(VLOOKUP(M14,'Prix de revient'!$A:$D,4,0),0) -> 0 | N31: =IFERROR(VLOOKUP(N14,'Prix de revient'!$A:$D,4,0),0) -> 0 | O31: =IFERROR(VLOOKUP(O14,'Prix de revient'!$A:$D,4,0),0) -> 0 | P31: =IFERROR(VLOOKUP(P14,'Prix de revient'!$A:$D,4,0),0) -> 0 | Q31: =IFERROR(VLOOKUP(Q14,'Prix de revient'!$A:$D,4,0),0) -> 0 | R31: =IFERROR(VLOOKUP(R14,'Prix de revient'!$A:$D,4,0),0) -> 0 | S31: =IFERROR(VLOOKUP(S14,'Prix de revient'!$A:$D,4,0),0) -> 0
B32: coût de rebuts | D32: =D26*D31 -> 0 | E32: =E26*E31 -> 0 | F32: 0 | G32: 0 | H32: 0 | I32: 0 | J32: 0 | K32: 0 | L32: 0 | M32: 0 | N32: 0 | O32: 0 | P32: 0 | Q32: 0 | R32: 0 | S32: 0 | T32: =SUM(D32:S32) -> 0
B33: gestion de modification
C41: Clients | D41: Audit | E41: Réclamation | F41: Avoir | H41: Fournisseurs/ sous-traitants | I41: Réception de matiere | J41: Probleme qualité | L41: Les formations professionnelles | M41: Cout | N41: Chiffrage décliné | O41: Actions à suivre | Q41: Article qui a subit un tri | R41: durée du tri | S41: Nombre des pieces non-conformes | T41: ouvrier faisant le tri | U41: cout par tri | W41: Article qui a subit la reprise | X41: durée de la reprise | Y41: opérateur faisant la reprise | Z41: coût de reprise | AD41: Machine | AE41: article | AF41: gamme | AG41: objet de la modification
U42: =IF(R42="","",R42*VLOOKUP(T42,'cout opérateur machines'!A1:B8,2,0)) ->  | Z42: =X42*8 -> 0
U43: =IF(R43="","",R43*VLOOKUP(T43,'cout opérateur machines'!A2:B9,2,0)) ->  | Z43: =X43*8 -> 0
U44: =IF(R44="","",R44*VLOOKUP(T44,'cout opérateur machines'!A3:B10,2,0)) ->  | Z44: 0
U45: =IF(R45="","",R45*VLOOKUP(T45,'cout opérateur machines'!A4:B11,2,0)) ->  | Z45: 0
U46: =IF(R46="","",R46*VLOOKUP(T46,'cout opérateur machines'!A5:B12,2,0)) ->  | Z46: 0
U47: =IF(R47="","",R47*VLOOKUP(T47,'cout opérateur machines'!A6:B13,2,0)) ->  | Z47: 0
E48: =COUNTA(E42:E47) -> 0 | F48: =SUM(F42:F47) -> 0 | M48: =SUM(M42:M47) -> 0 | N48: causes de refus | S48: cout total du jour | U48: =SUM(U42:U47) -> 0 | Z48: 0
H49: envoi des réclamations F/ S-T | I49: réponse F/ S-T | J49: alerte | Z49: =SUM(Z42:Z48) -> 0
C50: dans le cas d'une réclamation | J50: =IF(J42="","",IF(H50=0," réclamation non traitée",IF(I50=0, "veuillez contacter le F/ S-T par téléphone",""))) ->  | S50: N° mois | U50: 3
C51: nombre de pièces NC | J51: =IF(J43="","",IF(H51=0," réclamation non traitée",IF(I51=0, "veuillez contacter le F/ S-T par téléphone",""))) -> 
C52: nombre de pièces par carton
C53: coût de transport par carton
C54: nombre de cartons renvoyés
C55: temps de tri
C56: coût horaire de tri
C57: temps de retouche
C58: coût horaire de retouche
C59: temps de traitement de la réclamation
C60: coût horaire de traitement
C61: coût total | D61: =IFERROR(((D51/D52)*D53)+D54*D53+D55*D56+D57*D58+D59*D60,"") -> 

Sheet 12-3-22
E2: Rapport journalier | R2: Code:DAS-SMQ-24
R3: Date: 27/12/2019
R4: Version:01
R5: Page:1
D12: A | E12: B | F12: C | G12: D | H12: E | I12: F | J12: M | K12: N | L12: O | M12: P | N12: I | O12: L | P12: K | Q12: J | R12: G | S12: H
B13: Machine | D13: SST16 | E13: SB16 | F13: BIGLIA 301 SM | G13: BIGLIA 42 S2M bitourelle | H13: L32 | I13: TSUGAMI | J13: MORI SEIKI 3 axes | K13: MORI SEIKI 5 axes | L13: HARDING | M13: KITAMURA | N13: MULTIBROCHE | O13: NAKAMURA | P13: TOUR WEILER
B14: Référence | D14: T-RB400-MajC | E14: 10.2*6.7*20.5 | F14: G011 | G14: MI018-B42 | H14: 200200-2022 | I14: B55 6*14.8 | J14: I110-01-004 | K14: PIG-11D | L14: I006 | M14: I004 | N14: MPS000300 | O14: F045-CP2-NAK | P14: 199400-1 | Q14: 18*27*43-2 | R14: 68.0814 | S14: AXE-INOX-D8-L58
B15: Désignation | D15: RIVET TRB400-MajC | E15: Bague Acier 10.2*6.7*20.5 | F15: BAGUE D32*22 L=21 | G15: GOUJON DE ROUE MITSIBITCHI GM-SUR-B42 | H15: Embout de tige-2022 | I15: Rivet couvercle B55 | J15: INSERT LEVIER SURMOULEE 345833-01 - fraisage | K15: PIGNON 11 DENTS FRAISAGE | L15: CAL SUSPENSION PM ISUZU-HARDING | M15: ECROU SUSPENSION ISUZU-HARDING | N15: raccord HEX 17 | O15: BAGUE DECOLLETEE TUBE D'EAU UNO DISEL -CP2 NAK | P15: tirant acier D6 maj-1 | Q15: Bague aluminuim 18*27*43-2 | R15: Buse droite à collerette Ø8 | S15: AXE INOX D8 L58
B16: Compteur 8h | D16: 46098 | E16: 0 | F16: 3086 | G16: 2509 | H16: 4771 | I16: 21884 | J16: 620 | K16: 270 | L16: 211 | M16: 211 | N16: 0 | O16: 377 | P16: 6871 | Q16: 576 | R16: 16927 | S16: 9502
B17: Compteur 17h | D17: 46917 | E17: 240 | F17: 3310 | G17: 2810 | H17: 4771 | I17: 23117 | J17: 629 | K17: 270 | L17: 225 | M17: 225 | N17: 0 | O17: 468 | P17: 7916 | Q17: 876 | R17: 17316 | S17: 10210
B18: Enregistrement | C18: 9h
C19: 16h
B20: Identification
B21: Propreté des tables de contrôle
B22: Rangement des outils de contrôle
B23: Existance de l'OF
B24: Affutage | T24: =+COUNTA(D24:S24) -> 0
B25: Maintenance
B26: Nombre des NC poubelle
B27: Nombre des NC à retoucher
B28: Machine pour retouche
B29: Panne
B30: Cout pièces de rechange | T30: =SUM(D30:S30) -> 0
B31: prix de revient pièce | D31: =IFERROR(VLOOKUP(D14,'Prix de revient'!$A:$D,4,0),0) -> 0 | E31: =IFERROR(VLOOKUP(E14,'Prix de revient'!$A:$D,4,0),0) -> 0 | F31: =IFERROR(VLOOKUP(F14,'Prix de revient'!$A:$D,4,0),0) -> 0 | G31: =IFERROR(VLOOKUP(G14,'Prix de revient'!$A:$D,4,0),0) -> 0 | H31: =IFERROR(VLOOKUP(H14,'Prix de revient'!$A:$D,4,0),0) -> 0 | I31: =IFERROR(VLOOKUP(I14,'Prix de revient'!$A:$D,4,0),0) -> 0 | J31: =IFERROR(VLOOKUP(J14,'Prix de revient'!$A:$D,4,0),0) -> 2.1488 | K31: =IFERROR(VLOOKUP(K14,'Prix de revient'!$A:$D,4,0),0) -> 0 | L31: =IFERROR(VLOOKUP(L14,'Prix de revient'!$A:$D,4,0),0) -> 0 | M31: =IFERROR(VLOOKUP(M14,'Prix de revient'!$A:$D,4,0),0) -> 0 | N31: =IFERROR(VLOOKUP(N14,'Prix de revient'!$A:$D,4,0),0) -> 0 | O31: =IFERROR(VLOOKUP(O14,'Prix de revient'!$A:$D,4,0),0) -> 0 | P31: =IFERROR(VLOOKUP(P14,'Prix de revient'!$A:$D,4,0),0) -> 0 | Q31: =IFERROR(VLOOKUP(Q14,'Prix de revient'!$A:$D,4,0),0) -> 0 | R31: =IFERROR(VLOOKUP(R14,'Prix de revient'!$A:$D,4,0),0) -> 0 | S31: =IFERROR(VLOOKUP(S14,'Prix de revient'!$A:$D,4,0),0) -> 0
B32: coût de rebuts | D32: =D26*D31 -> 0 | E32: =E26*E31 -> 0 | F32: 0 | G32: 0 | H32: 0 | I32: 0 | J32: 0 | K32: 0 | L32: 0 | M32: 0 | N32: 0 | O32: 0 | P32: 0 | Q32: 0 | R32: 0 | S32: 0 | T32: =SUM(D32:S32) -> 0
B33: gestion de modification
C41: Clients | D41: Audit | E41: Réclamation | F41: Avoir | H41: Fournisseurs/ sous-traitants | I41: Réception de matiere | J41: Probleme qualité | L41: Les formations professionnelles | M41: Cout | N41: Chiffrage décliné | O41: Actions à suivre | Q41: Article qui a subit un tri | R41: durée du tri | S41: Nombre des pieces non-conformes | T41: ouvrier faisant le tri | U41: cout par tri | W41: Article qui a subit la reprise | X41: durée de la reprise | Y41: opérateur faisant la reprise | Z41: coût de reprise | AD41: Machine | AE41: article | AF41: gamme | AG41: objet de la modification
U42: =IF(R42="","",R42*VLOOKUP(T42,'cout opérateur machines'!A1:B8,2,0)) ->  | Z42: =X42*8 -> 0
U43: =IF(R43="","",R43*VLOOKUP(T43,'cout opérateur machines'!A2:B9,2,0)) ->  | Z43: =X43*8 -> 0
U44: =IF(R44="","",R44*VLOOKUP(T44,'cout opérateur machines'!A3:B10,2,0)) ->  | Z44: 0
U45: =IF(R45="","",R45*VLOOKUP(T45,'cout opérateur machines'!A4:B11,2,0)) ->  | Z45: 0
U46: =IF(R46="","",R46*VLOOKUP(T46,'cout opérateur machines'!A5:B12,2,0)) ->  | Z46: 0
U47: =IF(R47="","",R47*VLOOKUP(T47,'cout opérateur machines'!A6:B13,2,0)) ->  | Z47: 0
E48: =COUNTA(E42:E47) -> 0 | F48: =SUM(F42:F47) -> 0 | M48: =SUM(M42:M47) -> 0 | N48: causes de refus | S48: cout total du jour | U48: =SUM(U42:U47) -> 0 | Z48: 0
H49: envoi des réclamations F/ S-T | I49: réponse F/ S-T | J49: alerte | Z49: =SUM(Z42:Z48) -> 0
C50: dans le cas d'une réclamation | J50: =IF(J42="","",IF(H50=0," réclamation non traitée",IF(I50=0, "veuillez contacter le F/ S-T par téléphone",""))) ->  | S50: N° mois | U50: 3
C51: nombre de pièces NC | J51: =IF(J43="","",IF(H51=0," réclamation non traitée",IF(I51=0, "veuillez contacter le F/ S-T par téléphone",""))) -> 
C52: nombre de pièces par carton
C53: coût de transport par carton
C54: nombre de cartons renvoyés
C55: temps de tri
C56: coût horaire de tri
C57: temps de retouche
C58: coût horaire de retouche
C59: temps de traitement de la réclamation
C60: coût horaire de traitement
C61: coût total | D61: =IFERROR(((D51/D52)*D53)+D54*D53+D55*D56+D57*D58+D59*D60,"") -> 

Sheet 11-3-22
E2: Rapport journalier | R2: Code:DAS-SMQ-24
R3: Date: 27/12/2019
R4: Version:01
R5: Page:1
D12: A | E12: B | F12: C | G12: D | H12: E | I12: F | J12: M | K12: N | L12: O | M12: P | N12: I | O12: L | P12: K | Q12: J | R12: G | S12: H
B13: Machine | D13: SST16 | E13: SB16 | F13: BIGLIA 301 SM | G13: BIGLIA 42 S2M bitourelle | H13: L32 | I13: TSUGAMI | J13: MORI SEIKI 3 axes | K13: MORI SEIKI 5 axes | L13: HARDING | M13: KITAMURA | N13: MULTIBROCHE | O13: NAKAMURA | P13: TOUR WEILER
B14: Référence | D14: T-RB400-MajC | E14: V0098 | F14: G011 | G14: MI018-B42 | H14: 200200-2022 | I14: B55 6*14.8 | J14: I110-01-004 | K14: PIG-11D | L14: I006 | M14: I004 | N14: MPS000300 | O14: F045-CP2-NAK | P14: 199400-1 | Q14: 18*27*43-2 | R14: 68.0814 | S14: AXE-INOX-D8-L58
B15: Désignation | D15: RIVET TRB400-MajC | E15: VIS DEC ALLU M14 | F15: BAGUE D32*22 L=21 | G15: GOUJON DE ROUE MITSIBITCHI GM-SUR-B42 | H15: Embout de tige-2022 | I15: Rivet couvercle B55 | J15: INSERT LEVIER SURMOULEE 345833-01 - fraisage | K15: PIGNON 11 DENTS FRAISAGE | L15: CAL SUSPENSION PM ISUZU-HARDING | M15: ECROU SUSPENSION ISUZU-HARDING | N15: raccord HEX 17 | O15: BAGUE DECOLLETEE TUBE D'EAU UNO DISEL -CP2 NAK | P15: tirant acier D6 maj-1 | Q15: Bague aluminuim 18*27*43-2 | R15: Buse droite à collerette Ø8 | S15: AXE INOX D8 L58
B16: Compteur 8h | D16: 44585 | E16: 806 | F16: 2582 | G16: 1957 | H16: 4771 | I16: 19580 | J16: 593 | K16: 241 | L16: 186 | M16: 186 | N16: 0 | O16: 238 | P16: 5840 | Q16: 56 | R16: 16156 | S16: 8066
B17: Compteur 17h | D17: 46098 | E17: 1103 | F17: 3086 | G17: 2509 | H17: 4771 | I17: 21884 | J17: 620 | K17: 270 | L17: 211 | M17: 211 | N17: 0 | O17: 377 | P17: 6871 | Q17: 576 | R17: 16927 | S17: 9502
B18: Enregistrement | C18: 9h
C19: 16h
B20: Identification
B21: Propreté des tables de contrôle
B22: Rangement des outils de contrôle
B23: Existance de l'OF
B24: Affutage | T24: =+COUNTA(D24:S24) -> 0
B25: Maintenance
B26: Nombre des NC poubelle
B27: Nombre des NC à retoucher
B28: Machine pour retouche
B29: Panne
B30: Cout pièces de rechange | T30: =SUM(D30:S30) -> 0
B31: prix de revient pièce | D31: =IFERROR(VLOOKUP(D14,'Prix de revient'!$A:$D,4,0),0) -> 0 | E31: =IFERROR(VLOOKUP(E14,'Prix de revient'!$A:$D,4,0),0) -> 0 | F31: =IFERROR(VLOOKUP(F14,'Prix de revient'!$A:$D,4,0),0) -> 0 | G31: =IFERROR(VLOOKUP(G14,'Prix de revient'!$A:$D,4,0),0) -> 0 | H31: =IFERROR(VLOOKUP(H14,'Prix de revient'!$A:$D,4,0),0) -> 0 | I31: =IFERROR(VLOOKUP(I14,'Prix de revient'!$A:$D,4,0),0) -> 0 | J31: =IFERROR(VLOOKUP(J14,'Prix de revient'!$A:$D,4,0),0) -> 2.1488 | K31: =IFERROR(VLOOKUP(K14,'Prix de revient'!$A:$D,4,0),0) -> 0 | L31: =IFERROR(VLOOKUP(L14,'Prix de revient'!$A:$D,4,0),0) -> 0 | M31: =IFERROR(VLOOKUP(M14,'Prix de revient'!$A:$D,4,0),0) -> 0 | N31: =IFERROR(VLOOKUP(N14,'Prix de revient'!$A:$D,4,0),0) -> 0 | O31: =IFERROR(VLOOKUP(O14,'Prix de revient'!$A:$D,4,0),0) -> 0 | P31: =IFERROR(VLOOKUP(P14,'Prix de revient'!$A:$D,4,0),0) -> 0 | Q31: =IFERROR(VLOOKUP(Q14,'Prix de revient'!$A:$D,4,0),0) -> 0 | R31: =IFERROR(VLOOKUP(R14,'Prix de revient'!$A:$D,4,0),0) -> 0 | S31: =IFERROR(VLOOKUP(S14,'Prix de revient'!$A:$D,4,0),0) -> 0
B32: coût de rebuts | D32: =D26*D31 -> 0 | E32: =E26*E31 -> 0 | F32: 0 | G32: 0 | H32: 0 | I32: 0 | J32: 0 | K32: 0 | L32: 0 | M32: 0 | N32: 0 | O32: 0 | P32: 0 | Q32: 0 | R32: 0 | S32: 0 | T32: =SUM(D32:S32) -> 0
B33: gestion de modification
C41: Clients | D41: Audit | E41: Réclamation | F41: Avoir | H41: Fournisseurs/ sous-traitants | I41: Réception de matiere | J41: Probleme qualité | L41: Les formations professionnelles | M41: Cout | N41: Chiffrage décliné | O41: Actions à suivre | Q41: Article qui a subit un tri | R41: durée du tri | S41: Nombre des pieces non-conformes | T41: ouvrier faisant le tri | U41: cout par tri | W41: Article qui a subit la reprise | X41: durée de la reprise | Y41: opérateur faisant la reprise | Z41: coût de reprise | AD41: Machine | AE41: article | AF41: gamme | AG41: objet de la modification
U42: =IF(R42="","",R42*VLOOKUP(T42,'cout opérateur machines'!A1:B8,2,0)) ->  | Z42: =X42*8 -> 0
U43: =IF(R43="","",R43*VLOOKUP(T43,'cout opérateur machines'!A2:B9,2,0)) ->  | Z43: =X43*8 -> 0
U44: =IF(R44="","",R44*VLOOKUP(T44,'cout opérateur machines'!A3:B10,2,0)) ->  | Z44: 0
U45: =IF(R45="","",R45*VLOOKUP(T45,'cout opérateur machines'!A4:B11,2,0)) ->  | Z45: 0
U46: =IF(R46="","",R46*VLOOKUP(T46,'cout opérateur machines'!A5:B12,2,0)) ->  | Z46: 0
U47: =IF(R47="","",R47*VLOOKUP(T47,'cout opérateur machines'!A6:B13,2,0)) ->  | Z47: 0
E48: =COUNTA(E42:E47) -> 0 | F48: =SUM(F42:F47) -> 0 | M48: =SUM(M42:M47) -> 0 | N48: causes de refus | S48: cout total du jour | U48: =SUM(U42:U47) -> 0 | Z48: 0
H49: envoi des réclamations F/ S-T | I49: réponse F/ S-T | J49: alerte | Z49: =SUM(Z42:Z48) -> 0
C50: dans le cas d'une réclamation | J50: =IF(J42="","",IF(H50=0," réclamation non traitée",IF(I50=0, "veuillez contacter le F/ S-T par téléphone",""))) ->  | S50: N° mois | U50: 3
C51: nombre de pièces NC | J51: =IF(J43="","",IF(H51=0," réclamation non traitée",IF(I51=0, "veuillez contacter le F/ S-T par téléphone",""))) -> 
C52: nombre de pièces par carton
C53: coût de transport par carton
C54: nombre de cartons renvoyés
C55: temps de tri
C56: coût horaire de tri
C57: temps de retouche
C58: coût horaire de retouche
C59: temps de traitement de la réclamation
C60: coût horaire de traitement
C61: coût total | D61: =IFERROR(((D51/D52)*D53)+D54*D53+D55*D56+D57*D58+D59*D60,"") -> 

Sheet 10-3-22
E2: Rapport journalier | R2: Code:DAS-SMQ-24
R3: Date: 27/12/2019
R4: Version:01
R5: Page:1
D12: A | E12: B | F12: C | G12: D | H12: E | I12: F | J12: M | K12: N | L12: O | M12: P | N12: I | O12: L | P12: K | Q12: J | R12: G | S12: H
B13: Machine | D13: SST16 | E13: SB16 | F13: BIGLIA 301 SM | G13: BIGLIA 42 S2M bitourelle | H13: L32 | I13: TSUGAMI | J13: MORI SEIKI 3 axes | K13: MORI SEIKI 5 axes | L13: HARDING | M13: KITAMURA | N13: MULTIBROCHE | O13: NAKAMURA | P13: TOUR WEILER
B14: Référence | D14: T-RB400-MajC | E14: V0098 | F14: G011 | G14: MI018-B42 | H14: 200200-2022 | I14: B55 6*14.8 | J14: I110-01-004 | K14: PIG-11D | L14: I006 | M14: I004 | N14: MPS000300 | O14: F045-CP2-NAK | P14: 199400-a | Q14: 18*27*43 | R14: 68.0814 | S14: AXE-INOX-D8-L58
B15: Désignation | D15: RIVET TRB400-MajC | E15: VIS DEC ALLU M14 | F15: BAGUE D32*22 L=21 | G15: GOUJON DE ROUE MITSIBITCHI GM-SUR-B42 | H15: Embout de tige-2022 | I15: Rivet couvercle B55 | J15: INSERT LEVIER SURMOULEE 345833-01 - fraisage | K15: PIGNON 11 DENTS FRAISAGE | L15: CAL SUSPENSION PM ISUZU-HARDING | M15: ECROU SUSPENSION ISUZU-HARDING | N15: raccord HEX 17 | O15: BAGUE DECOLLETEE TUBE D'EAU UNO DISEL -CP2 NAK | P15: Tirant acier D6 maj-c | Q15: Bague aliminium 18*27*43 par chute | R15: Buse droite à collerette Ø8 | S15: AXE INOX D8 L58
B16: Compteur 8h | D16: 42974 | E16: 340 | F16: 1986 | G16: 1398 | H16: 4771 | I16: 17333 | J16: 576 | K16: 200 | L16: 158 | M16: 158 | N16: 0 | O16: 143 | P16: 5102 | Q16: 0 | R16: 15440 | S16: 6617
B17: Compteur 17h | D17: 44585 | E17: 806 | F17: 2582 | G17: 1957 | H17: 4771 | I17: 19580 | J17: 593 | K17: 241 | L17: 186 | M17: 186 | N17: 0 | O17: 238 | P17: 5840 | Q17: 56 | R17: 16156 | S17: 8066
B18: Enregistrement | C18: 9h
C19: 16h
B20: Identification
B21: Propreté des tables de contrôle
B22: Rangement des outils de contrôle
B23: Existance de l'OF
B24: Affutage | T24: =+COUNTA(D24:S24) -> 0
B25: Maintenance
B26: Nombre des NC poubelle
B27: Nombre des NC à retoucher
B28: Machine pour retouche
B29: Panne
B30: Cout pièces de rechange | T30: =SUM(D30:S30) -> 0
B31: prix de revient pièce | D31: =IFERROR(VLOOKUP(D14,'Prix de revient'!$A:$D,4,0),0) -> 0 | E31: =IFERROR(VLOOKUP(E14,'Prix de revient'!$A:$D,4,0),0) -> 0 | F31: =IFERROR(VLOOKUP(F14,'Prix de revient'!$A:$D,4,0),0) -> 0 | G31: =IFERROR(VLOOKUP(G14,'Prix de revient'!$A:$D,4,0),0) -> 0 | H31: =IFERROR(VLOOKUP(H14,'Prix de revient'!$A:$D,4,0),0) -> 0 | I31: =IFERROR(VLOOKUP(I14,'Prix de revient'!$A:$D,4,0),0) -> 0 | J31: =IFERROR(VLOOKUP(J14,'Prix de revient'!$A:$D,4,0),0) -> 2.1488 | K31: =IFERROR(VLOOKUP(K14,'Prix de revient'!$A:$D,4,0),0) -> 0 | L31: =IFERROR(VLOOKUP(L14,'Prix de revient'!$A:$D,4,0),0) -> 0 | M31: =IFERROR(VLOOKUP(M14,'Prix de revient'!$A:$D,4,0),0) -> 0 | N31: =IFERROR(VLOOKUP(N14,'Prix de revient'!$A:$D,4,0),0) -> 0 | O31: =IFERROR(VLOOKUP(O14,'Prix de revient'!$A:$D,4,0),0) -> 0 | P31: =IFERROR(VLOOKUP(P14,'Prix de revient'!$A:$D,4,0),0) -> 0 | Q31: =IFERROR(VLOOKUP(Q14,'Prix de revient'!$A:$D,4,0),0) -> 0 | R31: =IFERROR(VLOOKUP(R14,'Prix de revient'!$A:$D,4,0),0) -> 0 | S31: =IFERROR(VLOOKUP(S14,'Prix de revient'!$A:$D,4,0),0) -> 0
B32: coût de rebuts | D32: =D26*D31 -> 0 | E32: =E26*E31 -> 0 | F32: 0 | G32: 0 | H32: 0 | I32: 0 | J32: 0 | K32: 0 | L32: 0 | M32: 0 | N32: 0 | O32: 0 | P32: 0 | Q32: 0 | R32: 0 | S32: 0 | T32: =SUM(D32:S32) -> 0
B33: gestion de modification
C41: Clients | D41: Audit | E41: Réclamation | F41: Avoir | H41: Fournisseurs/ sous-traitants | I41: Réception de matiere | J41: Probleme qualité | L41: Les formations professionnelles | M41: Cout | N41: Chiffrage décliné | O41: Actions à suivre | Q41: Article qui a subit un tri | R41: durée du tri | S41: Nombre des pieces non-conformes | T41: ouvrier faisant le tri | U41: cout par tri | W41: Article qui a subit la reprise | X41: durée de la reprise | Y41: opérateur faisant la reprise | Z41: coût de reprise | AD41: Machine | AE41: article | AF41: gamme | AG41: objet de la modification
U42: =IF(R42="","",R42*VLOOKUP(T42,'cout opérateur machines'!A1:B8,2,0)) ->  | Z42: =X42*8 -> 0
U43: =IF(R43="","",R43*VLOOKUP(T43,'cout opérateur machines'!A2:B9,2,0)) ->  | Z43: =X43*8 -> 0
U44: =IF(R44="","",R44*VLOOKUP(T44,'cout opérateur machines'!A3:B10,2,0)) ->  | Z44: 0
U45: =IF(R45="","",R45*VLOOKUP(T45,'cout opérateur machines'!A4:B11,2,0)) ->  | Z45: 0
U46: =IF(R46="","",R46*VLOOKUP(T46,'cout opérateur machines'!A5:B12,2,0)) ->  | Z46: 0
U47: =IF(R47="","",R47*VLOOKUP(T47,'cout opérateur machines'!A6:B13,2,0)) ->  | Z47: 0
E48: =COUNTA(E42:E47) -> 0 | F48: =SUM(F42:F47) -> 0 | M48: =SUM(M42:M47) -> 0 | N48: causes de refus | S48: cout total du jour | U48: =SUM(U42:U47) -> 0 | Z48: 0
H49: envoi des réclamations F/ S-T | I49: réponse F/ S-T | J49: alerte | Z49: =SUM(Z42:Z48) -> 0
C50: dans le cas d'une réclamation | J50: =IF(J42="","",IF(H50=0," réclamation non traitée",IF(I50=0, "veuillez contacter le F/ S-T par téléphone",""))) ->  | S50: N° mois | U50: 3
C51: nombre de pièces NC | J51: =IF(J43="","",IF(H51=0," réclamation non traitée",IF(I51=0, "veuillez contacter le F/ S-T par téléphone",""))) -> 
C52: nombre de pièces par carton
C53: coût de transport par carton
C54: nombre de cartons renvoyés
C55: temps de tri
C56: coût horaire de tri
C57: temps de retouche
C58: coût horaire de retouche
C59: temps de traitement de la réclamation
C60: coût horaire de traitement
C61: coût total | D61: =IFERROR(((D51/D52)*D53)+D54*D53+D55*D56+D57*D58+D59*D60,"") -> 

Sheet 09-3-22
E2: Rapport journalier | R2: Code:DAS-SMQ-24
R3: Date: 27/12/2019
R4: Version:01
R5: Page:1
D12: A | E12: B | F12: C | G12: D | H12: E | I12: F | J12: M | K12: N | L12: O | M12: P | N12: I | O12: L | P12: K | Q12: J | R12: G | S12: H
B13: Machine | D13: SST16 | E13: SB16 | F13: BIGLIA 301 SM | G13: BIGLIA 42 S2M bitourelle | H13: L32 | I13: TSUGAMI | J13: MORI SEIKI 3 axes | K13: MORI SEIKI 5 axes | L13: HARDING | M13: KITAMURA | N13: MULTIBROCHE | O13: NAKAMURA | P13: TOUR WEILER
B14: Référence | D14: T-RB400-MajC | E14: V0098 | F14: G011 | G14: MI018-B42 | H14: 200200-2022 | I14: B55 6*14.8 | J14: I110-01-004 | K14: PIG-11D | L14: I006 | M14: I004 | N14: MPS000300 | O14: F045-CP2-NAK | P14: 199400-a | Q14: 4-7561-1 | R14: 68.0814 | S14: AXE-INOX-D8-L58
B15: Désignation | D15: RIVET TRB400-MajC | E15: VIS DEC ALLU M14 | F15: BAGUE D32*22 L=21 | G15: GOUJON DE ROUE MITSIBITCHI GM-SUR-B42 | H15: Embout de tige-2022 | I15: Rivet couvercle B55 | J15: INSERT LEVIER SURMOULEE 345833-01 - fraisage | K15: PIGNON 11 DENTS FRAISAGE | L15: CAL SUSPENSION PM ISUZU-HARDING | M15: ECROU SUSPENSION ISUZU-HARDING | N15: raccord HEX 17 | O15: BAGUE DECOLLETEE TUBE D'EAU UNO DISEL -CP2 NAK | P15: Tirant acier D6 maj-c | Q15: Bague Galvanisée 24*30*55 PAR CHUTES | R15: Buse droite à collerette Ø8 | S15: AXE INOX D8 L58
B16: Compteur 8h | D16: 41385 | E16: 0 | F16: 1798 | G16: 1023 | H16: 4771 | I16: 14913 | J16: 555 | K16: 163 | L16: 131 | M16: 131 | N16: 0 | O16: 85 | P16: 4679 | Q16: 1574 | R16: 14696 | S16: 5280
B17: Compteur 17h | D17: 42974 | E17: 340 | F17: 1986 | G17: 1398 | H17: 4771 | I17: 17333 | J17: 576 | K17: 200 | L17: 158 | M17: 158 | N17: 0 | O17: 143 | P17: 5102 | Q17: 1790 | R17: 15440 | S17: 6617
B18: Enregistrement | C18: 9h
C19: 16h
B20: Identification
B21: Propreté des tables de contrôle
B22: Rangement des outils de contrôle
B23: Existance de l'OF
B24: Affutage | T24: =+COUNTA(D24:S24) -> 0
B25: Maintenance
B26: Nombre des NC poubelle | R26: 3
B27: Nombre des NC à retoucher
B28: Machine pour retouche
B29: Panne
B30: Cout pièces de rechange | T30: =SUM(D30:S30) -> 0
B31: prix de revient pièce | D31: =IFERROR(VLOOKUP(D14,'Prix de revient'!$A:$D,4,0),0) -> 0 | E31: =IFERROR(VLOOKUP(E14,'Prix de revient'!$A:$D,4,0),0) -> 0 | F31: =IFERROR(VLOOKUP(F14,'Prix de revient'!$A:$D,4,0),0) -> 0 | G31: =IFERROR(VLOOKUP(G14,'Prix de revient'!$A:$D,4,0),0) -> 0 | H31: =IFERROR(VLOOKUP(H14,'Prix de revient'!$A:$D,4,0),0) -> 0 | I31: =IFERROR(VLOOKUP(I14,'Prix de revient'!$A:$D,4,0),0) -> 0 | J31: =IFERROR(VLOOKUP(J14,'Prix de revient'!$A:$D,4,0),0) -> 2.1488 | K31: =IFERROR(VLOOKUP(K14,'Prix de revient'!$A:$D,4,0),0) -> 0 | L31: =IFERROR(VLOOKUP(L14,'Prix de revient'!$A:$D,4,0),0) -> 0 | M31: =IFERROR(VLOOKUP(M14,'Prix de revient'!$A:$D,4,0),0) -> 0 | N31: =IFERROR(VLOOKUP(N14,'Prix de revient'!$A:$D,4,0),0) -> 0 | O31: =IFERROR(VLOOKUP(O14,'Prix de revient'!$A:$D,4,0),0) -> 0 | P31: =IFERROR(VLOOKUP(P14,'Prix de revient'!$A:$D,4,0),0) -> 0 | Q31: =IFERROR(VLOOKUP(Q14,'Prix de revient'!$A:$D,4,0),0) -> 0 | R31: =IFERROR(VLOOKUP(R14,'Prix de revient'!$A:$D,4,0),0) -> 0 | S31: =IFERROR(VLOOKUP(S14,'Prix de revient'!$A:$D,4,0),0) -> 0
B32: coût de rebuts | D32: =D26*D31 -> 0 | E32: =E26*E31 -> 0 | F32: 0 | G32: 0 | H32: 0 | I32: 0 | J32: 0 | K32: 0 | L32: 0 | M32: 0 | N32: 0 | O32: 0 | P32: 0 | Q32: 0 | R32: 0 | S32: 0 | T32: =SUM(D32:S32) -> 0
B33: gestion de modification
C41: Clients | D41: Audit | E41: Réclamation | F41: Avoir | H41: Fournisseurs/ sous-traitants | I41: Réception de matiere | J41: Probleme qualité | L41: Les formations professionnelles | M41: Cout | N41: Chiffrage décliné | O41: Actions à suivre | Q41: Article qui a subit un tri | R41: durée du tri | S41: Nombre des pieces non-conformes | T41: ouvrier faisant le tri | U41: cout par tri | W41: Article qui a subit la reprise | X41: durée de la reprise | Y41: opérateur faisant la reprise | Z41: coût de reprise | AD41: Machine | AE41: article | AF41: gamme | AG41: objet de la modification
U42: =IF(R42="","",R42*VLOOKUP(T42,'cout opérateur machines'!A1:B8,2,0)) ->  | Z42: =X42*8 -> 0
U43: =IF(R43="","",R43*VLOOKUP(T43,'cout opérateur machines'!A2:B9,2,0)) ->  | Z43: =X43*8 -> 0
U44: =IF(R44="","",R44*VLOOKUP(T44,'cout opérateur machines'!A3:B10,2,0)) ->  | Z44: 0
U45: =IF(R45="","",R45*VLOOKUP(T45,'cout opérateur machines'!A4:B11,2,0)) ->  | Z45: 0
U46: =IF(R46="","",R46*VLOOKUP(T46,'cout opérateur machines'!A5:B12,2,0)) ->  | Z46: 0
U47: =IF(R47="","",R47*VLOOKUP(T47,'cout opérateur machines'!A6:B13,2,0)) ->  | Z47: 0
E48: =COUNTA(E42:E47) -> 0 | F48: =SUM(F42:F47) -> 0 | M48: =SUM(M42:M47) -> 0 | N48: causes de refus | S48: cout total du jour | U48: =SUM(U42:U47) -> 0 | Z48: 0
H49: envoi des réclamations F/ S-T | I49: réponse F/ S-T | J49: alerte | Z49: =SUM(Z42:Z48) -> 0
C50: dans le cas d'une réclamation | J50: =IF(J42="","",IF(H50=0," réclamation non traitée",IF(I50=0, "veuillez contacter le F/ S-T par téléphone",""))) ->  | S50: N° mois | U50: 3
C51: nombre de pièces NC | J51: =IF(J43="","",IF(H51=0," réclamation non traitée",IF(I51=0, "veuillez contacter le F/ S-T par téléphone",""))) -> 
C52: nombre de pièces par carton
C53: coût de transport par carton
C54: nombre de cartons renvoyés
C55: temps de tri
C56: coût horaire de tri
C57: temps de retouche
C58: coût horaire de retouche
C59: temps de traitement de la réclamation
C60: coût horaire de traitement
C61: coût total | D61: =IFERROR(((D51/D52)*D53)+D54*D53+D55*D56+D57*D58+D59*D60,"") -> 

Sheet 08-3-22
E2: Rapport journalier | R2: Code:DAS-SMQ-24
R3: Date: 27/12/2019
R4: Version:01
R5: Page:1
D12: A | E12: B | F12: C | G12: D | H12: E | I12: F | J12: M | K12: N | L12: O | M12: P | N12: I | O12: L | P12: K | Q12: J | R12: G | S12: H
B13: Machine | D13: SST16 | E13: SB16 | F13: BIGLIA 301 SM | G13: BIGLIA 42 S2M bitourelle | H13: L32 | I13: TSUGAMI | J13: MORI SEIKI 3 axes | K13: MORI SEIKI 5 axes | L13: HARDING | M13: KITAMURA | N13: MULTIBROCHE | O13: NAKAMURA | P13: TOUR WEILER
B14: Référence | D14: T-RB400-MajC | E14: 328090-majc | F14: G011 | G14: MI018-B42 | H14: 200200-2022 | I14: B55 6*14.8 | J14: I110-01-004 | K14: PIG-11D | L14: I006 | M14: I004 | N14: MPS000300 | O14: F045-CP2-NAK | P14: 199400-a | Q14: 4-7561-1 | R14: 68.0814 | S14: AXE-INOX-D8-L58
B15: Désignation | D15: RIVET TRB400-MajC | E15: Primaire en laiton , | F15: BAGUE D32*22 L=21 | G15: GOUJON DE ROUE MITSIBITCHI GM-SUR-B42 | H15: Embout de tige-2022 | I15: Rivet couvercle B55 | J15: INSERT LEVIER SURMOULEE 345833-01 - fraisage | K15: PIGNON 11 DENTS FRAISAGE | L15: CAL SUSPENSION PM ISUZU-HARDING | M15: ECROU SUSPENSION ISUZU-HARDING | N15: raccord HEX 17 | O15: BAGUE DECOLLETEE TUBE D'EAU UNO DISEL -CP2 NAK | P15: Tirant acier D6 maj-c | Q15: Bague Galvanisée 24*30*55 PAR CHUTES | R15: Buse droite à collerette Ø8 | S15: AXE INOX D8 L58
B16: Compteur 8h | D16: 40062 | E16: 25574 | F16: 1798 | G16: 500 | H16: 4771 | I16: 12513 | J16: 532 | K16: 138 | L16: 105 | M16: 105 | N16: 0 | O16: 10 | P16: 4170 | Q16: 1084 | R16: 13963 | S16: 4177
B17: Compteur 17h | D17: 41385 | E17: 26650 | F17: 1798 | G17: 1023 | H17: 4771 | I17: 14913 | J17: 555 | K17: 163 | L17: 131 | M17: 131 | N17: 0 | O17: 85 | P17: 4679 | Q17: 1574 | R17: 14696 | S17: 5280
B18: Enregistrement | C18: 9h
C19: 16h
B20: Identification
B21: Propreté des tables de contrôle
B22: Rangement des outils de contrôle
B23: Existance de l'OF
B24: Affutage | T24: =+COUNTA(D24:S24) -> 0
B25: Maintenance
B26: Nombre des NC poubelle
B27: Nombre des NC à retoucher | R27: 2
B28: Machine pour retouche
B29: Panne
B30: Cout pièces de rechange | T30: =SUM(D30:S30) -> 0
B31: prix de revient pièce | D31: =IFERROR(VLOOKUP(D14,'Prix de revient'!$A:$D,4,0),0) -> 0 | E31: =IFERROR(VLOOKUP(E14,'Prix de revient'!$A:$D,4,0),0) -> 0 | F31: =IFERROR(VLOOKUP(F14,'Prix de revient'!$A:$D,4,0),0) -> 0 | G31: =IFERROR(VLOOKUP(G14,'Prix de revient'!$A:$D,4,0),0) -> 0 | H31: =IFERROR(VLOOKUP(H14,'Prix de revient'!$A:$D,4,0),0) -> 0 | I31: =IFERROR(VLOOKUP(I14,'Prix de revient'!$A:$D,4,0),0) -> 0 | J31: =IFERROR(VLOOKUP(J14,'Prix de revient'!$A:$D,4,0),0) -> 2.1488 | K31: =IFERROR(VLOOKUP(K14,'Prix de revient'!$A:$D,4,0),0) -> 0 | L31: =IFERROR(VLOOKUP(L14,'Prix de revient'!$A:$D,4,0),0) -> 0 | M31: =IFERROR(VLOOKUP(M14,'Prix de revient'!$A:$D,4,0),0) -> 0 | N31: =IFERROR(VLOOKUP(N14,'Prix de revient'!$A:$D,4,0),0) -> 0 | O31: =IFERROR(VLOOKUP(O14,'Prix de revient'!$A:$D,4,0),0) -> 0 | P31: =IFERROR(VLOOKUP(P14,'Prix de revient'!$A:$D,4,0),0) -> 0 | Q31: =IFERROR(VLOOKUP(Q14,'Prix de revient'!$A:$D,4,0),0) -> 0 | R31: =IFERROR(VLOOKUP(R14,'Prix de revient'!$A:$D,4,0),0) -> 0 | S31: =IFERROR(VLOOKUP(S14,'Prix de revient'!$A:$D,4,0),0) -> 0
B32: coût de rebuts | D32: =D26*D31 -> 0 | E32: =E26*E31 -> 0 | F32: 0 | G32: 0 | H32: 0 | I32: 0 | J32: 0 | K32: 0 | L32: 0 | M32: 0 | N32: 0 | O32: 0 | P32: 0 | Q32: 0 | R32: 0 | S32: 0 | T32: =SUM(D32:S32) -> 0
B33: gestion de modification
C41: Clients | D41: Audit | E41: Réclamation | F41: Avoir | H41: Fournisseurs/ sous-traitants | I41: Réception de matiere | J41: Probleme qualité | L41: Les formations professionnelles | M41: Cout | N41: Chiffrage décliné | O41: Actions à suivre | Q41: Article qui a subit un tri | R41: durée du tri | S41: Nombre des pieces non-conformes | T41: ouvrier faisant le tri | U41: cout par tri | W41: Article qui a subit la reprise | X41: durée de la reprise | Y41: opérateur faisant la reprise | Z41: coût de reprise | AD41: Machine | AE41: article | AF41: gamme | AG41: objet de la modification
U42: =IF(R42="","",R42*VLOOKUP(T42,'cout opérateur machines'!A1:B8,2,0)) ->  | Z42: =X42*8 -> 0
U43: =IF(R43="","",R43*VLOOKUP(T43,'cout opérateur machines'!A2:B9,2,0)) ->  | Z43: =X43*8 -> 0
U44: =IF(R44="","",R44*VLOOKUP(T44,'cout opérateur machines'!A3:B10,2,0)) ->  | Z44: 0
U45: =IF(R45="","",R45*VLOOKUP(T45,'cout opérateur machines'!A4:B11,2,0)) ->  | Z45: 0
U46: =IF(R46="","",R46*VLOOKUP(T46,'cout opérateur machines'!A5:B12,2,0)) ->  | Z46: 0
U47: =IF(R47="","",R47*VLOOKUP(T47,'cout opérateur machines'!A6:B13,2,0)) ->  | Z47: 0
E48: =COUNTA(E42:E47) -> 0 | F48: =SUM(F42:F47) -> 0 | M48: =SUM(M42:M47) -> 0 | N48: causes de refus | S48: cout total du jour | U48: =SUM(U42:U47) -> 0 | Z48: 0
H49: envoi des réclamations F/ S-T | I49: réponse F/ S-T | J49: alerte | Z49: =SUM(Z42:Z48) -> 0
C50: dans le cas d'une réclamation | J50: =IF(J42="","",IF(H50=0," réclamation non traitée",IF(I50=0, "veuillez contacter le F/ S-T par téléphone",""))) ->  | S50: N° mois | U50: 3
C51: nombre de pièces NC | J51: =IF(J43="","",IF(H51=0," réclamation non traitée",IF(I51=0, "veuillez contacter le F/ S-T par téléphone",""))) -> 
C52: nombre de pièces par carton
C53: coût de transport par carton
C54: nombre de cartons renvoyés
C55: temps de tri
C56: coût horaire de tri
C57: temps de retouche
C58: coût horaire de retouche
C59: temps de traitement de la réclamation
C60: coût horaire de traitement
C61: coût total | D61: =IFERROR(((D51/D52)*D53)+D54*D53+D55*D56+D57*D58+D59*D60,"") -> 

Sheet 07-3-22
E2: Rapport journalier | R2: Code:DAS-SMQ-24
R3: Date: 27/12/2019
R4: Version:01
R5: Page:1
D12: A | E12: B | F12: C | G12: D | H12: E | I12: F | J12: M | K12: N | L12: O | M12: P | N12: I | O12: L | P12: K | Q12: J | R12: G | S12: H
B13: Machine | D13: SST16 | E13: SB16 | F13: BIGLIA 301 SM | G13: BIGLIA 42 S2M bitourelle | H13: L32 | I13: TSUGAMI | J13: MORI SEIKI 3 axes | K13: MORI SEIKI 5 axes | L13: HARDING | M13: KITAMURA | N13: MULTIBROCHE | O13: NAKAMURA | P13: TOUR WEILER
B14: Référence | D14: T-RB400-MajC | E14: 328090-majc | F14: G011 | G14: MI018-B42 | H14: 200200-2022 | I14: B55 6*14.8 | J14: I110-01-004 | K14: PIG-11D | L14: I006 | M14: I004 | N14: MPS000300 | O14: F045-CP2-NAK | P14: 199400-a | Q14: 4-7561-1 | R14: 68.0814 | S14: AXE-INOX-D8-L58
B15: Désignation | D15: RIVET TRB400-MajC | E15: Primaire en laiton , | F15: BAGUE D32*22 L=21 | G15: GOUJON DE ROUE MITSIBITCHI GM-SUR-B42 | H15: Embout de tige-2022 | I15: Rivet couvercle B55 | J15: INSERT LEVIER SURMOULEE 345833-01 - fraisage | K15: PIGNON 11 DENTS FRAISAGE | L15: CAL SUSPENSION PM ISUZU-HARDING | M15: ECROU SUSPENSION ISUZU-HARDING | N15: raccord HEX 17 | O15: BAGUE DECOLLETEE TUBE D'EAU UNO DISEL -CP2 NAK | P15: Tirant acier D6 maj-c | Q15: Bague Galvanisée 24*30*55 PAR CHUTES | R15: Buse droite à collerette Ø8 | S15: AXE INOX D8 L58
B16: Compteur 8h | D16: 38645 | E16: 23792 | F16: 1250 | G16: 137 | H16: 4771 | I16: 11086 | J16: 499 | K16: 105 | L16: 78 | M16: 78 | N16: 0 | O16: 0 | P16: 3697 | Q16: 604 | R16: 13154 | S16: 2843
B17: Compteur 17h | D17: 40062 | E17: 25574 | F17: 1798 | G17: 500 | H17: 4771 | I17: 12513 | J17: 532 | K17: 138 | L17: 105 | M17: 105 | N17: 0 | O17: 10 | P17: 4170 | Q17: 1084 | R17: 13963 | S17: 4177
B18: Enregistrement | C18: 9h
C19: 16h
B20: Identification
B21: Propreté des tables de contrôle
B22: Rangement des outils de contrôle
B23: Existance de l'OF
B24: Affutage | T24: =+COUNTA(D24:S24) -> 0
B25: Maintenance
B26: Nombre des NC poubelle | I26: 12 | R26: 1
B27: Nombre des NC à retoucher
B28: Machine pour retouche
B29: Panne
B30: Cout pièces de rechange | T30: =SUM(D30:S30) -> 0
B31: prix de revient pièce | D31: =IFERROR(VLOOKUP(D14,'Prix de revient'!$A:$D,4,0),0) -> 0 | E31: =IFERROR(VLOOKUP(E14,'Prix de revient'!$A:$D,4,0),0) -> 0 | F31: =IFERROR(VLOOKUP(F14,'Prix de revient'!$A:$D,4,0),0) -> 0 | G31: =IFERROR(VLOOKUP(G14,'Prix de revient'!$A:$D,4,0),0) -> 0 | H31: =IFERROR(VLOOKUP(H14,'Prix de revient'!$A:$D,4,0),0) -> 0 | I31: =IFERROR(VLOOKUP(I14,'Prix de revient'!$A:$D,4,0),0) -> 0 | J31: =IFERROR(VLOOKUP(J14,'Prix de revient'!$A:$D,4,0),0) -> 2.1488 | K31: =IFERROR(VLOOKUP(K14,'Prix de revient'!$A:$D,4,0),0) -> 0 | L31: =IFERROR(VLOOKUP(L14,'Prix de revient'!$A:$D,4,0),0) -> 0 | M31: =IFERROR(VLOOKUP(M14,'Prix de revient'!$A:$D,4,0),0) -> 0 | N31: =IFERROR(VLOOKUP(N14,'Prix de revient'!$A:$D,4,0),0) -> 0 | O31: =IFERROR(VLOOKUP(O14,'Prix de revient'!$A:$D,4,0),0) -> 0 | P31: =IFERROR(VLOOKUP(P14,'Prix de revient'!$A:$D,4,0),0) -> 0 | Q31: =IFERROR(VLOOKUP(Q14,'Prix de revient'!$A:$D,4,0),0) -> 0 | R31: =IFERROR(VLOOKUP(R14,'Prix de revient'!$A:$D,4,0),0) -> 0 | S31: =IFERROR(VLOOKUP(S14,'Prix de revient'!$A:$D,4,0),0) -> 0
B32: coût de rebuts | D32: =D26*D31 -> 0 | E32: =E26*E31 -> 0 | F32: 0 | G32: 0 | H32: 0 | I32: 0 | J32: 0 | K32: 0 | L32: 0 | M32: 0 | N32: 0 | O32: 0 | P32: 0 | Q32: 0 | R32: 0 | S32: 0 | T32: =SUM(D32:S32) -> 0
B33: gestion de modification
C41: Clients | D41: Audit | E41: Réclamation | F41: Avoir | H41: Fournisseurs/ sous-traitants | I41: Réception de matiere | J41: Probleme qualité | L41: Les formations professionnelles | M41: Cout | N41: Chiffrage décliné | O41: Actions à suivre | Q41: Article qui a subit un tri | R41: durée du tri | S41: Nombre des pieces non-conformes | T41: ouvrier faisant le tri | U41: cout par tri | W41: Article qui a subit la reprise | X41: durée de la reprise | Y41: opérateur faisant la reprise | Z41: coût de reprise | AD41: Machine | AE41: article | AF41: gamme | AG41: objet de la modification
U42: =IF(R42="","",R42*VLOOKUP(T42,'cout opérateur machines'!A1:B8,2,0)) ->  | Z42: =X42*8 -> 0
U43: =IF(R43="","",R43*VLOOKUP(T43,'cout opérateur machines'!A2:B9,2,0)) ->  | Z43: =X43*8 -> 0
U44: =IF(R44="","",R44*VLOOKUP(T44,'cout opérateur machines'!A3:B10,2,0)) ->  | Z44: 0
U45: =IF(R45="","",R45*VLOOKUP(T45,'cout opérateur machines'!A4:B11,2,0)) ->  | Z45: 0
U46: =IF(R46="","",R46*VLOOKUP(T46,'cout opérateur machines'!A5:B12,2,0)) ->  | Z46: 0
U47: =IF(R47="","",R47*VLOOKUP(T47,'cout opérateur machines'!A6:B13,2,0)) ->  | Z47: 0
E48: =COUNTA(E42:E47) -> 0 | F48: =SUM(F42:F47) -> 0 | M48: =SUM(M42:M47) -> 0 | N48: causes de refus | S48: cout total du jour | U48: =SUM(U42:U47) -> 0 | Z48: 0
H49: envoi des réclamations F/ S-T | I49: réponse F/ S-T | J49: alerte | Z49: =SUM(Z42:Z48) -> 0
C50: dans le cas d'une réclamation | J50: =IF(J42="","",IF(H50=0," réclamation non traitée",IF(I50=0, "veuillez contacter le F/ S-T par téléphone",""))) ->  | S50: N° mois | U50: 3
C51: nombre de pièces NC | J51: =IF(J43="","",IF(H51=0," réclamation non traitée",IF(I51=0, "veuillez contacter le F/ S-T par téléphone",""))) -> 
C52: nombre de pièces par carton
C53: coût de transport par carton
C54: nombre de cartons renvoyés
C55: temps de tri
C56: coût horaire de tri
C57: temps de retouche
C58: coût horaire de retouche
C59: temps de traitement de la réclamation
C60: coût horaire de traitement
C61: coût total | D61: =IFERROR(((D51/D52)*D53)+D54*D53+D55*D56+D57*D58+D59*D60,"") -> 

Sheet 05-3-22
E2: Rapport journalier | R2: Code:DAS-SMQ-24
R3: Date: 27/12/2019
R4: Version:01
R5: Page:1
D12: A | E12: B | F12: C | G12: D | H12: E | I12: F | J12: M | K12: N | L12: O | M12: P | N12: I | O12: L | P12: K | Q12: J | R12: G | S12: H
B13: Machine | D13: SST16 | E13: SB16 | F13: BIGLIA 301 SM | G13: BIGLIA 42 S2M bitourelle | H13: L32 | I13: TSUGAMI | J13: MORI SEIKI 3 axes | K13: MORI SEIKI 5 axes | L13: HARDING | M13: KITAMURA | N13: MULTIBROCHE | O13: NAKAMURA | P13: TOUR WEILER
B14: Référence | D14: T-RB400 | E14: 328090-majc | F14: G011 | G14: MI018-B42 | H14: 200200-2022 | I14: B55 6*14.8 | J14: I110-01-004 | K14: PIG-11D | L14: I006 | M14: I004 | N14: MPS000300 | O14: G018 | P14: 199400-a | Q14: 4-7561-1 | R14: 68.0814 | S14: AXE-INOX-D8-L58
B15: Désignation | D15: RIVET TRB400 maj-c | E15: Primaire en laiton , | F15: BAGUE D32*22 L=21 | G15: GOUJON DE ROUE MITSIBITCHI GM-SUR-B42 | H15: Embout de tige-2022 | I15: Rivet couvercle B55 | J15: INSERT LEVIER SURMOULEE 345833-01 - fraisage | K15: PIGNON 11 DENTS FRAISAGE | L15: CAL SUSPENSION PM ISUZU-HARDING | M15: ECROU SUSPENSION ISUZU-HARDING | N15: raccord HEX 17 | O15: GOUJON M12*1.5 L=49 | P15: Tirant acier D6 maj-c | Q15: Bague Galvanisée 24*30*55 PAR CHUTES | R15: Buse droite à collerette Ø8 | S15: AXE INOX D8 L58
B16: Compteur 8h | D16: 38030 | E16: 22887 | F16: 1077 | G16: 0 | H16: 4672 | I16: 10291 | J16: 481 | K16: 80 | L16: 67 | M16: 67 | N16: 0 | O16: 4195 | P16: 3280 | Q16: 418 | R16: 12780 | S16: 2163
B17: Compteur 17h | D17: 38645 | E17: 23792 | F17: 1250 | G17: 157 | H17: 4771 | I17: 11086 | J17: 499 | K17: 105 | L17: 78 | M17: 78 | N17: 0 | O17: 4330 | P17: 3697 | Q17: 604 | R17: 13154 | S17: 2843
B18: Enregistrement | C18: 9h
C19: 16h
B20: Identification
B21: Propreté des tables de contrôle
B22: Rangement des outils de contrôle
B23: Existance de l'OF
B24: Affutage | T24: =+COUNTA(D24:S24) -> 0
B25: Maintenance
B26: Nombre des NC poubelle | F26: 5 | R26: 2
B27: Nombre des NC à retoucher
B28: Machine pour retouche
B29: Panne
B30: Cout pièces de rechange | T30: =SUM(D30:S30) -> 0
B31: prix de revient pièce | D31: =IFERROR(VLOOKUP(D14,'Prix de revient'!$A:$D,4,0),0) -> 0 | E31: =IFERROR(VLOOKUP(E14,'Prix de revient'!$A:$D,4,0),0) -> 0 | F31: =IFERROR(VLOOKUP(F14,'Prix de revient'!$A:$D,4,0),0) -> 0 | G31: =IFERROR(VLOOKUP(G14,'Prix de revient'!$A:$D,4,0),0) -> 0 | H31: =IFERROR(VLOOKUP(H14,'Prix de revient'!$A:$D,4,0),0) -> 0 | I31: =IFERROR(VLOOKUP(I14,'Prix de revient'!$A:$D,4,0),0) -> 0 | J31: =IFERROR(VLOOKUP(J14,'Prix de revient'!$A:$D,4,0),0) -> 2.1488 | K31: =IFERROR(VLOOKUP(K14,'Prix de revient'!$A:$D,4,0),0) -> 0 | L31: =IFERROR(VLOOKUP(L14,'Prix de revient'!$A:$D,4,0),0) -> 0 | M31: =IFERROR(VLOOKUP(M14,'Prix de revient'!$A:$D,4,0),0) -> 0 | N31: =IFERROR(VLOOKUP(N14,'Prix de revient'!$A:$D,4,0),0) -> 0 | O31: =IFERROR(VLOOKUP(O14,'Prix de revient'!$A:$D,4,0),0) -> 0 | P31: =IFERROR(VLOOKUP(P14,'Prix de revient'!$A:$D,4,0),0) -> 0 | Q31: =IFERROR(VLOOKUP(Q14,'Prix de revient'!$A:$D,4,0),0) -> 0 | R31: =IFERROR(VLOOKUP(R14,'Prix de revient'!$A:$D,4,0),0) -> 0 | S31: =IFERROR(VLOOKUP(S14,'Prix de revient'!$A:$D,4,0),0) -> 0
B32: coût de rebuts | D32: =D26*D31 -> 0 | E32: =E26*E31 -> 0 | F32: 0 | G32: 0 | H32: 0 | I32: 0 | J32: 0 | K32: 0 | L32: 0 | M32: 0 | N32: 0 | O32: 0 | P32: 0 | Q32: 0 | R32: 0 | S32: 0 | T32: =SUM(D32:S32) -> 0
B33: gestion de modification
C41: Clients | D41: Audit | E41: Réclamation | F41: Avoir | H41: Fournisseurs/ sous-traitants | I41: Réception de matiere | J41: Probleme qualité | L41: Les formations professionnelles | M41: Cout | N41: Chiffrage décliné | O41: Actions à suivre | Q41: Article qui a subit un tri | R41: durée du tri | S41: Nombre des pieces non-conformes | T41: ouvrier faisant le tri | U41: cout par tri | W41: Article qui a subit la reprise | X41: durée de la reprise | Y41: opérateur faisant la reprise | Z41: coût de reprise | AD41: Machine | AE41: article | AF41: gamme | AG41: objet de la modification
U42: =IF(R42="","",R42*VLOOKUP(T42,'cout opérateur machines'!A1:B8,2,0)) ->  | Z42: =X42*8 -> 0
U43: =IF(R43="","",R43*VLOOKUP(T43,'cout opérateur machines'!A2:B9,2,0)) ->  | Z43: =X43*8 -> 0
U44: =IF(R44="","",R44*VLOOKUP(T44,'cout opérateur machines'!A3:B10,2,0)) ->  | Z44: 0
U45: =IF(R45="","",R45*VLOOKUP(T45,'cout opérateur machines'!A4:B11,2,0)) ->  | Z45: 0
U46: =IF(R46="","",R46*VLOOKUP(T46,'cout opérateur machines'!A5:B12,2,0)) ->  | Z46: 0
U47: =IF(R47="","",R47*VLOOKUP(T47,'cout opérateur machines'!A6:B13,2,0)) ->  | Z47: 0
E48: =COUNTA(E42:E47) -> 0 | F48: =SUM(F42:F47) -> 0 | M48: =SUM(M42:M47) -> 0 | N48: causes de refus | S48: cout total du jour | U48: =SUM(U42:U47) -> 0 | Z48: 0
H49: envoi des réclamations F/ S-T | I49: réponse F/ S-T | J49: alerte | Z49: =SUM(Z42:Z48) -> 0
C50: dans le cas d'une réclamation | J50: =IF(J42="","",IF(H50=0," réclamation non traitée",IF(I50=0, "veuillez contacter le F/ S-T par téléphone",""))) ->  | S50: N° mois | U50: 3
C51: nombre de pièces NC | J51: =IF(J43="","",IF(H51=0," réclamation non traitée",IF(I51=0, "veuillez contacter le F/ S-T par téléphone",""))) -> 
C52: nombre de pièces par carton
C53: coût de transport par carton
C54: nombre de cartons renvoyés
C55: temps de tri
C56: coût horaire de tri
C57: temps de retouche
C58: coût horaire de retouche
C59: temps de traitement de la réclamation
C60: coût horaire de traitement
C61: coût total | D61: =IFERROR(((D51/D52)*D53)+D54*D53+D55*D56+D57*D58+D59*D60,"") -> 

Sheet 04-3-22
E2: Rapport journalier | R2: Code:DAS-SMQ-24
R3: Date: 27/12/2019
R4: Version:01
R5: Page:1
D12: A | E12: B | F12: C | G12: D | H12: E | I12: F | J12: M | K12: N | L12: O | M12: P | N12: I | O12: L | P12: K | Q12: J | R12: G | S12: H
B13: Machine | D13: SST16 | E13: SB16 | F13: BIGLIA 301 SM | G13: BIGLIA 42 S2M bitourelle | H13: L32 | I13: TSUGAMI | J13: MORI SEIKI 3 axes | K13: MORI SEIKI 5 axes | L13: HARDING | M13: KITAMURA | N13: MULTIBROCHE | O13: NAKAMURA | P13: TOUR WEILER
B14: Référence | D14: T-RB400 | E14: 328090-majc | F14: G011 | G14: I081-95-CP8 | H14: 200200-2022 | I14: B55 6*14.8 | J14: I110-01-004 | K14: PIG-11D | L14: I006 | M14: I004 | N14: MPS000300 | O14: G018 | P14: 199400-a | Q14: 4-7561-1 | R14: 68.0814 | S14: AXE-INOX-D8-L58
B15: Désignation | D15: RIVET TRB400 maj-c | E15: Primaire en laiton , | F15: BAGUE D32*22 L=21 | G15: AXE BOITIER TFR+KB | H15: Embout de tige-2022 | I15: Rivet couvercle B55 | J15: INSERT LEVIER SURMOULEE 345833-01 - fraisage | K15: PIGNON 11 DENTS FRAISAGE | L15: CAL SUSPENSION PM ISUZU-HARDING | M15: ECROU SUSPENSION ISUZU-HARDING | N15: raccord HEX 17 | O15: GOUJON M12*1.5 L=49 | P15: Tirant acier D6 maj-c | Q15: Bague Galvanisée 24*30*55 PAR CHUTES | R15: Buse droite à collerette Ø8 | S15: AXE INOX D8 L58
B16: Compteur 8h | D16: 36486 | E16: 21107 | F16: 567 | G16: 0 | H16: 4203 | I16: 8228 | J16: 450 | K16: 56 | L16: 42 | M16: 42 | N16: 0 | O16: 3971 | P16: 2477 | Q16: 274 | R16: 12003 | S16: 916
B17: Compteur 17h | D17: 38030 | E17: 22887 | F17: 1077 | G17: 0 | H17: 4672 | I17: 10291 | J17: 481 | K17: 80 | L17: 67 | M17: 67 | N17: 0 | O17: 4195 | P17: 3280 | Q17: 418 | R17: 12780 | S17: 2163
B18: Enregistrement | C18: 9h
C19: 16h
B20: Identification
B21: Propreté des tables de contrôle
B22: Rangement des outils de contrôle
B23: Existance de l'OF
B24: Affutage | T24: =+COUNTA(D24:S24) -> 0
B25: Maintenance
B26: Nombre des NC poubelle | R26: 3 | S26: 7
B27: Nombre des NC à retoucher
B28: Machine pour retouche
B29: Panne
B30: Cout pièces de rechange | T30: =SUM(D30:S30) -> 0
B31: prix de revient pièce | D31: =IFERROR(VLOOKUP(D14,'Prix de revient'!$A:$D,4,0),0) -> 0 | E31: =IFERROR(VLOOKUP(E14,'Prix de revient'!$A:$D,4,0),0) -> 0 | F31: =IFERROR(VLOOKUP(F14,'Prix de revient'!$A:$D,4,0),0) -> 0 | G31: =IFERROR(VLOOKUP(G14,'Prix de revient'!$A:$D,4,0),0) -> 0 | H31: =IFERROR(VLOOKUP(H14,'Prix de revient'!$A:$D,4,0),0) -> 0 | I31: =IFERROR(VLOOKUP(I14,'Prix de revient'!$A:$D,4,0),0) -> 0 | J31: =IFERROR(VLOOKUP(J14,'Prix de revient'!$A:$D,4,0),0) -> 2.1488 | K31: =IFERROR(VLOOKUP(K14,'Prix de revient'!$A:$D,4,0),0) -> 0 | L31: =IFERROR(VLOOKUP(L14,'Prix de revient'!$A:$D,4,0),0) -> 0 | M31: =IFERROR(VLOOKUP(M14,'Prix de revient'!$A:$D,4,0),0) -> 0 | N31: =IFERROR(VLOOKUP(N14,'Prix de revient'!$A:$D,4,0),0) -> 0 | O31: =IFERROR(VLOOKUP(O14,'Prix de revient'!$A:$D,4,0),0) -> 0 | P31: =IFERROR(VLOOKUP(P14,'Prix de revient'!$A:$D,4,0),0) -> 0 | Q31: =IFERROR(VLOOKUP(Q14,'Prix de revient'!$A:$D,4,0),0) -> 0 | R31: =IFERROR(VLOOKUP(R14,'Prix de revient'!$A:$D,4,0),0) -> 0 | S31: =IFERROR(VLOOKUP(S14,'Prix de revient'!$A:$D,4,0),0) -> 0
B32: coût de rebuts | D32: =D26*D31 -> 0 | E32: =E26*E31 -> 0 | F32: 0 | G32: 0 | H32: 0 | I32: 0 | J32: 0 | K32: 0 | L32: 0 | M32: 0 | N32: 0 | O32: 0 | P32: 0 | Q32: 0 | R32: 0 | S32: 0 | T32: =SUM(D32:S32) -> 0
B33: gestion de modification
C41: Clients | D41: Audit | E41: Réclamation | F41: Avoir | H41: Fournisseurs/ sous-traitants | I41: Réception de matiere | J41: Probleme qualité | L41: Les formations professionnelles | M41: Cout | N41: Chiffrage décliné | O41: Actions à suivre | Q41: Article qui a subit un tri | R41: durée du tri | S41: Nombre des pieces non-conformes | T41: ouvrier faisant le tri | U41: cout par tri | W41: Article qui a subit la reprise | X41: durée de la reprise | Y41: opérateur faisant la reprise | Z41: coût de reprise | AD41: Machine | AE41: article | AF41: gamme | AG41: objet de la modification
U42: =IF(R42="","",R42*VLOOKUP(T42,'cout opérateur machines'!A1:B8,2,0)) ->  | Z42: =X42*8 -> 0
U43: =IF(R43="","",R43*VLOOKUP(T43,'cout opérateur machines'!A2:B9,2,0)) ->  | Z43: =X43*8 -> 0
U44: =IF(R44="","",R44*VLOOKUP(T44,'cout opérateur machines'!A3:B10,2,0)) ->  | Z44: 0
U45: =IF(R45="","",R45*VLOOKUP(T45,'cout opérateur machines'!A4:B11,2,0)) ->  | Z45: 0
U46: =IF(R46="","",R46*VLOOKUP(T46,'cout opérateur machines'!A5:B12,2,0)) ->  | Z46: 0
U47: =IF(R47="","",R47*VLOOKUP(T47,'cout opérateur machines'!A6:B13,2,0)) ->  | Z47: 0
E48: =COUNTA(E42:E47) -> 0 | F48: =SUM(F42:F47) -> 0 | M48: =SUM(M42:M47) -> 0 | N48: causes de refus | S48: cout total du jour | U48: =SUM(U42:U47) -> 0 | Z48: 0
H49: envoi des réclamations F/ S-T | I49: réponse F/ S-T | J49: alerte | Z49: =SUM(Z42:Z48) -> 0
C50: dans le cas d'une réclamation | J50: =IF(J42="","",IF(H50=0," réclamation non traitée",IF(I50=0, "veuillez contacter le F/ S-T par téléphone",""))) ->  | S50: N° mois | U50: 3
C51: nombre de pièces NC | J51: =IF(J43="","",IF(H51=0," réclamation non traitée",IF(I51=0, "veuillez contacter le F/ S-T par téléphone",""))) -> 
C52: nombre de pièces par carton
C53: coût de transport par carton
C54: nombre de cartons renvoyés
C55: temps de tri
C56: coût horaire de tri
C57: temps de retouche
C58: coût horaire de retouche
C59: temps de traitement de la réclamation
C60: coût horaire de traitement
C61: coût total | D61: =IFERROR(((D51/D52)*D53)+D54*D53+D55*D56+D57*D58+D59*D60,"") -> 

Sheet 03-03-22
E2: Rapport journalier | R2: Code:DAS-SMQ-24
R3: Date: 27/12/2019
R4: Version:01
R5: Page:1
D12: A | E12: B | F12: C | G12: D | H12: E | I12: F | J12: M | K12: N | L12: O | M12: P | N12: I | O12: L | P12: K | Q12: J | R12: G | S12: H
B13: Machine | D13: SST16 | E13: SB16 | F13: BIGLIA 301 SM | G13: BIGLIA 42 S2M bitourelle | H13: L32 | I13: TSUGAMI | J13: MORI SEIKI 3 axes | K13: MORI SEIKI 5 axes | L13: HARDING | M13: KITAMURA | N13: MULTIBROCHE | O13: NAKAMURA | P13: TOUR WEILER
B14: Référence | D14: T-RB400 | E14: 328090-majc | F14: G011 | G14: I081-95-CP8 | H14: 200200-2022 | I14: B55 6*14.8 | J14: I110-01-004 | K14: PIG-11D | L14: I006 | M14: I004 | N14: MPS000300 | O14: G018 | P14: 199400-a | Q14: 4-7561-1 | R14: 68.0814 | S14: AXE-INOX-D8-L58
B15: Désignation | D15: RIVET TRB400 maj-c | E15: Primaire en laiton , | F15: BAGUE D32*22 L=21 | G15: AXE BOITIER TFR+KB | H15: Embout de tige-2022 | I15: Rivet couvercle B55 | J15: INSERT LEVIER SURMOULEE 345833-01 - fraisage | K15: PIGNON 11 DENTS FRAISAGE | L15: CAL SUSPENSION PM ISUZU-HARDING | M15: ECROU SUSPENSION ISUZU-HARDING | N15: raccord HEX 17 | O15: GOUJON M12*1.5 L=49 | P15: Tirant acier D6 maj-c | Q15: Bague Galvanisée 24*30*55 PAR CHUTES | R15: Buse droite à collerette Ø8 | S15: AXE INOX D8 L58
B16: Compteur 8h | D16: 34900 | E16: 19311 | F16: 106 | G16: 736 | H16: 3828 | I16: 6344 | J16: 423 | K16: 18 | L16: 26 | M16: 26 | N16: 0 | O16: 3730 | P16: 1659 | Q16: 0 | R16: 11296 | S16: 0
B17: Compteur 17h | D17: 36486 | E17: 21107 | F17: 567 | G17: 768 | H17: 4203 | I17: 8228 | J17: 450 | K17: 56 | L17: 42 | M17: 42 | N17: 0 | O17: 3971 | P17: 2477 | Q17: 274 | R17: 12003 | S17: 916
B18: Enregistrement | C18: 9h
C19: 16h
B20: Identification
B21: Propreté des tables de contrôle
B22: Rangement des outils de contrôle
B23: Existance de l'OF
B24: Affutage | T24: =+COUNTA(D24:S24) -> 0
B25: Maintenance
B26: Nombre des NC poubelle
B27: Nombre des NC à retoucher
B28: Machine pour retouche
B29: Panne
B30: Cout pièces de rechange | T30: =SUM(D30:S30) -> 0
B31: prix de revient pièce | D31: =IFERROR(VLOOKUP(D14,'Prix de revient'!$A:$D,4,0),0) -> 0 | E31: =IFERROR(VLOOKUP(E14,'Prix de revient'!$A:$D,4,0),0) -> 0 | F31: =IFERROR(VLOOKUP(F14,'Prix de revient'!$A:$D,4,0),0) -> 0 | G31: =IFERROR(VLOOKUP(G14,'Prix de revient'!$A:$D,4,0),0) -> 0 | H31: =IFERROR(VLOOKUP(H14,'Prix de revient'!$A:$D,4,0),0) -> 0 | I31: =IFERROR(VLOOKUP(I14,'Prix de revient'!$A:$D,4,0),0) -> 0 | J31: =IFERROR(VLOOKUP(J14,'Prix de revient'!$A:$D,4,0),0) -> 2.1488 | K31: =IFERROR(VLOOKUP(K14,'Prix de revient'!$A:$D,4,0),0) -> 0 | L31: =IFERROR(VLOOKUP(L14,'Prix de revient'!$A:$D,4,0),0) -> 0 | M31: =IFERROR(VLOOKUP(M14,'Prix de revient'!$A:$D,4,0),0) -> 0 | N31: =IFERROR(VLOOKUP(N14,'Prix de revient'!$A:$D,4,0),0) -> 0 | O31: =IFERROR(VLOOKUP(O14,'Prix de revient'!$A:$D,4,0),0) -> 0 | P31: =IFERROR(VLOOKUP(P14,'Prix de revient'!$A:$D,4,0),0) -> 0 | Q31: =IFERROR(VLOOKUP(Q14,'Prix de revient'!$A:$D,4,0),0) -> 0 | R31: =IFERROR(VLOOKUP(R14,'Prix de revient'!$A:$D,4,0),0) -> 0 | S31: =IFERROR(VLOOKUP(S14,'Prix de revient'!$A:$D,4,0),0) -> 0
B32: coût de rebuts | D32: =D26*D31 -> 0 | E32: =E26*E31 -> 0 | F32: 0 | G32: 0 | H32: 0 | I32: 0 | J32: 0 | K32: 0 | L32: 0 | M32: 0 | N32: 0 | O32: 0 | P32: 0 | Q32: 0 | R32: 0 | S32: 0 | T32: =SUM(D32:S32) -> 0
B33: gestion de modification
C41: Clients | D41: Audit | E41: Réclamation | F41: Avoir | H41: Fournisseurs/ sous-traitants | I41: Réception de matiere | J41: Probleme qualité | L41: Les formations professionnelles | M41: Cout | N41: Chiffrage décliné | O41: Actions à suivre | Q41: Article qui a subit un tri | R41: durée du tri | S41: Nombre des pieces non-conformes | T41: ouvrier faisant le tri | U41: cout par tri | W41: Article qui a subit la reprise | X41: durée de la reprise | Y41: opérateur faisant la reprise | Z41: coût de reprise | AD41: Machine | AE41: article | AF41: gamme | AG41: objet de la modification
U42: =IF(R42="","",R42*VLOOKUP(T42,'cout opérateur machines'!A1:B8,2,0)) ->  | Z42: =X42*8 -> 0
U43: =IF(R43="","",R43*VLOOKUP(T43,'cout opérateur machines'!A2:B9,2,0)) ->  | Z43: =X43*8 -> 0
U44: =IF(R44="","",R44*VLOOKUP(T44,'cout opérateur machines'!A3:B10,2,0)) ->  | Z44: 0
U45: =IF(R45="","",R45*VLOOKUP(T45,'cout opérateur machines'!A4:B11,2,0)) ->  | Z45: 0
U46: =IF(R46="","",R46*VLOOKUP(T46,'cout opérateur machines'!A5:B12,2,0)) ->  | Z46: 0
U47: =IF(R47="","",R47*VLOOKUP(T47,'cout opérateur machines'!A6:B13,2,0)) ->  | Z47: 0
E48: =COUNTA(E42:E47) -> 0 | F48: =SUM(F42:F47) -> 0 | M48: =SUM(M42:M47) -> 0 | N48: causes de refus | S48: cout total du jour | U48: =SUM(U42:U47) -> 0 | Z48: 0
H49: envoi des réclamations F/ S-T | I49: réponse F/ S-T | J49: alerte | Z49: =SUM(Z42:Z48) -> 0
C50: dans le cas d'une réclamation | J50: =IF(J42="","",IF(H50=0," réclamation non traitée",IF(I50=0, "veuillez contacter le F/ S-T par téléphone",""))) ->  | S50: N° mois | U50: 3
C51: nombre de pièces NC | J51: =IF(J43="","",IF(H51=0," réclamation non traitée",IF(I51=0, "veuillez contacter le F/ S-T par téléphone",""))) -> 
C52: nombre de pièces par carton
C53: coût de transport par carton
C54: nombre de cartons renvoyés
C55: temps de tri
C56: coût horaire de tri
C57: temps de retouche
C58: coût horaire de retouche
C59: temps de traitement de la réclamation
C60: coût horaire de traitement
C61: coût total | D61: =IFERROR(((D51/D52)*D53)+D54*D53+D55*D56+D57*D58+D59*D60,"") -> 

Sheet 02-3-22
E2: Rapport journalier | R2: Code:DAS-SMQ-24
R3: Date: 27/12/2019
R4: Version:01
R5: Page:1
D12: A | E12: B | F12: C | G12: D | H12: E | I12: F | J12: M | K12: N | L12: O | M12: P | N12: I | O12: L | P12: K | Q12: J | R12: G | S12: H
B13: Machine | D13: SST16 | E13: SB16 | F13: BIGLIA 301 SM | G13: BIGLIA 42 S2M bitourelle | H13: L32 | I13: TSUGAMI | J13: MORI SEIKI 3 axes | K13: MORI SEIKI 5 axes | L13: HARDING | M13: KITAMURA | N13: MULTIBROCHE | O13: NAKAMURA | P13: TOUR WEILER
B14: Référence | D14: T-RB400 | E14: 328090-majc | F14: G011 | G14: I081-95-CP8 | H14: 200200-2022 | I14: B55 6*14.8 | J14: I110-01-004 | K14: PIG-11D | L14: I006 | M14: I004 | N14: MPS000300 | O14: G018 | P14: 199400-a | Q14: 4-7741-1 | R14: 68.0814 | S14: Rivet T80
B15: Désignation | D15: RIVET TRB400 maj-c | E15: Primaire en laiton , | F15: BAGUE D32*22 L=21 | G15: AXE BOITIER TFR+KB | H15: Embout de tige-2022 | I15: Rivet couvercle B55 | J15: INSERT LEVIER SURMOULEE 345833-01 - fraisage | K15: PIGNON 11 DENTS FRAISAGE | L15: CAL SUSPENSION PM ISUZU-HARDING | M15: ECROU SUSPENSION ISUZU-HARDING | N15: raccord HEX 17 | O15: GOUJON M12*1.5 L=49 | P15: Tirant acier D6 maj-c | Q15: BAGUE GALVANISEE 32.2*42*46 | R15: Buse droite à collerette Ø8 | S15: Rivet mécanique T80
B16: Compteur 8h | D16: 33545 | E16: 17660 | F16: 0 | G16: 658 | H16: 3252 | I16: 3925 | J16: 391 | K16: 0 | L16: 13 | M16: 13 | N16: 0 | O16: 3527 | P16: 1013 | Q16: 146 | R16: 10536 | S16: 28031
B17: Compteur 17h | D17: 34900 | E17: 19311 | F17: 106 | G17: 736 | H17: 3828 | I17: 6344 | J17: 423 | K17: 18 | L17: 26 | M17: 26 | N17: 0 | O17: 3730 | P17: 1659 | Q17: 434 | R17: 11296 | S17: 30300
B18: Enregistrement | C18: 9h
C19: 16h
B20: Identification
B21: Propreté des tables de contrôle
B22: Rangement des outils de contrôle
B23: Existance de l'OF
B24: Affutage | T24: =+COUNTA(D24:S24) -> 0
B25: Maintenance
B26: Nombre des NC poubelle
B27: Nombre des NC à retoucher
B28: Machine pour retouche
B29: Panne
B30: Cout pièces de rechange | T30: =SUM(D30:S30) -> 0
B31: prix de revient pièce | D31: =IFERROR(VLOOKUP(D14,'Prix de revient'!$A:$D,4,0),0) -> 0 | E31: =IFERROR(VLOOKUP(E14,'Prix de revient'!$A:$D,4,0),0) -> 0 | F31: =IFERROR(VLOOKUP(F14,'Prix de revient'!$A:$D,4,0),0) -> 0 | G31: =IFERROR(VLOOKUP(G14,'Prix de revient'!$A:$D,4,0),0) -> 0 | H31: =IFERROR(VLOOKUP(H14,'Prix de revient'!$A:$D,4,0),0) -> 0 | I31: =IFERROR(VLOOKUP(I14,'Prix de revient'!$A:$D,4,0),0) -> 0 | J31: =IFERROR(VLOOKUP(J14,'Prix de revient'!$A:$D,4,0),0) -> 2.1488 | K31: =IFERROR(VLOOKUP(K14,'Prix de revient'!$A:$D,4,0),0) -> 0 | L31: =IFERROR(VLOOKUP(L14,'Prix de revient'!$A:$D,4,0),0) -> 0 | M31: =IFERROR(VLOOKUP(M14,'Prix de revient'!$A:$D,4,0),0) -> 0 | N31: =IFERROR(VLOOKUP(N14,'Prix de revient'!$A:$D,4,0),0) -> 0 | O31: =IFERROR(VLOOKUP(O14,'Prix de revient'!$A:$D,4,0),0) -> 0 | P31: =IFERROR(VLOOKUP(P14,'Prix de revient'!$A:$D,4,0),0) -> 0 | Q31: =IFERROR(VLOOKUP(Q14,'Prix de revient'!$A:$D,4,0),0) -> 0 | R31: =IFERROR(VLOOKUP(R14,'Prix de revient'!$A:$D,4,0),0) -> 0 | S31: =IFERROR(VLOOKUP(S14,'Prix de revient'!$A:$D,4,0),0) -> 0
B32: coût de rebuts | D32: =D26*D31 -> 0 | E32: =E26*E31 -> 0 | F32: 0 | G32: 0 | H32: 0 | I32: 0 | J32: 0 | K32: 0 | L32: 0 | M32: 0 | N32: 0 | O32: 0 | P32: 0 | Q32: 0 | R32: 0 | S32: 0 | T32: =SUM(D32:S32) -> 0
B33: gestion de modification
C41: Clients | D41: Audit | E41: Réclamation | F41: Avoir | H41: Fournisseurs/ sous-traitants | I41: Réception de matiere | J41: Probleme qualité | L41: Les formations professionnelles | M41: Cout | N41: Chiffrage décliné | O41: Actions à suivre | Q41: Article qui a subit un tri | R41: durée du tri | S41: Nombre des pieces non-conformes | T41: ouvrier faisant le tri | U41: cout par tri | W41: Article qui a subit la reprise | X41: durée de la reprise | Y41: opérateur faisant la reprise | Z41: coût de reprise | AD41: Machine | AE41: article | AF41: gamme | AG41: objet de la modification
U42: =IF(R42="","",R42*VLOOKUP(T42,'cout opérateur machines'!A1:B8,2,0)) ->  | Z42: =X42*8 -> 0
U43: =IF(R43="","",R43*VLOOKUP(T43,'cout opérateur machines'!A2:B9,2,0)) ->  | Z43: =X43*8 -> 0
U44: =IF(R44="","",R44*VLOOKUP(T44,'cout opérateur machines'!A3:B10,2,0)) ->  | Z44: 0
U45: =IF(R45="","",R45*VLOOKUP(T45,'cout opérateur machines'!A4:B11,2,0)) ->  | Z45: 0
U46: =IF(R46="","",R46*VLOOKUP(T46,'cout opérateur machines'!A5:B12,2,0)) ->  | Z46: 0
U47: =IF(R47="","",R47*VLOOKUP(T47,'cout opérateur machines'!A6:B13,2,0)) ->  | Z47: 0
E48: =COUNTA(E42:E47) -> 0 | F48: =SUM(F42:F47) -> 0 | M48: =SUM(M42:M47) -> 0 | N48: causes de refus | S48: cout total du jour | U48: =SUM(U42:U47) -> 0 | Z48: 0
H49: envoi des réclamations F/ S-T | I49: réponse F/ S-T | J49: alerte | Z49: =SUM(Z42:Z48) -> 0
C50: dans le cas d'une réclamation | J50: =IF(J42="","",IF(H50=0," réclamation non traitée",IF(I50=0, "veuillez contacter le F/ S-T par téléphone",""))) ->  | S50: N° mois | U50: 3
C51: nombre de pièces NC | J51: =IF(J43="","",IF(H51=0," réclamation non traitée",IF(I51=0, "veuillez contacter le F/ S-T par téléphone",""))) -> 
C52: nombre de pièces par carton
C53: coût de transport par carton
C54: nombre de cartons renvoyés
C55: temps de tri
C56: coût horaire de tri
C57: temps de retouche
C58: coût horaire de retouche
C59: temps de traitement de la réclamation
C60: coût horaire de traitement
C61: coût total | D61: =IFERROR(((D51/D52)*D53)+D54*D53+D55*D56+D57*D58+D59*D60,"") -> 

Sheet 01-3-22
E2: Rapport journalier | R2: Code:DAS-SMQ-24
R3: Date: 27/12/2019
R4: Version:01
R5: Page:1
D12: A | E12: B | F12: C | G12: D | H12: E | I12: F | J12: M | K12: N | L12: O | M12: P | N12: I | O12: L | P12: K | Q12: J | R12: G | S12: H
B13: Machine | D13: SST16 | E13: SB16 | F13: BIGLIA 301 SM | G13: BIGLIA 42 S2M bitourelle | H13: L32 | I13: TSUGAMI | J13: MORI SEIKI 3 axes | K13: MORI SEIKI 5 axes | L13: HARDING | M13: KITAMURA | N13: MULTIBROCHE | O13: NAKAMURA | P13: TOUR WEILER
B14: Référence | D14: T-RB400 | E14: 328090-majc | F14: B041-CP1 | G14: I081-95-CP8 | H14: 200200-2022 | I14: B55 6*14.8 | J14: I110-01-004 | K14: - | L14: I006 | M14: I004 | N14: MPS000300 | O14: G018 | P14: 199400-a | Q14: 4-7741-1 | R14: 68.0814 | S14: Rivet T80
B15: Désignation | D15: RIVET TRB400 maj-c | E15: Primaire en laiton , | F15: CHEMISE ZINGUEE TETE POMPETE 404 | G15: AXE BOITIER TFR+KB | H15: Embout de tige-2022 | I15: Rivet couvercle B55 | J15: INSERT LEVIER SURMOULEE 345833-01 - fraisage | K15: Arrêt | L15: CAL SUSPENSION PM ISUZU-HARDING | M15: ECROU SUSPENSION ISUZU-HARDING | N15: raccord HEX 17 | O15: GOUJON M12*1.5 L=49 | P15: Tirant acier D6 maj-c | Q15: BAGUE GALVANISEE 32.2*42*46 | R15: Buse droite à collerette Ø8 | S15: Rivet mécanique T80
B16: Compteur 8h | D16: 32031 | E16: 15842 | F16: 1072 | G16: 503 | H16: 2697 | I16: 1721 | J16: 356 | K16: 0 | L16: 0 | M16: 0 | N16: 0 | O16: 3330 | P16: 86 | Q16: 0 | R16: 9792 | S16: 24547
B17: Compteur 17h | D17: 33545 | E17: 17660 | F17: 1211 | G17: 658 | H17: 3252 | I17: 3925 | J17: 391 | K17: 0 | L17: 13 | M17: 13 | N17: 0 | O17: 3527 | P17: 1013 | Q17: 146 | R17: 10536 | S17: 28031
B18: Enregistrement | C18: 9h
C19: 16h
B20: Identification
B21: Propreté des tables de contrôle
B22: Rangement des outils de contrôle
B23: Existance de l'OF
B24: Affutage | T24: =+COUNTA(D24:S24) -> 0
B25: Maintenance
B26: Nombre des NC poubelle | R26: 7
B27: Nombre des NC à retoucher
B28: Machine pour retouche
B29: Panne
B30: Cout pièces de rechange | T30: =SUM(D30:S30) -> 0
B31: prix de revient pièce | D31: =IFERROR(VLOOKUP(D14,'Prix de revient'!$A:$D,4,0),0) -> 0 | E31: =IFERROR(VLOOKUP(E14,'Prix de revient'!$A:$D,4,0),0) -> 0 | F31: =IFERROR(VLOOKUP(F14,'Prix de revient'!$A:$D,4,0),0) -> 0 | G31: =IFERROR(VLOOKUP(G14,'Prix de revient'!$A:$D,4,0),0) -> 0 | H31: =IFERROR(VLOOKUP(H14,'Prix de revient'!$A:$D,4,0),0) -> 0 | I31: =IFERROR(VLOOKUP(I14,'Prix de revient'!$A:$D,4,0),0) -> 0 | J31: =IFERROR(VLOOKUP(J14,'Prix de revient'!$A:$D,4,0),0) -> 2.1488 | K31: =IFERROR(VLOOKUP(K14,'Prix de revient'!$A:$D,4,0),0) -> 0 | L31: =IFERROR(VLOOKUP(L14,'Prix de revient'!$A:$D,4,0),0) -> 0 | M31: =IFERROR(VLOOKUP(M14,'Prix de revient'!$A:$D,4,0),0) -> 0 | N31: =IFERROR(VLOOKUP(N14,'Prix de revient'!$A:$D,4,0),0) -> 0 | O31: =IFERROR(VLOOKUP(O14,'Prix de revient'!$A:$D,4,0),0) -> 0 | P31: =IFERROR(VLOOKUP(P14,'Prix de revient'!$A:$D,4,0),0) -> 0 | Q31: =IFERROR(VLOOKUP(Q14,'Prix de revient'!$A:$D,4,0),0) -> 0 | R31: =IFERROR(VLOOKUP(R14,'Prix de revient'!$A:$D,4,0),0) -> 0 | S31: =IFERROR(VLOOKUP(S14,'Prix de revient'!$A:$D,4,0),0) -> 0
B32: coût de rebuts | D32: =D26*D31 -> 0 | E32: =E26*E31 -> 0 | F32: 0 | G32: 0 | H32: 0 | I32: 0 | J32: 0 | K32: 0 | L32: 0 | M32: 0 | N32: 0 | O32: 0 | P32: 0 | Q32: 0 | R32: 0 | S32: 0 | T32: =SUM(D32:S32) -> 0
B33: gestion de modification
C41: Clients | D41: Audit | E41: Réclamation | F41: Avoir | H41: Fournisseurs/ sous-traitants | I41: Réception de matiere | J41: Probleme qualité | L41: Les formations professionnelles | M41: Cout | N41: Chiffrage décliné | O41: Actions à suivre | Q41: Article qui a subit un tri | R41: durée du tri | S41: Nombre des pieces non-conformes | T41: ouvrier faisant le tri | U41: cout par tri | W41: Article qui a subit la reprise | X41: durée de la reprise | Y41: opérateur faisant la reprise | Z41: coût de reprise | AD41: Machine | AE41: article | AF41: gamme | AG41: objet de la modification
U42: =IF(R42="","",R42*VLOOKUP(T42,'cout opérateur machines'!A1:B8,2,0)) ->  | Z42: =X42*8 -> 0
U43: =IF(R43="","",R43*VLOOKUP(T43,'cout opérateur machines'!A2:B9,2,0)) ->  | Z43: =X43*8 -> 0
U44: =IF(R44="","",R44*VLOOKUP(T44,'cout opérateur machines'!A3:B10,2,0)) ->  | Z44: 0
U45: =IF(R45="","",R45*VLOOKUP(T45,'cout opérateur machines'!A4:B11,2,0)) ->  | Z45: 0
U46: =IF(R46="","",R46*VLOOKUP(T46,'cout opérateur machines'!A5:B12,2,0)) ->  | Z46: 0
U47: =IF(R47="","",R47*VLOOKUP(T47,'cout opérateur machines'!A6:B13,2,0)) ->  | Z47: 0
E48: =COUNTA(E42:E47) -> 0 | F48: =SUM(F42:F47) -> 0 | M48: =SUM(M42:M47) -> 0 | N48: causes de refus | S48: cout total du jour | U48: =SUM(U42:U47) -> 0 | Z48: 0
H49: envoi des réclamations F/ S-T | I49: réponse F/ S-T | J49: alerte | Z49: =SUM(Z42:Z48) -> 0
